{"text_format":"1","workbook":"xlsx","n_sheets":12,"sheets":["Januar","01-Abrechnung","Februar","02-Abrechnung","Maerz","03-Abrechnung","April","04-Abrechnung","Mai","05-Abrechnung","Juni","06-Abrechnung"],"not_rendered":{"charts":0,"images":2,"macros":0,"external_links":1,"defined_names":27,"comments":0,"pivot_tables":0},"unopened":[],"bounds":{"document_bytes":16777216,"sheet_cells":100000,"rows_first":2000,"rows_last":500,"rows_between":2000,"halvings":0,"cell_chars":16384,"cell_head_chars":4096},"cells_cut":0,"cells_raw":0,"read":"whole","date_system":"1900"}

{"sheet":"Januar","index":0,"n_rows":309,"n_cols":41,"rows_kept":309,"cut":false,"hidden":false,"merged":[]}
[null,"Testnummer / Testerin","05701","05702","05707","05708","05709","03134","05710","05711","05712","05713","05714","05715","03136","03137",null,null,null,null,null,null,"Anz.","Stück-Std.","Summe\nin EURO",null,null,null,"Summe BIM in EURO","Stamm daten",null,null,null,null,"Vorführ-fütterung","Std. /Entgelt","Gesamt\nNETTO*\nin EURO","km x \n XXeurocent","Pauschale 25%",null,"Gesamt\nin EURO"]
[1,null,null,null,null,null,null,null,null,null,null,null,null,null,null,null,null,null,null,null,null,null,{"$f":"SUM(C2:V2)","v":0},null,{"$f":"SUM(W2*2.25)","v":0},null,null,null,{"$f":"(Z2+AA2+AB2)*2.25","v":0},null,null,null,null,null,null,null,{"$f":"Y2+AC2+AD2+AF2+AG2+AH2+AI2+AJ2+AE2","v":0},null,null,null,{"$f":"AK2+AL2+AM2+AN2","v":0}]
[2,"Gundlach, Doris",null,null,null,null,null,null,null,null,null,null,null,null,null,null,null,null,null,null,null,null,0,null,{"$f":"SUM(W3*2.25)","v":0},null,null,null,{"$f":"(Z3+AA3+AB3)*2.25","v":0},null,null,null,null,null,null,null,{"$f":"Y3+AC3+AD3+AF3+AG3+AH3+AI3+AJ3+AE3","v":0},{"$f":"W3*2.75+(H3+I3+J3+N3)*2.75","v":0},null,null,0]
[3,null,null,null,null,null,null,null,null,null,null,null,null,null,null,null,null,null,null,null,null,null,0,null,0,null,null,null,0,null,null,null,null,null,null,null,{"$f":"Y4+AC4+AD4+AF4+AG4+AH4+AI4+AJ4+AE4","v":0},0,null,null,0]
[4,"Korte, Inge",null,null,null,null,null,null,1,null,1,null,null,3,null,null,null,null,null,null,null,null,5,{"$f":"W5/4","v":1.25},11.25,null,null,null,0,null,null,null,null,null,null,null,{"$f":"Y5+AC5+AD5+AF5+AG5+AH5+AI5+AJ5+AE5","v":11.25},{"$f":"W5*2.75","v":13.75},null,null,25]
[5,"Tölkemeier, Petra",null,8,8,4,null,null,null,null,null,8,null,5,null,null,null,null,null,null,null,null,33,{"$f":"W6/4","v":8.25},74.25,null,null,null,0,null,null,null,null,null,null,null,74.25,{"$f":"W6*2.75","v":90.75},null,null,165]
[6,"Rohlfing, Anja",3,null,null,4,null,4,1,3,1,null,null,3,null,null,null,null,null,null,null,null,19,4.75,42.75,null,null,null,0,null,null,null,null,null,null,null,42.75,52.25,null,null,95]
[7,"Aumann, Elfriede",null,null,null,6,null,4,6,null,6,null,null,6,null,null,null,null,null,null,null,null,28,7,63,null,null,null,0,null,null,null,null,null,null,null,63,77,null,null,140]
[8,null,null,null,null,null,null,null,null,null,null,null,null,null,null,null,null,null,null,null,null,null,0,0,0,null,null,null,0,null,null,null,null,null,null,null,0,0,null,null,0]
[9,"Kilzer, Andreas",5,null,null,6,null,null,10,5,10,null,5,null,null,4,null,null,null,null,null,null,45,11.25,101.25,null,null,null,0,null,null,null,null,null,null,null,101.25,123.75,null,null,225]
[10,"Rakowski, Sigrid",null,6,6,null,6,null,null,null,null,2,6,6,null,null,null,null,null,null,null,null,32,8,72,null,null,null,0,null,null,null,null,null,null,null,72,{"$f":"W11*2.75","v":88},null,null,160]
[11,null,null,null,null,null,null,null,null,null,null,null,null,null,null,null,null,null,null,null,null,null,0,0,0,null,null,null,0,null,null,null,null,null,null,null,0,0,null,null,0]
[12,"Drewes, Andrea",null,6,6,null,5,null,null,6,null,4,5,4,null,null,null,null,null,null,null,null,36,9,81,null,null,null,0,null,null,null,null,null,null,null,81,99,null,null,180]
[13,null,null,null,null,null,null,null,null,null,null,null,null,null,null,null,null,null,null,null,null,null,{"$f":"SUM(D14:V14)","v":0},0,0,null,null,null,0,null,null,null,null,null,null,null,0,0,null,null,0]
[14,"Grabbe , Nadja",5,null,null,4,null,null,null,null,null,null,null,null,null,null,null,null,null,null,null,null,{"$f":"SUM(C15:V15)","v":9},2.25,20.25,null,null,null,0,null,null,null,null,null,null,null,20.25,24.75,null,null,45]
[15,"Sassenberg, Julia",null,null,null,3,null,4,null,null,null,null,null,null,4,null,null,null,null,null,null,null,11,2.75,24.75,null,null,null,0,null,null,null,null,null,null,null,24.75,30.25,null,null,55]
[16,null,null,null,null,null,null,null,null,null,null,null,null,null,null,null,null,null,null,null,null,null,0,0,0,null,null,null,0,null,null,null,null,null,null,null,0,0,null,null,0]
[17,null,null,null,null,null,null,null,null,null,null,null,null,null,null,null,null,null,null,null,null,null,0,0,0,null,null,null,0,null,null,null,null,null,null,null,0,0,null,null,0]
[18,null,null,null,null,null,null,null,null,null,null,null,null,null,null,null,null,null,null,null,null,null,0,0,0,null,null,null,0,null,null,null,null,null,null,null,0,0,null,null,0]
[19,"Blaha, Heinz",null,null,null,3,6,null,9,null,9,null,6,null,4,null,null,null,null,null,null,null,37,9.25,83.25,null,null,null,0,null,null,null,null,null,null,null,83.25,101.75,null,null,185]
[20,null,null,null,null,null,null,null,null,null,null,null,null,null,null,null,null,null,null,null,null,null,0,0,0,null,null,null,0,null,null,null,null,null,null,null,0,0,null,null,0]
[21,"Weichenhan, Rainer",null,null,null,null,null,null,null,null,null,null,null,null,null,null,null,null,null,null,null,null,0,0,0,null,null,null,0,null,null,null,null,null,null,null,0,{"$f":"W22*2.75","v":0},null,null,0]
[22,"Lill, Ulrich",null,7,7,3,null,null,null,null,null,7,4,4,null,null,null,null,null,null,null,null,32,8,72,null,null,null,0,null,null,null,null,null,null,null,72,88,null,null,160]
[23,null,null,null,null,null,null,null,null,null,null,null,null,null,null,null,null,null,null,null,null,null,0,0,0,null,null,null,0,null,null,null,null,null,null,null,0,0,null,null,0]
[24,"Hübsch, Karl-Heinz",null,7,7,null,null,4,null,null,null,7,null,null,5,null,null,null,null,null,null,null,30,7.5,67.5,null,null,null,0,null,null,null,null,null,null,null,67.5,82.5,null,null,150]
[25,"Feigel-Kipp, Claudia",6,null,null,null,6,5,7,6,7,null,null,null,null,5,null,null,null,null,null,null,42,10.5,94.5,null,null,null,0,null,null,null,null,null,null,null,94.5,115.5,null,null,210]
[26,null,null,null,null,null,null,null,null,null,null,null,null,null,null,null,null,null,null,null,null,null,0,0,0,null,null,null,0,null,null,null,null,null,null,null,0,0,null,null,0]
[27,null,null,null,null,null,null,null,null,null,null,null,null,null,null,null,null,null,null,null,null,null,0,0,0,null,null,null,0,null,null,null,null,null,null,null,0,0,null,null,0]
[28,null,null,null,null,null,null,null,null,null,null,null,null,null,null,null,null,null,null,null,null,null,0,0,0,null,null,null,0,null,null,null,null,null,null,null,0,0,null,null,0]
[29,"Scholz, Stella",null,8,8,null,null,null,null,null,null,4,null,null,5,null,null,null,null,null,null,null,25,6.25,56.25,null,null,null,0,null,null,null,null,null,null,null,56.25,68.75,null,null,125]
[30,"Hachmeister, Stefan",6,null,null,null,6,null,null,null,null,5,5,null,null,4,null,null,null,null,null,null,26,6.5,58.5,null,null,null,0,null,null,null,null,null,null,null,58.5,71.5,null,null,130]
[31,null,null,null,null,null,null,null,null,null,null,null,null,null,null,null,null,null,null,null,null,null,0,0,0,null,null,null,0,null,null,null,null,null,null,null,0,0,null,null,0]
[32,null,null,null,null,null,null,null,null,null,null,null,null,null,null,null,null,null,null,null,null,null,0,0,0,null,null,null,0,null,null,null,null,null,null,null,0,0,null,null,0]
[33,null,null,null,null,null,null,null,null,null,null,null,null,null,null,null,null,null,null,null,null,null,0,0,0,null,null,null,0,null,null,null,null,null,null,null,0,0,null,null,0]
[34,null,null,null,null,null,null,null,null,null,null,null,null,null,null,null,null,null,null,null,null,null,0,0,0,null,null,null,0,null,null,null,null,null,null,null,0,0,null,null,0]
[35,null,null,null,null,null,null,null,null,null,null,null,null,null,null,null,null,null,null,null,null,null,0,0,0,null,null,null,0,null,null,null,null,null,null,null,0,0,null,null,0]
[36,"Selle, Monika",6,null,null,null,6,null,null,6,null,null,null,null,null,4,null,null,null,null,null,null,22,5.5,49.5,null,null,null,0,null,null,null,null,null,null,null,49.5,60.5,null,null,110]
[37,"Sander, Eva-Maria",6,null,null,3,null,null,4,6,4,null,4,null,4,null,null,null,null,null,null,null,31,7.75,69.75,null,null,null,0,null,null,null,null,null,null,null,69.75,85.25,null,null,155]
[38,"Sander, Jessica",null,null,null,null,null,null,null,null,null,null,null,null,null,null,null,null,null,null,null,null,0,0,0,null,null,null,0,null,null,null,null,null,null,null,0,{"$f":"W39*2.75","v":0},null,null,0]
[39,"Wiese-Schmutzer, Armgard",null,null,null,null,null,null,null,null,null,null,null,null,null,null,null,null,null,null,null,null,0,0,0,null,null,null,0,null,null,null,null,null,null,null,0,0,null,null,0]
[40,null,null,null,null,null,null,null,null,null,null,null,null,null,null,null,null,null,null,null,null,null,0,0,0,null,null,null,0,null,null,null,null,null,null,null,0,0,null,null,0]
[41,null,null,null,null,null,null,null,null,null,null,null,null,null,null,null,null,null,null,null,null,null,0,0,0,null,null,null,0,null,null,null,null,null,null,null,0,0,null,null,0]
[42,null,null,null,null,null,null,null,null,null,null,null,null,null,null,null,null,null,null,null,null,null,0,0,0,null,null,null,0,null,null,null,null,null,null,null,0,0,null,null,0]
[43,null,null,null,null,null,null,null,null,null,null,null,null,null,null,null,null,null,null,null,null,null,0,0,0,null,null,null,0,null,null,null,null,null,null,null,0,0,null,null,0]
[44,null,null,null,null,null,null,null,null,null,null,null,null,null,null,null,null,null,null,null,null,null,0,0,0,null,null,null,0,null,null,null,null,null,null,null,0,0,null,null,0]
[45,null,null,null,null,null,null,null,null,null,null,null,null,null,null,null,null,null,null,null,null,null,0,0,0,null,null,null,0,null,null,null,null,null,null,null,0,0,null,null,0]
[46,null,null,null,null,null,null,null,null,null,null,null,null,null,null,null,null,null,null,null,null,null,0,0,0,null,null,null,0,null,null,null,null,null,null,null,0,0,null,null,0]
[47,null,null,null,null,null,null,null,null,null,null,null,null,null,null,null,null,null,null,null,null,null,0,0,0,null,null,null,0,null,null,null,null,null,null,null,0,0,null,null,0]
[48,null,null,null,null,null,null,null,null,null,null,null,null,null,null,null,null,null,null,null,null,null,0,0,0,null,null,null,0,null,null,null,null,null,null,null,0,0,null,null,0]
[49,null,null,null,null,null,null,null,null,null,null,null,null,null,null,null,null,null,null,null,null,null,0,0,0,null,null,null,0,null,null,null,null,null,null,null,0,0,null,null,0]
[50,null,null,null,null,null,null,null,null,null,null,null,null,null,null,null,null,null,null,null,null,null,0,0,0,null,null,null,0,null,null,null,null,null,null,null,0,0,null,null,0]
[51,null,null,null,null,null,null,null,null,null,null,null,null,null,null,null,null,null,null,null,null,null,0,0,0,null,null,null,0,null,null,null,null,null,null,null,0,0,null,null,0]
[52,null,null,null,null,null,null,null,null,null,null,null,null,null,null,null,null,null,null,null,null,null,0,0,0,null,null,null,0,null,null,null,null,null,null,null,0,0,null,null,0]
[53,null,null,null,null,null,null,null,null,null,null,null,null,null,null,null,null,null,null,null,null,null,0,0,0,null,null,null,0,null,null,null,null,null,null,null,0,0,null,null,0]
[54,null,null,null,null,null,null,null,null,null,null,null,null,null,null,null,null,null,null,null,null,null,0,0,0,null,null,null,0,null,null,null,null,null,null,null,0,0,null,null,0]
[55,null,null,null,null,null,null,null,null,null,null,null,null,null,null,null,null,null,null,null,null,null,0,0,0,null,null,null,0,null,null,null,null,null,null,null,0,0,null,null,0]
[56,null,null,null,null,null,null,null,null,null,null,null,null,null,null,null,null,null,null,null,null,null,0,0,0,null,null,null,0,null,null,null,null,null,null,null,0,0,null,null,0]
[57,null,null,null,null,null,null,null,null,null,null,null,null,null,null,null,null,null,null,null,null,null,0,0,0,null,null,null,0,null,null,null,null,null,null,null,0,0,null,null,0]
[58,null,null,null,null,null,null,null,null,null,null,null,null,null,null,null,null,null,null,null,null,null,0,0,0,null,null,null,0,null,null,null,null,null,null,null,0,0,null,null,0]
[59,null,null,null,null,null,null,null,null,null,null,null,null,null,null,null,null,null,null,null,null,null,0,0,0,null,null,null,0,null,null,null,null,null,null,null,0,0,null,null,0]
[60,null,null,null,null,null,null,null,null,null,null,null,null,null,null,null,null,null,null,null,null,null,0,0,0,null,null,null,0,null,null,null,null,null,null,null,0,0,null,null,0]
[61,null,null,null,null,null,null,null,null,null,null,null,null,null,null,null,null,null,null,null,null,null,0,0,0,null,null,null,0,null,null,null,null,null,null,null,0,0,null,null,0]
[62,null,null,null,null,null,null,null,null,null,null,null,null,null,null,null,null,null,null,null,null,null,0,0,0,null,null,null,0,null,null,null,null,null,null,null,0,0,null,null,0]
[63,null,null,null,null,null,null,null,null,null,null,null,null,null,null,null,null,null,null,null,null,null,0,0,0,null,null,null,0,null,null,null,null,null,null,null,0,0,null,null,0]
[64,null,null,null,null,null,null,null,null,null,null,null,null,null,null,null,null,null,null,null,null,null,0,0,0,null,null,null,0,null,null,null,null,null,null,null,0,0,null,null,0]
[65,null,null,null,null,null,null,null,null,null,null,null,null,null,null,null,null,null,null,null,null,null,0,0,0,null,null,null,0,null,null,null,null,null,null,null,0,0,null,null,{"$f":"AK66+AL66+AM66+AN66","v":0}]
[66,null,null,null,null,null,null,null,null,null,null,null,null,null,null,null,null,null,null,null,null,null,0,0,{"$f":"SUM(W67*2.25)","v":0},null,null,null,{"$f":"(Z67+AA67+AB67)*2.25","v":0},null,null,null,null,null,null,null,0,0,null,null,0]
[67,null,null,null,null,null,null,null,null,null,null,null,null,null,null,null,null,null,null,null,null,null,0,0,0,null,null,null,0,null,null,null,null,null,null,null,0,0,null,null,0]
[68,null,null,null,null,null,null,null,null,null,null,null,null,null,null,null,null,null,null,null,null,null,0,0,0,null,null,null,0,null,null,null,null,null,null,null,{"$f":"Y69+AC69+AD69+AF69+AG69+AH69+AI69+AJ69+AE69","v":0},0,null,null,0]
[69,null,null,null,null,null,null,null,null,null,null,null,null,null,null,null,null,null,null,null,null,null,0,{"$f":"W70/4","v":0},0,null,null,null,0,null,null,null,null,null,null,null,0,{"$f":"W70*2.75","v":0},null,null,0]
[70,null,null,null,null,null,null,null,null,null,null,null,null,null,null,null,null,null,null,null,null,null,0,0,0,null,null,null,0,null,null,null,null,null,null,null,0,0,null,null,0]
[71,null,null,null,null,null,null,null,null,null,null,null,null,null,null,null,null,null,null,null,null,null,0,0,0,null,null,null,0,null,null,null,null,null,null,null,0,0,null,null,0]
[72,null,null,null,null,null,null,null,null,null,null,null,null,null,null,null,null,null,null,null,null,null,0,0,0,null,null,null,0,null,null,null,null,null,null,null,0,0,null,null,0]
[73,null,null,null,null,null,null,null,null,null,null,null,null,null,null,null,null,null,null,null,null,null,0,0,0,null,null,null,0,null,null,null,null,null,null,null,0,0,null,null,0]
[74,null,null,null,null,null,null,null,null,null,null,null,null,null,null,null,null,null,null,null,null,null,0,0,0,null,null,null,0,null,null,null,null,null,null,null,0,0,null,null,0]
[75,null,null,null,null,null,null,null,null,null,null,null,null,null,null,null,null,null,null,null,null,null,0,0,0,null,null,null,0,null,null,null,null,null,null,null,0,0,null,null,0]
[76,null,null,null,null,null,null,null,null,null,null,null,null,null,null,null,null,null,null,null,null,null,0,0,0,null,null,null,0,null,null,null,null,null,null,null,0,0,null,null,0]
[77,null,null,null,null,null,null,null,null,null,null,null,null,null,null,null,null,null,null,null,null,null,0,0,0,null,null,null,0,null,null,null,null,null,null,null,0,0,null,null,0]
[78,null,null,null,null,null,null,null,null,null,null,null,null,null,null,null,null,null,null,null,null,null,{"$f":"SUM(C79:V79)","v":0},0,0,null,null,null,0,null,null,null,null,null,null,null,0,0,null,null,0]
[79,null,null,null,null,null,null,null,null,null,null,null,null,null,null,null,null,null,null,null,null,null,0,0,0,null,null,null,0,null,null,null,null,null,null,null,0,0,null,null,0]
[80,null,null,null,null,null,null,null,null,null,null,null,null,null,null,null,null,null,null,null,null,null,0,0,0,null,null,null,0,null,null,null,null,null,null,null,0,0,null,null,0]
[81,null,null,null,null,null,null,null,null,null,null,null,null,null,null,null,null,null,null,null,null,null,0,0,0,null,null,null,0,null,null,null,null,null,null,null,0,0,null,null,0]
[82,null,null,null,null,null,null,null,null,null,null,null,null,null,null,null,null,null,null,null,null,null,0,0,0,null,null,null,0,null,null,null,null,null,null,null,0,0,null,null,0]
[83,null,null,null,null,null,null,null,null,null,null,null,null,null,null,null,null,null,null,null,null,null,0,0,0,null,null,null,0,null,null,null,null,null,null,null,0,0,null,null,0]
[84,null,null,null,null,null,null,null,null,null,null,null,null,null,null,null,null,null,null,null,null,null,0,0,0,null,null,null,0,null,null,null,null,null,null,null,0,0,null,null,0]
[85,null,null,null,null,null,null,null,null,null,null,null,null,null,null,null,null,null,null,null,null,null,0,0,0,null,null,null,0,null,null,null,null,null,null,null,0,0,null,null,0]
[86,null,null,null,null,null,null,null,null,null,null,null,null,null,null,null,null,null,null,null,null,null,0,0,0,null,null,null,0,null,null,null,null,null,null,null,0,0,null,null,0]
[87,null,null,null,null,null,null,null,null,null,null,null,null,null,null,null,null,null,null,null,null,null,0,0,0,null,null,null,0,null,null,null,null,null,null,null,0,0,null,null,0]
[88,null,null,null,null,null,null,null,null,null,null,null,null,null,null,null,null,null,null,null,null,null,0,0,0,null,null,null,0,null,null,null,null,null,null,null,0,0,null,null,0]
[89,null,null,null,null,null,null,null,null,null,null,null,null,null,null,null,null,null,null,null,null,null,0,0,0,null,null,null,0,null,null,null,null,null,null,null,0,0,null,null,0]
[90,null,null,null,null,null,null,null,null,null,null,null,null,null,null,null,null,null,null,null,null,null,0,0,0,null,null,null,0,null,null,null,null,null,null,null,0,0,null,null,0]
[91,null,null,null,null,null,null,null,null,null,null,null,null,null,null,null,null,null,null,null,null,null,0,0,0,null,null,null,0,null,null,null,null,null,null,null,0,0,null,null,0]
[92,null,null,null,null,null,null,null,null,null,null,null,null,null,null,null,null,null,null,null,null,null,0,0,0,null,null,null,0,null,null,null,null,null,null,null,0,0,null,null,0]
[93,null,null,null,null,null,null,null,null,null,null,null,null,null,null,null,null,null,null,null,null,null,0,0,0,null,null,null,0,null,null,null,null,null,null,null,0,0,null,null,0]
[94,null,null,null,null,null,null,null,null,null,null,null,null,null,null,null,null,null,null,null,null,null,0,0,0,null,null,null,0,null,null,null,null,null,null,null,0,0,null,null,0]
[95,null,null,null,null,null,null,null,null,null,null,null,null,null,null,null,null,null,null,null,null,null,0,0,0,null,null,null,0,null,null,null,null,null,null,null,0,0,null,null,0]
[96,null,null,null,null,null,null,null,null,null,null,null,null,null,null,null,null,null,null,null,null,null,0,0,0,null,null,null,0,null,null,null,null,null,null,null,0,0,null,null,0]
[97,null,null,null,null,null,null,null,null,null,null,null,null,null,null,null,null,null,null,null,null,null,0,0,0,null,null,null,0,null,null,null,null,null,null,null,0,0,null,null,0]
[98,null,null,null,null,null,null,null,null,null,null,null,null,null,null,null,null,null,null,null,null,null,0,0,0,null,null,null,0,null,null,null,null,null,null,null,0,0,null,null,0]
[99,null,null,null,null,null,null,null,null,null,null,null,null,null,null,null,null,null,null,null,null,null,0,0,0,null,null,null,0,null,null,null,null,null,null,null,0,0,null,null,0]
[100,null,null,null,null,null,null,null,null,null,null,null,null,null,null,null,null,null,null,null,null,null,0,0,0,null,null,null,0,null,null,null,null,null,null,null,0,0,null,null,0]
[101,null,null,null,null,null,null,null,null,null,null,null,null,null,null,null,null,null,null,null,null,null,0,0,0,null,null,null,0,null,null,null,null,null,null,null,0,0,null,null,0]
[102,null,null,null,null,null,null,null,null,null,null,null,null,null,null,null,null,null,null,null,null,null,0,0,0,null,null,null,0,null,null,null,null,null,null,null,0,0,null,null,0]
[103,null,null,null,null,null,null,null,null,null,null,null,null,null,null,null,null,null,null,null,null,null,0,0,0,null,null,null,0,null,null,null,null,null,null,null,0,0,null,null,0]
[104,null,null,null,null,null,null,null,null,null,null,null,null,null,null,null,null,null,null,null,null,null,0,0,0,null,null,null,0,null,null,null,null,null,null,null,0,0,null,null,0]
[105,null,null,null,null,null,null,null,null,null,null,null,null,null,null,null,null,null,null,null,null,null,0,0,0,null,null,null,0,null,null,null,null,null,null,null,0,0,null,null,0]
[106,null,null,null,null,null,null,null,null,null,null,null,null,null,null,null,null,null,null,null,null,null,0,0,0,null,null,null,0,null,null,null,null,null,null,null,0,0,null,null,0]
[107,null,null,null,null,null,null,null,null,null,null,null,null,null,null,null,null,null,null,null,null,null,0,0,0,null,null,null,0,null,null,null,null,null,null,null,0,0,null,null,0]
[108,null,null,null,null,null,null,null,null,null,null,null,null,null,null,null,null,null,null,null,null,null,0,0,0,null,null,null,0,null,null,null,null,null,null,null,0,0,null,null,0]
[109,null,null,null,null,null,null,null,null,null,null,null,null,null,null,null,null,null,null,null,null,null,0,0,0,null,null,null,0,null,null,null,null,null,null,null,0,0,null,null,0]
[110,"Kruse, Brigitte",5,null,null,6,null,null,1,5,1,null,null,4,null,null,null,null,null,null,null,null,22,5.5,49.5,null,null,null,0,null,null,null,null,null,null,null,49.5,60.5,null,null,110]
[111,null,null,null,null,null,null,null,null,null,null,null,null,null,null,null,null,null,null,null,null,null,0,0,0,null,null,null,0,null,null,null,null,null,null,null,0,0,null,null,0]
[112,null,null,null,null,null,null,null,null,null,null,null,null,null,null,null,null,null,null,null,null,null,0,0,0,null,null,null,0,null,null,null,null,null,null,null,0,0,null,null,0]
[113,null,null,null,null,null,null,null,null,null,null,null,null,null,null,null,null,null,null,null,null,null,0,0,0,null,null,null,0,null,null,null,null,null,null,null,0,0,null,null,0]
[114,null,null,null,null,null,null,null,null,null,null,null,null,null,null,null,null,null,null,null,null,null,0,0,0,null,null,null,0,null,null,null,null,null,null,null,0,0,null,null,0]
[115,null,null,null,null,null,null,null,null,null,null,null,null,null,null,null,null,null,null,null,null,null,0,0,0,null,null,null,0,null,null,null,null,null,null,null,0,0,null,null,0]
[116,null,null,null,null,null,null,null,null,null,null,null,null,null,null,null,null,null,null,null,null,null,0,0,0,null,null,null,0,null,null,null,null,null,null,null,0,0,null,null,0]
[117,null,null,null,null,null,null,null,null,null,null,null,null,null,null,null,null,null,null,null,null,null,0,0,0,null,null,null,0,null,null,null,null,null,null,null,0,0,null,null,0]
[118,null,null,null,null,null,null,null,null,null,null,null,null,null,null,null,null,null,null,null,null,null,0,0,0,null,null,null,0,null,null,null,null,null,null,null,0,0,null,null,0]
[119,null,null,null,null,null,null,null,null,null,null,null,null,null,null,null,null,null,null,null,null,null,0,0,0,null,null,null,0,null,null,null,null,null,null,null,0,0,null,null,0]
[120,null,null,null,null,null,null,null,null,null,null,null,null,null,null,null,null,null,null,null,null,null,0,0,0,null,null,null,0,null,null,null,null,null,null,null,0,0,null,null,0]
[121,null,null,null,null,null,null,null,null,null,null,null,null,null,null,null,null,null,null,null,null,null,0,0,0,null,null,null,0,null,null,null,null,null,null,null,0,0,null,null,0]
[122,null,null,null,null,null,null,null,null,null,null,null,null,null,null,null,null,null,null,null,null,null,0,0,0,null,null,null,0,null,null,null,null,null,null,null,0,0,null,null,0]
[123,null,null,null,null,null,null,null,null,null,null,null,null,null,null,null,null,null,null,null,null,null,0,0,0,null,null,null,0,null,null,null,null,null,null,null,0,0,null,null,0]
[124,null,null,null,null,null,null,null,null,null,null,null,null,null,null,null,null,null,null,null,null,null,0,0,0,null,null,null,0,null,null,null,null,null,null,null,0,0,null,null,0]
[125,null,null,null,null,null,null,null,null,null,null,null,null,null,null,null,null,null,null,null,null,null,0,0,0,null,null,null,0,null,null,null,null,null,null,null,0,0,null,null,0]
[126,null,null,null,null,null,null,null,null,null,null,null,null,null,null,null,null,null,null,null,null,null,0,0,0,null,null,null,0,null,null,null,null,null,null,null,0,0,null,null,0]
[127,null,null,null,null,null,null,null,null,null,null,null,null,null,null,null,null,null,null,null,null,null,0,0,0,null,null,null,0,null,null,null,null,null,null,null,0,0,null,null,0]
[128,null,null,null,null,null,null,null,null,null,null,null,null,null,null,null,null,null,null,null,null,null,0,0,0,null,null,null,0,null,null,null,null,null,null,null,0,0,null,null,0]
[129,null,null,null,null,null,null,null,null,null,null,null,null,null,null,null,null,null,null,null,null,null,0,0,0,null,null,null,0,null,null,null,null,null,null,null,0,0,null,null,{"$f":"AK130+AL130+AM130+AN130","v":0}]
[130,null,null,null,null,null,null,null,null,null,null,null,null,null,null,null,null,null,null,null,null,null,0,0,{"$f":"SUM(W131*2.25)","v":0},null,null,null,{"$f":"(Z131+AA131+AB131)*2.25","v":0},null,null,null,null,null,null,null,0,0,null,null,0]
[131,null,null,null,null,null,null,null,null,null,null,null,null,null,null,null,null,null,null,null,null,null,0,0,0,null,null,null,0,null,null,null,null,null,null,null,0,0,null,null,0]
[132,null,null,null,null,null,null,null,null,null,null,null,null,null,null,null,null,null,null,null,null,null,0,0,0,null,null,null,0,null,null,null,null,null,null,null,{"$f":"Y133+AC133+AD133+AF133+AG133+AH133+AI133+AJ133+AE133","v":0},0,null,null,0]
[133,null,null,null,null,null,null,null,null,null,null,null,null,null,null,null,null,null,null,null,null,null,0,{"$f":"W134/4","v":0},0,null,null,null,0,null,null,null,null,null,null,null,0,{"$f":"W134*2.75","v":0},null,null,0]
[134,null,null,null,null,null,null,null,null,null,null,null,null,null,null,null,null,null,null,null,null,null,0,0,0,null,null,null,0,null,null,null,null,null,null,null,0,0,null,null,0]
[135,null,null,null,null,null,null,null,null,null,null,null,null,null,null,null,null,null,null,null,null,null,0,0,0,null,null,null,0,null,null,null,null,null,null,null,0,0,null,null,0]
[136,null,null,null,null,null,null,null,null,null,null,null,null,null,null,null,null,null,null,null,null,null,0,0,0,null,null,null,0,null,null,null,null,null,null,null,0,0,null,null,0]
[137,null,null,null,null,null,null,null,null,null,null,null,null,null,null,null,null,null,null,null,null,null,0,0,0,null,null,null,0,null,null,null,null,null,null,null,0,0,null,null,0]
[138,null,null,null,null,null,null,null,null,null,null,null,null,null,null,null,null,null,null,null,null,null,0,0,0,null,null,null,0,null,null,null,null,null,null,null,0,0,null,null,0]
[139,null,null,null,null,null,null,null,null,null,null,null,null,null,null,null,null,null,null,null,null,null,0,0,0,null,null,null,0,null,null,null,null,null,null,null,0,0,null,null,0]
[140,null,null,null,null,null,null,null,null,null,null,null,null,null,null,null,null,null,null,null,null,null,0,0,0,null,null,null,0,null,null,null,null,null,null,null,0,0,null,null,0]
[141,null,null,null,null,null,null,null,null,null,null,null,null,null,null,null,null,null,null,null,null,null,0,0,0,null,null,null,0,null,null,null,null,null,null,null,0,0,null,null,0]
[142,null,null,null,null,null,null,null,null,null,null,null,null,null,null,null,null,null,null,null,null,null,{"$f":"SUM(C143:V143)","v":0},0,0,null,null,null,0,null,null,null,null,null,null,null,0,0,null,null,0]
[143,null,null,null,null,null,null,null,null,null,null,null,null,null,null,null,null,null,null,null,null,null,0,0,0,null,null,null,0,null,null,null,null,null,null,null,0,0,null,null,0]
[144,null,null,null,null,null,null,null,null,null,null,null,null,null,null,null,null,null,null,null,null,null,0,0,0,null,null,null,0,null,null,null,null,null,null,null,0,0,null,null,0]
[145,null,null,null,null,null,null,null,null,null,null,null,null,null,null,null,null,null,null,null,null,null,0,0,0,null,null,null,0,null,null,null,null,null,null,null,0,0,null,null,0]
[146,null,null,null,null,null,null,null,null,null,null,null,null,null,null,null,null,null,null,null,null,null,0,0,0,null,null,null,0,null,null,null,null,null,null,null,0,0,null,null,0]
[147,null,null,null,null,null,null,null,null,null,null,null,null,null,null,null,null,null,null,null,null,null,0,0,0,null,null,null,0,null,null,null,null,null,null,null,0,0,null,null,0]
[148,null,null,null,null,null,null,null,null,null,null,null,null,null,null,null,null,null,null,null,null,null,0,0,0,null,null,null,0,null,null,null,null,null,null,null,0,0,null,null,0]
[149,null,null,null,null,null,null,null,null,null,null,null,null,null,null,null,null,null,null,null,null,null,0,0,0,null,null,null,0,null,null,null,null,null,null,null,0,0,null,null,0]
[150,null,null,null,null,null,null,null,null,null,null,null,null,null,null,null,null,null,null,null,null,null,0,0,0,null,null,null,0,null,null,null,null,null,null,null,0,0,null,null,0]
[151,null,null,null,null,null,null,null,null,null,null,null,null,null,null,null,null,null,null,null,null,null,0,0,0,null,null,null,0,null,null,null,null,null,null,null,0,0,null,null,0]
[152,null,null,null,null,null,null,null,null,null,null,null,null,null,null,null,null,null,null,null,null,null,0,0,0,null,null,null,0,null,null,null,null,null,null,null,0,0,null,null,0]
[153,null,null,null,null,null,null,null,null,null,null,null,null,null,null,null,null,null,null,null,null,null,0,0,0,null,null,null,0,null,null,null,null,null,null,null,0,0,null,null,0]
[154,null,null,null,null,null,null,null,null,null,null,null,null,null,null,null,null,null,null,null,null,null,0,0,0,null,null,null,0,null,null,null,null,null,null,null,0,0,null,null,0]
[155,null,null,null,null,null,null,null,null,null,null,null,null,null,null,null,null,null,null,null,null,null,0,0,0,null,null,null,0,null,null,null,null,null,null,null,0,0,null,null,0]
[156,null,null,null,null,null,null,null,null,null,null,null,null,null,null,null,null,null,null,null,null,null,0,0,0,null,null,null,0,null,null,null,null,null,null,null,0,0,null,null,0]
[157,null,null,null,null,null,null,null,null,null,null,null,null,null,null,null,null,null,null,null,null,null,0,0,0,null,null,null,0,null,null,null,null,null,null,null,0,0,null,null,0]
[158,null,null,null,null,null,null,null,null,null,null,null,null,null,null,null,null,null,null,null,null,null,0,0,0,null,null,null,0,null,null,null,null,null,null,null,0,0,null,null,0]
[159,null,null,null,null,null,null,null,null,null,null,null,null,null,null,null,null,null,null,null,null,null,0,0,0,null,null,null,0,null,null,null,null,null,null,null,0,0,null,null,0]
[160,null,null,null,null,null,null,null,null,null,null,null,null,null,null,null,null,null,null,null,null,null,0,0,0,null,null,null,0,null,null,null,null,null,null,null,0,0,null,null,0]
[161,null,null,null,null,null,null,null,null,null,null,null,null,null,null,null,null,null,null,null,null,null,0,0,0,null,null,null,0,null,null,null,null,null,null,null,0,0,null,null,0]
[162,null,null,null,null,null,null,null,null,null,null,null,null,null,null,null,null,null,null,null,null,null,0,0,0,null,null,null,0,null,null,null,null,null,null,null,0,0,null,null,0]
[163,null,null,null,null,null,null,null,null,null,null,null,null,null,null,null,null,null,null,null,null,null,0,0,0,null,null,null,0,null,null,null,null,null,null,null,0,0,null,null,0]
[164,null,null,null,null,null,null,null,null,null,null,null,null,null,null,null,null,null,null,null,null,null,0,0,0,null,null,null,0,null,null,null,null,null,null,null,0,0,null,null,0]
[165,null,null,null,null,null,null,null,null,null,null,null,null,null,null,null,null,null,null,null,null,null,0,0,0,null,null,null,0,null,null,null,null,null,null,null,0,0,null,null,0]
[166,null,null,null,null,null,null,null,null,null,null,null,null,null,null,null,null,null,null,null,null,null,0,0,0,null,null,null,0,null,null,null,null,null,null,null,0,0,null,null,0]
[167,null,null,null,null,null,null,null,null,null,null,null,null,null,null,null,null,null,null,null,null,null,0,0,0,null,null,null,0,null,null,null,null,null,null,null,0,0,null,null,0]
[168,null,null,null,null,null,null,null,null,null,null,null,null,null,null,null,null,null,null,null,null,null,0,0,0,null,null,null,0,null,null,null,null,null,null,null,0,0,null,null,0]
[169,null,null,null,null,null,null,null,null,null,null,null,null,null,null,null,null,null,null,null,null,null,0,0,0,null,null,null,0,null,null,null,null,null,null,null,0,0,null,null,0]
[170,null,null,null,null,null,null,null,null,null,null,null,null,null,null,null,null,null,null,null,null,null,0,0,0,null,null,null,0,null,null,null,null,null,null,null,0,0,null,null,0]
[171,null,null,null,null,null,null,null,null,null,null,null,null,null,null,null,null,null,null,null,null,null,0,0,0,null,null,null,0,null,null,null,null,null,null,null,0,0,null,null,0]
[172,null,null,null,null,null,null,null,null,null,null,null,null,null,null,null,null,null,null,null,null,null,0,0,0,null,null,null,0,null,null,null,null,null,null,null,0,0,null,null,0]
[173,null,null,null,null,null,null,null,null,null,null,null,null,null,null,null,null,null,null,null,null,null,0,0,0,null,null,null,0,null,null,null,null,null,null,null,0,0,null,null,0]
[174,null,null,null,null,null,null,null,null,null,null,null,null,null,null,null,null,null,null,null,null,null,0,0,0,null,null,null,0,null,null,null,null,null,null,null,0,0,null,null,0]
[175,null,null,null,null,null,null,null,null,null,null,null,null,null,null,null,null,null,null,null,null,null,0,0,0,null,null,null,0,null,null,null,null,null,null,null,0,0,null,null,0]
[176,null,null,null,null,null,null,null,null,null,null,null,null,null,null,null,null,null,null,null,null,null,0,0,0,null,null,null,0,null,null,null,null,null,null,null,0,0,null,null,0]
[177,null,null,null,null,null,null,null,null,null,null,null,null,null,null,null,null,null,null,null,null,null,0,0,0,null,null,null,0,null,null,null,null,null,null,null,0,0,null,null,0]
[178,null,null,null,null,null,null,null,null,null,null,null,null,null,null,null,null,null,null,null,null,null,0,0,0,null,null,null,0,null,null,null,null,null,null,null,0,0,null,null,0]
[179,null,null,null,null,null,null,null,null,null,null,null,null,null,null,null,null,null,null,null,null,null,0,0,0,null,null,null,0,null,null,null,null,null,null,null,0,0,null,null,0]
[180,null,null,null,null,null,null,null,null,null,null,null,null,null,null,null,null,null,null,null,null,null,0,0,0,null,null,null,0,null,null,null,null,null,null,null,0,0,null,null,0]
[181,null,null,null,null,null,null,null,null,null,null,null,null,null,null,null,null,null,null,null,null,null,0,0,0,null,null,null,0,null,null,null,null,null,null,null,0,0,null,null,0]
[182,null,null,null,null,null,null,null,null,null,null,null,null,null,null,null,null,null,null,null,null,null,0,0,0,null,null,null,0,null,null,null,null,null,null,null,0,0,null,null,0]
[183,null,null,null,null,null,null,null,null,null,null,null,null,null,null,null,null,null,null,null,null,null,0,0,0,null,null,null,0,null,null,null,null,null,null,null,0,0,null,null,0]
[184,null,null,null,null,null,null,null,null,null,null,null,null,null,null,null,null,null,null,null,null,null,0,0,0,null,null,null,0,null,null,null,null,null,null,null,0,0,null,null,0]
[185,null,null,null,null,null,null,null,null,null,null,null,null,null,null,null,null,null,null,null,null,null,0,0,0,null,null,null,0,null,null,null,null,null,null,null,0,0,null,null,0]
[186,null,null,null,null,null,null,null,null,null,null,null,null,null,null,null,null,null,null,null,null,null,0,0,0,null,null,null,0,null,null,null,null,null,null,null,0,0,null,null,0]
[187,null,null,null,null,null,null,null,null,null,null,null,null,null,null,null,null,null,null,null,null,null,0,0,0,null,null,null,0,null,null,null,null,null,null,null,0,0,null,null,0]
[188,null,null,null,null,null,null,null,null,null,null,null,null,null,null,null,null,null,null,null,null,null,0,0,0,null,null,null,0,null,null,null,null,null,null,null,0,0,null,null,0]
[189,null,null,null,null,null,null,null,null,null,null,null,null,null,null,null,null,null,null,null,null,null,0,0,0,null,null,null,0,null,null,null,null,null,null,null,0,0,null,null,0]
[190,null,null,null,null,null,null,null,null,null,null,null,null,null,null,null,null,null,null,null,null,null,0,0,0,null,null,null,0,null,null,null,null,null,null,null,0,0,null,null,0]
[191,null,null,null,null,null,null,null,null,null,null,null,null,null,null,null,null,null,null,null,null,null,0,0,0,null,null,null,0,null,null,null,null,null,null,null,0,0,null,null,0]
[192,null,null,null,null,null,null,null,null,null,null,null,null,null,null,null,null,null,null,null,null,null,0,0,0,null,null,null,0,null,null,null,null,null,null,null,0,0,null,null,0]
[193,null,null,null,null,null,null,null,null,null,null,null,null,null,null,null,null,null,null,null,null,null,0,0,0,null,null,null,0,null,null,null,null,null,null,null,0,0,null,null,{"$f":"AK194+AL194+AM194+AN194","v":0}]
[194,null,null,null,null,null,null,null,null,null,null,null,null,null,null,null,null,null,null,null,null,null,0,0,{"$f":"SUM(W195*2.25)","v":0},null,null,null,{"$f":"(Z195+AA195+AB195)*2.25","v":0},null,null,null,null,null,null,null,0,0,null,null,0]
[195,null,null,null,null,null,null,null,null,null,null,null,null,null,null,null,null,null,null,null,null,null,0,0,0,null,null,null,0,null,null,null,null,null,null,null,0,0,null,null,0]
[196,null,null,null,null,null,null,null,null,null,null,null,null,null,null,null,null,null,null,null,null,null,0,0,0,null,null,null,0,null,null,null,null,null,null,null,{"$f":"Y197+AC197+AD197+AF197+AG197+AH197+AI197+AJ197+AE197","v":0},0,null,null,0]
[197,null,null,null,null,null,null,null,null,null,null,null,null,null,null,null,null,null,null,null,null,null,0,{"$f":"W198/4","v":0},0,null,null,null,0,null,null,null,null,null,null,null,0,{"$f":"W198*2.75","v":0},null,null,0]
[198,null,null,null,null,null,null,null,null,null,null,null,null,null,null,null,null,null,null,null,null,null,0,0,0,null,null,null,0,null,null,null,null,null,null,null,0,0,null,null,0]
[199,null,null,null,null,null,null,null,null,null,null,null,null,null,null,null,null,null,null,null,null,null,0,0,0,null,null,null,0,null,null,null,null,null,null,null,0,0,null,null,0]
[200,null,null,null,null,null,null,null,null,null,null,null,null,null,null,null,null,null,null,null,null,null,0,0,0,null,null,null,0,null,null,null,null,null,null,null,0,0,null,null,0]
[201,null,null,null,null,null,null,null,null,null,null,null,null,null,null,null,null,null,null,null,null,null,0,0,0,null,null,null,0,null,null,null,null,null,null,null,0,0,null,null,0]
[202,null,null,null,null,null,null,null,null,null,null,null,null,null,null,null,null,null,null,null,null,null,0,0,0,null,null,null,0,null,null,null,null,null,null,null,0,0,null,null,0]
[203,null,null,null,null,null,null,null,null,null,null,null,null,null,null,null,null,null,null,null,null,null,0,0,0,null,null,null,0,null,null,null,null,null,null,null,0,0,null,null,0]
[204,null,null,null,null,null,null,null,null,null,null,null,null,null,null,null,null,null,null,null,null,null,0,0,0,null,null,null,0,null,null,null,null,null,null,null,0,0,null,null,0]
[205,null,null,null,null,null,null,null,null,null,null,null,null,null,null,null,null,null,null,null,null,null,0,0,0,null,null,null,0,null,null,null,null,null,null,null,0,0,null,null,0]
[206,null,null,null,null,null,null,null,null,null,null,null,null,null,null,null,null,null,null,null,null,null,{"$f":"SUM(C207:V207)","v":0},0,0,null,null,null,0,null,null,null,null,null,null,null,0,0,null,null,0]
[207,null,null,null,null,null,null,null,null,null,null,null,null,null,null,null,null,null,null,null,null,null,0,0,0,null,null,null,0,null,null,null,null,null,null,null,0,0,null,null,0]
[208,null,null,null,null,null,null,null,null,null,null,null,null,null,null,null,null,null,null,null,null,null,0,0,0,null,null,null,0,null,null,null,null,null,null,null,0,0,null,null,0]
[209,null,null,null,null,null,null,null,null,null,null,null,null,null,null,null,null,null,null,null,null,null,0,0,0,null,null,null,0,null,null,null,null,null,null,null,0,0,null,null,0]
[210,"Hachmeister, Christel",null,null,null,null,7,null,null,null,null,5,7,null,null,5,null,null,null,null,null,null,24,6,54,null,null,null,0,null,null,null,null,null,null,null,54,66,null,null,120]
[211," ",null,null,null,null,null,null,null,null,null,null,null,null,null,null,null,null,null,null,null,null,0,null,0,null,null,null,0,null,null,null,null,null,null,null,0,{"$f":"W212*2.55","v":0},null,null,0]
[212," ",null,null,null,null,null,null,null,null,null,null,null,null,null,null,null,null,null,null,null,null,0,null,0,null,null,null,0,null,null,null,null,null,null,null,0,0,null,null,0]
[213," ",null,null,null,null,null,null,null,null,null,null,null,null,null,null,null,null,null,null,null,null,0,null,0,null,null,null,0,null,null,null,null,null,null,null,0,0,null,null,0]
[214," ",null,null,null,null,null,null,null,null,null,null,null,null,null,null,null,null,null,null,null,null,0,null,0,null,null,null,0,null,null,null,null,null,null,null,0,0,null,null,0]
[215," ",null,null,null,null,null,null,null,null,null,null,null,null,null,null,null,null,null,null,null,null,0,null,0,null,null,null,0,null,null,null,null,null,null,null,0,0,null,null,0]
[216," ",null,null,null,null,null,null,null,null,null,null,null,null,null,null,null,null,null,null,null,null,0,null,0,null,null,null,0,null,null,null,null,null,null,null,0,0,null,null,0]
[217," ",null,null,null,null,null,null,null,null,null,null,null,null,null,null,null,null,null,null,null,null,0,null,0,null,null,null,0,null,null,null,null,null,null,null,0,0,null,null,0]
[218," ",null,null,null,null,null,null,null,null,null,null,null,null,null,null,null,null,null,null,null,null,0,null,0,null,null,null,0,null,null,null,null,null,null,null,0,0,null,null,0]
[219," ",null,null,null,null,null,null,null,null,null,null,null,null,null,null,null,null,null,null,null,null,0,null,0,null,null,null,0,null,null,null,null,null,null,null,0,0,null,null,0]
[220," ",null,null,null,null,null,null,null,null,null,null,null,null,null,null,null,null,null,null,null,null,0,null,0,null,null,null,0,null,null,null,null,null,null,null,0,0,null,null,0]
[221," ",null,null,null,null,null,null,null,null,null,null,null,null,null,null,null,null,null,null,null,null,0,null,0,null,null,null,0,null,null,null,null,null,null,null,0,0,null,null,0]
[222," ",null,null,null,null,null,null,null,null,null,null,null,null,null,null,null,null,null,null,null,null,0,null,0,null,null,null,0,null,null,null,null,null,null,null,0,0,null,null,0]
[223," ",null,null,null,null,null,null,null,null,null,null,null,null,null,null,null,null,null,null,null,null,0,null,0,null,null,null,0,null,null,null,null,null,null,null,0,0,null,null,0]
[224," ",null,null,null,null,null,null,null,null,null,null,null,null,null,null,null,null,null,null,null,null,0,null,0,null,null,null,0,null,null,null,null,null,null,null,0,0,null,null,0]
[225," ",null,null,null,null,null,null,null,null,null,null,null,null,null,null,null,null,null,null,null,null,0,null,0,null,null,null,0,null,null,null,null,null,null,null,0,0,null,null,0]
[226," ",null,null,null,null,null,null,null,null,null,null,null,null,null,null,null,null,null,null,null,null,0,null,0,null,null,null,0,null,null,null,null,null,null,null,0,0,null,null,0]
[227," ",null,null,null,null,null,null,null,null,null,null,null,null,null,null,null,null,null,null,null,null,0,null,0,null,null,null,0,null,null,null,null,null,null,null,0,0,null,null,0]
[228," ",null,null,null,null,null,null,null,null,null,null,null,null,null,null,null,null,null,null,null,null,0,null,0,null,null,null,0,null,null,null,null,null,null,null,0,0,null,null,0]
[229," ",null,null,null,null,null,null,null,null,null,null,null,null,null,null,null,null,null,null,null,null,0,null,0,null,null,null,0,null,null,null,null,null,null,null,0,0,null,null,0]
[230," ",null,null,null,null,null,null,null,null,null,null,null,null,null,null,null,null,null,null,null,null,0,null,0,null,null,null,0,null,null,null,null,null,null,null,0,0,null,null,0]
[231," ",null,null,null,null,null,null,null,null,null,null,null,null,null,null,null,null,null,null,null,null,0,null,0,null,null,null,0,null,null,null,null,null,null,null,0,0,null,null,0]
[232," ",null,null,null,null,null,null,null,null,null,null,null,null,null,null,null,null,null,null,null,null,0,null,0,null,null,null,0,null,null,null,null,null,null,null,0,0,null,null,0]
[233," ",null,null,null,null,null,null,null,null,null,null,null,null,null,null,null,null,null,null,null,null,0,null,0,null,null,null,0,null,null,null,null,null,null,null,0,0,null,null,0]
[234," ",null,null,null,null,null,null,null,null,null,null,null,null,null,null,null,null,null,null,null,null,0,null,0,null,null,null,0,null,null,null,null,null,null,null,0,0,null,null,0]
[235," ",null,null,null,null,null,null,null,null,null,null,null,null,null,null,null,null,null,null,null,null,0,null,0,null,null,null,0,null,null,null,null,null,null,null,0,0,null,null,0]
[236," ",null,null,null,null,null,null,null,null,null,null,null,null,null,null,null,null,null,null,null,null,0,null,0,null,null,null,0,null,null,null,null,null,null,null,0,0,null,null,0]
[237," ",null,null,null,null,null,null,null,null,null,null,null,null,null,null,null,null,null,null,null,null,0,null,0,null,null,null,0,null,null,null,null,null,null,null,0,0,null,null,0]
[238," ",null,null,null,null,null,null,null,null,null,null,null,null,null,null,null,null,null,null,null,null,0,null,0,null,null,null,0,null,null,null,null,null,null,null,0,0,null,null,0]
[239," ",null,null,null,null,null,null,null,null,null,null,null,null,null,null,null,null,null,null,null,null,0,null,0,null,null,null,0,null,null,null,null,null,null,null,0,0,null,null,0]
[240," ",null,null,null,null,null,null,null,null,null,null,null,null,null,null,null,null,null,null,null,null,0,null,0,null,null,null,0,null,null,null,null,null,null,null,0,0,null,null,0]
[241," ",null,null,null,null,null,null,null,null,null,null,null,null,null,null,null,null,null,null,null,null,0,null,0,null,null,null,0,null,null,null,null,null,null,null,0,0,null,null,0]
[242," ",null,null,null,null,null,null,null,null,null,null,null,null,null,null,null,null,null,null,null,null,0,null,0,null,null,null,0,null,null,null,null,null,null,null,0,0,null,null,0]
[243," ",null,null,null,null,null,null,null,null,null,null,null,null,null,null,null,null,null,null,null,null,0,null,0,null,null,null,0,null,null,null,null,null,null,null,0,0,null,null,0]
[244," ",null,null,null,null,null,null,null,null,null,null,null,null,null,null,null,null,null,null,null,null,0,null,0,null,null,null,0,null,null,null,null,null,null,null,0,0,null,null,0]
[245," ",null,null,null,null,null,null,null,null,null,null,null,null,null,null,null,null,null,null,null,null,0,null,0,null,null,null,0,null,null,null,null,null,null,null,0,0,null,null,0]
[246," ",null,null,null,null,null,null,null,null,null,null,null,null,null,null,null,null,null,null,null,null,0,null,0,null,null,null,0,null,null,null,null,null,null,null,0,0,null,null,0]
[247," ",null,null,null,null,null,null,null,null,null,null,null,null,null,null,null,null,null,null,null,null,0,null,0,null,null,null,0,null,null,null,null,null,null,null,0,0,null,null,0]
[248," ",null,null,null,null,null,null,null,null,null,null,null,null,null,null,null,null,null,null,null,null,0,null,0,null,null,null,0,null,null,null,null,null,null,null,0,0,null,null,0]
[249,"Meier",null,null,null,null,null,null,null,null,null,null,null,null,null,null,null,null,null,null,null,null,0,null,0,null,null,null,0,null,null,null,null,null,null,null,0,0,null,null,0]
[250," ",null,null,null,null,null,null,null,null,null,null,null,null,null,null,null,null,null,null,null,null,0,null,0,null,null,null,0,null,null,null,null,null,null,null,0,null,null,null,0]
[251," ",null,null,null,null,null,null,null,null,null,null,null,null,null,null,null,null,null,null,null,null,0,null,0,null,null,null,0,null,null,null,null,null,null,null,0,null,null,null,0]
[252," ",null,null,null,null,null,null,null,null,null,null,null,null,null,null,null,null,null,null,null,null,0,null,0,null,null,null,0,null,null,null,null,null,null,null,0,null,null,null,0]
[253," ",null,null,null,null,null,null,null,null,null,null,null,null,null,null,null,null,null,null,null,null,0,null,0,null,null,null,0,null,null,null,null,null,null,null,0,null,null,null,0]
[254," ",null,null,null,null,null,null,null,null,null,null,null,null,null,null,null,null,null,null,null,null,0,null,0,null,null,null,0,null,null,null,null,null,null,null,0,null,null,null,0]
[255," ",null,null,null,null,null,null,null,null,null,null,null,null,null,null,null,null,null,null,null,null,0,null,0,null,null,null,0,null,null,null,null,null,null,null,0,null,null,null,0]
[256," ",null,null,null,null,null,null,null,null,null,null,null,null,null,null,null,null,null,null,null,null,0,null,0,null,null,null,0,null,null,null,null,null,null,null,0,null,null,null,0]
[257," ",null,null,null,null,null,null,null,null,null,null,null,null,null,null,null,null,null,null,null,null,0,null,0,null,null,null,0,null,null,null,null,null,null,null,0,null,null,null,{"$f":"AK258+AL258+AM258+AN258","v":0}]
[258," ",null,null,null,null,null,null,null,null,null,null,null,null,null,null,null,null,null,null,null,null,0,null,{"$f":"SUM(W259*2.25)","v":0},null,null,null,{"$f":"(Z259+AA259+AB259)*2.25","v":0},null,null,null,null,null,null,null,0,null,null,null,0]
[259," ",null,null,null,null,null,null,null,null,null,null,null,null,null,null,null,null,null,null,null,null,0,null,0,null,null,null,0,null,null,null,null,null,null,null,0,null,null,null,0]
[260," ",null,null,null,null,null,null,null,null,null,null,null,null,null,null,null,null,null,null,null,null,0,null,0,null,null,null,0,null,null,null,null,null,null,null,{"$f":"Y261+AC261+AD261+AF261+AG261+AH261+AI261+AJ261+AE261","v":0},null,null,null,0]
[261," ",null,null,null,null,null,null,null,null,null,null,null,null,null,null,null,null,null,null,null,null,0,null,0,null,null,null,0,null,null,null,null,null,null,null,0,null,null,null,0]
[262," ",null,null,null,null,null,null,null,null,null,null,null,null,null,null,null,null,null,null,null,null,0,null,0,null,null,null,0,null,null,null,null,null,null,null,0,null,null,null,0]
[263," ",null,null,null,null,null,null,null,null,null,null,null,null,null,null,null,null,null,null,null,null,0,null,0,null,null,null,0,null,null,null,null,null,null,null,0,null,null,null,0]
[264," ",null,null,null,null,null,null,null,null,null,null,null,null,null,null,null,null,null,null,null,null,0,null,0,null,null,null,0,null,null,null,null,null,null,null,0,null,null,null,0]
[265," ",null,null,null,null,null,null,null,null,null,null,null,null,null,null,null,null,null,null,null,null,0,null,0,null,null,null,0,null,null,null,null,null,null,null,0,null,null,null,0]
[266," ",null,null,null,null,null,null,null,null,null,null,null,null,null,null,null,null,null,null,null,null,0,null,0,null,null,null,0,null,null,null,null,null,null,null,0,null,null,null,0]
[267," ",null,null,null,null,null,null,null,null,null,null,null,null,null,null,null,null,null,null,null,null,0,null,0,null,null,null,0,null,null,null,null,null,null,null,0,null,null,null,0]
[268," ",null,null,null,null,null,null,null,null,null,null,null,null,null,null,null,null,null,null,null,null,0,null,0,null,null,null,0,null,null,null,null,null,null,null,0,null,null,null,0]
[269," ",null,null,null,null,null,null,null,null,null,null,null,null,null,null,null,null,null,null,null,null,0,null,0,null,null,null,0,null,null,null,null,null,null,null,0,null,null,null,0]
[270," ",null,null,null,null,null,null,null,null,null,null,null,null,null,null,null,null,null,null,null,null,{"$f":"SUM(C271:V271)","v":0},null,0,null,null,null,0,null,null,null,null,null,null,null,0,null,null,null,0]
[271," ",null,null,null,null,null,null,null,null,null,null,null,null,null,null,null,null,null,null,null,null,0,null,0,null,null,null,0,null,null,null,null,null,null,null,0,null,null,null,0]
[272," ",null,null,null,null,null,null,null,null,null,null,null,null,null,null,null,null,null,null,null,null,0,null,0,null,null,null,0,null,null,null,null,null,null,null,0,null,null,null,0]
[273," ",null,null,null,null,null,null,null,null,null,null,null,null,null,null,null,null,null,null,null,null,0,null,0,null,null,null,0,null,null,null,null,null,null,null,0,null,null,null,0]
[274," ",null,null,null,null,null,null,null,null,null,null,null,null,null,null,null,null,null,null,null,null,0,null,0,null,null,null,0,null,null,null,null,null,null,null,0,null,null,null,0]
[275," ",null,null,null,null,null,null,null,null,null,null,null,null,null,null,null,null,null,null,null,null,0,null,0,null,null,null,0,null,null,null,null,null,null,null,0,null,null,null,0]
[276," ",null,null,null,null,null,null,null,null,null,null,null,null,null,null,null,null,null,null,null,null,0,null,0,null,null,null,0,null,null,null,null,null,null,null,0,null,null,null,0]
[277," ",null,null,null,null,null,null,null,null,null,null,null,null,null,null,null,null,null,null,null,null,0,null,0,null,null,null,0,null,null,null,null,null,null,null,0,null,null,null,0]
[278," ",null,null,null,null,null,null,null,null,null,null,null,null,null,null,null,null,null,null,null,null,0,null,0,null,null,null,0,null,null,null,null,null,null,null,0,null,null,null,0]
[279," ",null,null,null,null,null,null,null,null,null,null,null,null,null,null,null,null,null,null,null,null,0,null,0,null,null,null,0,null,null,null,null,null,null,null,0,null,null,null,0]
[280," ",null,null,null,null,null,null,null,null,null,null,null,null,null,null,null,null,null,null,null,null,0,null,0,null,null,null,0,null,null,null,null,null,null,null,0,null,null,null,0]
[281," ",null,null,null,null,null,null,null,null,null,null,null,null,null,null,null,null,null,null,null,null,0,null,0,null,null,null,0,null,null,null,null,null,null,null,0,null,null,null,0]
[282," ",null,null,null,null,null,null,null,null,null,null,null,null,null,null,null,null,null,null,null,null,0,null,0,null,null,null,0,null,null,null,null,null,null,null,0,null,null,null,0]
[283," ",null,null,null,null,null,null,null,null,null,null,null,null,null,null,null,null,null,null,null,null,0,null,0,null,null,null,0,null,null,null,null,null,null,null,0,null,null,null,0]
[284," ",null,null,null,null,null,null,null,null,null,null,null,null,null,null,null,null,null,null,null,null,0,null,0,null,null,null,0,null,null,null,null,null,null,null,0,null,null,null,0]
[285," ",null,null,null,null,null,null,null,null,null,null,null,null,null,null,null,null,null,null,null,null,0,null,0,null,null,null,0,null,null,null,null,null,null,null,0,null,null,null,0]
[286," ",null,null,null,null,null,null,null,null,null,null,null,null,null,null,null,null,null,null,null,null,0,null,0,null,null,null,0,null,null,null,null,null,null,null,0,null,null,null,0]
[287," ",null,null,null,null,null,null,null,null,null,null,null,null,null,null,null,null,null,null,null,null,0,null,0,null,null,null,0,null,null,null,null,null,null,null,0,null,null,null,0]
[288," ",null,null,null,null,null,null,null,null,null,null,null,null,null,null,null,null,null,null,null,null,0,null,0,null,null,null,0,null,null,null,null,null,null,null,0,null,null,null,0]
[289," ",null,null,null,null,null,null,null,null,null,null,null,null,null,null,null,null,null,null,null,null,0,null,0,null,null,null,0,null,null,null,null,null,null,null,0,null,null,null,0]
[290," ",null,null,null,null,null,null,null,null,null,null,null,null,null,null,null,null,null,null,null,null,0,null,0,null,null,null,0,null,null,null,null,null,null,null,0,null,null,null,0]
[291," ",null,null,null,null,null,null,null,null,null,null,null,null,null,null,null,null,null,null,null,null,0,null,0,null,null,null,0,null,null,null,null,null,null,null,0,null,null,null,0]
[292," ",null,null,null,null,null,null,null,null,null,null,null,null,null,null,null,null,null,null,null,null,0,null,0,null,null,null,0,null,null,null,null,null,null,null,0,null,null,null,0]
[293," ",null,null,null,null,null,null,null,null,null,null,null,null,null,null,null,null,null,null,null,null,0,null,0,null,null,null,0,null,null,null,null,null,null,null,0,null,null,null,0]
[294," ",null,null,null,null,null,null,null,null,null,null,null,null,null,null,null,null,null,null,null,null,0,null,0,null,null,null,0,null,null,null,null,null,null,null,0,null,null,null,0]
[295," ",null,null,null,null,null,null,null,null,null,null,null,null,null,null,null,null,null,null,null,null,0,null,0,null,null,null,0,null,null,null,null,null,null,null,0,null,null,null,0]
[296," ",null,null,null,null,null,null,null,null,null,null,null,null,null,null,null,null,null,null,null,null,0,null,0,null,null,null,0,null,null,null,null,null,null,null,0,null,null,null,0]
[297," ",null,null,null,null,null,null,null,null,null,null,null,null,null,null,null,null,null,null,null,null,0,null,0,null,null,null,0,null,null,null,null,null,null,null,0,null,null,null,0]
[298," ",null,null,null,null,null,null,null,null,null,null,null,null,null,null,null,null,null,null,null,null,0,null,0,null,null,null,0,null,null,null,null,null,null,null,0,null,null,null,0]
[299," ",null,null,null,null,null,null,null,null,null,null,null,null,null,null,null,null,null,null,null,null,0,null,0,null,null,null,0,null,null,null,null,null,null,null,0,null,null,null,0]
[300," ",null,null,null,null,null,null,null,null,null,null,null,null,null,null,null,null,null,null,null,null,0,null,{"$f":"SUM(W301*4.4)","v":0},null,null,null,0,null,null,null,null,null,null,null,0,null,null,null,0]
[999," ",null,null,null,null,null,null,null,null,null,null,null,null,null,null,null,null,null,null,null,null,0,null,{"$f":"SUM(W302*4.4)","v":0},null,null,null,0,null,null,null,null,null,null,null,0,null,null,null,0]
[null,"SUMME in €",{"$f":"SUM(C2:C302)","v":42},42,42,42,42,21,39,37,39,42,42,35,22,22,0,0,0,0,0,0,509,{"$f":"SUM(X5:X302)","v":127.25},1145.25,0,0,0,0,0,{"$f":"SUM(AE2:AE302)","v":0},{"$f":"SUM(AF2:AF302)","v":0},0,0,0,0,1145.25,1399.75,0,0,{"$f":"AK303+AL303+AM303+AN303","v":2545}]
[]
[null,null,"Katze, 100g Schale","Katze, 100g Schale","katze, 100g schale","katze, 100g schale","katze, 100g schale","Katze, 85g Dose","Hunde (3-10), 300g Schale","Katze, 100g schale","Hunde (3-10), 150g Schale","Hunde (3-10), 150g Schale","Katze, 100g schale","Hunde (15-35 kg), 1,5kg Dose","Katze, Schlecksnack","Katze Schlecksnack"]
[null,"Start","2016-11-17","2016-11-21","2017-12-21","2017-12-28","2017-12-28","2017-12-05","2017-01-07","2017-01-07","2017-01-13","2017-01-12","2017-01-12","2017-01-17","2017-01-17","2017-01-17"]
[null,"Ende","2016-11-20","2016-11-24","2017-12-24","2017-12-31","2017-12-31","2017-12-09","2017-01-08","2017-01-08","2017-01-16","2017-01-15","2017-01-15","2017-01-20","2017-01-18","2017-01-18"]
[]
[null,"Bemerkung:"]

{"sheet":"01-Abrechnung","index":1,"n_rows":76,"n_cols":8,"rows_kept":76,"cut":false,"hidden":false,"merged":[[12,0,12,3],[13,0,13,3],[53,1,53,2],[46,1,46,2],[54,1,54,4],[42,1,42,2],[40,1,40,2],[47,1,47,2],[52,1,52,2],[43,1,43,2],[44,1,44,2],[45,1,45,2]]}
["QuittungNR",7]
[]
[]
[]
[]
[]
[]
["Mitarbeiter Nr.:",null,null,"MONATSABRECHNUNG",null,null,"Januar",2017]
[]
[null,null,null,null,null,null,"Abrechnungszeitraum: 21.12 - 20.01"]
[]
[]
[{"$f":"INDEX([1]!Datenbank2,$B$1,2)&\" \"&INDEX([1]!Datenbank2,$B$1,3)","v":"Anja Rohlfing"},"Andreas Kilzer","Andreas Kilzer","Andreas Kilzer"]
[{"$f":"INDEX([1]!Datenbank2,$B$1,4)","v":"Elbeweg 7"},"Hasenkamp 78","Hasenkamp 78","Hasenkamp 78"]
[{"$f":"INDEX([1]!Datenbank2,$B$1,5)&\" \"&INDEX([1]!Datenbank2,$B$1,6)","v":"32425 Minden"}]
[]
[]
[]
["Allgemeine Tests:"]
[null,null,"TEST NR\n& DATUM","FB","Entgelt \nin EURO €",null,"Erläuterungen zu"]
[null,null,{"$f":"Januar!$C$1","v":"05701"},{"$f":"INDEX([0]!januar,$B$1,3)","v":3},{"$f":"D21*2.25","v":6.75},null,"Spezialtests:"]
[null,null,{"$f":"Januar!$D$1","v":"05702"},{"$f":"INDEX([0]!januar,$B$1,4)","v":0},{"$f":"D22*2.25","v":0},null,{"$f":"IF(Januar!$AE$1=0,\"\",Januar!AE$1)","v":""},{"$f":"INDEX([0]!januar,$B$1,30)","v":0}]
[null,null,{"$f":"Januar!$E$1","v":"05707"},{"$f":"INDEX([0]!januar,$B$1,5)","v":0},0,null,{"$f":"IF(Januar!$AF$1=0,\"\",Januar!AF$1)","v":""},{"$f":"INDEX([0]!januar,$B$1,31)","v":0}]
[null,null,{"$f":"Januar!$F$1","v":"05708"},{"$f":"INDEX([0]!januar,$B$1,6)","v":4},9,null,{"$f":"IF(Januar!$AG$1=0,\"\",Januar!AG$1)","v":""},{"$f":"INDEX([0]!januar,$B$1,32)","v":0}]
[null,null,{"$f":"Januar!$G1","v":"05709"},{"$f":"INDEX([0]!januar,$B$1,7)","v":0},0,null,{"$f":"IF(Januar!$AH$1=0,\"\",Januar!AH$1)","v":""},{"$f":"INDEX([0]!januar,$B$1,33)","v":0}]
[null,null,{"$f":"Januar!$H$1","v":"03134"},{"$f":"INDEX([0]!januar,$B$1,8)","v":4},9,null,null,{"$f":"INDEX([0]!januar,$B$1,34)","v":0}]
[null,null,{"$f":"Januar!$I$1","v":"05710"},{"$f":"INDEX([0]!januar,$B$1,9)","v":1},2.25]
[null,null,{"$f":"Januar!$J$1","v":"05711"},{"$f":"INDEX([0]!januar,$B$1,10)","v":3},6.75,null,"Gesamt",{"$f":"SUM(H22:H27)","v":0}]
[null,null,{"$f":"Januar!$K$1","v":"05712"},{"$f":"INDEX([0]!januar,$B$1,11)","v":1},2.25]
[null,null,{"$f":"Januar!$L$1","v":"05713"},{"$f":"INDEX([0]!januar,$B$1,12)","v":0},0]
[null,null,{"$f":"Januar!$M$1","v":"05714"},{"$f":"INDEX([0]!januar,$B$1,13)","v":0},0]
[null,null,{"$f":"Januar!$N$1","v":"05715"},{"$f":"INDEX([0]!januar,$B$1,14)","v":3},6.75]
[null,null,{"$f":"Januar!$O$1","v":"03136"},{"$f":"INDEX([0]!januar,$B$1,15)","v":0},0," "]
[null,null,{"$f":"Januar!$P$1","v":"03137"},{"$f":"INDEX([0]!januar,$B$1,16)","v":0},0]
[null,null,{"$f":"Januar!$Q$1","v":0},{"$f":"INDEX([0]!januar,$B$1,17)","v":0},0]
[null,null,{"$f":"Januar!$R$1","v":0},{"$f":"INDEX([0]!januar,$B$1,18)","v":0},0]
[null,null,{"$f":"Januar!$S$1","v":0},{"$f":"INDEX([0]!januar,$B$1,19)","v":0},0]
[null,null,{"$f":"Januar!$T$1","v":0},{"$f":"INDEX([0]!januar,$B$1,20)","v":0},0]
[null,null,{"$f":"Januar!$U$1","v":0},{"$f":"INDEX([0]!januar,$B$1,21)","v":0},0]
[null,null,{"$f":"Januar!$V$1","v":0},{"$f":"INDEX([0]!januar,$B$1,22)","v":0},0]
[null,"SUMME",null,{"$f":"SUM(D21:D40)","v":19},{"$f":"SUM(E21:E40)","v":42.75},null,"Stück-Stunden (FB)",{"$f":"INDEX([0]!januar,$B$1,24)","v":4.75}]
[]
["Zusätze:","Bezeichung"]
[null,{"$f":"Januar!$AC$1","v":"Summe BIM in EURO"},null,null,{"$f":"INDEX([0]!januar,$B$1,28)","v":0}]
[null,{"$f":"Januar!$AD$1","v":"Stamm daten"},null,null,{"$f":"INDEX([0]!januar,$B$1,29)","v":0}]
[null,"Summe Spezialtest",null,null,{"$f":"H28","v":0}]
[null,"Fahrer / Std.","Std.",null,{"$f":"INDEX([0]!januar,$B$1,36)","v":0}]
[null,"GESAMT NETTO",null,null,{"$f":"SUM(E41:E47)","v":42.75}]
[null,null,"Kilometergeld",null,{"$f":"INDEX([0]!januar,$B$1,38)","v":52.25}]
[null,null,"Porto/Telefon/Fax"]
[null,null,"Sonstige Extra",null,null,null,"Bemerkungen:"]
[null,null,"+ 25% Pauschale",null,{"$f":"INDEX([0]!januar,$B$1,39)","v":0}]
[null,"GESAMT in €",null,null,{"$f":"E48+E49+E50+E51+E52","v":95},null,"FB = Anzahl der Fragebogen"]
[]
[]
["Der Betrag wird bis zum 10. des folgenden Monats überwiesen."]
[]
[]
[]
[]
[]
[]
["Betrag erhalten"]
["Minden, 10. Februar 2015"]
[null,null,null,null,"(Unterschrift)"]
[]
[]
[]
[]
[]
[]
[]
[]
[]
[]
["Prorata Marktforschung GmbH • Marienglacis 37 • 32427 Minden • tel  0571.82875.0 fax • 0571.82875.99 •  www.prorata.de • info@prorata.de"]

{"sheet":"Februar","index":2,"n_rows":309,"n_cols":41,"rows_kept":309,"cut":false,"hidden":false,"merged":[]}
[null,"Testnummer / Testerin","05710,05711,05712,05715",null,null,null,null,null,null,null,null,null,null,null,null,null,null,null,null,null,null,"Anz.","Std.","Summe\nin EURO",null,null,null,"Summe BIM in EURO","Stammdaten",null,null,null,null,null,"Fahrer-Std. /Entgelt","Gesamt\nNETTO*\nin EURO","km x \n XXeurocent",null,"Pauschale 25%",null,"Gesamt\nin EURO"]
[1,null,null,null,null,null,null,null,null,null,null,null,null,null,null,null,null,null,null,null,null,{"$f":"SUM(C2:U2)","v":0},null,{"$f":"SUM(V2*2.25)","v":0},null,null,null,{"$f":"(Y2+Z2+AA2)*2.25","v":0},null,null,null,null,null,null,null,{"$f":"X2+AB2+AC2+AE2+AF2+AG2+AH2+AI2+AD2","v":0},null,null,null,{"$f":"AJ2+AK2+AL2+AM2","v":0}]
[2,"Gundlach, Doris",null,null,null,null,null,null,null,null,null,null,null,null,null,null,null,null,null,null,null,0,null,0,null,null,null,{"$f":"(Y3+Z3+AA3)*2.25","v":0},null,null,null,null,null,null,null,0,{"$f":"V3*2.75","v":0},null,null,0]
[3,null,null,null,null,null,null,null,null,null,null,null,null,null,null,null,null,null,null,null,null,0,null,0,null,null,null,0,null,null,null,null,null,null,null,0,{"$f":"V4*2.75","v":0},null,null,0]
[4,"Korte, Inge",null,null,null,null,null,null,null,null,null,null,null,null,null,null,null,null,null,null,null,{"$f":"SUM(C5:U5)","v":0},{"$f":"V5/4","v":0},0,null,null,null,0,null,null,null,null,null,null,null,0,0,null,null,null,{"$f":"SUM(AJ5:AN5)","v":0}]
[5,"Tölkemeier, Petra",null,null,null,null,null,null,null,null,null,null,null,null,null,null,null,null,null,null,null,{"$f":"SUM(C6:U6)","v":0},{"$f":"V6/4","v":0},0,null,null,null,0,null,null,null,null,null,null,null,0,0,null,null,null,{"$f":"SUM(AJ6:AN6)","v":0}]
[6,"Rohlfing, Anja",null,null,null,null,null,null,null,null,null,null,null,null,null,null,null,null,null,null,null,0,0,0,null,null,null,0,null,null,null,null,null,null,null,0,0,null,null,null,0]
[7,"Aumann, Elfriede",null,null,null,null,null,null,null,null,null,null,null,null,null,null,null,null,null,null,null,0,0,0,null,null,null,0,null,null,null,null,null,null,null,0,0,null,null,null,0]
[8,null,null,null,null,null,null,null,null,null,null,null,null,null,null,null,null,null,null,null,null,0,0,0,null,null,null,0,null,null,null,null,null,null,null,0,0,null,null,null,0]
[9,"Kilzer, Andreas",null,null,null,null,null,null,null,null,null,null,null,null,null,null,null,null,null,null,null,0,0,0,null,null,null,0,null,null,null,null,null,null,null,0,0,null,null,null,0]
[10,"Rakowski, Sigrid",null,null,null,null,null,null,null,null,null,null,null,null,null,null,null,null,null,null,null,0,0,0,null,null,null,0,null,null,null,null,null,null,null,0,{"$f":"V11*2.75","v":0},null,null,null,0]
[11,null,null,null,null,null,null,null,null,null,null,null,null,null,null,null,null,null,null,null,null,0,0,0,null,null,null,0,null,null,null,null,null,null,null,0,0,null,null,null,0]
[12,"Drewes, Andrea",null,null,null,null,null,null,null,null,null,null,null,null,null,null,null,null,null,null,null,0,0,0,null,null,null,0,null,null,null,null,null,null,null,0,0,null,null,null,0]
[13,null,null,null,null,null,null,null,null,null,null,null,null,null,null,null,null,null,null,null,null,0,0,0,null,null,null,0,null,null,null,null,null,null,null,0,0,null,null,null,0]
[14,"Grabbe , Nadja",{"$f":"3+5+3+7","v":18},null,null,null,null,null,null,null,null,null,null,null,null,null,null,null,null,null,null,18,4.5,40.5,null,null,null,0,null,null,null,null,null,null,null,40.5,49.5,null,null,null,90]
[15,"Sassenberg, Julia",null,null,null,null,null,null,null,null,null,null,null,null,null,null,null,null,null,null,null,0,0,0,null,null,null,0,null,null,null,null,null,null,null,0,0,null,null,null,0]
[16,null,null,null,null,null,null,null,null,null,null,null,null,null,null,null,null,null,null,null,null,0,0,0,null,null,null,0,null,null,null,null,null,null,null,0,0,null,null,null,0]
[17,null,null,null,null,null,null,null,null,null,null,null,null,null,null,null,null,null,null,null,null,0,0,0,null,null,null,0,null,null,null,null,null,null,null,0,0,null,null,null,0]
[18,null,null,null,null,null,null,null,null,null,null,null,null,null,null,null,null,null,null,null,null,0,0,0,null,null,null,0,null,null,null,null,null,null,null,0,0,null,null,null,0]
[19,"Blaha, Heinz",null,null,null,null,null,null,null,null,null,null,null,null,null,null,null,null,null,null,null,0,0,0,null,null,null,0,null,null,null,null,null,null,null,0,0,null,null,null,0]
[20,null,null,null,null,null,null,null,null,null,null,null,null,null,null,null,null,null,null,null,null,0,{"$f":"V21/4","v":0},{"$f":"SUM(V21*2.25)","v":0},null,null,null,0,null,null,null,null,null,null,null,0,0,null,null,null,0]
[21,"Weichenhan, Rainer",null,null,null,null,null,null,null,null,null,null,null,null,null,null,null,null,null,null,null,0,0,0,null,null,null,0,null,null,null,null,null,null,null,0,{"$f":"V22*2.75","v":0},null,null,null,0]
[22,"Lill, Ulrich",null,null,null,null,null,null,null,null,null,null,null,null,null,null,null,null,null,null,null,0,0,0,null,null,null,0,null,null,null,null,null,null,null,0,0,null,null,null,0]
[23,null,null,null,null,null,null,null,null,null,null,null,null,null,null,null,null,null,null,null,null,0,0,0,null,null,null,0,null,null,null,null,null,null,null,0,0,null,null,null,0]
[24,"Hübsch, Karl-Heinz",null,null,null,null,null,null,null,null,null,null,null,null,null,null,null,null,null,null,null,0,0,0,null,null,null,0,null,null,null,null,null,null,null,0,0,null,null,null,0]
[25,"Feigel-Kipp, Claudia",null,null,null,null,null,null,null,null,null,null,null,null,null,null,null,null,null,null,null,0,0,0,null,null,null,0,null,null,null,null,null,null,null,0,0,null,null,null,0]
[26,null,null,null,null,null,null,null,null,null,null,null,null,null,null,null,null,null,null,null,null,0,0,0,null,null,null,0,null,null,null,null,null,null,null,0,0,null,null,null,0]
[27,null,null,null,null,null,null,null,null,null,null,null,null,null,null,null,null,null,null,null,null,0,0,0,null,null,null,0,null,null,null,null,null,null,null,0,0,null,null,null,0]
[28,"Lüttgert,  David",null,null,null,null,null,null,null,null,null,null,null,null,null,null,null,null,null,null,null,0,0,0,null,null,null,0,null,null,null,null,null,null,null,0,0,null,null,null,0]
[29,"Scholz, Stella",null,null,null,null,null,null,null,null,null,null,null,null,null,null,null,null,null,null,null,0,0,0,null,null,null,0,null,null,null,null,null,null,null,0,0,null,null,null,0]
[30,"Hachmeister, Stefan",null,null,null,null,null,null,null,null,null,null,null,null,null,null,null,null,null,null,null,0,0,0,null,null,null,0,null,null,null,null,null,null,null,0,0,null,null,null,0]
[31,null,null,null,null,null,null,null,null,null,null,null,null,null,null,null,null,null,null,null,null,0,0,0,null,null,null,0,null,null,null,null,null,null,null,0,0,null,null,null,0]
[32,null,null,null,null,null,null,null,null,null,null,null,null,null,null,null,null,null,null,null,null,0,0,0,null,null,null,0,null,null,null,null,null,null,null,0,0,null,null,null,0]
[33,null,null,null,null,null,null,null,null,null,null,null,null,null,null,null,null,null,null,null,null,0,0,0,null,null,null,0,null,null,null,null,null,null,null,0,0,null,null,null,0]
[34,null,null,null,null,null,null,null,null,null,null,null,null,null,null,null,null,null,null,null,null,0,0,0,null,null,null,0,null,null,null,null,null,null,null,0,0,null,null,null,0]
[35,null,null,null,null,null,null,null,null,null,null,null,null,null,null,null,null,null,null,null,null,0,0,0,null,null,null,0,null,null,null,null,null,null,null,0,0,null,null,null,0]
[36,"Selle, Monika",null,null,null,null,null,null,null,null,null,null,null,null,null,null,null,null,null,null,null,0,0,0,null,null,null,0,null,null,null,null,null,null,null,0,0,null,null,null,0]
[37,"Sander, Eva-Maria",null,null,null,null,null,null,null,null,null,null,null,null,null,null,null,null,null,null,null,0,0,0,null,null,null,0,null,null,null,null,null,null,null,0,0,null,null,null,0]
[38,"Sander, Jessica",null,null,null,null,null,null,null,null,null,null,null,null,null,null,null,null,null,null,null,0,0,0,null,null,null,0,null,null,null,null,null,null,null,0,{"$f":"V39*2.75","v":0},null,null,null,0]
[39,"Wiese-Schmutzer, Armgard",null,null,null,null,null,null,null,null,null,null,null,null,null,null,null,null,null,null,null,0,0,0,null,null,null,0,null,null,null,null,null,null,null,0,0,null,null,null,0]
[40,null,null,null,null,null,null,null,null,null,null,null,null,null,null,null,null,null,null,null,null,0,0,0,null,null,null,0,null,null,null,null,null,null,null,0,0,null,null,null,0]
[41,null,null,null,null,null,null,null,null,null,null,null,null,null,null,null,null,null,null,null,null,0,0,0,null,null,null,0,null,null,null,null,null,null,null,0,0,null,null,null,0]
[42,null,null,null,null,null,null,null,null,null,null,null,null,null,null,null,null,null,null,null,null,0,0,0,null,null,null,0,null,null,null,null,null,null,null,0,0,null,null,null,0]
[43,null,null,null,null,null,null,null,null,null,null,null,null,null,null,null,null,null,null,null,null,0,0,0,null,null,null,0,null,null,null,null,null,null,null,0,0,null,null,null,0]
[44,null,null,null,null,null,null,null,null,null,null,null,null,null,null,null,null,null,null,null,null,0,0,0,null,null,null,0,null,null,null,null,null,null,null,0,0,null,null,null,0]
[45,null,null,null,null,null,null,null,null,null,null,null,null,null,null,null,null,null,null,null,null,0,0,0,null,null,null,0,null,null,null,null,null,null,null,0,0,null,null,null,0]
[46,null,null,null,null,null,null,null,null,null,null,null,null,null,null,null,null,null,null,null,null,0,0,0,null,null,null,0,null,null,null,null,null,null,null,0,0,null,null,null,0]
[47,null,null,null,null,null,null,null,null,null,null,null,null,null,null,null,null,null,null,null,null,0,0,0,null,null,null,0,null,null,null,null,null,null,null,0,0,null,null,null,0]
[48,null,null,null,null,null,null,null,null,null,null,null,null,null,null,null,null,null,null,null,null,0,0,0,null,null,null,0,null,null,null,null,null,null,null,0,0,null,null,null,0]
[49,null,null,null,null,null,null,null,null,null,null,null,null,null,null,null,null,null,null,null,null,0,0,0,null,null,null,0,null,null,null,null,null,null,null,0,0,null,null,null,0]
[50,null,null,null,null,null,null,null,null,null,null,null,null,null,null,null,null,null,null,null,null,0,0,0,null,null,null,0,null,null,null,null,null,null,null,0,0,null,null,null,0]
[51,null,null,null,null,null,null,null,null,null,null,null,null,null,null,null,null,null,null,null,null,0,0,0,null,null,null,0,null,null,null,null,null,null,null,0,0,null,null,null,0]
[52,null,null,null,null,null,null,null,null,null,null,null,null,null,null,null,null,null,null,null,null,0,0,0,null,null,null,0,null,null,null,null,null,null,null,0,0,null,null,null,0]
[53,null,null,null,null,null,null,null,null,null,null,null,null,null,null,null,null,null,null,null,null,0,0,0,null,null,null,0,null,null,null,null,null,null,null,0,0,null,null,null,0]
[54,null,null,null,null,null,null,null,null,null,null,null,null,null,null,null,null,null,null,null,null,0,0,0,null,null,null,0,null,null,null,null,null,null,null,0,0,null,null,null,0]
[55,null,null,null,null,null,null,null,null,null,null,null,null,null,null,null,null,null,null,null,null,0,0,0,null,null,null,0,null,null,null,null,null,null,null,0,0,null,null,null,0]
[56,null,null,null,null,null,null,null,null,null,null,null,null,null,null,null,null,null,null,null,null,0,0,0,null,null,null,0,null,null,null,null,null,null,null,0,0,null,null,null,0]
[57,null,null,null,null,null,null,null,null,null,null,null,null,null,null,null,null,null,null,null,null,0,0,0,null,null,null,0,null,null,null,null,null,null,null,0,0,null,null,null,0]
[58,null,null,null,null,null,null,null,null,null,null,null,null,null,null,null,null,null,null,null,null,0,0,0,null,null,null,0,null,null,null,null,null,null,null,0,0,null,null,null,0]
[59,null,null,null,null,null,null,null,null,null,null,null,null,null,null,null,null,null,null,null,null,0,0,0,null,null,null,0,null,null,null,null,null,null,null,0,0,null,null,null,0]
[60,null,null,null,null,null,null,null,null,null,null,null,null,null,null,null,null,null,null,null,null,0,0,0,null,null,null,0,null,null,null,null,null,null,null,0,0,null,null,null,0]
[61,null,null,null,null,null,null,null,null,null,null,null,null,null,null,null,null,null,null,null,null,0,0,0,null,null,null,0,null,null,null,null,null,null,null,0,0,null,null,null,0]
[62,null,null,null,null,null,null,null,null,null,null,null,null,null,null,null,null,null,null,null,null,0,0,0,null,null,null,0,null,null,null,null,null,null,null,0,0,null,null,null,0]
[63,null,null,null,null,null,null,null,null,null,null,null,null,null,null,null,null,null,null,null,null,0,0,0,null,null,null,0,null,null,null,null,null,null,null,0,0,null,null,null,0]
[64,null,null,null,null,null,null,null,null,null,null,null,null,null,null,null,null,null,null,null,null,0,0,0,null,null,null,0,null,null,null,null,null,null,null,0,0,null,null,null,0]
[65,null,null,null,null,null,null,null,null,null,null,null,null,null,null,null,null,null,null,null,null,0,0,{"$f":"SUM(V66*2.25)","v":0},null,null,null,0,null,null,null,null,null,null,null,{"$f":"X66+AB66+AC66+AE66+AF66+AG66+AH66+AI66+AD66","v":0},0,null,null,null,0]
[66,null,null,null,null,null,null,null,null,null,null,null,null,null,null,null,null,null,null,null,null,0,0,0,null,null,null,{"$f":"(Y67+Z67+AA67)*2.25","v":0},null,null,null,null,null,null,null,0,0,null,null,null,0]
[67,null,null,null,null,null,null,null,null,null,null,null,null,null,null,null,null,null,null,null,null,0,0,0,null,null,null,0,null,null,null,null,null,null,null,0,{"$f":"V68*2.75","v":0},null,null,null,0]
[68,null,null,null,null,null,null,null,null,null,null,null,null,null,null,null,null,null,null,null,null,0,0,0,null,null,null,0,null,null,null,null,null,null,null,0,0,null,null,null,0]
[69,null,null,null,null,null,null,null,null,null,null,null,null,null,null,null,null,null,null,null,null,{"$f":"SUM(C70:U70)","v":0},{"$f":"V70/4","v":0},0,null,null,null,0,null,null,null,null,null,null,null,0,0,null,null,null,{"$f":"SUM(AJ70:AN70)","v":0}]
[70,null,null,null,null,null,null,null,null,null,null,null,null,null,null,null,null,null,null,null,null,0,0,0,null,null,null,0,null,null,null,null,null,null,null,0,0,null,null,null,0]
[71,null,null,null,null,null,null,null,null,null,null,null,null,null,null,null,null,null,null,null,null,0,0,0,null,null,null,0,null,null,null,null,null,null,null,0,0,null,null,null,0]
[72,null,null,null,null,null,null,null,null,null,null,null,null,null,null,null,null,null,null,null,null,0,0,0,null,null,null,0,null,null,null,null,null,null,null,0,0,null,null,null,0]
[73,null,null,null,null,null,null,null,null,null,null,null,null,null,null,null,null,null,null,null,null,0,0,0,null,null,null,0,null,null,null,null,null,null,null,0,0,null,null,null,0]
[74,null,null,null,null,null,null,null,null,null,null,null,null,null,null,null,null,null,null,null,null,0,0,0,null,null,null,0,null,null,null,null,null,null,null,0,0,null,null,null,0]
[75,null,null,null,null,null,null,null,null,null,null,null,null,null,null,null,null,null,null,null,null,0,0,0,null,null,null,0,null,null,null,null,null,null,null,0,0,null,null,null,0]
[76,null,null,null,null,null,null,null,null,null,null,null,null,null,null,null,null,null,null,null,null,0,0,0,null,null,null,0,null,null,null,null,null,null,null,0,0,null,null,null,0]
[77,null,null,null,null,null,null,null,null,null,null,null,null,null,null,null,null,null,null,null,null,0,0,0,null,null,null,0,null,null,null,null,null,null,null,0,0,null,null,null,0]
[78,null,null,null,null,null,null,null,null,null,null,null,null,null,null,null,null,null,null,null,null,0,0,0,null,null,null,0,null,null,null,null,null,null,null,0,0,null,null,null,0]
[79,null,null,null,null,null,null,null,null,null,null,null,null,null,null,null,null,null,null,null,null,0,0,0,null,null,null,0,null,null,null,null,null,null,null,0,0,null,null,null,0]
[80,null,null,null,null,null,null,null,null,null,null,null,null,null,null,null,null,null,null,null,null,0,0,0,null,null,null,0,null,null,null,null,null,null,null,0,0,null,null,null,0]
[81,null,null,null,null,null,null,null,null,null,null,null,null,null,null,null,null,null,null,null,null,0,0,0,null,null,null,0,null,null,null,null,null,null,null,0,0,null,null,null,0]
[82,null,null,null,null,null,null,null,null,null,null,null,null,null,null,null,null,null,null,null,null,0,0,0,null,null,null,0,null,null,null,null,null,null,null,0,0,null,null,null,0]
[83,null,null,null,null,null,null,null,null,null,null,null,null,null,null,null,null,null,null,null,null,0,0,0,null,null,null,0,null,null,null,null,null,null,null,0,0,null,null,null,0]
[84,null,null,null,null,null,null,null,null,null,null,null,null,null,null,null,null,null,null,null,null,0,0,0,null,null,null,0,null,null,null,null,null,null,null,0,0,null,null,null,0]
[85,null,null,null,null,null,null,null,null,null,null,null,null,null,null,null,null,null,null,null,null,0,0,0,null,null,null,0,null,null,null,null,null,null,null,0,0,null,null,null,0]
[86,null,null,null,null,null,null,null,null,null,null,null,null,null,null,null,null,null,null,null,null,0,0,0,null,null,null,0,null,null,null,null,null,null,null,0,0,null,null,null,0]
[87,null,null,null,null,null,null,null,null,null,null,null,null,null,null,null,null,null,null,null,null,0,0,0,null,null,null,0,null,null,null,null,null,null,null,0,0,null,null,null,0]
[88,null,null,null,null,null,null,null,null,null,null,null,null,null,null,null,null,null,null,null,null,0,0,0,null,null,null,0,null,null,null,null,null,null,null,0,0,null,null,null,0]
[89,null,null,null,null,null,null,null,null,null,null,null,null,null,null,null,null,null,null,null,null,0,0,0,null,null,null,0,null,null,null,null,null,null,null,0,0,null,null,null,0]
[90,null,null,null,null,null,null,null,null,null,null,null,null,null,null,null,null,null,null,null,null,0,0,0,null,null,null,0,null,null,null,null,null,null,null,0,0,null,null,null,0]
[91,null,null,null,null,null,null,null,null,null,null,null,null,null,null,null,null,null,null,null,null,0,0,0,null,null,null,0,null,null,null,null,null,null,null,0,0,null,null,null,0]
[92,null,null,null,null,null,null,null,null,null,null,null,null,null,null,null,null,null,null,null,null,0,0,0,null,null,null,0,null,null,null,null,null,null,null,0,0,null,null,null,0]
[93,null,null,null,null,null,null,null,null,null,null,null,null,null,null,null,null,null,null,null,null,0,0,0,null,null,null,0,null,null,null,null,null,null,null,0,0,null,null,null,0]
[94,null,null,null,null,null,null,null,null,null,null,null,null,null,null,null,null,null,null,null,null,0,0,0,null,null,null,0,null,null,null,null,null,null,null,0,0,null,null,null,0]
[95,null,null,null,null,null,null,null,null,null,null,null,null,null,null,null,null,null,null,null,null,0,0,0,null,null,null,0,null,null,null,null,null,null,null,0,0,null,null,null,0]
[96,null,null,null,null,null,null,null,null,null,null,null,null,null,null,null,null,null,null,null,null,0,0,0,null,null,null,0,null,null,null,null,null,null,null,0,0,null,null,null,0]
[97,null,null,null,null,null,null,null,null,null,null,null,null,null,null,null,null,null,null,null,null,0,0,0,null,null,null,0,null,null,null,null,null,null,null,0,0,null,null,null,0]
[98,null,null,null,null,null,null,null,null,null,null,null,null,null,null,null,null,null,null,null,null,0,0,0,null,null,null,0,null,null,null,null,null,null,null,0,0,null,null,null,0]
[99,null,null,null,null,null,null,null,null,null,null,null,null,null,null,null,null,null,null,null,null,0,0,0,null,null,null,0,null,null,null,null,null,null,null,0,0,null,null,null,0]
[100,null,null,null,null,null,null,null,null,null,null,null,null,null,null,null,null,null,null,null,null,0,0,0,null,null,null,0,null,null,null,null,null,null,null,0,0,null,null,null,0]
[101,null,null,null,null,null,null,null,null,null,null,null,null,null,null,null,null,null,null,null,null,0,0,0,null,null,null,0,null,null,null,null,null,null,null,0,0,null,null,null,0]
[102,null,null,null,null,null,null,null,null,null,null,null,null,null,null,null,null,null,null,null,null,0,0,0,null,null,null,0,null,null,null,null,null,null,null,0,0,null,null,null,0]
[103,null,null,null,null,null,null,null,null,null,null,null,null,null,null,null,null,null,null,null,null,0,0,0,null,null,null,0,null,null,null,null,null,null,null,0,0,null,null,null,0]
[104,null,null,null,null,null,null,null,null,null,null,null,null,null,null,null,null,null,null,null,null,0,0,0,null,null,null,0,null,null,null,null,null,null,null,0,0,null,null,null,0]
[105,null,null,null,null,null,null,null,null,null,null,null,null,null,null,null,null,null,null,null,null,0,0,0,null,null,null,0,null,null,null,null,null,null,null,0,0,null,null,null,0]
[106,null,null,null,null,null,null,null,null,null,null,null,null,null,null,null,null,null,null,null,null,0,0,0,null,null,null,0,null,null,null,null,null,null,null,0,0,null,null,null,0]
[107,null,null,null,null,null,null,null,null,null,null,null,null,null,null,null,null,null,null,null,null,0,0,0,null,null,null,0,null,null,null,null,null,null,null,0,0,null,null,null,0]
[108,null,null,null,null,null,null,null,null,null,null,null,null,null,null,null,null,null,null,null,null,0,0,0,null,null,null,0,null,null,null,null,null,null,null,0,0,null,null,null,0]
[109,null,null,null,null,null,null,null,null,null,null,null,null,null,null,null,null,null,null,null,null,0,0,0,null,null,null,0,null,null,null,null,null,null,null,0,0,null,null,null,0]
[110,"Kruse, Brigitte",null,null,null,null,null,null,null,null,null,null,null,null,null,null,null,null,null,null,null,0,0,0,null,null,null,0,null,null,null,null,null,null,null,0,0,null,null,null,0]
[111,null,null,null,null,null,null,null,null,null,null,null,null,null,null,null,null,null,null,null,null,0,0,0,null,null,null,0,null,null,null,null,null,null,null,0,0,null,null,null,0]
[112,null,null,null,null,null,null,null,null,null,null,null,null,null,null,null,null,null,null,null,null,0,0,0,null,null,null,0,null,null,null,null,null,null,null,0,0,null,null,null,0]
[113,null,null,null,null,null,null,null,null,null,null,null,null,null,null,null,null,null,null,null,null,0,0,0,null,null,null,0,null,null,null,null,null,null,null,0,0,null,null,null,0]
[114,null,null,null,null,null,null,null,null,null,null,null,null,null,null,null,null,null,null,null,null,0,0,0,null,null,null,0,null,null,null,null,null,null,null,0,0,null,null,null,0]
[115,null,null,null,null,null,null,null,null,null,null,null,null,null,null,null,null,null,null,null,null,0,0,0,null,null,null,0,null,null,null,null,null,null,null,0,0,null,null,null,0]
[116,null,null,null,null,null,null,null,null,null,null,null,null,null,null,null,null,null,null,null,null,0,0,0,null,null,null,0,null,null,null,null,null,null,null,0,0,null,null,null,0]
[117,null,null,null,null,null,null,null,null,null,null,null,null,null,null,null,null,null,null,null,null,0,0,0,null,null,null,0,null,null,null,null,null,null,null,0,0,null,null,null,0]
[118,null,null,null,null,null,null,null,null,null,null,null,null,null,null,null,null,null,null,null,null,0,0,0,null,null,null,0,null,null,null,null,null,null,null,0,0,null,null,null,0]
[119,null,null,null,null,null,null,null,null,null,null,null,null,null,null,null,null,null,null,null,null,0,0,0,null,null,null,0,null,null,null,null,null,null,null,0,0,null,null,null,0]
[120,null,null,null,null,null,null,null,null,null,null,null,null,null,null,null,null,null,null,null,null,0,0,0,null,null,null,0,null,null,null,null,null,null,null,0,0,null,null,null,0]
[121,null,null,null,null,null,null,null,null,null,null,null,null,null,null,null,null,null,null,null,null,0,0,0,null,null,null,0,null,null,null,null,null,null,null,0,0,null,null,null,0]
[122,null,null,null,null,null,null,null,null,null,null,null,null,null,null,null,null,null,null,null,null,0,0,0,null,null,null,0,null,null,null,null,null,null,null,0,0,null,null,null,0]
[123,null,null,null,null,null,null,null,null,null,null,null,null,null,null,null,null,null,null,null,null,0,0,0,null,null,null,0,null,null,null,null,null,null,null,0,0,null,null,null,0]
[124,null,null,null,null,null,null,null,null,null,null,null,null,null,null,null,null,null,null,null,null,0,0,0,null,null,null,0,null,null,null,null,null,null,null,0,0,null,null,null,0]
[125,null,null,null,null,null,null,null,null,null,null,null,null,null,null,null,null,null,null,null,null,0,0,0,null,null,null,0,null,null,null,null,null,null,null,0,0,null,null,null,0]
[126,null,null,null,null,null,null,null,null,null,null,null,null,null,null,null,null,null,null,null,null,0,0,0,null,null,null,0,null,null,null,null,null,null,null,0,0,null,null,null,0]
[127,null,null,null,null,null,null,null,null,null,null,null,null,null,null,null,null,null,null,null,null,0,0,0,null,null,null,0,null,null,null,null,null,null,null,0,0,null,null,null,0]
[128,null,null,null,null,null,null,null,null,null,null,null,null,null,null,null,null,null,null,null,null,0,0,0,null,null,null,0,null,null,null,null,null,null,null,0,0,null,null,null,0]
[129,null,null,null,null,null,null,null,null,null,null,null,null,null,null,null,null,null,null,null,null,0,0,{"$f":"SUM(V130*2.25)","v":0},null,null,null,0,null,null,null,null,null,null,null,{"$f":"X130+AB130+AC130+AE130+AF130+AG130+AH130+AI130+AD130","v":0},0,null,null,null,0]
[130,null,null,null,null,null,null,null,null,null,null,null,null,null,null,null,null,null,null,null,null,0,0,0,null,null,null,{"$f":"(Y131+Z131+AA131)*2.25","v":0},null,null,null,null,null,null,null,0,0,null,null,null,0]
[131,null,null,null,null,null,null,null,null,null,null,null,null,null,null,null,null,null,null,null,null,0,0,0,null,null,null,0,null,null,null,null,null,null,null,0,{"$f":"V132*2.75","v":0},null,null,null,0]
[132,null,null,null,null,null,null,null,null,null,null,null,null,null,null,null,null,null,null,null,null,0,0,0,null,null,null,0,null,null,null,null,null,null,null,0,0,null,null,null,0]
[133,null,null,null,null,null,null,null,null,null,null,null,null,null,null,null,null,null,null,null,null,{"$f":"SUM(C134:U134)","v":0},{"$f":"V134/4","v":0},0,null,null,null,0,null,null,null,null,null,null,null,0,0,null,null,null,{"$f":"SUM(AJ134:AN134)","v":0}]
[134,null,null,null,null,null,null,null,null,null,null,null,null,null,null,null,null,null,null,null,null,0,0,0,null,null,null,0,null,null,null,null,null,null,null,0,0,null,null,null,0]
[135,null,null,null,null,null,null,null,null,null,null,null,null,null,null,null,null,null,null,null,null,0,0,0,null,null,null,0,null,null,null,null,null,null,null,0,0,null,null,null,0]
[136,null,null,null,null,null,null,null,null,null,null,null,null,null,null,null,null,null,null,null,null,0,0,0,null,null,null,0,null,null,null,null,null,null,null,0,0,null,null,null,0]
[137,null,null,null,null,null,null,null,null,null,null,null,null,null,null,null,null,null,null,null,null,0,0,0,null,null,null,0,null,null,null,null,null,null,null,0,0,null,null,null,0]
[138,null,null,null,null,null,null,null,null,null,null,null,null,null,null,null,null,null,null,null,null,0,0,0,null,null,null,0,null,null,null,null,null,null,null,0,0,null,null,null,0]
[139,null,null,null,null,null,null,null,null,null,null,null,null,null,null,null,null,null,null,null,null,0,0,0,null,null,null,0,null,null,null,null,null,null,null,0,0,null,null,null,0]
[140,null,null,null,null,null,null,null,null,null,null,null,null,null,null,null,null,null,null,null,null,0,0,0,null,null,null,0,null,null,null,null,null,null,null,0,0,null,null,null,0]
[141,null,null,null,null,null,null,null,null,null,null,null,null,null,null,null,null,null,null,null,null,0,0,0,null,null,null,0,null,null,null,null,null,null,null,0,0,null,null,null,0]
[142,null,null,null,null,null,null,null,null,null,null,null,null,null,null,null,null,null,null,null,null,0,0,0,null,null,null,0,null,null,null,null,null,null,null,0,0,null,null,null,0]
[143,null,null,null,null,null,null,null,null,null,null,null,null,null,null,null,null,null,null,null,null,0,0,0,null,null,null,0,null,null,null,null,null,null,null,0,0,null,null,null,0]
[144,null,null,null,null,null,null,null,null,null,null,null,null,null,null,null,null,null,null,null,null,0,0,0,null,null,null,0,null,null,null,null,null,null,null,0,0,null,null,null,0]
[145,null,null,null,null,null,null,null,null,null,null,null,null,null,null,null,null,null,null,null,null,0,0,0,null,null,null,0,null,null,null,null,null,null,null,0,0,null,null,null,0]
[146,null,null,null,null,null,null,null,null,null,null,null,null,null,null,null,null,null,null,null,null,0,0,0,null,null,null,0,null,null,null,null,null,null,null,0,0,null,null,null,0]
[147,null,null,null,null,null,null,null,null,null,null,null,null,null,null,null,null,null,null,null,null,0,0,0,null,null,null,0,null,null,null,null,null,null,null,0,0,null,null,null,0]
[148,null,null,null,null,null,null,null,null,null,null,null,null,null,null,null,null,null,null,null,null,0,0,0,null,null,null,0,null,null,null,null,null,null,null,0,0,null,null,null,0]
[149,null,null,null,null,null,null,null,null,null,null,null,null,null,null,null,null,null,null,null,null,0,0,0,null,null,null,0,null,null,null,null,null,null,null,0,0,null,null,null,0]
[150,null,null,null,null,null,null,null,null,null,null,null,null,null,null,null,null,null,null,null,null,0,0,0,null,null,null,0,null,null,null,null,null,null,null,0,0,null,null,null,0]
[151,null,null,null,null,null,null,null,null,null,null,null,null,null,null,null,null,null,null,null,null,0,0,0,null,null,null,0,null,null,null,null,null,null,null,0,0,null,null,null,0]
[152,null,null,null,null,null,null,null,null,null,null,null,null,null,null,null,null,null,null,null,null,0,0,0,null,null,null,0,null,null,null,null,null,null,null,0,0,null,null,null,0]
[153,null,null,null,null,null,null,null,null,null,null,null,null,null,null,null,null,null,null,null,null,0,0,0,null,null,null,0,null,null,null,null,null,null,null,0,0,null,null,null,0]
[154,null,null,null,null,null,null,null,null,null,null,null,null,null,null,null,null,null,null,null,null,0,0,0,null,null,null,0,null,null,null,null,null,null,null,0,0,null,null,null,0]
[155,null,null,null,null,null,null,null,null,null,null,null,null,null,null,null,null,null,null,null,null,0,0,0,null,null,null,0,null,null,null,null,null,null,null,0,0,null,null,null,0]
[156,null,null,null,null,null,null,null,null,null,null,null,null,null,null,null,null,null,null,null,null,0,0,0,null,null,null,0,null,null,null,null,null,null,null,0,0,null,null,null,0]
[157,null,null,null,null,null,null,null,null,null,null,null,null,null,null,null,null,null,null,null,null,0,0,0,null,null,null,0,null,null,null,null,null,null,null,0,0,null,null,null,0]
[158,null,null,null,null,null,null,null,null,null,null,null,null,null,null,null,null,null,null,null,null,0,0,0,null,null,null,0,null,null,null,null,null,null,null,0,0,null,null,null,0]
[159,null,null,null,null,null,null,null,null,null,null,null,null,null,null,null,null,null,null,null,null,0,0,0,null,null,null,0,null,null,null,null,null,null,null,0,0,null,null,null,0]
[160,null,null,null,null,null,null,null,null,null,null,null,null,null,null,null,null,null,null,null,null,0,0,0,null,null,null,0,null,null,null,null,null,null,null,0,0,null,null,null,0]
[161,null,null,null,null,null,null,null,null,null,null,null,null,null,null,null,null,null,null,null,null,0,0,0,null,null,null,0,null,null,null,null,null,null,null,0,0,null,null,null,0]
[162,null,null,null,null,null,null,null,null,null,null,null,null,null,null,null,null,null,null,null,null,0,0,0,null,null,null,0,null,null,null,null,null,null,null,0,0,null,null,null,0]
[163,null,null,null,null,null,null,null,null,null,null,null,null,null,null,null,null,null,null,null,null,0,0,0,null,null,null,0,null,null,null,null,null,null,null,0,0,null,null,null,0]
[164,null,null,null,null,null,null,null,null,null,null,null,null,null,null,null,null,null,null,null,null,0,0,0,null,null,null,0,null,null,null,null,null,null,null,0,0,null,null,null,0]
[165,null,null,null,null,null,null,null,null,null,null,null,null,null,null,null,null,null,null,null,null,0,0,0,null,null,null,0,null,null,null,null,null,null,null,0,0,null,null,null,0]
[166,null,null,null,null,null,null,null,null,null,null,null,null,null,null,null,null,null,null,null,null,0,0,0,null,null,null,0,null,null,null,null,null,null,null,0,0,null,null,null,0]
[167,null,null,null,null,null,null,null,null,null,null,null,null,null,null,null,null,null,null,null,null,0,0,0,null,null,null,0,null,null,null,null,null,null,null,0,0,null,null,null,0]
[168,null,null,null,null,null,null,null,null,null,null,null,null,null,null,null,null,null,null,null,null,0,0,0,null,null,null,0,null,null,null,null,null,null,null,0,0,null,null,null,0]
[169,null,null,null,null,null,null,null,null,null,null,null,null,null,null,null,null,null,null,null,null,0,0,0,null,null,null,0,null,null,null,null,null,null,null,0,0,null,null,null,0]
[170,null,null,null,null,null,null,null,null,null,null,null,null,null,null,null,null,null,null,null,null,0,0,0,null,null,null,0,null,null,null,null,null,null,null,0,0,null,null,null,0]
[171,null,null,null,null,null,null,null,null,null,null,null,null,null,null,null,null,null,null,null,null,0,0,0,null,null,null,0,null,null,null,null,null,null,null,0,0,null,null,null,0]
[172,null,null,null,null,null,null,null,null,null,null,null,null,null,null,null,null,null,null,null,null,0,0,0,null,null,null,0,null,null,null,null,null,null,null,0,0,null,null,null,0]
[173,null,null,null,null,null,null,null,null,null,null,null,null,null,null,null,null,null,null,null,null,0,0,0,null,null,null,0,null,null,null,null,null,null,null,0,0,null,null,null,0]
[174,null,null,null,null,null,null,null,null,null,null,null,null,null,null,null,null,null,null,null,null,0,0,0,null,null,null,0,null,null,null,null,null,null,null,0,0,null,null,null,0]
[175,null,null,null,null,null,null,null,null,null,null,null,null,null,null,null,null,null,null,null,null,0,0,0,null,null,null,0,null,null,null,null,null,null,null,0,0,null,null,null,0]
[176,null,null,null,null,null,null,null,null,null,null,null,null,null,null,null,null,null,null,null,null,0,0,0,null,null,null,0,null,null,null,null,null,null,null,0,0,null,null,null,0]
[177,null,null,null,null,null,null,null,null,null,null,null,null,null,null,null,null,null,null,null,null,0,0,0,null,null,null,0,null,null,null,null,null,null,null,0,0,null,null,null,0]
[178,null,null,null,null,null,null,null,null,null,null,null,null,null,null,null,null,null,null,null,null,0,0,0,null,null,null,0,null,null,null,null,null,null,null,0,0,null,null,null,0]
[179,null,null,null,null,null,null,null,null,null,null,null,null,null,null,null,null,null,null,null,null,0,0,0,null,null,null,0,null,null,null,null,null,null,null,0,0,null,null,null,0]
[180,null,null,null,null,null,null,null,null,null,null,null,null,null,null,null,null,null,null,null,null,0,0,0,null,null,null,0,null,null,null,null,null,null,null,0,0,null,null,null,0]
[181,null,null,null,null,null,null,null,null,null,null,null,null,null,null,null,null,null,null,null,null,0,0,0,null,null,null,0,null,null,null,null,null,null,null,0,0,null,null,null,0]
[182,null,null,null,null,null,null,null,null,null,null,null,null,null,null,null,null,null,null,null,null,0,0,0,null,null,null,0,null,null,null,null,null,null,null,0,0,null,null,null,0]
[183,null,null,null,null,null,null,null,null,null,null,null,null,null,null,null,null,null,null,null,null,0,0,0,null,null,null,0,null,null,null,null,null,null,null,0,0,null,null,null,0]
[184,null,null,null,null,null,null,null,null,null,null,null,null,null,null,null,null,null,null,null,null,0,0,0,null,null,null,0,null,null,null,null,null,null,null,0,0,null,null,null,0]
[185,null,null,null,null,null,null,null,null,null,null,null,null,null,null,null,null,null,null,null,null,0,0,0,null,null,null,0,null,null,null,null,null,null,null,0,0,null,null,null,0]
[186,null,null,null,null,null,null,null,null,null,null,null,null,null,null,null,null,null,null,null,null,0,0,0,null,null,null,0,null,null,null,null,null,null,null,0,0,null,null,null,0]
[187,null,null,null,null,null,null,null,null,null,null,null,null,null,null,null,null,null,null,null,null,0,0,0,null,null,null,0,null,null,null,null,null,null,null,0,0,null,null,null,0]
[188,null,null,null,null,null,null,null,null,null,null,null,null,null,null,null,null,null,null,null,null,0,0,0,null,null,null,0,null,null,null,null,null,null,null,0,0,null,null,null,0]
[189,null,null,null,null,null,null,null,null,null,null,null,null,null,null,null,null,null,null,null,null,0,0,0,null,null,null,0,null,null,null,null,null,null,null,0,0,null,null,null,0]
[190,null,null,null,null,null,null,null,null,null,null,null,null,null,null,null,null,null,null,null,null,0,0,0,null,null,null,0,null,null,null,null,null,null,null,0,0,null,null,null,0]
[191,null,null,null,null,null,null,null,null,null,null,null,null,null,null,null,null,null,null,null,null,0,0,0,null,null,null,0,null,null,null,null,null,null,null,0,0,null,null,null,0]
[192,null,null,null,null,null,null,null,null,null,null,null,null,null,null,null,null,null,null,null,null,0,0,0,null,null,null,0,null,null,null,null,null,null,null,0,0,null,null,null,0]
[193,null,null,null,null,null,null,null,null,null,null,null,null,null,null,null,null,null,null,null,null,0,0,{"$f":"SUM(V194*2.25)","v":0},null,null,null,0,null,null,null,null,null,null,null,{"$f":"X194+AB194+AC194+AE194+AF194+AG194+AH194+AI194+AD194","v":0},0,null,null,null,0]
[194,null,null,null,null,null,null,null,null,null,null,null,null,null,null,null,null,null,null,null,null,0,0,0,null,null,null,{"$f":"(Y195+Z195+AA195)*2.25","v":0},null,null,null,null,null,null,null,0,0,null,null,null,0]
[195,null,null,null,null,null,null,null,null,null,null,null,null,null,null,null,null,null,null,null,null,0,0,0,null,null,null,0,null,null,null,null,null,null,null,0,{"$f":"V196*2.75","v":0},null,null,null,0]
[196,null,null,null,null,null,null,null,null,null,null,null,null,null,null,null,null,null,null,null,null,0,0,0,null,null,null,0,null,null,null,null,null,null,null,0,0,null,null,null,0]
[197,null,null,null,null,null,null,null,null,null,null,null,null,null,null,null,null,null,null,null,null,{"$f":"SUM(C198:U198)","v":0},{"$f":"V198/4","v":0},0,null,null,null,0,null,null,null,null,null,null,null,0,0,null,null,null,{"$f":"SUM(AJ198:AN198)","v":0}]
[198,null,null,null,null,null,null,null,null,null,null,null,null,null,null,null,null,null,null,null,null,0,0,0,null,null,null,0,null,null,null,null,null,null,null,0,0,null,null,null,0]
[199,null,null,null,null,null,null,null,null,null,null,null,null,null,null,null,null,null,null,null,null,0,0,0,null,null,null,0,null,null,null,null,null,null,null,0,0,null,null,null,0]
[200,null,null,null,null,null,null,null,null,null,null,null,null,null,null,null,null,null,null,null,null,0,0,0,null,null,null,0,null,null,null,null,null,null,null,0,0,null,null,null,0]
[201,null,null,null,null,null,null,null,null,null,null,null,null,null,null,null,null,null,null,null,null,0,0,0,null,null,null,0,null,null,null,null,null,null,null,0,0,null,null,null,0]
[202,null,null,null,null,null,null,null,null,null,null,null,null,null,null,null,null,null,null,null,null,0,0,0,null,null,null,0,null,null,null,null,null,null,null,0,0,null,null,null,0]
[203,null,null,null,null,null,null,null,null,null,null,null,null,null,null,null,null,null,null,null,null,0,0,0,null,null,null,0,null,null,null,null,null,null,null,0,0,null,null,null,0]
[204,null,null,null,null,null,null,null,null,null,null,null,null,null,null,null,null,null,null,null,null,0,0,0,null,null,null,0,null,null,null,null,null,null,null,0,0,null,null,null,0]
[205,null,null,null,null,null,null,null,null,null,null,null,null,null,null,null,null,null,null,null,null,0,0,0,null,null,null,0,null,null,null,null,null,null,null,0,0,null,null,null,0]
[206,null,null,null,null,null,null,null,null,null,null,null,null,null,null,null,null,null,null,null,null,0,0,0,null,null,null,0,null,null,null,null,null,null,null,0,0,null,null,null,0]
[207,null,null,null,null,null,null,null,null,null,null,null,null,null,null,null,null,null,null,null,null,0,0,0,null,null,null,0,null,null,null,null,null,null,null,0,0,null,null,null,0]
[208,null,null,null,null,null,null,null,null,null,null,null,null,null,null,null,null,null,null,null,null,0,0,0,null,null,null,0,null,null,null,null,null,null,null,0,0,null,null,null,0]
[209,null,null,null,null,null,null,null,null,null,null,null,null,null,null,null,null,null,null,null,null,0,0,0,null,null,null,0,null,null,null,null,null,null,null,0,0,null,null,null,0]
[210,"Hachmeister, Christel",null,null,null,null,null,null,null,null,null,null,null,null,null,null,null,null,null,null,null,0,0,0,null,null,null,0,null,null,null,null,null,null,null,0,0,null,null,null,0]
[211," ",null,null,null,null,null,null,null,null,null,null,null,null,null,null,null,null,null,null,null,{"$f":"SUM(C212:U212)","v":0},null,0,null,null,null,0,null,null,null,null,null,null,null,0,{"$f":"V212*2.55","v":0},null,null,{"$f":"AJ212+AK212+AL212+AM212","v":0},0]
[212," ",null,null,null,null,null,null,null,null,null,null,null,null,null,null,null,null,null,null,null,0,null,0,null,null,null,0,null,null,null,null,null,null,null,0,0,null,null,0,0]
[213," ",null,null,null,null,null,null,null,null,null,null,null,null,null,null,null,null,null,null,null,0,null,0,null,null,null,0,null,null,null,null,null,null,null,0,0,null,null,0,0]
[214," ",null,null,null,null,null,null,null,null,null,null,null,null,null,null,null,null,null,null,null,0,null,0,null,null,null,0,null,null,null,null,null,null,null,0,0,null,null,0,0]
[215," ",null,null,null,null,null,null,null,null,null,null,null,null,null,null,null,null,null,null,null,0,null,0,null,null,null,0,null,null,null,null,null,null,null,0,0,null,null,0,0]
[216," ",null,null,null,null,null,null,null,null,null,null,null,null,null,null,null,null,null,null,null,0,null,0,null,null,null,0,null,null,null,null,null,null,null,0,0,null,null,0,0]
[217," ",null,null,null,null,null,null,null,null,null,null,null,null,null,null,null,null,null,null,null,0,null,0,null,null,null,0,null,null,null,null,null,null,null,0,0,null,null,0,0]
[218," ",null,null,null,null,null,null,null,null,null,null,null,null,null,null,null,null,null,null,null,0,null,0,null,null,null,0,null,null,null,null,null,null,null,0,0,null,null,0,0]
[219," ",null,null,null,null,null,null,null,null,null,null,null,null,null,null,null,null,null,null,null,0,null,0,null,null,null,0,null,null,null,null,null,null,null,0,0,null,null,0,0]
[220," ",null,null,null,null,null,null,null,null,null,null,null,null,null,null,null,null,null,null,null,0,null,0,null,null,null,0,null,null,null,null,null,null,null,0,0,null,null,0,0]
[221," ",null,null,null,null,null,null,null,null,null,null,null,null,null,null,null,null,null,null,null,0,null,0,null,null,null,0,null,null,null,null,null,null,null,0,0,null,null,0,0]
[222," ",null,null,null,null,null,null,null,null,null,null,null,null,null,null,null,null,null,null,null,0,null,0,null,null,null,0,null,null,null,null,null,null,null,0,0,null,null,0,0]
[223," ",null,null,null,null,null,null,null,null,null,null,null,null,null,null,null,null,null,null,null,0,null,0,null,null,null,0,null,null,null,null,null,null,null,0,0,null,null,0,0]
[224," ",null,null,null,null,null,null,null,null,null,null,null,null,null,null,null,null,null,null,null,0,null,0,null,null,null,0,null,null,null,null,null,null,null,0,0,null,null,0,0]
[225," ",null,null,null,null,null,null,null,null,null,null,null,null,null,null,null,null,null,null,null,0,null,0,null,null,null,0,null,null,null,null,null,null,null,0,0,null,null,0,0]
[226," ",null,null,null,null,null,null,null,null,null,null,null,null,null,null,null,null,null,null,null,0,null,0,null,null,null,0,null,null,null,null,null,null,null,0,0,null,null,0,0]
[227," ",null,null,null,null,null,null,null,null,null,null,null,null,null,null,null,null,null,null,null,0,null,0,null,null,null,0,null,null,null,null,null,null,null,0,0,null,null,0,0]
[228," ",null,null,null,null,null,null,null,null,null,null,null,null,null,null,null,null,null,null,null,0,null,0,null,null,null,0,null,null,null,null,null,null,null,0,0,null,null,0,0]
[229," ",null,null,null,null,null,null,null,null,null,null,null,null,null,null,null,null,null,null,null,0,null,0,null,null,null,0,null,null,null,null,null,null,null,0,0,null,null,0,0]
[230," ",null,null,null,null,null,null,null,null,null,null,null,null,null,null,null,null,null,null,null,0,null,0,null,null,null,0,null,null,null,null,null,null,null,0,0,null,null,0,0]
[231," ",null,null,null,null,null,null,null,null,null,null,null,null,null,null,null,null,null,null,null,0,null,0,null,null,null,0,null,null,null,null,null,null,null,0,0,null,null,0,0]
[232," ",null,null,null,null,null,null,null,null,null,null,null,null,null,null,null,null,null,null,null,0,null,0,null,null,null,0,null,null,null,null,null,null,null,0,0,null,null,0,0]
[233," ",null,null,null,null,null,null,null,null,null,null,null,null,null,null,null,null,null,null,null,0,null,0,null,null,null,0,null,null,null,null,null,null,null,0,0,null,null,0,0]
[234," ",null,null,null,null,null,null,null,null,null,null,null,null,null,null,null,null,null,null,null,0,null,0,null,null,null,0,null,null,null,null,null,null,null,0,0,null,null,0,0]
[235," ",null,null,null,null,null,null,null,null,null,null,null,null,null,null,null,null,null,null,null,0,null,0,null,null,null,0,null,null,null,null,null,null,null,0,0,null,null,0,0]
[236," ",null,null,null,null,null,null,null,null,null,null,null,null,null,null,null,null,null,null,null,0,null,0,null,null,null,0,null,null,null,null,null,null,null,0,0,null,null,0,0]
[237," ",null,null,null,null,null,null,null,null,null,null,null,null,null,null,null,null,null,null,null,0,null,0,null,null,null,0,null,null,null,null,null,null,null,0,0,null,null,0,0]
[238," ",null,null,null,null,null,null,null,null,null,null,null,null,null,null,null,null,null,null,null,0,null,0,null,null,null,0,null,null,null,null,null,null,null,0,0,null,null,0,0]
[239," ",null,null,null,null,null,null,null,null,null,null,null,null,null,null,null,null,null,null,null,0,null,0,null,null,null,0,null,null,null,null,null,null,null,0,0,null,null,0,0]
[240," ",null,null,null,null,null,null,null,null,null,null,null,null,null,null,null,null,null,null,null,0,null,0,null,null,null,0,null,null,null,null,null,null,null,0,0,null,null,0,0]
[241," ",null,null,null,null,null,null,null,null,null,null,null,null,null,null,null,null,null,null,null,0,null,0,null,null,null,0,null,null,null,null,null,null,null,0,0,null,null,0,0]
[242," ",null,null,null,null,null,null,null,null,null,null,null,null,null,null,null,null,null,null,null,0,null,0,null,null,null,0,null,null,null,null,null,null,null,0,0,null,null,0,0]
[243," ",null,null,null,null,null,null,null,null,null,null,null,null,null,null,null,null,null,null,null,0,null,0,null,null,null,0,null,null,null,null,null,null,null,0,0,null,null,0,0]
[244," ",null,null,null,null,null,null,null,null,null,null,null,null,null,null,null,null,null,null,null,0,null,0,null,null,null,0,null,null,null,null,null,null,null,0,0,null,null,0,0]
[245," ",null,null,null,null,null,null,null,null,null,null,null,null,null,null,null,null,null,null,null,0,null,0,null,null,null,0,null,null,null,null,null,null,null,0,0,null,null,0,0]
[246," ",null,null,null,null,null,null,null,null,null,null,null,null,null,null,null,null,null,null,null,0,null,0,null,null,null,0,null,null,null,null,null,null,null,0,0,null,null,0,0]
[247," ",null,null,null,null,null,null,null,null,null,null,null,null,null,null,null,null,null,null,null,0,null,0,null,null,null,0,null,null,null,null,null,null,null,0,0,null,null,0,0]
[248," ",null,null,null,null,null,null,null,null,null,null,null,null,null,null,null,null,null,null,null,0,null,0,null,null,null,0,null,null,null,null,null,null,null,0,0,null,null,0,0]
[249,"Meier",null,null,null,null,null,null,null,null,null,null,null,null,null,null,null,null,null,null,null,0,null,0,null,null,null,0,null,null,null,null,null,null,null,0,0,null,null,0,0]
[250," ",null,null,null,null,null,null,null,null,null,null,null,null,null,null,null,null,null,null,null,0,null,0,null,null,null,0,null,null,null,null,null,null,null,0,0,null,null,0,0]
[251," ",null,null,null,null,null,null,null,null,null,null,null,null,null,null,null,null,null,null,null,0,null,0,null,null,null,0,null,null,null,null,null,null,null,0,0,null,null,0,0]
[252," ",null,null,null,null,null,null,null,null,null,null,null,null,null,null,null,null,null,null,null,0,null,0,null,null,null,0,null,null,null,null,null,null,null,0,0,null,null,0,0]
[253," ",null,null,null,null,null,null,null,null,null,null,null,null,null,null,null,null,null,null,null,0,null,0,null,null,null,0,null,null,null,null,null,null,null,0,0,null,null,0,0]
[254," ",null,null,null,null,null,null,null,null,null,null,null,null,null,null,null,null,null,null,null,0,null,0,null,null,null,0,null,null,null,null,null,null,null,0,0,null,null,0,0]
[255," ",null,null,null,null,null,null,null,null,null,null,null,null,null,null,null,null,null,null,null,0,null,0,null,null,null,0,null,null,null,null,null,null,null,0,0,null,null,0,0]
[256," ",null,null,null,null,null,null,null,null,null,null,null,null,null,null,null,null,null,null,null,0,null,0,null,null,null,0,null,null,null,null,null,null,null,0,0,null,null,0,0]
[257," ",null,null,null,null,null,null,null,null,null,null,null,null,null,null,null,null,null,null,null,{"$f":"SUM(C258:U258)","v":0},null,{"$f":"SUM(V258*2.25)","v":0},null,null,null,0,null,null,null,null,null,null,null,{"$f":"X258+AB258+AC258+AE258+AF258+AG258+AH258+AI258+AD258","v":0},0,null,null,{"$f":"AJ258+AK258+AL258+AM258","v":0},0]
[258," ",null,null,null,null,null,null,null,null,null,null,null,null,null,null,null,null,null,null,null,0,null,0,null,null,null,{"$f":"(Y259+Z259+AA259)*2.25","v":0},null,null,null,null,null,null,null,0,0,null,null,0,0]
[259," ",null,null,null,null,null,null,null,null,null,null,null,null,null,null,null,null,null,null,null,0,null,0,null,null,null,0,null,null,null,null,null,null,null,0,{"$f":"V260*2.55","v":0},null,null,0,0]
[260," ",null,null,null,null,null,null,null,null,null,null,null,null,null,null,null,null,null,null,null,0,null,0,null,null,null,0,null,null,null,null,null,null,null,0,0,null,null,0,0]
[261," ",null,null,null,null,null,null,null,null,null,null,null,null,null,null,null,null,null,null,null,0,null,0,null,null,null,0,null,null,null,null,null,null,null,0,0,null,null,0,{"$f":"SUM(AJ262:AN262)","v":0}]
[262," ",null,null,null,null,null,null,null,null,null,null,null,null,null,null,null,null,null,null,null,0,null,0,null,null,null,0,null,null,null,null,null,null,null,0,0,null,null,0,0]
[263," ",null,null,null,null,null,null,null,null,null,null,null,null,null,null,null,null,null,null,null,0,null,0,null,null,null,0,null,null,null,null,null,null,null,0,0,null,null,0,0]
[264," ",null,null,null,null,null,null,null,null,null,null,null,null,null,null,null,null,null,null,null,0,null,0,null,null,null,0,null,null,null,null,null,null,null,0,0,null,null,0,0]
[265," ",null,null,null,null,null,null,null,null,null,null,null,null,null,null,null,null,null,null,null,0,null,0,null,null,null,0,null,null,null,null,null,null,null,0,0,null,null,0,0]
[266," ",null,null,null,null,null,null,null,null,null,null,null,null,null,null,null,null,null,null,null,0,null,0,null,null,null,0,null,null,null,null,null,null,null,0,0,null,null,0,0]
[267," ",null,null,null,null,null,null,null,null,null,null,null,null,null,null,null,null,null,null,null,0,null,0,null,null,null,0,null,null,null,null,null,null,null,0,0,null,null,0,0]
[268," ",null,null,null,null,null,null,null,null,null,null,null,null,null,null,null,null,null,null,null,0,null,0,null,null,null,0,null,null,null,null,null,null,null,0,0,null,null,0,0]
[269," ",null,null,null,null,null,null,null,null,null,null,null,null,null,null,null,null,null,null,null,0,null,0,null,null,null,0,null,null,null,null,null,null,null,0,0,null,null,0,0]
[270," ",null,null,null,null,null,null,null,null,null,null,null,null,null,null,null,null,null,null,null,0,null,0,null,null,null,0,null,null,null,null,null,null,null,0,0,null,null,0,0]
[271," ",null,null,null,null,null,null,null,null,null,null,null,null,null,null,null,null,null,null,null,0,null,0,null,null,null,0,null,null,null,null,null,null,null,0,0,null,null,0,0]
[272," ",null,null,null,null,null,null,null,null,null,null,null,null,null,null,null,null,null,null,null,0,null,0,null,null,null,0,null,null,null,null,null,null,null,0,0,null,null,0,0]
[273," ",null,null,null,null,null,null,null,null,null,null,null,null,null,null,null,null,null,null,null,0,null,0,null,null,null,0,null,null,null,null,null,null,null,0,0,null,null,0,0]
[274," ",null,null,null,null,null,null,null,null,null,null,null,null,null,null,null,null,null,null,null,0,null,0,null,null,null,0,null,null,null,null,null,null,null,0,0,null,null,0,0]
[275," ",null,null,null,null,null,null,null,null,null,null,null,null,null,null,null,null,null,null,null,0,null,0,null,null,null,0,null,null,null,null,null,null,null,0,0,null,null,0,0]
[276," ",null,null,null,null,null,null,null,null,null,null,null,null,null,null,null,null,null,null,null,0,null,0,null,null,null,0,null,null,null,null,null,null,null,0,0,null,null,0,0]
[277," ",null,null,null,null,null,null,null,null,null,null,null,null,null,null,null,null,null,null,null,0,null,0,null,null,null,0,null,null,null,null,null,null,null,0,0,null,null,0,0]
[278," ",null,null,null,null,null,null,null,null,null,null,null,null,null,null,null,null,null,null,null,0,null,0,null,null,null,0,null,null,null,null,null,null,null,0,0,null,null,0,0]
[279," ",null,null,null,null,null,null,null,null,null,null,null,null,null,null,null,null,null,null,null,0,null,0,null,null,null,0,null,null,null,null,null,null,null,0,0,null,null,0,0]
[280," ",null,null,null,null,null,null,null,null,null,null,null,null,null,null,null,null,null,null,null,0,null,0,null,null,null,0,null,null,null,null,null,null,null,0,0,null,null,0,0]
[281," ",null,null,null,null,null,null,null,null,null,null,null,null,null,null,null,null,null,null,null,0,null,0,null,null,null,0,null,null,null,null,null,null,null,0,0,null,null,0,0]
[282," ",null,null,null,null,null,null,null,null,null,null,null,null,null,null,null,null,null,null,null,0,null,0,null,null,null,0,null,null,null,null,null,null,null,0,0,null,null,0,0]
[283," ",null,null,null,null,null,null,null,null,null,null,null,null,null,null,null,null,null,null,null,0,null,0,null,null,null,0,null,null,null,null,null,null,null,0,0,null,null,0,0]
[284," ",null,null,null,null,null,null,null,null,null,null,null,null,null,null,null,null,null,null,null,0,null,0,null,null,null,0,null,null,null,null,null,null,null,0,0,null,null,0,0]
[285," ",null,null,null,null,null,null,null,null,null,null,null,null,null,null,null,null,null,null,null,0,null,0,null,null,null,0,null,null,null,null,null,null,null,0,0,null,null,0,0]
[286," ",null,null,null,null,null,null,null,null,null,null,null,null,null,null,null,null,null,null,null,0,null,0,null,null,null,0,null,null,null,null,null,null,null,0,0,null,null,0,0]
[287," ",null,null,null,null,null,null,null,null,null,null,null,null,null,null,null,null,null,null,null,0,null,0,null,null,null,0,null,null,null,null,null,null,null,0,0,null,null,0,0]
[288," ",null,null,null,null,null,null,null,null,null,null,null,null,null,null,null,null,null,null,null,0,null,0,null,null,null,0,null,null,null,null,null,null,null,0,0,null,null,0,0]
[289," ",null,null,null,null,null,null,null,null,null,null,null,null,null,null,null,null,null,null,null,0,null,0,null,null,null,0,null,null,null,null,null,null,null,0,0,null,null,0,0]
[290," ",null,null,null,null,null,null,null,null,null,null,null,null,null,null,null,null,null,null,null,0,null,0,null,null,null,0,null,null,null,null,null,null,null,0,0,null,null,0,0]
[291," ",null,null,null,null,null,null,null,null,null,null,null,null,null,null,null,null,null,null,null,0,null,0,null,null,null,0,null,null,null,null,null,null,null,0,0,null,null,0,0]
[292," ",null,null,null,null,null,null,null,null,null,null,null,null,null,null,null,null,null,null,null,0,null,0,null,null,null,0,null,null,null,null,null,null,null,0,0,null,null,0,0]
[293," ",null,null,null,null,null,null,null,null,null,null,null,null,null,null,null,null,null,null,null,0,null,0,null,null,null,0,null,null,null,null,null,null,null,0,0,null,null,0,0]
[294," ",null,null,null,null,null,null,null,null,null,null,null,null,null,null,null,null,null,null,null,0,null,0,null,null,null,0,null,null,null,null,null,null,null,0,0,null,null,0,0]
[295," ",null,null,null,null,null,null,null,null,null,null,null,null,null,null,null,null,null,null,null,0,null,0,null,null,null,0,null,null,null,null,null,null,null,0,0,null,null,0,0]
[296," ",null,null,null,null,null,null,null,null,null,null,null,null,null,null,null,null,null,null,null,0,null,0,null,null,null,0,null,null,null,null,null,null,null,0,0,null,null,0,0]
[297," ",null,null,null,null,null,null,null,null,null,null,null,null,null,null,null,null,null,null,null,0,null,0,null,null,null,0,null,null,null,null,null,null,null,0,0,null,null,0,0]
[298," ",null,null,null,null,null,null,null,null,null,null,null,null,null,null,null,null,null,null,null,0,null,0,null,null,null,0,null,null,null,null,null,null,null,0,0,null,null,0,0]
[299," ",null,null,null,null,null,null,null,null,null,null,null,null,null,null,null,null,null,null,null,0,null,0,null,null,null,0,null,null,null,null,null,null,null,0,0,null,null,0,0]
[300," ",null,null,null,null,null,null,null,null,null,null,null,null,null,null,null,null,null,null,null,0,null,0,null,null,null,0,null,null,null,null,null,null,null,0,0,null,null,0,0]
[999," ",null,null,null,null,null,null,null,null,null,null,null,null,null,null,null,null,null,null,null,0,null,0,null,null,null,0,null,null,null,null,null,null,null,0,0,null,null,0,0]
[null,"SUMME in €",{"$f":"SUM(C3:C211)","v":18},{"$f":"SUM(D3:D211)","v":0},{"$f":"SUM(E3:E211)","v":0},{"$f":"SUM(F3:F211)","v":0},0,0,{"$f":"SUM(I2:I302)","v":0},0,0,0,0,0,0,0,0,0,0,0,0,18,{"$f":"SUM(W5:W302)","v":4.5},{"$f":"SUM(X2:X302)","v":40.5},0,0,0,0,0,null,null,null,null,null,{"$f":"SUM(AI3:AI211)","v":0},40.5,49.5,0,0,{"$f":"SUM(AN5:AN211)","v":0},{"$f":"SUM(AO5:AO302)","v":90}]
[]
[]
[null,"Start"]
[null,"Ende"]
[]
[null,"Urlaub:"]

{"sheet":"02-Abrechnung","index":3,"n_rows":62,"n_cols":8,"rows_kept":62,"cut":false,"hidden":false,"merged":[[40,6,41,6],[40,7,41,7],[12,0,12,3],[13,0,13,3],[51,1,51,2],[42,1,42,2],[40,1,40,2],[47,1,47,2],[43,1,43,2],[44,1,44,2],[45,1,45,2],[46,1,46,2]]}
["QuittungNR",39]
[]
[]
[]
[]
[]
[]
["Mitarbeiter Nr.:",null,null,"MONATSABRECHNUNG",null,null,"Februar",2017]
[]
[null,null,null,null,null,null,"Abrechnungszeitraum: 21.01 - 20.02"]
[]
[]
[{"$f":"INDEX([1]!Datenbank2,$B$1,2)&\" \"&INDEX([1]!Datenbank2,$B$1,3)","v":"Jessica Sander"},"Anja Rohlfing","Anja Rohlfing","Anja Rohlfing"]
[{"$f":"INDEX([1]!Datenbank2,$B$1,4)","v":"Brunnenweg 18"},"Elbeweg 7","Elbeweg 7","Elbeweg 7"]
[{"$f":"INDEX([1]!Datenbank2,$B$1,5)&\" \"&INDEX([1]!Datenbank2,$B$1,6)","v":"32469 Petershagen"}]
[]
[]
[]
["Allgemeine Tests:"]
[null,null,"TEST NR\n& DATUM","FB","Entgelt \nin EURO €",null,"Erläuterungen zu"]
[null,null,{"$f":"Februar!$C$1","v":"05710,05711,05712,05715"},{"$f":"INDEX([0]!februar,$B$1,3)","v":0},{"$f":"D21*2.25","v":0},null,"Spezialtests:"]
[null,null,{"$f":"Februar!$D$1","v":0},{"$f":"INDEX([0]!februar,$B$1,4)","v":0},0,null,{"$f":"IF(Februar!$AD$1=0,\"\",Februar!AD$1)","v":""},{"$f":"INDEX([0]!februar,$B$1,30)","v":0}]
[null,null,{"$f":"Februar!$E$1","v":0},{"$f":"INDEX([0]!februar,$B$1,5)","v":0},0,null,{"$f":"IF(Februar!$AE$1=0,\"\",Februar!AE$1)","v":""},{"$f":"INDEX([0]!februar,$B$1,31)","v":0}]
[null,null,{"$f":"Februar!$F$1","v":0},{"$f":"INDEX([0]!februar,$B$1,6)","v":0},0,null,{"$f":"IF(Februar!$AF$1=0,\"\",Februar!AF$1)","v":""},{"$f":"INDEX([0]!februar,$B$1,32)","v":0}]
[null,null,{"$f":"Februar!$G$1","v":0},{"$f":"INDEX([0]!februar,$B$1,7)","v":0},0,null,{"$f":"IF(Februar!$AG$1=0,\"\",Februar!AG$1)","v":""},{"$f":"INDEX([0]!februar,$B$1,33)","v":0}]
[null,null,{"$f":"Februar!$H$1","v":0},{"$f":"INDEX([0]!februar,$B$1,8)","v":0},0,null,{"$f":"IF(Februar!$AH$1=0,\"\",Februar!AH$1)","v":""}]
[null,null,{"$f":"Februar!$I$1","v":0},{"$f":"INDEX([0]!februar,$B$1,9)","v":0},{"$f":"D27*2.25","v":0}]
[null,null,{"$f":"Februar!$J$1","v":0},{"$f":"INDEX([0]!februar,$B$1,10)","v":0},0,null,"Gesamt",{"$f":"SUM(H22:H27)","v":0}]
[null,null,{"$f":"Februar!$K$1","v":0},{"$f":"INDEX([0]!februar,$B$1,11)","v":0},0]
[null,null,{"$f":"Februar!$L$1","v":0},{"$f":"INDEX([0]!februar,$B$1,12)","v":0},0]
[null,null,{"$f":"Februar!$M$1","v":0},{"$f":"INDEX([0]!februar,$B$1,13)","v":0},0]
[null,null,{"$f":"Februar!$N$1","v":0},{"$f":"INDEX([0]!februar,$B$1,14)","v":0},0]
[null,null,{"$f":"Februar!$O$1","v":0},{"$f":"INDEX([0]!februar,$B$1,15)","v":0},0," "]
[null,null,{"$f":"Februar!$P$1","v":0},{"$f":"INDEX([0]!februar,$B$1,16)","v":0},0]
[null,null,{"$f":"Februar!$Q$1","v":0},{"$f":"INDEX([0]!februar,$B$1,17)","v":0},0]
[null,null,{"$f":"Februar!$R$1","v":0},{"$f":"INDEX([0]!februar,$B$1,18)","v":0},0]
[null,null,{"$f":"Februar!$S$1","v":0},{"$f":"INDEX([0]!februar,$B$1,19)","v":0},0]
[null,null,{"$f":"Februar!$T$1","v":0},{"$f":"INDEX([0]!februar,$B$1,20)","v":0},0]
[null,null,{"$f":"Februar!$U$1","v":0},{"$f":"INDEX([0]!februar,$B$1,21)","v":0},0]
[]
[null,"SUMME 1",null,{"$f":"SUM(D21:D40)","v":0},{"$f":"SUM(E21:E40)","v":0},null,"Stück-Stunden (FB)",{"$f":"INDEX([0]!februar,$B$1,23)","v":0}]
[]
["Zusätze:","Bezeichung"]
[null,{"$f":"Februar!$AB$1","v":"Summe BIM in EURO"},null,null,{"$f":"INDEX([0]!februar,$B$1,28)","v":0}]
[null,{"$f":"Februar!$AC$1","v":"Stammdaten"},null,null,{"$f":"INDEX([0]!februar,$B$1,29)","v":0}]
[null,"Summe Spezialtest",null,null,{"$f":"H28","v":0}]
[null,"Fahrer / Std.","Std.",null,{"$f":"INDEX([0]!februar,$B$1,35)","v":0}]
[null,"GESAMT NETTO",null,null,{"$f":"SUM(E41:E47)","v":0}]
[null,null,"Kilometergeld",null,{"$f":"INDEX([0]!februar,$B$1,37)","v":0}]
[null,null,"Kilometergeld Januar - Übertrag",null,{"$f":"INDEX([0]!februar,$B$1,38)","v":0},null,"Bemerkungen:"]
[null,null,"+ 25% Pauschale",null,{"$f":"INDEX([0]!februar,$B$1,39)","v":0}]
[null,"GESAMT in €",null,null,{"$f":"E48+E49+E50+E51","v":0},null,"FB = Anzahl der Fragebogen"]
[]
[]
["Der Betrag wird bis zum 10. des folgenden Monats überwiesen."]
[]
[]
[]
[]
[]
[]
["Prorata Marktforschung GmbH • Marienglacis 37 • 32427 Minden • tel  0571.82875.0 fax • 0571.82875.99 •  www.prorata.de • info@prorata.de"]

{"sheet":"Maerz","index":4,"n_rows":317,"n_cols":47,"rows_kept":317,"cut":false,"hidden":false,"merged":[[310,33,310,35]]}
[null,"Testnummer / Testerin",null,null,null,null,null,null,null,null,null,null,null,null,null,null,null,null,null,null,null,null,null,null,"Anz.","Std.","Summe\nin EURO",null,null,null,"Summe BIM in EURO",null,null,null,null,null,null,"Std. /Entgelt Verteilung","Gesamt\nNETTO*\nin EURO","km x \n XXeurocent","Pauschale 25%",null,"Gesamt\nin EURO",null,null,null,2.5499999999999998]
[1," ",null,null,null,null,null,null,null,null,null,null,null,null,null,null,null,null,null,null,null,null,null,null,{"$f":"SUM(E2:X2)","v":0},null,{"$f":"SUM(Y2*2.25)","v":0},null,null,null,{"$f":"(AB2+AC2+AD2)*2.25","v":0},null,null,null,null,null,null,null,{"$f":"AA2+AE2+AF2+AH2+AI2+AJ2+AK2+AL2+AG2","v":0},null,null,null,{"$f":"AM2+AN2+AO2+AP2","v":0}]
[2,"Gundlach",null,null,null,null,null,null,null,null,null,null,null,null,null,null,null,null,null,null,null,null,null,null,0,null,0,null,null,null,{"$f":"(AB3+AC3+AD3)*2.25","v":0},null,null,null,null,null,null,null,0,{"$f":"Y3*2.75","v":0},null,null,0,null,null,11,{"$f":"$AU$1*AT3","v":28.049999999999997}]
[3,"Heine",null,null,null,null,null,null,null,null,null,null,null,null,null,null,null,null,null,null,null,null,null,null,0,null,0,null,null,null,0,null,null,null,null,null,null,null,0,0,null,null,0,null,null,18,{"$f":"$AU$1*AT4","v":45.9}]
[4,"Korte, Inge",null,null,null,null,null,null,null,null,null,null,null,null,null,null,null,null,null,null,null,null,null,null,{"$f":"SUM(C5:X5)","v":0},{"$f":"Y5/4","v":0},0,null,null,null,0,null,null,null,null,null,null,null,0,0,null,null,0,null,null,6,15.299999999999999]
[5,"Tölkemeier, Petra",null,null,null,null,null,null,null,null,null,null,null,null,null,null,null,null,null,null,null,null,null,null,{"$f":"SUM(C6:X6)","v":0},{"$f":"Y6/4","v":0},0,null,null,null,0,null,null,null,null,null,null,null,0,0,null,null,0,null,null,18,45.9]
[6,"Rohlfing, Anja",null,null,null,null,null,null,null,null,null,null,null,null,null,null,null,null,null,null,null,null,null,null,0,0,0,null,null,null,0,null,null,null,null,null,null,null,0,0,null,null,0,null,null,null,0]
[7,"Aumann, Elfriede",null,null,null,null,null,null,null,null,null,null,null,null,null,null,null,null,null,null,null,null,null,null,0,0,0,null,null,null,0,null,null,null,null,null,null,null,0,0,null,null,0,null,null,16,40.799999999999997]
[8,null,null,null,null,null,null,null,null,null,null,null,null,null,null,null,null,null,null,null,null,null,null,null,0,0,0,null,null,null,0,null,null,null,null,null,null,null,0,0,null,null,0,null,null,null,0]
[9,"Kilzer, Andreas",null,null,null,null,null,null,null,null,null,null,null,null,null,null,null,null,null,null,null,null,null,null,0,0,0,null,null,null,0,null,null,null,null,null,null,null,0,0,null,null,0,null,null,19,48.449999999999996]
[10,"Rakowski, Sigrid",null,null,null,null,null,null,null,null,null,null,null,null,null,null,null,null,null,null,null,null,null,null,0,0,0,null,null,null,0,null,null,null,null,null,null,null,0,{"$f":"Y11*2.75","v":0},null,null,0,null,null,23,58.65]
[11,null,null,null,null,null,null,null,null,null,null,null,null,null,null,null,null,null,null,null,null,null,null,null,0,0,0,null,null,null,0,null,null,null,null,null,null,null,0,{"$f":"Y12*2.75","v":0},null,null,0,null,null,null,0]
[12,"Drewes, Andrea",null,null,null,null,null,null,null,null,null,null,null,null,null,null,null,null,null,null,null,null,null,null,0,0,0,null,null,null,0,null,null,null,null,null,null,null,0,0,null,null,0,null,null,21,53.55]
[13,null,null,null,null,null,null,null,null,null,null,null,null,null,null,null,null,null,null,null,null,null,null,null,0,0,0,null,null,null,0,null,null,null,null,null,null,null,0,0,null,null,0,null,null,16,40.799999999999997]
[14,"Grabbe , Nadja",null,null,null,null,null,null,null,null,null,null,null,null,null,null,null,null,null,null,null,null,null,null,0,0,0,null,null,null,0,null,null,null,null,null,null,null,0,0,null,null,0,null,null,14,35.699999999999996]
[15,"Sassenberg, Julia",null,null,null,null,null,null,null,null,null,null,null,null,null,null,null,null,null,null,null,null,null,null,0,0,0,null,null,null,0,null,null,null,null,null,null,null,0,0,null,null,0,null,null,null,0]
[16,null,null,null,null,null,null,null,null,null,null,null,null,null,null,null,null,null,null,null,null,null,null,null,0,0,0,null,null,null,0,null,null,null,null,null,null,null,0,0,null,null,0,null,null,null,0]
[17,null,null,null,null,null,null,null,null,null,null,null,null,null,null,null,null,null,null,null,null,null,null,null,0,0,0,null,null,null,0,null,null,null,null,null,null,null,0,0,null,null,0,null,null,null,0]
[18,null,null,null,null,null,null,null,null,null,null,null,null,null,null,null,null,null,null,null,null,null,null,null,0,0,0,null,null,null,0,null,null,null,null,null,null,null,0,0,null,null,0,null,null,null,0]
[19,"Blaha, Heinz",null,null,null,null,null,null,null,null,null,null,null,null,null,null,null,null,null,null,null,null,null,null,0,0,0,null,null,null,0,null,null,null,null,null,null,null,0,0,null,null,0,null,null,24,61.199999999999996]
[20,null,null,null,null,null,null,null,null,null,null,null,null,null,null,null,null,null,null,null,null,null,null,null,0,{"$f":"Y21/4","v":0},{"$f":"SUM(Y21*2.25)","v":0},null,null,null,0,null,null,null,null,null,null,null,0,0,null,null,0,null,null,null,0]
[21,"Weichenhan, Rainer",null,null,null,null,null,null,null,null,null,null,null,null,null,null,null,null,null,null,null,null,null,null,0,0,0,null,null,null,0,null,null,null,null,null,null,null,0,{"$f":"Y22*2.75","v":0},null,null,0,null,null,null,0]
[22,"Lill, Ulrich",null,null,null,null,null,null,null,null,null,null,null,null,null,null,null,null,null,null,null,null,null,null,0,0,0,null,null,null,0,null,null,null,null,null,null,null,0,{"$f":"Y23*2.75","v":0},null,null,0,null,null,18,45.9]
[23,null,null,null,null,null,null,null,null,null,null,null,null,null,null,null,null,null,null,null,null,null,null,null,0,0,0,null,null,null,0,null,null,null,null,null,null,null,0,0,null,null,0,null,null,null,0]
[24,"Hübsch, Karl-Heinz",null,null,null,null,null,null,null,null,null,null,null,null,null,null,null,null,null,null,null,null,null,null,0,0,0,null,null,null,0,null,null,null,null,null,null,null,0,0,null,null,0,null,null,21,53.55]
[25,"Feigel-Kipp, Claudia",null,null,null,null,null,null,null,null,null,null,null,null,null,null,null,null,null,null,null,null,null,null,0,0,0,null,null,null,0,null,null,null,null,null,null,null,0,0,null,null,0,null,null,23,58.65]
[26,null,null,null,null,null,null,null,null,null,null,null,null,null,null,null,null,null,null,null,null,null,null,null,0,0,0,null,null,null,0,null,null,null,null,null,null,null,0,0,null,null,0,null,null,null,0]
[27,null,null,null,null,null,null,null,null,null,null,null,null,null,null,null,null,null,null,null,null,null,null,null,0,0,0,null,null,null,0,null,null,null,null,null,null,null,0,0,null,null,0,null,null,null,0]
[28,"Lüttgert,  David",null,null,null,null,null,null,null,null,null,null,null,null,null,null,null,null,null,null,null,null,null,null,0,0,0,null,null,null,0,null,null,null,null,null,null,null,0,0,null,null,0,null,null,null,0]
[29,"Scholz, Stella",null,null,null,null,null,null,null,null,null,null,null,null,null,null,null,null,null,null,null,null,null,null,0,0,0,null,null,null,0,null,null,null,null,null,null,null,0,0,null,null,0,null,null,5,12.75]
[30,"Hachmeister, Stefan",null,null,null,null,null,null,null,null,null,null,null,null,null,null,null,null,null,null,null,null,null,null,0,0,0,null,null,null,0,null,null,null,null,null,null,null,0,0,null,null,0,null,null,12,30.599999999999998]
[31,null,null,null,null,null,null,null,null,null,null,null,null,null,null,null,null,null,null,null,null,null,null,null,0,0,0,null,null,null,0,null,null,null,null,null,null,null,0,0,null,null,0,null,null,null,0]
[32,null,null,null,null,null,null,null,null,null,null,null,null,null,null,null,null,null,null,null,null,null,null,null,0,0,0,null,null,null,0,null,null,null,null,null,null,null,0,0,null,null,0,null,null,null,0]
[33,null,null,null,null,null,null,null,null,null,null,null,null,null,null,null,null,null,null,null,null,null,null,null,0,0,0,null,null,null,0,null,null,null,null,null,null,null,0,0,null,null,0,null,null,null,0]
[34,null,null,null,null,null,null,null,null,null,null,null,null,null,null,null,null,null,null,null,null,null,null,null,0,0,0,null,null,null,0,null,null,null,null,null,null,null,0,0,null,null,0,null,null,null,0]
[35,null,null,null,null,null,null,null,null,null,null,null,null,null,null,null,null,null,null,null,null,null,null,null,0,0,0,null,null,null,0,null,null,null,null,null,null,null,0,0,null,null,0,null,null,null,0]
[36,"Selle, Monika",null,null,null,null,null,null,null,null,null,null,null,null,null,null,null,null,null,null,null,null,null,null,0,0,0,null,null,null,0,null,null,null,null,null,null,null,0,0,null,null,0,null,null,6,15.299999999999999]
[37,"Sander, Eva-Maria",null,null,null,null,null,null,null,null,null,null,null,null,null,null,null,null,null,null,null,null,null,null,0,0,0,null,null,null,0,null,null,null,null,null,null,null,0,0,null,null,0,null,null,27,68.849999999999994]
[38,"Sander, Jessica",null,null,null,null,null,null,null,null,null,null,null,null,null,null,null,null,null,null,null,null,null,null,0,0,0,null,null,null,0,null,null,null,null,null,null,null,0,{"$f":"Y39*2.75","v":0},null,null,0,null,null,null,0]
[39,"Wiese-Schmutzer, Armgard",null,null,null,null,null,null,null,null,null,null,null,null,null,null,null,null,null,null,null,null,null,null,0,0,0,null,null,null,0,null,null,null,null,null,null,null,0,{"$f":"Y40*2.75","v":0},null,null,0,null,null,null,0]
[40,null,null,null,null,null,null,null,null,null,null,null,null,null,null,null,null,null,null,null,null,null,null,null,0,0,0,null,null,null,0,null,null,null,null,null,null,null,0,0,null,null,0,null,null,null,0]
[41,null,null,null,null,null,null,null,null,null,null,null,null,null,null,null,null,null,null,null,null,null,null,null,0,0,0,null,null,null,0,null,null,null,null,null,null,null,0,0,null,null,0,null,null,null,0]
[42,null,null,null,null,null,null,null,null,null,null,null,null,null,null,null,null,null,null,null,null,null,null,null,0,0,0,null,null,null,0,null,null,null,null,null,null,null,0,0,null,null,0,null,null,null,0]
[43,null,null,null,null,null,null,null,null,null,null,null,null,null,null,null,null,null,null,null,null,null,null,null,0,0,0,null,null,null,0,null,null,null,null,null,null,null,0,0,null,null,0,null,null,null,0]
[44,null,null,null,null,null,null,null,null,null,null,null,null,null,null,null,null,null,null,null,null,null,null,null,0,0,0,null,null,null,0,null,null,null,null,null,null,null,0,0,null,null,0,null,null,null,0]
[45,null,null,null,null,null,null,null,null,null,null,null,null,null,null,null,null,null,null,null,null,null,null,null,0,0,0,null,null,null,0,null,null,null,null,null,null,null,0,0,null,null,0,null,null,null,0]
[46,null,null,null,null,null,null,null,null,null,null,null,null,null,null,null,null,null,null,null,null,null,null,null,0,0,0,null,null,null,0,null,null,null,null,null,null,null,0,0,null,null,0,null,null,null,0]
[47,null,null,null,null,null,null,null,null,null,null,null,null,null,null,null,null,null,null,null,null,null,null,null,0,0,0,null,null,null,0,null,null,null,null,null,null,null,0,0,null,null,0,null,null,null,0]
[48,null,null,null,null,null,null,null,null,null,null,null,null,null,null,null,null,null,null,null,null,null,null,null,0,0,0,null,null,null,0,null,null,null,null,null,null,null,0,0,null,null,0,null,null,null,0]
[49,null,null,null,null,null,null,null,null,null,null,null,null,null,null,null,null,null,null,null,null,null,null,null,0,0,0,null,null,null,0,null,null,null,null,null,null,null,0,0,null,null,0,null,null,null,0]
[50,null,null,null,null,null,null,null,null,null,null,null,null,null,null,null,null,null,null,null,null,null,null,null,0,0,0,null,null,null,0,null,null,null,null,null,null,null,0,0,null,null,0,null,null,null,0]
[51,null,null,null,null,null,null,null,null,null,null,null,null,null,null,null,null,null,null,null,null,null,null,null,0,0,0,null,null,null,0,null,null,null,null,null,null,null,0,0,null,null,0,null,null,null,0]
[52,null,null,null,null,null,null,null,null,null,null,null,null,null,null,null,null,null,null,null,null,null,null,null,0,0,0,null,null,null,0,null,null,null,null,null,null,null,0,0,null,null,0,null,null,null,0]
[53,null,null,null,null,null,null,null,null,null,null,null,null,null,null,null,null,null,null,null,null,null,null,null,0,0,0,null,null,null,0,null,null,null,null,null,null,null,0,0,null,null,0,null,null,null,0]
[54,null,null,null,null,null,null,null,null,null,null,null,null,null,null,null,null,null,null,null,null,null,null,null,0,0,0,null,null,null,0,null,null,null,null,null,null,null,0,0,null,null,0,null,null,null,0]
[55,null,null,null,null,null,null,null,null,null,null,null,null,null,null,null,null,null,null,null,null,null,null,null,0,0,0,null,null,null,0,null,null,null,null,null,null,null,0,0,null,null,0,null,null,null,0]
[56,null,null,null,null,null,null,null,null,null,null,null,null,null,null,null,null,null,null,null,null,null,null,null,0,0,0,null,null,null,0,null,null,null,null,null,null,null,0,0,null,null,0,null,null,null,0]
[57,null,null,null,null,null,null,null,null,null,null,null,null,null,null,null,null,null,null,null,null,null,null,null,0,0,0,null,null,null,0,null,null,null,null,null,null,null,0,0,null,null,0,null,null,null,0]
[58,null,null,null,null,null,null,null,null,null,null,null,null,null,null,null,null,null,null,null,null,null,null,null,0,0,0,null,null,null,0,null,null,null,null,null,null,null,0,0,null,null,0,null,null,null,0]
[59,null,null,null,null,null,null,null,null,null,null,null,null,null,null,null,null,null,null,null,null,null,null,null,0,0,0,null,null,null,0,null,null,null,null,null,null,null,0,0,null,null,0,null,null,null,0]
[60,null,null,null,null,null,null,null,null,null,null,null,null,null,null,null,null,null,null,null,null,null,null,null,0,0,0,null,null,null,0,null,null,null,null,null,null,null,0,0,null,null,0,null,null,null,0]
[61,null,null,null,null,null,null,null,null,null,null,null,null,null,null,null,null,null,null,null,null,null,null,null,0,0,0,null,null,null,0,null,null,null,null,null,null,null,0,0,null,null,0,null,null,null,0]
[62,null,null,null,null,null,null,null,null,null,null,null,null,null,null,null,null,null,null,null,null,null,null,null,0,0,0,null,null,null,0,null,null,null,null,null,null,null,0,0,null,null,0,null,null,null,0]
[63,null,null,null,null,null,null,null,null,null,null,null,null,null,null,null,null,null,null,null,null,null,null,null,0,0,0,null,null,null,0,null,null,null,null,null,null,null,0,0,null,null,0,null,null,null,0]
[64,null,null,null,null,null,null,null,null,null,null,null,null,null,null,null,null,null,null,null,null,null,null,null,0,0,0,null,null,null,0,null,null,null,null,null,null,null,0,0,null,null,0,null,null,null,0]
[65,null,null,null,null,null,null,null,null,null,null,null,null,null,null,null,null,null,null,null,null,null,null,null,0,0,{"$f":"SUM(Y66*2.25)","v":0},null,null,null,0,null,null,null,null,null,null,null,{"$f":"AA66+AE66+AF66+AH66+AI66+AJ66+AK66+AL66+AG66","v":0},0,null,null,{"$f":"AM66+AN66+AO66+AP66","v":0},null,null,null,0]
[66,null,null,null,null,null,null,null,null,null,null,null,null,null,null,null,null,null,null,null,null,null,null,null,0,0,0,null,null,null,{"$f":"(AB67+AC67+AD67)*2.25","v":0},null,null,null,null,null,null,null,0,{"$f":"Y67*2.75","v":0},null,null,0,null,null,null,0]
[67,null,null,null,null,null,null,null,null,null,null,null,null,null,null,null,null,null,null,null,null,null,null,null,0,0,0,null,null,null,0,null,null,null,null,null,null,null,0,0,null,null,0,null,null,null,{"$f":"$AU$1*AT68","v":0}]
[68,null,null,null,null,null,null,null,null,null,null,null,null,null,null,null,null,null,null,null,null,null,null,null,0,0,0,null,null,null,0,null,null,null,null,null,null,null,0,0,null,null,0,null,null,null,0]
[69,null,null,null,null,null,null,null,null,null,null,null,null,null,null,null,null,null,null,null,null,null,null,null,{"$f":"SUM(C70:X70)","v":0},{"$f":"Y70/4","v":0},0,null,null,null,0,null,null,null,null,null,null,null,0,0,null,null,0,null,null,null,0]
[70,null,null,null,null,null,null,null,null,null,null,null,null,null,null,null,null,null,null,null,null,null,null,null,0,0,0,null,null,null,0,null,null,null,null,null,null,null,0,0,null,null,0,null,null,null,0]
[71,null,null,null,null,null,null,null,null,null,null,null,null,null,null,null,null,null,null,null,null,null,null,null,0,0,0,null,null,null,0,null,null,null,null,null,null,null,0,0,null,null,0,null,null,null,0]
[72,null,null,null,null,null,null,null,null,null,null,null,null,null,null,null,null,null,null,null,null,null,null,null,0,0,0,null,null,null,0,null,null,null,null,null,null,null,0,0,null,null,0,null,null,null,0]
[73,null,null,null,null,null,null,null,null,null,null,null,null,null,null,null,null,null,null,null,null,null,null,null,0,0,0,null,null,null,0,null,null,null,null,null,null,null,0,0,null,null,0,null,null,null,0]
[74,null,null,null,null,null,null,null,null,null,null,null,null,null,null,null,null,null,null,null,null,null,null,null,0,0,0,null,null,null,0,null,null,null,null,null,null,null,0,0,null,null,0,null,null,null,0]
[75,null,null,null,null,null,null,null,null,null,null,null,null,null,null,null,null,null,null,null,null,null,null,null,0,0,0,null,null,null,0,null,null,null,null,null,null,null,0,0,null,null,0,null,null,null,0]
[76,null,null,null,null,null,null,null,null,null,null,null,null,null,null,null,null,null,null,null,null,null,null,null,0,0,0,null,null,null,0,null,null,null,null,null,null,null,0,0,null,null,0,null,null,null,0]
[77,null,null,null,null,null,null,null,null,null,null,null,null,null,null,null,null,null,null,null,null,null,null,null,0,0,0,null,null,null,0,null,null,null,null,null,null,null,0,0,null,null,0,null,null,null,0]
[78,null,null,null,null,null,null,null,null,null,null,null,null,null,null,null,null,null,null,null,null,null,null,null,0,0,0,null,null,null,0,null,null,null,null,null,null,null,0,0,null,null,0,null,null,null,0]
[79,null,null,null,null,null,null,null,null,null,null,null,null,null,null,null,null,null,null,null,null,null,null,null,0,0,0,null,null,null,0,null,null,null,null,null,null,null,0,0,null,null,0,null,null,null,0]
[80,null,null,null,null,null,null,null,null,null,null,null,null,null,null,null,null,null,null,null,null,null,null,null,0,0,0,null,null,null,0,null,null,null,null,null,null,null,0,0,null,null,0,null,null,null,0]
[81,null,null,null,null,null,null,null,null,null,null,null,null,null,null,null,null,null,null,null,null,null,null,null,0,0,0,null,null,null,0,null,null,null,null,null,null,null,0,0,null,null,0,null,null,null,0]
[82,null,null,null,null,null,null,null,null,null,null,null,null,null,null,null,null,null,null,null,null,null,null,null,0,0,0,null,null,null,0,null,null,null,null,null,null,null,0,0,null,null,0,null,null,null,0]
[83,null,null,null,null,null,null,null,null,null,null,null,null,null,null,null,null,null,null,null,null,null,null,null,0,0,0,null,null,null,0,null,null,null,null,null,null,null,0,0,null,null,0,null,null,null,0]
[84,null,null,null,null,null,null,null,null,null,null,null,null,null,null,null,null,null,null,null,null,null,null,null,0,0,0,null,null,null,0,null,null,null,null,null,null,null,0,0,null,null,0,null,null,null,0]
[85,null,null,null,null,null,null,null,null,null,null,null,null,null,null,null,null,null,null,null,null,null,null,null,0,0,0,null,null,null,0,null,null,null,null,null,null,null,0,0,null,null,0,null,null,null,0]
[86,null,null,null,null,null,null,null,null,null,null,null,null,null,null,null,null,null,null,null,null,null,null,null,0,0,0,null,null,null,0,null,null,null,null,null,null,null,0,0,null,null,0,null,null,null,0]
[87,null,null,null,null,null,null,null,null,null,null,null,null,null,null,null,null,null,null,null,null,null,null,null,0,0,0,null,null,null,0,null,null,null,null,null,null,null,0,0,null,null,0,null,null,null,0]
[88,null,null,null,null,null,null,null,null,null,null,null,null,null,null,null,null,null,null,null,null,null,null,null,0,0,0,null,null,null,0,null,null,null,null,null,null,null,0,0,null,null,0,null,null,null,0]
[89,null,null,null,null,null,null,null,null,null,null,null,null,null,null,null,null,null,null,null,null,null,null,null,0,0,0,null,null,null,0,null,null,null,null,null,null,null,0,0,null,null,0,null,null,null,0]
[90,null,null,null,null,null,null,null,null,null,null,null,null,null,null,null,null,null,null,null,null,null,null,null,0,0,0,null,null,null,0,null,null,null,null,null,null,null,0,0,null,null,0,null,null,null,0]
[91,null,null,null,null,null,null,null,null,null,null,null,null,null,null,null,null,null,null,null,null,null,null,null,0,0,0,null,null,null,0,null,null,null,null,null,null,null,0,0,null,null,0,null,null,null,0]
[92,null,null,null,null,null,null,null,null,null,null,null,null,null,null,null,null,null,null,null,null,null,null,null,0,0,0,null,null,null,0,null,null,null,null,null,null,null,0,0,null,null,0,null,null,null,0]
[93,null,null,null,null,null,null,null,null,null,null,null,null,null,null,null,null,null,null,null,null,null,null,null,0,0,0,null,null,null,0,null,null,null,null,null,null,null,0,0,null,null,0,null,null,null,0]
[94,null,null,null,null,null,null,null,null,null,null,null,null,null,null,null,null,null,null,null,null,null,null,null,0,0,0,null,null,null,0,null,null,null,null,null,null,null,0,0,null,null,0,null,null,null,0]
[95,null,null,null,null,null,null,null,null,null,null,null,null,null,null,null,null,null,null,null,null,null,null,null,0,0,0,null,null,null,0,null,null,null,null,null,null,null,0,0,null,null,0,null,null,null,0]
[96,null,null,null,null,null,null,null,null,null,null,null,null,null,null,null,null,null,null,null,null,null,null,null,0,0,0,null,null,null,0,null,null,null,null,null,null,null,0,0,null,null,0,null,null,null,0]
[97,null,null,null,null,null,null,null,null,null,null,null,null,null,null,null,null,null,null,null,null,null,null,null,0,0,0,null,null,null,0,null,null,null,null,null,null,null,0,0,null,null,0,null,null,null,0]
[98,null,null,null,null,null,null,null,null,null,null,null,null,null,null,null,null,null,null,null,null,null,null,null,0,0,0,null,null,null,0,null,null,null,null,null,null,null,0,0,null,null,0,null,null,null,0]
[99,null,null,null,null,null,null,null,null,null,null,null,null,null,null,null,null,null,null,null,null,null,null,null,0,0,0,null,null,null,0,null,null,null,null,null,null,null,0,0,null,null,0,null,null,null,0]
[100,null,null,null,null,null,null,null,null,null,null,null,null,null,null,null,null,null,null,null,null,null,null,null,0,0,0,null,null,null,0,null,null,null,null,null,null,null,0,0,null,null,0,null,null,null,0]
[101,null,null,null,null,null,null,null,null,null,null,null,null,null,null,null,null,null,null,null,null,null,null,null,0,0,0,null,null,null,0,null,null,null,null,null,null,null,0,0,null,null,0,null,null,null,0]
[102,null,null,null,null,null,null,null,null,null,null,null,null,null,null,null,null,null,null,null,null,null,null,null,0,0,0,null,null,null,0,null,null,null,null,null,null,null,0,0,null,null,0,null,null,null,0]
[103,null,null,null,null,null,null,null,null,null,null,null,null,null,null,null,null,null,null,null,null,null,null,null,0,0,0,null,null,null,0,null,null,null,null,null,null,null,0,0,null,null,0,null,null,null,0]
[104,null,null,null,null,null,null,null,null,null,null,null,null,null,null,null,null,null,null,null,null,null,null,null,0,0,0,null,null,null,0,null,null,null,null,null,null,null,0,0,null,null,0,null,null,null,0]
[105,null,null,null,null,null,null,null,null,null,null,null,null,null,null,null,null,null,null,null,null,null,null,null,0,0,0,null,null,null,0,null,null,null,null,null,null,null,0,0,null,null,0,null,null,null,0]
[106,null,null,null,null,null,null,null,null,null,null,null,null,null,null,null,null,null,null,null,null,null,null,null,0,0,0,null,null,null,0,null,null,null,null,null,null,null,0,0,null,null,0,null,null,null,0]
[107,null,null,null,null,null,null,null,null,null,null,null,null,null,null,null,null,null,null,null,null,null,null,null,0,0,0,null,null,null,0,null,null,null,null,null,null,null,0,0,null,null,0,null,null,null,0]
[108,null,null,null,null,null,null,null,null,null,null,null,null,null,null,null,null,null,null,null,null,null,null,null,0,0,0,null,null,null,0,null,null,null,null,null,null,null,0,0,null,null,0,null,null,null,0]
[109,null,null,null,null,null,null,null,null,null,null,null,null,null,null,null,null,null,null,null,null,null,null,null,0,0,0,null,null,null,0,null,null,null,null,null,null,null,0,0,null,null,0,null,null,null,0]
[110,"Kruse, Brigitte",null,null,null,null,null,null,null,null,null,null,null,null,null,null,null,null,null,null,null,null,null,null,0,0,0,null,null,null,0,null,null,null,null,null,null,null,0,0,null,null,0,null,null,10,25.5]
[111,null,null,null,null,null,null,null,null,null,null,null,null,null,null,null,null,null,null,null,null,null,null,null,0,0,0,null,null,null,0,null,null,null,null,null,null,null,0,0,null,null,0,null,null,null,0]
[112,null,null,null,null,null,null,null,null,null,null,null,null,null,null,null,null,null,null,null,null,null,null,null,0,0,0,null,null,null,0,null,null,null,null,null,null,null,0,0,null,null,0,null,null,null,0]
[113,null,null,null,null,null,null,null,null,null,null,null,null,null,null,null,null,null,null,null,null,null,null,null,0,0,0,null,null,null,0,null,null,null,null,null,null,null,0,0,null,null,0,null,null,null,0]
[114,null,null,null,null,null,null,null,null,null,null,null,null,null,null,null,null,null,null,null,null,null,null,null,0,0,0,null,null,null,0,null,null,null,null,null,null,null,0,0,null,null,0,null,null,null,0]
[115,null,null,null,null,null,null,null,null,null,null,null,null,null,null,null,null,null,null,null,null,null,null,null,0,0,0,null,null,null,0,null,null,null,null,null,null,null,0,0,null,null,0,null,null,null,0]
[116,null,null,null,null,null,null,null,null,null,null,null,null,null,null,null,null,null,null,null,null,null,null,null,0,0,0,null,null,null,0,null,null,null,null,null,null,null,0,0,null,null,0,null,null,null,0]
[117,null,null,null,null,null,null,null,null,null,null,null,null,null,null,null,null,null,null,null,null,null,null,null,0,0,0,null,null,null,0,null,null,null,null,null,null,null,0,0,null,null,0,null,null,null,0]
[118,null,null,null,null,null,null,null,null,null,null,null,null,null,null,null,null,null,null,null,null,null,null,null,0,0,0,null,null,null,0,null,null,null,null,null,null,null,0,0,null,null,0,null,null,null,0]
[119,null,null,null,null,null,null,null,null,null,null,null,null,null,null,null,null,null,null,null,null,null,null,null,0,0,0,null,null,null,0,null,null,null,null,null,null,null,0,0,null,null,0,null,null,null,0]
[120,null,null,null,null,null,null,null,null,null,null,null,null,null,null,null,null,null,null,null,null,null,null,null,0,0,0,null,null,null,0,null,null,null,null,null,null,null,0,0,null,null,0,null,null,null,0]
[121,null,null,null,null,null,null,null,null,null,null,null,null,null,null,null,null,null,null,null,null,null,null,null,0,0,0,null,null,null,0,null,null,null,null,null,null,null,0,0,null,null,0,null,null,null,0]
[122,null,null,null,null,null,null,null,null,null,null,null,null,null,null,null,null,null,null,null,null,null,null,null,0,0,0,null,null,null,0,null,null,null,null,null,null,null,0,0,null,null,0,null,null,null,0]
[123,null,null,null,null,null,null,null,null,null,null,null,null,null,null,null,null,null,null,null,null,null,null,null,0,0,0,null,null,null,0,null,null,null,null,null,null,null,0,0,null,null,0,null,null,null,0]
[124,null,null,null,null,null,null,null,null,null,null,null,null,null,null,null,null,null,null,null,null,null,null,null,0,0,0,null,null,null,0,null,null,null,null,null,null,null,0,0,null,null,0,null,null,null,0]
[125,null,null,null,null,null,null,null,null,null,null,null,null,null,null,null,null,null,null,null,null,null,null,null,0,0,0,null,null,null,0,null,null,null,null,null,null,null,0,0,null,null,0,null,null,null,0]
[126,null,null,null,null,null,null,null,null,null,null,null,null,null,null,null,null,null,null,null,null,null,null,null,0,0,0,null,null,null,0,null,null,null,null,null,null,null,0,0,null,null,0,null,null,null,0]
[127,null,null,null,null,null,null,null,null,null,null,null,null,null,null,null,null,null,null,null,null,null,null,null,0,0,0,null,null,null,0,null,null,null,null,null,null,null,0,0,null,null,0,null,null,null,0]
[128,null,null,null,null,null,null,null,null,null,null,null,null,null,null,null,null,null,null,null,null,null,null,null,0,0,0,null,null,null,0,null,null,null,null,null,null,null,0,0,null,null,0,null,null,null,0]
[129,null,null,null,null,null,null,null,null,null,null,null,null,null,null,null,null,null,null,null,null,null,null,null,0,0,{"$f":"SUM(Y130*2.25)","v":0},null,null,null,0,null,null,null,null,null,null,null,{"$f":"AA130+AE130+AF130+AH130+AI130+AJ130+AK130+AL130+AG130","v":0},0,null,null,{"$f":"AM130+AN130+AO130+AP130","v":0},null,null,null,0]
[130,null,null,null,null,null,null,null,null,null,null,null,null,null,null,null,null,null,null,null,null,null,null,null,0,0,0,null,null,null,{"$f":"(AB131+AC131+AD131)*2.25","v":0},null,null,null,null,null,null,null,0,{"$f":"Y131*2.75","v":0},null,null,0,null,null,null,0]
[131,null,null,null,null,null,null,null,null,null,null,null,null,null,null,null,null,null,null,null,null,null,null,null,0,0,0,null,null,null,0,null,null,null,null,null,null,null,0,0,null,null,0,null,null,null,{"$f":"$AU$1*AT132","v":0}]
[132,null,null,null,null,null,null,null,null,null,null,null,null,null,null,null,null,null,null,null,null,null,null,null,0,0,0,null,null,null,0,null,null,null,null,null,null,null,0,0,null,null,0,null,null,null,0]
[133,null,null,null,null,null,null,null,null,null,null,null,null,null,null,null,null,null,null,null,null,null,null,null,{"$f":"SUM(C134:X134)","v":0},{"$f":"Y134/4","v":0},0,null,null,null,0,null,null,null,null,null,null,null,0,0,null,null,0,null,null,null,0]
[134,null,null,null,null,null,null,null,null,null,null,null,null,null,null,null,null,null,null,null,null,null,null,null,0,0,0,null,null,null,0,null,null,null,null,null,null,null,0,0,null,null,0,null,null,null,0]
[135,null,null,null,null,null,null,null,null,null,null,null,null,null,null,null,null,null,null,null,null,null,null,null,0,0,0,null,null,null,0,null,null,null,null,null,null,null,0,0,null,null,0,null,null,null,0]
[136,null,null,null,null,null,null,null,null,null,null,null,null,null,null,null,null,null,null,null,null,null,null,null,0,0,0,null,null,null,0,null,null,null,null,null,null,null,0,0,null,null,0,null,null,null,0]
[137,null,null,null,null,null,null,null,null,null,null,null,null,null,null,null,null,null,null,null,null,null,null,null,0,0,0,null,null,null,0,null,null,null,null,null,null,null,0,0,null,null,0,null,null,null,0]
[138,null,null,null,null,null,null,null,null,null,null,null,null,null,null,null,null,null,null,null,null,null,null,null,0,0,0,null,null,null,0,null,null,null,null,null,null,null,0,0,null,null,0,null,null,null,0]
[139,null,null,null,null,null,null,null,null,null,null,null,null,null,null,null,null,null,null,null,null,null,null,null,0,0,0,null,null,null,0,null,null,null,null,null,null,null,0,0,null,null,0,null,null,null,0]
[140,null,null,null,null,null,null,null,null,null,null,null,null,null,null,null,null,null,null,null,null,null,null,null,0,0,0,null,null,null,0,null,null,null,null,null,null,null,0,0,null,null,0,null,null,null,0]
[141,null,null,null,null,null,null,null,null,null,null,null,null,null,null,null,null,null,null,null,null,null,null,null,0,0,0,null,null,null,0,null,null,null,null,null,null,null,0,0,null,null,0,null,null,null,0]
[142,null,null,null,null,null,null,null,null,null,null,null,null,null,null,null,null,null,null,null,null,null,null,null,0,0,0,null,null,null,0,null,null,null,null,null,null,null,0,0,null,null,0,null,null,null,0]
[143,null,null,null,null,null,null,null,null,null,null,null,null,null,null,null,null,null,null,null,null,null,null,null,0,0,0,null,null,null,0,null,null,null,null,null,null,null,0,0,null,null,0,null,null,null,0]
[144,null,null,null,null,null,null,null,null,null,null,null,null,null,null,null,null,null,null,null,null,null,null,null,0,0,0,null,null,null,0,null,null,null,null,null,null,null,0,0,null,null,0,null,null,null,0]
[145,null,null,null,null,null,null,null,null,null,null,null,null,null,null,null,null,null,null,null,null,null,null,null,0,0,0,null,null,null,0,null,null,null,null,null,null,null,0,0,null,null,0,null,null,null,0]
[146,null,null,null,null,null,null,null,null,null,null,null,null,null,null,null,null,null,null,null,null,null,null,null,0,0,0,null,null,null,0,null,null,null,null,null,null,null,0,0,null,null,0,null,null,null,0]
[147,null,null,null,null,null,null,null,null,null,null,null,null,null,null,null,null,null,null,null,null,null,null,null,0,0,0,null,null,null,0,null,null,null,null,null,null,null,0,0,null,null,0,null,null,null,0]
[148,null,null,null,null,null,null,null,null,null,null,null,null,null,null,null,null,null,null,null,null,null,null,null,0,0,0,null,null,null,0,null,null,null,null,null,null,null,0,0,null,null,0,null,null,null,0]
[149,null,null,null,null,null,null,null,null,null,null,null,null,null,null,null,null,null,null,null,null,null,null,null,0,0,0,null,null,null,0,null,null,null,null,null,null,null,0,0,null,null,0,null,null,null,0]
[150,null,null,null,null,null,null,null,null,null,null,null,null,null,null,null,null,null,null,null,null,null,null,null,0,0,0,null,null,null,0,null,null,null,null,null,null,null,0,0,null,null,0,null,null,null,0]
[151,null,null,null,null,null,null,null,null,null,null,null,null,null,null,null,null,null,null,null,null,null,null,null,0,0,0,null,null,null,0,null,null,null,null,null,null,null,0,0,null,null,0,null,null,null,0]
[152,null,null,null,null,null,null,null,null,null,null,null,null,null,null,null,null,null,null,null,null,null,null,null,0,0,0,null,null,null,0,null,null,null,null,null,null,null,0,0,null,null,0,null,null,null,0]
[153,null,null,null,null,null,null,null,null,null,null,null,null,null,null,null,null,null,null,null,null,null,null,null,0,0,0,null,null,null,0,null,null,null,null,null,null,null,0,0,null,null,0,null,null,null,0]
[154,null,null,null,null,null,null,null,null,null,null,null,null,null,null,null,null,null,null,null,null,null,null,null,0,0,0,null,null,null,0,null,null,null,null,null,null,null,0,0,null,null,0,null,null,null,0]
[155,null,null,null,null,null,null,null,null,null,null,null,null,null,null,null,null,null,null,null,null,null,null,null,0,0,0,null,null,null,0,null,null,null,null,null,null,null,0,0,null,null,0,null,null,null,0]
[156,null,null,null,null,null,null,null,null,null,null,null,null,null,null,null,null,null,null,null,null,null,null,null,0,0,0,null,null,null,0,null,null,null,null,null,null,null,0,0,null,null,0,null,null,null,0]
[157,null,null,null,null,null,null,null,null,null,null,null,null,null,null,null,null,null,null,null,null,null,null,null,0,0,0,null,null,null,0,null,null,null,null,null,null,null,0,0,null,null,0,null,null,null,0]
[158,null,null,null,null,null,null,null,null,null,null,null,null,null,null,null,null,null,null,null,null,null,null,null,0,0,0,null,null,null,0,null,null,null,null,null,null,null,0,0,null,null,0,null,null,null,0]
[159,null,null,null,null,null,null,null,null,null,null,null,null,null,null,null,null,null,null,null,null,null,null,null,0,0,0,null,null,null,0,null,null,null,null,null,null,null,0,0,null,null,0,null,null,null,0]
[160,null,null,null,null,null,null,null,null,null,null,null,null,null,null,null,null,null,null,null,null,null,null,null,0,0,0,null,null,null,0,null,null,null,null,null,null,null,0,0,null,null,0,null,null,null,0]
[161,null,null,null,null,null,null,null,null,null,null,null,null,null,null,null,null,null,null,null,null,null,null,null,0,0,0,null,null,null,0,null,null,null,null,null,null,null,0,0,null,null,0,null,null,null,0]
[162,null,null,null,null,null,null,null,null,null,null,null,null,null,null,null,null,null,null,null,null,null,null,null,0,0,0,null,null,null,0,null,null,null,null,null,null,null,0,0,null,null,0,null,null,null,0]
[163,null,null,null,null,null,null,null,null,null,null,null,null,null,null,null,null,null,null,null,null,null,null,null,0,0,0,null,null,null,0,null,null,null,null,null,null,null,0,0,null,null,0,null,null,null,0]
[164,null,null,null,null,null,null,null,null,null,null,null,null,null,null,null,null,null,null,null,null,null,null,null,0,0,0,null,null,null,0,null,null,null,null,null,null,null,0,0,null,null,0,null,null,null,0]
[165,null,null,null,null,null,null,null,null,null,null,null,null,null,null,null,null,null,null,null,null,null,null,null,0,0,0,null,null,null,0,null,null,null,null,null,null,null,0,0,null,null,0,null,null,null,0]
[166,null,null,null,null,null,null,null,null,null,null,null,null,null,null,null,null,null,null,null,null,null,null,null,0,0,0,null,null,null,0,null,null,null,null,null,null,null,0,0,null,null,0,null,null,null,0]
[167,null,null,null,null,null,null,null,null,null,null,null,null,null,null,null,null,null,null,null,null,null,null,null,0,0,0,null,null,null,0,null,null,null,null,null,null,null,0,0,null,null,0,null,null,null,0]
[168,null,null,null,null,null,null,null,null,null,null,null,null,null,null,null,null,null,null,null,null,null,null,null,0,0,0,null,null,null,0,null,null,null,null,null,null,null,0,0,null,null,0,null,null,null,0]
[169,null,null,null,null,null,null,null,null,null,null,null,null,null,null,null,null,null,null,null,null,null,null,null,0,0,0,null,null,null,0,null,null,null,null,null,null,null,0,0,null,null,0,null,null,null,0]
[170,null,null,null,null,null,null,null,null,null,null,null,null,null,null,null,null,null,null,null,null,null,null,null,0,0,0,null,null,null,0,null,null,null,null,null,null,null,0,0,null,null,0,null,null,null,0]
[171,null,null,null,null,null,null,null,null,null,null,null,null,null,null,null,null,null,null,null,null,null,null,null,0,0,0,null,null,null,0,null,null,null,null,null,null,null,0,0,null,null,0,null,null,null,0]
[172,null,null,null,null,null,null,null,null,null,null,null,null,null,null,null,null,null,null,null,null,null,null,null,0,0,0,null,null,null,0,null,null,null,null,null,null,null,0,0,null,null,0,null,null,null,0]
[173,null,null,null,null,null,null,null,null,null,null,null,null,null,null,null,null,null,null,null,null,null,null,null,0,0,0,null,null,null,0,null,null,null,null,null,null,null,0,0,null,null,0,null,null,null,0]
[174,null,null,null,null,null,null,null,null,null,null,null,null,null,null,null,null,null,null,null,null,null,null,null,0,0,0,null,null,null,0,null,null,null,null,null,null,null,0,0,null,null,0,null,null,null,0]
[175,null,null,null,null,null,null,null,null,null,null,null,null,null,null,null,null,null,null,null,null,null,null,null,0,0,0,null,null,null,0,null,null,null,null,null,null,null,0,0,null,null,0,null,null,null,0]
[176,null,null,null,null,null,null,null,null,null,null,null,null,null,null,null,null,null,null,null,null,null,null,null,0,0,0,null,null,null,0,null,null,null,null,null,null,null,0,0,null,null,0,null,null,null,0]
[177,null,null,null,null,null,null,null,null,null,null,null,null,null,null,null,null,null,null,null,null,null,null,null,0,0,0,null,null,null,0,null,null,null,null,null,null,null,0,0,null,null,0,null,null,null,0]
[178,null,null,null,null,null,null,null,null,null,null,null,null,null,null,null,null,null,null,null,null,null,null,null,0,0,0,null,null,null,0,null,null,null,null,null,null,null,0,0,null,null,0,null,null,null,0]
[179,null,null,null,null,null,null,null,null,null,null,null,null,null,null,null,null,null,null,null,null,null,null,null,0,0,0,null,null,null,0,null,null,null,null,null,null,null,0,0,null,null,0,null,null,null,0]
[180,null,null,null,null,null,null,null,null,null,null,null,null,null,null,null,null,null,null,null,null,null,null,null,0,0,0,null,null,null,0,null,null,null,null,null,null,null,0,0,null,null,0,null,null,null,0]
[181,null,null,null,null,null,null,null,null,null,null,null,null,null,null,null,null,null,null,null,null,null,null,null,0,0,0,null,null,null,0,null,null,null,null,null,null,null,0,0,null,null,0,null,null,null,0]
[182,null,null,null,null,null,null,null,null,null,null,null,null,null,null,null,null,null,null,null,null,null,null,null,0,0,0,null,null,null,0,null,null,null,null,null,null,null,0,0,null,null,0,null,null,null,0]
[183,null,null,null,null,null,null,null,null,null,null,null,null,null,null,null,null,null,null,null,null,null,null,null,0,0,0,null,null,null,0,null,null,null,null,null,null,null,0,0,null,null,0,null,null,null,0]
[184,null,null,null,null,null,null,null,null,null,null,null,null,null,null,null,null,null,null,null,null,null,null,null,0,0,0,null,null,null,0,null,null,null,null,null,null,null,0,0,null,null,0,null,null,null,0]
[185,null,null,null,null,null,null,null,null,null,null,null,null,null,null,null,null,null,null,null,null,null,null,null,0,0,0,null,null,null,0,null,null,null,null,null,null,null,0,0,null,null,0,null,null,null,0]
[186,null,null,null,null,null,null,null,null,null,null,null,null,null,null,null,null,null,null,null,null,null,null,null,0,0,0,null,null,null,0,null,null,null,null,null,null,null,0,0,null,null,0,null,null,null,0]
[187,null,null,null,null,null,null,null,null,null,null,null,null,null,null,null,null,null,null,null,null,null,null,null,0,0,0,null,null,null,0,null,null,null,null,null,null,null,0,0,null,null,0,null,null,null,0]
[188,null,null,null,null,null,null,null,null,null,null,null,null,null,null,null,null,null,null,null,null,null,null,null,0,0,0,null,null,null,0,null,null,null,null,null,null,null,0,0,null,null,0,null,null,null,0]
[189,null,null,null,null,null,null,null,null,null,null,null,null,null,null,null,null,null,null,null,null,null,null,null,0,0,0,null,null,null,0,null,null,null,null,null,null,null,0,0,null,null,0,null,null,null,0]
[190,null,null,null,null,null,null,null,null,null,null,null,null,null,null,null,null,null,null,null,null,null,null,null,0,0,0,null,null,null,0,null,null,null,null,null,null,null,0,0,null,null,0,null,null,null,0]
[191,null,null,null,null,null,null,null,null,null,null,null,null,null,null,null,null,null,null,null,null,null,null,null,0,0,0,null,null,null,0,null,null,null,null,null,null,null,0,0,null,null,0,null,null,null,0]
[192,null,null,null,null,null,null,null,null,null,null,null,null,null,null,null,null,null,null,null,null,null,null,null,0,0,0,null,null,null,0,null,null,null,null,null,null,null,0,0,null,null,0,null,null,null,0]
[193,null,null,null,null,null,null,null,null,null,null,null,null,null,null,null,null,null,null,null,null,null,null,null,0,0,{"$f":"SUM(Y194*2.25)","v":0},null,null,null,0,null,null,null,null,null,null,null,{"$f":"AA194+AE194+AF194+AH194+AI194+AJ194+AK194+AL194+AG194","v":0},0,null,null,{"$f":"AM194+AN194+AO194+AP194","v":0},null,null,null,0]
[194,null,null,null,null,null,null,null,null,null,null,null,null,null,null,null,null,null,null,null,null,null,null,null,0,0,0,null,null,null,{"$f":"(AB195+AC195+AD195)*2.25","v":0},null,null,null,null,null,null,null,0,{"$f":"Y195*2.75","v":0},null,null,0,null,null,null,0]
[195,null,null,null,null,null,null,null,null,null,null,null,null,null,null,null,null,null,null,null,null,null,null,null,0,0,0,null,null,null,0,null,null,null,null,null,null,null,0,0,null,null,0,null,null,null,{"$f":"$AU$1*AT196","v":0}]
[196,null,null,null,null,null,null,null,null,null,null,null,null,null,null,null,null,null,null,null,null,null,null,null,0,0,0,null,null,null,0,null,null,null,null,null,null,null,0,0,null,null,0,null,null,null,0]
[197,null,null,null,null,null,null,null,null,null,null,null,null,null,null,null,null,null,null,null,null,null,null,null,{"$f":"SUM(C198:X198)","v":0},{"$f":"Y198/4","v":0},0,null,null,null,0,null,null,null,null,null,null,null,0,0,null,null,0,null,null,null,0]
[198,null,null,null,null,null,null,null,null,null,null,null,null,null,null,null,null,null,null,null,null,null,null,null,0,0,0,null,null,null,0,null,null,null,null,null,null,null,0,0,null,null,0,null,null,null,0]
[199,null,null,null,null,null,null,null,null,null,null,null,null,null,null,null,null,null,null,null,null,null,null,null,0,0,0,null,null,null,0,null,null,null,null,null,null,null,0,0,null,null,0,null,null,null,0]
[200,null,null,null,null,null,null,null,null,null,null,null,null,null,null,null,null,null,null,null,null,null,null,null,0,0,0,null,null,null,0,null,null,null,null,null,null,null,0,0,null,null,0,null,null,null,0]
[201,null,null,null,null,null,null,null,null,null,null,null,null,null,null,null,null,null,null,null,null,null,null,null,0,0,0,null,null,null,0,null,null,null,null,null,null,null,0,0,null,null,0,null,null,null,0]
[202,null,null,null,null,null,null,null,null,null,null,null,null,null,null,null,null,null,null,null,null,null,null,null,0,0,0,null,null,null,0,null,null,null,null,null,null,null,0,0,null,null,0,null,null,null,0]
[203,null,null,null,null,null,null,null,null,null,null,null,null,null,null,null,null,null,null,null,null,null,null,null,0,0,0,null,null,null,0,null,null,null,null,null,null,null,0,0,null,null,0,null,null,null,0]
[204,null,null,null,null,null,null,null,null,null,null,null,null,null,null,null,null,null,null,null,null,null,null,null,0,0,0,null,null,null,0,null,null,null,null,null,null,null,0,0,null,null,0,null,null,null,0]
[205,null,null,null,null,null,null,null,null,null,null,null,null,null,null,null,null,null,null,null,null,null,null,null,0,0,0,null,null,null,0,null,null,null,null,null,null,null,0,0,null,null,0,null,null,null,0]
[206,null,null,null,null,null,null,null,null,null,null,null,null,null,null,null,null,null,null,null,null,null,null,null,0,0,0,null,null,null,0,null,null,null,null,null,null,null,0,0,null,null,0,null,null,null,0]
[207,null,null,null,null,null,null,null,null,null,null,null,null,null,null,null,null,null,null,null,null,null,null,null,0,0,0,null,null,null,0,null,null,null,null,null,null,null,0,0,null,null,0,null,null,null,0]
[208,null,null,null,null,null,null,null,null,null,null,null,null,null,null,null,null,null,null,null,null,null,null,null,0,0,0,null,null,null,0,null,null,null,null,null,null,null,0,0,null,null,0,null,null,null,0]
[209,null,null,null,null,null,null,null,null,null,null,null,null,null,null,null,null,null,null,null,null,null,null,null,0,0,0,null,null,null,0,null,null,null,null,null,null,null,0,0,null,null,0,null,null,null,0]
[210,"Hachmeister, Christel",null,null,null,null,null,null,null,null,null,null,null,null,null,null,null,null,null,null,null,null,null,null,0,0,0,null,null,null,0,null,null,null,null,null,null,null,0,0,null,null,0,null,null,12,30.599999999999998]
[211," ",null,null,null,null,null,null,null,null,null,null,null,null,null,null,null,null,null,null,null,null,null,null,{"$f":"SUM(E212:X212)","v":0},null,0,null,null,null,0,null,null,null,null,null,null,null,0,{"$f":"Y212*2.55+(J212+N212)*2.55","v":0},null,null,0,null,null,null,0]
[212," ",null,null,null,null,null,null,null,null,null,null,null,null,null,null,null,null,null,null,null,null,null,null,0,null,0,null,null,null,0,null,null,null,null,null,null,null,0,0,null,null,0,null,null,null,0]
[213," ",null,null,null,null,null,null,null,null,null,null,null,null,null,null,null,null,null,null,null,null,null,null,0,null,0,null,null,null,0,null,null,null,null,null,null,null,0,0,null,null,0,null,null,null,0]
[214," ",null,null,null,null,null,null,null,null,null,null,null,null,null,null,null,null,null,null,null,null,null,null,0,null,0,null,null,null,0,null,null,null,null,null,null,null,0,0,null,null,0,null,null,null,0]
[215," ",null,null,null,null,null,null,null,null,null,null,null,null,null,null,null,null,null,null,null,null,null,null,0,null,0,null,null,null,0,null,null,null,null,null,null,null,0,0,null,null,0,null,null,null,0]
[216," ",null,null,null,null,null,null,null,null,null,null,null,null,null,null,null,null,null,null,null,null,null,null,0,null,0,null,null,null,0,null,null,null,null,null,null,null,0,0,null,null,0,null,null,null,0]
[217," ",null,null,null,null,null,null,null,null,null,null,null,null,null,null,null,null,null,null,null,null,null,null,0,null,0,null,null,null,0,null,null,null,null,null,null,null,0,0,null,null,0,null,null,null,0]
[218," ",null,null,null,null,null,null,null,null,null,null,null,null,null,null,null,null,null,null,null,null,null,null,0,null,0,null,null,null,0,null,null,null,null,null,null,null,0,0,null,null,0,null,null,null,0]
[219," ",null,null,null,null,null,null,null,null,null,null,null,null,null,null,null,null,null,null,null,null,null,null,0,null,0,null,null,null,0,null,null,null,null,null,null,null,0,0,null,null,0,null,null,null,0]
[220," ",null,null,null,null,null,null,null,null,null,null,null,null,null,null,null,null,null,null,null,null,null,null,0,null,0,null,null,null,0,null,null,null,null,null,null,null,0,0,null,null,0,null,null,null,0]
[221," ",null,null,null,null,null,null,null,null,null,null,null,null,null,null,null,null,null,null,null,null,null,null,0,null,0,null,null,null,0,null,null,null,null,null,null,null,0,0,null,null,0,null,null,null,0]
[222," ",null,null,null,null,null,null,null,null,null,null,null,null,null,null,null,null,null,null,null,null,null,null,0,null,0,null,null,null,0,null,null,null,null,null,null,null,0,0,null,null,0,null,null,null,0]
[223," ",null,null,null,null,null,null,null,null,null,null,null,null,null,null,null,null,null,null,null,null,null,null,0,null,0,null,null,null,0,null,null,null,null,null,null,null,0,0,null,null,0,null,null,null,0]
[224," ",null,null,null,null,null,null,null,null,null,null,null,null,null,null,null,null,null,null,null,null,null,null,0,null,0,null,null,null,0,null,null,null,null,null,null,null,0,0,null,null,0,null,null,null,0]
[225," ",null,null,null,null,null,null,null,null,null,null,null,null,null,null,null,null,null,null,null,null,null,null,0,null,0,null,null,null,0,null,null,null,null,null,null,null,0,0,null,null,0,null,null,null,0]
[226," ",null,null,null,null,null,null,null,null,null,null,null,null,null,null,null,null,null,null,null,null,null,null,0,null,0,null,null,null,0,null,null,null,null,null,null,null,0,0,null,null,0,null,null,null,0]
[227," ",null,null,null,null,null,null,null,null,null,null,null,null,null,null,null,null,null,null,null,null,null,null,0,null,0,null,null,null,0,null,null,null,null,null,null,null,0,0,null,null,0,null,null,null,0]
[228," ",null,null,null,null,null,null,null,null,null,null,null,null,null,null,null,null,null,null,null,null,null,null,0,null,0,null,null,null,0,null,null,null,null,null,null,null,0,0,null,null,0,null,null,null,0]
[229," ",null,null,null,null,null,null,null,null,null,null,null,null,null,null,null,null,null,null,null,null,null,null,0,null,0,null,null,null,0,null,null,null,null,null,null,null,0,0,null,null,0,null,null,null,0]
[230," ",null,null,null,null,null,null,null,null,null,null,null,null,null,null,null,null,null,null,null,null,null,null,0,null,0,null,null,null,0,null,null,null,null,null,null,null,0,0,null,null,0,null,null,null,0]
[231," ",null,null,null,null,null,null,null,null,null,null,null,null,null,null,null,null,null,null,null,null,null,null,0,null,0,null,null,null,0,null,null,null,null,null,null,null,0,0,null,null,0,null,null,null,0]
[232," ",null,null,null,null,null,null,null,null,null,null,null,null,null,null,null,null,null,null,null,null,null,null,0,null,0,null,null,null,0,null,null,null,null,null,null,null,0,0,null,null,0,null,null,null,0]
[233," ",null,null,null,null,null,null,null,null,null,null,null,null,null,null,null,null,null,null,null,null,null,null,0,null,0,null,null,null,0,null,null,null,null,null,null,null,0,0,null,null,0,null,null,null,0]
[234," ",null,null,null,null,null,null,null,null,null,null,null,null,null,null,null,null,null,null,null,null,null,null,0,null,0,null,null,null,0,null,null,null,null,null,null,null,0,0,null,null,0,null,null,null,0]
[235," ",null,null,null,null,null,null,null,null,null,null,null,null,null,null,null,null,null,null,null,null,null,null,0,null,0,null,null,null,0,null,null,null,null,null,null,null,0,0,null,null,0,null,null,null,0]
[236," ",null,null,null,null,null,null,null,null,null,null,null,null,null,null,null,null,null,null,null,null,null,null,0,null,0,null,null,null,0,null,null,null,null,null,null,null,0,0,null,null,0,null,null,null,0]
[237," ",null,null,null,null,null,null,null,null,null,null,null,null,null,null,null,null,null,null,null,null,null,null,0,null,0,null,null,null,0,null,null,null,null,null,null,null,0,0,null,null,0,null,null,null,0]
[238," ",null,null,null,null,null,null,null,null,null,null,null,null,null,null,null,null,null,null,null,null,null,null,0,null,0,null,null,null,0,null,null,null,null,null,null,null,0,0,null,null,0,null,null,null,0]
[239," ",null,null,null,null,null,null,null,null,null,null,null,null,null,null,null,null,null,null,null,null,null,null,0,null,0,null,null,null,0,null,null,null,null,null,null,null,0,0,null,null,0,null,null,null,0]
[240," ",null,null,null,null,null,null,null,null,null,null,null,null,null,null,null,null,null,null,null,null,null,null,0,null,0,null,null,null,0,null,null,null,null,null,null,null,0,0,null,null,0,null,null,null,0]
[241," ",null,null,null,null,null,null,null,null,null,null,null,null,null,null,null,null,null,null,null,null,null,null,0,null,0,null,null,null,0,null,null,null,null,null,null,null,0,0,null,null,0,null,null,null,0]
[242," ",null,null,null,null,null,null,null,null,null,null,null,null,null,null,null,null,null,null,null,null,null,null,0,null,0,null,null,null,0,null,null,null,null,null,null,null,0,0,null,null,0,null,null,null,0]
[243," ",null,null,null,null,null,null,null,null,null,null,null,null,null,null,null,null,null,null,null,null,null,null,0,null,0,null,null,null,0,null,null,null,null,null,null,null,0,0,null,null,0,null,null,null,0]
[244," ",null,null,null,null,null,null,null,null,null,null,null,null,null,null,null,null,null,null,null,null,null,null,0,null,0,null,null,null,0,null,null,null,null,null,null,null,0,0,null,null,0,null,null,null,0]
[245," ",null,null,null,null,null,null,null,null,null,null,null,null,null,null,null,null,null,null,null,null,null,null,0,null,0,null,null,null,0,null,null,null,null,null,null,null,0,0,null,null,0,null,null,null,0]
[246," ",null,null,null,null,null,null,null,null,null,null,null,null,null,null,null,null,null,null,null,null,null,null,0,null,0,null,null,null,0,null,null,null,null,null,null,null,0,0,null,null,0,null,null,null,0]
[247," ",null,null,null,null,null,null,null,null,null,null,null,null,null,null,null,null,null,null,null,null,null,null,0,null,0,null,null,null,0,null,null,null,null,null,null,null,0,0,null,null,0,null,null,null,0]
[248," ",null,null,null,null,null,null,null,null,null,null,null,null,null,null,null,null,null,null,null,null,null,null,0,null,0,null,null,null,0,null,null,null,null,null,null,null,0,0,null,null,0,null,null,null,0]
[249,"Meier",null,null,null,null,null,null,null,null,null,null,null,null,null,null,null,null,null,null,null,null,null,null,0,null,0,null,null,null,0,null,null,null,null,null,null,null,0,0,null,null,0,null,null,null,0]
[250," ",null,null,null,null,null,null,null,null,null,null,null,null,null,null,null,null,null,null,null,null,null,null,0,null,0,null,null,null,0,null,null,null,null,null,null,null,0,{"$f":"Y251*2.55","v":0},null,null,0,null,null,null,0]
[251," ",null,null,null,null,null,null,null,null,null,null,null,null,null,null,null,null,null,null,null,null,null,null,0,null,0,null,null,null,0,null,null,null,null,null,null,null,0,0,null,null,0,null,null,null,0]
[252," ",null,null,null,null,null,null,null,null,null,null,null,null,null,null,null,null,null,null,null,null,null,null,0,null,0,null,null,null,0,null,null,null,null,null,null,null,0,0,null,null,0,null,null,null,0]
[253," ",null,null,null,null,null,null,null,null,null,null,null,null,null,null,null,null,null,null,null,null,null,null,0,null,0,null,null,null,0,null,null,null,null,null,null,null,0,0,null,null,0,null,null,null,0]
[254," ",null,null,null,null,null,null,null,null,null,null,null,null,null,null,null,null,null,null,null,null,null,null,0,null,0,null,null,null,0,null,null,null,null,null,null,null,0,0,null,null,0,null,null,null,0]
[255," ",null,null,null,null,null,null,null,null,null,null,null,null,null,null,null,null,null,null,null,null,null,null,0,null,0,null,null,null,0,null,null,null,null,null,null,null,0,0,null,null,0,null,null,null,0]
[256," ",null,null,null,null,null,null,null,null,null,null,null,null,null,null,null,null,null,null,null,null,null,null,0,null,0,null,null,null,0,null,null,null,null,null,null,null,0,0,null,null,0,null,null,null,0]
[257," ",null,null,null,null,null,null,null,null,null,null,null,null,null,null,null,null,null,null,null,null,null,null,{"$f":"SUM(E258:X258)","v":0},null,{"$f":"SUM(Y258*2.25)","v":0},null,null,null,0,null,null,null,null,null,null,null,{"$f":"AA258+AE258+AF258+AH258+AI258+AJ258+AK258+AL258+AG258","v":0},0,null,null,{"$f":"AM258+AN258+AO258+AP258","v":0},null,null,null,0]
[258," ",null,null,null,null,null,null,null,null,null,null,null,null,null,null,null,null,null,null,null,null,null,null,0,null,0,null,null,null,{"$f":"(AB259+AC259+AD259)*2.25","v":0},null,null,null,null,null,null,null,0,0,null,null,0,null,null,null,0]
[259," ",null,null,null,null,null,null,null,null,null,null,null,null,null,null,null,null,null,null,null,null,null,null,0,null,0,null,null,null,0,null,null,null,null,null,null,null,0,0,null,null,0,null,null,null,{"$f":"$AU$1*AT260","v":0}]
[260," ",null,null,null,null,null,null,null,null,null,null,null,null,null,null,null,null,null,null,null,null,null,null,0,null,0,null,null,null,0,null,null,null,null,null,null,null,0,0,null,null,0,null,null,null,0]
[261," ",null,null,null,null,null,null,null,null,null,null,null,null,null,null,null,null,null,null,null,null,null,null,0,null,0,null,null,null,0,null,null,null,null,null,null,null,0,0,null,null,0,null,null,null,0]
[262," ",null,null,null,null,null,null,null,null,null,null,null,null,null,null,null,null,null,null,null,null,null,null,0,null,0,null,null,null,0,null,null,null,null,null,null,null,0,0,null,null,0,null,null,null,0]
[263," ",null,null,null,null,null,null,null,null,null,null,null,null,null,null,null,null,null,null,null,null,null,null,0,null,0,null,null,null,0,null,null,null,null,null,null,null,0,0,null,null,0,null,null,null,0]
[264," ",null,null,null,null,null,null,null,null,null,null,null,null,null,null,null,null,null,null,null,null,null,null,0,null,0,null,null,null,0,null,null,null,null,null,null,null,0,0,null,null,0,null,null,null,0]
[265," ",null,null,null,null,null,null,null,null,null,null,null,null,null,null,null,null,null,null,null,null,null,null,0,null,0,null,null,null,0,null,null,null,null,null,null,null,0,0,null,null,0,null,null,null,0]
[266," ",null,null,null,null,null,null,null,null,null,null,null,null,null,null,null,null,null,null,null,null,null,null,0,null,0,null,null,null,0,null,null,null,null,null,null,null,0,0,null,null,0,null,null,null,0]
[267," ",null,null,null,null,null,null,null,null,null,null,null,null,null,null,null,null,null,null,null,null,null,null,0,null,0,null,null,null,0,null,null,null,null,null,null,null,0,0,null,null,0,null,null,null,0]
[268," ",null,null,null,null,null,null,null,null,null,null,null,null,null,null,null,null,null,null,null,null,null,null,0,null,0,null,null,null,0,null,null,null,null,null,null,null,0,0,null,null,0,null,null,null,0]
[269," ",null,null,null,null,null,null,null,null,null,null,null,null,null,null,null,null,null,null,null,null,null,null,0,null,0,null,null,null,0,null,null,null,null,null,null,null,0,0,null,null,0,null,null,null,0]
[270," ",null,null,null,null,null,null,null,null,null,null,null,null,null,null,null,null,null,null,null,null,null,null,0,null,0,null,null,null,0,null,null,null,null,null,null,null,0,0,null,null,0,null,null,null,0]
[271," ",null,null,null,null,null,null,null,null,null,null,null,null,null,null,null,null,null,null,null,null,null,null,0,null,0,null,null,null,0,null,null,null,null,null,null,null,0,0,null,null,0,null,null,null,0]
[272," ",null,null,null,null,null,null,null,null,null,null,null,null,null,null,null,null,null,null,null,null,null,null,0,null,0,null,null,null,0,null,null,null,null,null,null,null,0,0,null,null,0,null,null,null,0]
[273," ",null,null,null,null,null,null,null,null,null,null,null,null,null,null,null,null,null,null,null,null,null,null,0,null,0,null,null,null,0,null,null,null,null,null,null,null,0,0,null,null,0,null,null,null,0]
[274," ",null,null,null,null,null,null,null,null,null,null,null,null,null,null,null,null,null,null,null,null,null,null,0,null,0,null,null,null,0,null,null,null,null,null,null,null,0,0,null,null,0,null,null,null,0]
[275," ",null,null,null,null,null,null,null,null,null,null,null,null,null,null,null,null,null,null,null,null,null,null,0,null,0,null,null,null,0,null,null,null,null,null,null,null,0,0,null,null,0,null,null,null,0]
[276," ",null,null,null,null,null,null,null,null,null,null,null,null,null,null,null,null,null,null,null,null,null,null,0,null,0,null,null,null,0,null,null,null,null,null,null,null,0,0,null,null,0,null,null,null,0]
[277," ",null,null,null,null,null,null,null,null,null,null,null,null,null,null,null,null,null,null,null,null,null,null,0,null,0,null,null,null,0,null,null,null,null,null,null,null,0,0,null,null,0,null,null,null,0]
[278," ",null,null,null,null,null,null,null,null,null,null,null,null,null,null,null,null,null,null,null,null,null,null,0,null,0,null,null,null,0,null,null,null,null,null,null,null,0,0,null,null,0,null,null,null,0]
[279," ",null,null,null,null,null,null,null,null,null,null,null,null,null,null,null,null,null,null,null,null,null,null,0,null,0,null,null,null,0,null,null,null,null,null,null,null,0,0,null,null,0,null,null,null,0]
[280," ",null,null,null,null,null,null,null,null,null,null,null,null,null,null,null,null,null,null,null,null,null,null,0,null,0,null,null,null,0,null,null,null,null,null,null,null,0,0,null,null,0,null,null,null,0]
[281," ",null,null,null,null,null,null,null,null,null,null,null,null,null,null,null,null,null,null,null,null,null,null,0,null,0,null,null,null,0,null,null,null,null,null,null,null,0,0,null,null,0,null,null,null,0]
[282," ",null,null,null,null,null,null,null,null,null,null,null,null,null,null,null,null,null,null,null,null,null,null,0,null,0,null,null,null,0,null,null,null,null,null,null,null,0,{"$f":"Y283*2.55","v":0},null,null,0,null,null,null,0]
[283," ",null,null,null,null,null,null,null,null,null,null,null,null,null,null,null,null,null,null,null,null,null,null,0,null,0,null,null,null,0,null,null,null,null,null,null,null,0,0,null,null,0,null,null,null,0]
[284," ",null,null,null,null,null,null,null,null,null,null,null,null,null,null,null,null,null,null,null,null,null,null,0,null,0,null,null,null,0,null,null,null,null,null,null,null,0,0,null,null,0,null,null,null,0]
[285," ",null,null,null,null,null,null,null,null,null,null,null,null,null,null,null,null,null,null,null,null,null,null,0,null,0,null,null,null,0,null,null,null,null,null,null,null,0,0,null,null,0,null,null,null,0]
[286," ",null,null,null,null,null,null,null,null,null,null,null,null,null,null,null,null,null,null,null,null,null,null,0,null,0,null,null,null,0,null,null,null,null,null,null,null,0,0,null,null,0,null,null,null,0]
[287," ",null,null,null,null,null,null,null,null,null,null,null,null,null,null,null,null,null,null,null,null,null,null,0,null,0,null,null,null,0,null,null,null,null,null,null,null,0,0,null,null,0,null,null,null,0]
[288," ",null,null,null,null,null,null,null,null,null,null,null,null,null,null,null,null,null,null,null,null,null,null,0,null,0,null,null,null,0,null,null,null,null,null,null,null,0,0,null,null,0,null,null,null,0]
[289," ",null,null,null,null,null,null,null,null,null,null,null,null,null,null,null,null,null,null,null,null,null,null,0,null,0,null,null,null,0,null,null,null,null,null,null,null,0,0,null,null,0,null,null,null,0]
[290," ",null,null,null,null,null,null,null,null,null,null,null,null,null,null,null,null,null,null,null,null,null,null,0,null,0,null,null,null,0,null,null,null,null,null,null,null,0,0,null,null,0,null,null,null,0]
[291," ",null,null,null,null,null,null,null,null,null,null,null,null,null,null,null,null,null,null,null,null,null,null,0,null,0,null,null,null,0,null,null,null,null,null,null,null,0,0,null,null,0,null,null,null,0]
[292," ",null,null,null,null,null,null,null,null,null,null,null,null,null,null,null,null,null,null,null,null,null,null,0,null,0,null,null,null,0,null,null,null,null,null,null,null,0,0,null,null,0,null,null,null,0]
[293," ",null,null,null,null,null,null,null,null,null,null,null,null,null,null,null,null,null,null,null,null,null,null,0,null,0,null,null,null,0,null,null,null,null,null,null,null,0,0,null,null,0,null,null,null,0]
[294," ",null,null,null,null,null,null,null,null,null,null,null,null,null,null,null,null,null,null,null,null,null,null,0,null,0,null,null,null,0,null,null,null,null,null,null,null,0,0,null,null,0,null,null,null,0]
[295," ",null,null,null,null,null,null,null,null,null,null,null,null,null,null,null,null,null,null,null,null,null,null,0,null,0,null,null,null,0,null,null,null,null,null,null,null,0,0,null,null,0,null,null,null,0]
[296," ",null,null,null,null,null,null,null,null,null,null,null,null,null,null,null,null,null,null,null,null,null,null,0,null,0,null,null,null,0,null,null,null,null,null,null,null,0,0,null,null,0,null,null,null,0]
[297," ",null,null,null,null,null,null,null,null,null,null,null,null,null,null,null,null,null,null,null,null,null,null,0,null,0,null,null,null,0,null,null,null,null,null,null,null,0,0,null,null,0,null,null,null,0]
[298," ",null,null,null,null,null,null,null,null,null,null,null,null,null,null,null,null,null,null,null,null,null,null,0,null,0,null,null,null,0,null,null,null,null,null,null,null,0,0,null,null,0,null,null,null,0]
[299," ",null,null,null,null,null,null,null,null,null,null,null,null,null,null,null,null,null,null,null,null,null,null,0,null,0,null,null,null,0,null,null,null,null,null,null,null,0,0,null,null,0,null,null,null,0]
[300," ",null,null,null,null,null,null,null,null,null,null,null,null,null,null,null,null,null,null,null,null,null,null,0,null,{"$f":"SUM(Y301*4.4)","v":0},null,null,null,0,null,null,null,null,null,null,null,0,0,null,null,0,null,null,null,0]
[999," ",null,null,null,null,null,null,null,null,null,null,null,null,null,null,null,null,null,null,null,null,null,null,0,null,{"$f":"SUM(Y302*4.4)","v":0},null,null,null,0,null,null,null,null,null,null,null,0,0,null,null,0,null,null,null,0]
[null,"SUMME in €",{"$f":"SUM(C3:C211)","v":0},0,{"$f":"SUM(E3:E211)","v":0},{"$f":"SUM(F3:F211)","v":0},0,0,0,0,0,0,{"$f":"SUM(M2:M302)","v":0},0,0,0,0,0,0,0,0,0,0,0,0,{"$f":"SUM(Z5:Z302)","v":0},{"$f":"SUM(AA2:AA302)","v":0},0,0,0,0,null,0,0,0,0,0,0,0,0,0,0,0,null,null,{"$f":"SUM(AT3:AT302)","v":320},816]
[null,null,null,null,null,null,null,null,null,null,null,null,null,null,null,null,null,null,null,null,null,null,null,null,null,null,null,null,null,null,null,null,null,null,null,null,null,null,null,"KM",null,null,null,null,null,null,0]
[null,null,null,null,null,null,null,null,null,null,null,null,null,null,null,null,null,null,null,46,"Jaunich",null,null,null,null,null,null,null,null,null,null,null,null,null,null,null,null,null,null,null,{"$f":"AN305*0.52","v":0},null,{"$f":"AO305+AP305","v":0},null,null,null,0]
[null,null,null,null,null,null,null,null,null,null,null,null,null,null,null,null,null,null,null,77,"Ridder",null,null,null,null,null,null,null,null,null,null,null,null,null,null,null,null,null,null,null,{"$f":"AN306*0.52","v":0},null,{"$f":"AO306+AP306","v":0},null,null,null,0]
[null,null,null,null,null,null,null,null,null,null,null,null,"KEIN EINTRAG",null,null,null,null,null,null,null,null,null,null,null,null,null,null,null,null,null,null,null,null,null,null,null,null,null,null,null,{"$f":"AN307*0.52","v":0},null,{"$f":"AO307+AP307","v":0},null,null,null,0]
[null,null,null,null,null,null,null,null,null,null,null,null,null,null,null,null,null,null,null,null,null,null,null,null,null,null,null,null,null,null,null,null,null,null,null,null,null,null,null,null,{"$f":"AN308*0.52","v":0},null,{"$f":"AO308+AP308","v":0},null,null,null,0]
[null,null,null,null,null,null,null,null,null,null,null,null,null,null,null,null,null,null,null,null,null,null,null,null,null,null,null,null,null,null,null,null,null,null,null,null,null,null,null,null,{"$f":"AN309*0.52","v":0},null,{"$f":"AO309+AP309","v":0},null,null,null,0]
[null,null,null,null,null,null,null,null,null,null,null,null,null,null,null,null,null,null,null,null,null,null,null,null,null,null,"GESAMTSUMME",null,null,null,null,null,null,null,null,null,null,null,null,null,null,null,{"$f":"SUM(AQ303:AQ309)","v":0},null,null,null,0]
[]
[]
[null,"Start"]
[null,"Ende"]
[]
[]
[null,"Urlaub:",null,null,"von","bis"]

{"sheet":"03-Abrechnung","index":5,"n_rows":70,"n_cols":8,"rows_kept":70,"cut":false,"hidden":false,"merged":[[47,1,47,2],[53,1,53,2],[43,1,43,2],[44,1,44,2],[45,1,45,2],[46,1,46,2],[40,6,41,6],[40,7,41,7],[12,0,12,3],[13,0,13,3],[42,1,42,2],[40,1,40,2]]}
["QuittungNR",20]
[]
[]
[]
[]
[]
[]
["Mitarbeiter Nr.:",null,null,"MONATSABRECHNUNG",null,null,"Maerz",2017]
[]
[null,null,null,null,null,null,"Abrechnungszeitraum: 21.02 - 20.03"]
[]
[]
[{"$f":"INDEX([1]!Datenbank2,$B$1,2)&\" \"&INDEX([1]!Datenbank2,$B$1,3)","v":"Heinz Blaha"},"Christel Hachmeister","Christel Hachmeister","Christel Hachmeister"]
[{"$f":"INDEX([1]!Datenbank2,$B$1,4)","v":"Theodor-Storm-Str. 13"},"Borsteler Bruch 4","Borsteler Bruch 4","Borsteler Bruch 4"]
[{"$f":"INDEX([1]!Datenbank2,$B$1,5)&\" \"&INDEX([1]!Datenbank2,$B$1,6)","v":"32457 Porta-Westfalica"}]
[]
[]
[]
["Allgemeine Tests:"]
[null,null,"TEST NR\n& DATUM","FB","Entgelt \nin EURO €",null,"Erläuterungen zu"]
[null,null,{"$f":"Maerz!$C$1","v":0},{"$f":"INDEX([0]!maerz,$B$1,3)","v":0},{"$f":"D21*2.25","v":0},null,{"$f":"IF(Maerz!$AH$1=0,\"\",Maerz!AH$1)","v":""},{"$f":"INDEX([0]!maerz,$B$1,34)","v":0}]
[null,null,{"$f":"Maerz!$D$1","v":0},{"$f":"INDEX([0]!maerz,$B$1,4)","v":0},0,null,{"$f":"IF(Maerz!$AI$1=0,\"\",Maerz!AI$1)","v":""},{"$f":"INDEX([0]!maerz,$B$1,35)","v":0}]
[null,null,{"$f":"Maerz!$E$1","v":0},{"$f":"INDEX([0]!maerz,$B$1,5)","v":0},0,null,{"$f":"IF(Maerz!$AJ$1=0,\"\",Maerz!AJ$1)","v":""},{"$f":"INDEX([0]!maerz,$B$1,36)","v":0}]
[null,null,{"$f":"Maerz!$F$1","v":0},{"$f":"INDEX([0]!maerz,$B$1,6)","v":0},0,null,{"$f":"IF(Maerz!$AK$1=0,\"\",Maerz!AK$1)","v":""}]
[null,null,{"$f":"Maerz!$G$1","v":0},{"$f":"INDEX([0]!maerz,$B$1,7)","v":0},0]
[null,null,{"$f":"Maerz!$H$1","v":0},{"$f":"INDEX([0]!maerz,$B$1,8)","v":0},0,null,"Gesamt:",{"$f":"SUM(H20:H25)","v":0}]
[null,null,{"$f":"Maerz!$I$1","v":0},{"$f":"INDEX([0]!maerz,$B$1,9)","v":0},0]
[null,null,{"$f":"Maerz!$J$1","v":0},{"$f":"INDEX([0]!maerz,$B$1,10)","v":0},0]
[null,null,{"$f":"Maerz!$K$1","v":0},{"$f":"INDEX([0]!maerz,$B$1,11)","v":0},0]
[null,null,{"$f":"Maerz!$L$1","v":0},{"$f":"INDEX([0]!maerz,$B$1,12)","v":0},0]
[null,null,{"$f":"Maerz!$M$1","v":0},{"$f":"INDEX([0]!maerz,$B$1,13)","v":0},0," "]
[null,null,{"$f":"Maerz!$N$1","v":0},{"$f":"INDEX([0]!maerz,$B$1,14)","v":0},0]
[null,null,{"$f":"Maerz!$O$1","v":0},{"$f":"INDEX([0]!maerz,$B$1,15)","v":0},0]
[null,null,{"$f":"Maerz!$P$1","v":0},{"$f":"INDEX([0]!maerz,$B$1,16)","v":0},0]
[null,null,{"$f":"Maerz!$Q$1","v":0},{"$f":"INDEX([0]!maerz,$B$1,17)","v":0},0]
[null,null,{"$f":"Maerz!$R$1","v":0},{"$f":"INDEX([0]!maerz,$B$1,18)","v":0},0]
[null,null,{"$f":"Maerz!$S$1","v":0},{"$f":"INDEX([0]!maerz,$B$1,19)","v":0},0]
[null,null,{"$f":"Maerz!$T$1","v":0},{"$f":"INDEX([0]!maerz,$B$1,20)","v":0},0]
[null,null,{"$f":"Maerz!$U$1","v":0},{"$f":"INDEX([0]!maerz,$B$1,21)","v":0},0]
[null,null,{"$f":"Maerz!$X$1","v":0},{"$f":"INDEX([0]!maerz,$B$1,22)","v":0},0]
[null,"SUMME 1",null,{"$f":"SUM(D21:D40)","v":0},{"$f":"SUM(E21:E40)","v":0},null,"Stunden (nach FB-Anzahl)",{"$f":"INDEX([0]!maerz,$B$1,26)","v":0}]
[]
["Zusätze:","Bezeichung"]
[null,{"$f":"Maerz!$AE$1","v":"Summe BIM in EURO"}]
[]
[null,"Summe Spezialtest",null,null,{"$f":"H26","v":0}]
[null,{"$f":"Maerz!$AL$1","v":"Std. /Entgelt Verteilung"},null,null,{"$f":"INDEX([0]!maerz,$B$1,38)","v":0}]
[null,"GESAMT NETTO",null,null,{"$f":"SUM(E41:E47)","v":0}]
[null,null,"Kilometergeld",null,{"$f":"INDEX([0]!maerz,$B$1,40)","v":0}]
[null,null,"Pauschale 25%",null,{"$f":"INDEX([0]!maerz,$B$1,41)","v":0}]
[]
[null,null,null,null,null,null,"Bemerkungen:"]
[]
[null,"GESAMT in €",null,null,{"$f":"E48+E49+E50+E51+E53+E52","v":0},null,"FB = Anzahl der Fragebogen"]
[]
[]
["Der Betrag wird bis zum 10. des folgenden Monats überwiesen."]
[]
[]
[]
[]
[]
[]
[]
[]
[]
[]
[]
[]
["Prorata Marktforschung GmbH • Marienglacis 37 • 32427 Minden • tel  0571.82875.0 fax • 0571.82875.99 •  www.prorata.de • info@prorata.de"]

{"sheet":"April","index":6,"n_rows":314,"n_cols":47,"rows_kept":314,"cut":false,"hidden":false,"merged":[[310,2,310,3]]}
[null,"Testnummer / Testerin",null,null,null,null,null,null,null,null,null,null,null,null,null,null,null,null,null,null,null,null,null,null,null,"Anz.","Std.","Summe\nin EURO",null,null,null,"Summe BIM in EURO","Stammdaten",null,null,null,null,null,"Std. /Entgelt","Gesamt\nNETTO*\nin EURO","km x \n XXeurocent","Telef./Porto","Pauschale 25%","Gesamt\nin EURO",null,null,2.5499999999999998]
[1," ",null,null,null,null,null,null,null,null,null,null,null,null,null,null,null,null,null,null,null,null,null,null,null,{"$f":"SUM(C2:Y2)","v":0},null,{"$f":"SUM(Z2*2.25)","v":0},null,null,null,{"$f":"(AC2+AD2+AE2)*2.25","v":0},null,null,null,null,null,null,null,{"$f":"AB2+AF2+AG2+AI2+AJ2+AK2+AL2+AM2+AH2","v":0},null,null,null,{"$f":"AN2+AO2+AP2+AQ2","v":0}]
[2,"Gundlach",null,null,null,null,null,null,null,null,null,null,null,null,null,null,null,null,null,null,null,null,null,null,null,0,null,0,null,null,null,{"$f":"(AC3+AD3+AE3)*2.25","v":0},null,null,null,null,null,null,null,0,{"$f":"Z3*2.75","v":0},null,null,0,null,9,{"$f":"$AU$1*AT3","v":22.95}]
[3,"Heine",null,null,null,null,null,null,null,null,null,null,null,null,null,null,null,null,null,null,null,null,null,null,null,0,null,0,null,null,null,0,null,null,null,null,null,null,null,0,{"$f":"Z4*2.75","v":0},null,null,0,null,6,{"$f":"$AU$1*AT4","v":15.299999999999999}]
[4,"Korte, Inge",null,null,null,null,null,null,null,null,null,null,null,null,null,null,null,null,null,null,null,null,null,null,null,0,{"$f":"Z5/4","v":0},0,null,null,null,0,null,null,null,null,null,null,null,0,0,null,null,0,null,6,15.299999999999999]
[5,"Tölkemeier, Petra",null,null,null,null,null,null,null,null,null,null,null,null,null,null,null,null,null,null,null,null,null,null,null,0,{"$f":"Z6/4","v":0},0,null,null,null,0,null,null,null,null,null,null,null,0,0,null,null,0,null,6,15.299999999999999]
[6,"Rohlfing, Anja",null,null,null,null,null,null,null,null,null,null,null,null,null,null,null,null,null,null,null,null,null,null,null,0,0,0,null,null,null,0,null,null,null,null,null,null,null,0,0,null,null,0,null,null,0]
[7,"Aumann, Elfriede",null,null,null,null,null,null,null,null,null,null,null,null,null,null,null,null,null,null,null,null,null,null,null,0,0,0,null,null,null,0,null,null,null,null,null,null,null,0,0,null,null,0,null,14,35.699999999999996]
[8,null,null,null,null,null,null,null,null,null,null,null,null,null,null,null,null,null,null,null,null,null,null,null,null,0,0,0,null,null,null,0,null,null,null,null,null,null,null,0,0,null,null,0,null,null,0]
[9,"Kilzer, Andreas",null,null,null,null,null,null,null,null,null,null,null,null,null,null,null,null,null,null,null,null,null,null,null,0,0,0,null,null,null,0,null,null,null,null,null,null,null,0,0,null,null,0,null,26,66.3]
[10,"Rakowski, Sigrid",null,null,null,null,null,null,null,null,null,null,null,null,null,null,null,null,null,null,null,null,null,null,null,0,0,0,null,null,null,0,null,null,null,null,null,null,null,0,{"$f":"Z11*2.75","v":0},null,null,0,null,14,35.699999999999996]
[11,null,null,null,null,null,null,null,null,null,null,null,null,null,null,null,null,null,null,null,null,null,null,null,null,0,0,0,null,null,null,0,null,null,null,null,null,null,null,0,0,null,null,0,null,null,0]
[12,"Drewes, Andrea",null,null,null,null,null,null,null,null,null,null,null,null,null,null,null,null,null,null,null,null,null,null,null,0,0,0,null,null,null,0,null,null,null,null,null,null,null,0,0,null,null,0,null,10,25.5]
[13,null,null,null,null,null,null,null,null,null,null,null,null,null,null,null,null,null,null,null,null,null,null,null,null,0,0,0,null,null,null,0,null,null,null,null,null,null,null,0,0,null,null,0,null,16,40.799999999999997]
[14,"Grabbe , Nadja",null,null,null,null,null,null,null,null,null,null,null,null,null,null,null,null,null,null,null,null,null,null,null,0,0,0,null,null,null,0,null,null,null,null,null,null,null,0,0,null,null,0,null,6,15.299999999999999]
[15,"Sassenberg, Julia",null,null,null,null,null,null,null,null,null,null,null,null,null,null,null,null,null,null,null,null,null,null,null,0,0,0,null,null,null,0,null,null,null,null,null,null,null,0,0,null,null,0,null,null,0]
[16,null,null,null,null,null,null,null,null,null,null,null,null,null,null,null,null,null,null,null,null,null,null,null,null,0,0,0,null,null,null,0,null,null,null,null,null,null,null,0,0,null,null,0,null,null,0]
[17,null,null,null,null,null,null,null,null,null,null,null,null,null,null,null,null,null,null,null,null,null,null,null,null,0,0,0,null,null,null,0,null,null,null,null,null,null,null,0,0,null,null,0,null,null,0]
[18,null,null,null,null,null,null,null,null,null,null,null,null,null,null,null,null,null,null,null,null,null,null,null,null,0,0,0,null,null,null,0,null,null,null,null,null,null,null,0,0,null,null,0,null,null,0]
[19,"Blaha, Heinz",null,null,null,null,null,null,null,null,null,null,null,null,null,null,null,null,null,null,null,null,null,null,null,0,0,0,null,null,null,0,null,null,null,null,null,null,null,0,0,null,null,0,null,6,15.299999999999999]
[20,null,null,null,null,null,null,null,null,null,null,null,null,null,null,null,null,null,null,null,null,null,null,null,null,0,0,0,null,null,null,0,null,null,null,null,null,null,null,0,0,null,null,0,null,null,0]
[21,"Weichenhan, Rainer",null,null,null,null,null,null,null,null,null,null,null,null,null,null,null,null,null,null,null,null,null,null,null,0,0,0,null,null,null,0,null,null,null,null,null,null,null,0,{"$f":"Z22*2.75","v":0},null,null,0,null,null,0]
[22,"Lill, Ulrich",null,null,null,null,null,null,null,null,null,null,null,null,null,null,null,null,null,null,null,null,null,null,null,0,0,0,null,null,null,0,null,null,null,null,null,null,null,0,0,null,null,0,null,6,15.299999999999999]
[23,null,null,null,null,null,null,null,null,null,null,null,null,null,null,null,null,null,null,null,null,null,null,null,null,0,0,0,null,null,null,0,null,null,null,null,null,null,null,0,0,null,null,0,null,null,0]
[24,"Hübsch, Karl-Heinz",null,null,null,null,null,null,null,null,null,null,null,null,null,null,null,null,null,null,null,null,null,null,null,0,0,0,null,null,null,0,null,null,null,null,null,null,null,0,0,null,null,0,null,11,28.049999999999997]
[25,"Feigel-Kipp, Claudia",null,null,null,null,null,null,null,null,null,null,null,null,null,null,null,null,null,null,null,null,null,null,null,0,0,0,null,null,null,0,null,null,null,null,null,null,null,0,0,null,null,0,null,6,15.299999999999999]
[26,null,null,null,null,null,null,null,null,null,null,null,null,null,null,null,null,null,null,null,null,null,null,null,null,0,0,0,null,null,null,0,null,null,null,null,null,null,null,0,0,null,null,0,null,null,0]
[27,null,null,null,null,null,null,null,null,null,null,null,null,null,null,null,null,null,null,null,null,null,null,null,null,0,0,0,null,null,null,0,null,null,null,null,null,null,null,0,0,null,null,0,null,null,0]
[28,null,null,null,null,null,null,null,null,null,null,null,null,null,null,null,null,null,null,null,null,null,null,null,null,0,0,0,null,null,null,0,null,null,null,null,null,null,null,0,0,null,null,0,null,null,0]
[29,"Scholz,  Stella",null,null,null,null,null,null,null,null,null,null,null,null,null,null,null,null,null,null,null,null,null,null,null,0,0,0,null,null,null,0,null,null,null,null,null,null,null,0,0,null,null,0,null,0,0]
[30,"Hachmeister, Stefan",null,null,null,null,null,null,null,null,null,null,null,null,null,null,null,null,null,null,null,null,null,null,null,0,0,0,null,null,null,0,null,null,null,null,null,null,null,0,0,null,null,0,null,10,25.5]
[31,null,null,null,null,null,null,null,null,null,null,null,null,null,null,null,null,null,null,null,null,null,null,null,null,0,0,0,null,null,null,0,null,null,null,null,null,null,null,0,0,null,null,0,null,null,0]
[32,null,null,null,null,null,null,null,null,null,null,null,null,null,null,null,null,null,null,null,null,null,null,null,null,0,0,0,null,null,null,0,null,null,null,null,null,null,null,0,0,null,null,0,null,null,0]
[33,null,null,null,null,null,null,null,null,null,null,null,null,null,null,null,null,null,null,null,null,null,null,null,null,0,0,0,null,null,null,0,null,null,null,null,null,null,null,0,0,null,null,0,null,null,0]
[34,null,null,null,null,null,null,null,null,null,null,null,null,null,null,null,null,null,null,null,null,null,null,null,null,0,0,0,null,null,null,0,null,null,null,null,null,null,null,0,0,null,null,0,null,null,0]
[35,null,null,null,null,null,null,null,null,null,null,null,null,null,null,null,null,null,null,null,null,null,null,null,null,0,0,0,null,null,null,0,null,null,null,null,null,null,null,0,0,null,null,0,null,null,0]
[36,"Selle, Monika",null,null,null,null,null,null,null,null,null,null,null,null,null,null,null,null,null,null,null,null,null,null,null,0,0,0,null,null,null,0,null,null,null,null,null,null,null,0,0,null,null,0,null,15,38.25]
[37,"Sander, Eva-Maria",null,null,null,null,null,null,null,null,null,null,null,null,null,null,null,null,null,null,null,null,null,null,null,0,0,0,null,null,null,0,null,null,null,null,null,null,null,0,0,null,null,0,null,11,28.049999999999997]
[38,"Sander, Jessica",null,null,null,null,null,null,null,null,null,null,null,null,null,null,null,null,null,null,null,null,null,null,null,0,0,0,null,null,null,0,null,null,null,null,null,null,null,0,{"$f":"Z39*2.75","v":0},null,null,0,null,null,0]
[39,"Wiese-Schmutzer, Armgard",null,null,null,null,null,null,null,null,null,null,null,null,null,null,null,null,null,null,null,null,null,null,null,0,0,0,null,null,null,0,null,null,null,null,null,null,null,0,0,null,null,0,null,null,0]
[40,null,null,null,null,null,null,null,null,null,null,null,null,null,null,null,null,null,null,null,null,null,null,null,null,0,0,0,null,null,null,0,null,null,null,null,null,null,null,0,0,null,null,0,null,null,0]
[41,null,null,null,null,null,null,null,null,null,null,null,null,null,null,null,null,null,null,null,null,null,null,null,null,0,0,0,null,null,null,0,null,null,null,null,null,null,null,0,0,null,null,0,null,null,0]
[42,null,null,null,null,null,null,null,null,null,null,null,null,null,null,null,null,null,null,null,null,null,null,null,null,0,0,0,null,null,null,0,null,null,null,null,null,null,null,0,0,null,null,0,null,null,0]
[43,null,null,null,null,null,null,null,null,null,null,null,null,null,null,null,null,null,null,null,null,null,null,null,null,0,0,0,null,null,null,0,null,null,null,null,null,null,null,0,0,null,null,0,null,null,0]
[44,null,null,null,null,null,null,null,null,null,null,null,null,null,null,null,null,null,null,null,null,null,null,null,null,0,0,0,null,null,null,0,null,null,null,null,null,null,null,0,0,null,null,0,null,null,0]
[45,null,null,null,null,null,null,null,null,null,null,null,null,null,null,null,null,null,null,null,null,null,null,null,null,0,0,0,null,null,null,0,null,null,null,null,null,null,null,0,0,null,null,0,null,null,0]
[46,null,null,null,null,null,null,null,null,null,null,null,null,null,null,null,null,null,null,null,null,null,null,null,null,0,0,0,null,null,null,0,null,null,null,null,null,null,null,0,0,null,null,0,null,null,0]
[47,null,null,null,null,null,null,null,null,null,null,null,null,null,null,null,null,null,null,null,null,null,null,null,null,0,0,0,null,null,null,0,null,null,null,null,null,null,null,0,0,null,null,0,null,null,0]
[48,null,null,null,null,null,null,null,null,null,null,null,null,null,null,null,null,null,null,null,null,null,null,null,null,0,0,0,null,null,null,0,null,null,null,null,null,null,null,0,0,null,null,0,null,null,0]
[49,null,null,null,null,null,null,null,null,null,null,null,null,null,null,null,null,null,null,null,null,null,null,null,null,0,0,0,null,null,null,0,null,null,null,null,null,null,null,0,0,null,null,0,null,null,0]
[50,null,null,null,null,null,null,null,null,null,null,null,null,null,null,null,null,null,null,null,null,null,null,null,null,0,0,0,null,null,null,0,null,null,null,null,null,null,null,0,0,null,null,0,null,null,0]
[51,null,null,null,null,null,null,null,null,null,null,null,null,null,null,null,null,null,null,null,null,null,null,null,null,0,0,0,null,null,null,0,null,null,null,null,null,null,null,0,0,null,null,0,null,null,0]
[52,null,null,null,null,null,null,null,null,null,null,null,null,null,null,null,null,null,null,null,null,null,null,null,null,0,0,0,null,null,null,0,null,null,null,null,null,null,null,0,0,null,null,0,null,null,0]
[53,null,null,null,null,null,null,null,null,null,null,null,null,null,null,null,null,null,null,null,null,null,null,null,null,0,0,0,null,null,null,0,null,null,null,null,null,null,null,0,0,null,null,0,null,null,0]
[54,null,null,null,null,null,null,null,null,null,null,null,null,null,null,null,null,null,null,null,null,null,null,null,null,0,0,0,null,null,null,0,null,null,null,null,null,null,null,0,0,null,null,0,null,null,0]
[55,null,null,null,null,null,null,null,null,null,null,null,null,null,null,null,null,null,null,null,null,null,null,null,null,0,0,0,null,null,null,0,null,null,null,null,null,null,null,0,0,null,null,0,null,null,0]
[56,null,null,null,null,null,null,null,null,null,null,null,null,null,null,null,null,null,null,null,null,null,null,null,null,0,0,0,null,null,null,0,null,null,null,null,null,null,null,0,0,null,null,0,null,null,0]
[57,null,null,null,null,null,null,null,null,null,null,null,null,null,null,null,null,null,null,null,null,null,null,null,null,0,0,0,null,null,null,0,null,null,null,null,null,null,null,0,0,null,null,0,null,null,0]
[58,null,null,null,null,null,null,null,null,null,null,null,null,null,null,null,null,null,null,null,null,null,null,null,null,0,0,0,null,null,null,0,null,null,null,null,null,null,null,0,0,null,null,0,null,null,0]
[59,null,null,null,null,null,null,null,null,null,null,null,null,null,null,null,null,null,null,null,null,null,null,null,null,0,0,0,null,null,null,0,null,null,null,null,null,null,null,0,0,null,null,0,null,null,0]
[60,null,null,null,null,null,null,null,null,null,null,null,null,null,null,null,null,null,null,null,null,null,null,null,null,0,0,0,null,null,null,0,null,null,null,null,null,null,null,0,0,null,null,0,null,null,0]
[61,null,null,null,null,null,null,null,null,null,null,null,null,null,null,null,null,null,null,null,null,null,null,null,null,0,0,0,null,null,null,0,null,null,null,null,null,null,null,0,0,null,null,0,null,6,15.299999999999999]
[62,null,null,null,null,null,null,null,null,null,null,null,null,null,null,null,null,null,null,null,null,null,null,null,null,0,0,0,null,null,null,0,null,null,null,null,null,null,null,0,0,null,null,0,null,null,0]
[63,null,null,null,null,null,null,null,null,null,null,null,null,null,null,null,null,null,null,null,null,null,null,null,null,0,0,0,null,null,null,0,null,null,null,null,null,null,null,0,0,null,null,0,null,null,0]
[64,null,null,null,null,null,null,null,null,null,null,null,null,null,null,null,null,null,null,null,null,null,null,null,null,0,0,0,null,null,null,0,null,null,null,null,null,null,null,0,0,null,null,0,null,null,0]
[65,null,null,null,null,null,null,null,null,null,null,null,null,null,null,null,null,null,null,null,null,null,null,null,null,{"$f":"SUM(C66:Y66)","v":0},0,{"$f":"SUM(Z66*2.25)","v":0},null,null,null,0,null,null,null,null,null,null,null,{"$f":"AB66+AF66+AG66+AI66+AJ66+AK66+AL66+AM66+AH66","v":0},0,null,null,{"$f":"AN66+AO66+AP66+AQ66","v":0},null,null,0]
[66,null,null,null,null,null,null,null,null,null,null,null,null,null,null,null,null,null,null,null,null,null,null,null,null,0,0,0,null,null,null,{"$f":"(AC67+AD67+AE67)*2.25","v":0},null,null,null,null,null,null,null,0,0,null,null,0,null,null,0]
[67,null,null,null,null,null,null,null,null,null,null,null,null,null,null,null,null,null,null,null,null,null,null,null,null,0,0,0,null,null,null,0,null,null,null,null,null,null,null,0,{"$f":"Z68*2.75","v":0},null,null,0,null,null,{"$f":"$AU$1*AT68","v":0}]
[68,null,null,null,null,null,null,null,null,null,null,null,null,null,null,null,null,null,null,null,null,null,null,null,null,0,0,0,null,null,null,0,null,null,null,null,null,null,null,0,0,null,null,0,null,null,0]
[69,null,null,null,null,null,null,null,null,null,null,null,null,null,null,null,null,null,null,null,null,null,null,null,null,0,{"$f":"Z70/4","v":0},0,null,null,null,0,null,null,null,null,null,null,null,0,0,null,null,0,null,null,0]
[70,null,null,null,null,null,null,null,null,null,null,null,null,null,null,null,null,null,null,null,null,null,null,null,null,0,0,0,null,null,null,0,null,null,null,null,null,null,null,0,0,null,null,0,null,null,0]
[71,null,null,null,null,null,null,null,null,null,null,null,null,null,null,null,null,null,null,null,null,null,null,null,null,0,0,0,null,null,null,0,null,null,null,null,null,null,null,0,0,null,null,0,null,null,0]
[72,null,null,null,null,null,null,null,null,null,null,null,null,null,null,null,null,null,null,null,null,null,null,null,null,0,0,0,null,null,null,0,null,null,null,null,null,null,null,0,0,null,null,0,null,null,0]
[73,null,null,null,null,null,null,null,null,null,null,null,null,null,null,null,null,null,null,null,null,null,null,null,null,0,0,0,null,null,null,0,null,null,null,null,null,null,null,0,0,null,null,0,null,null,0]
[74,null,null,null,null,null,null,null,null,null,null,null,null,null,null,null,null,null,null,null,null,null,null,null,null,0,0,0,null,null,null,0,null,null,null,null,null,null,null,0,0,null,null,0,null,null,0]
[75,null,null,null,null,null,null,null,null,null,null,null,null,null,null,null,null,null,null,null,null,null,null,null,null,0,0,0,null,null,null,0,null,null,null,null,null,null,null,0,0,null,null,0,null,null,0]
[76,null,null,null,null,null,null,null,null,null,null,null,null,null,null,null,null,null,null,null,null,null,null,null,null,0,0,0,null,null,null,0,null,null,null,null,null,null,null,0,0,null,null,0,null,null,0]
[77,null,null,null,null,null,null,null,null,null,null,null,null,null,null,null,null,null,null,null,null,null,null,null,null,0,0,0,null,null,null,0,null,null,null,null,null,null,null,0,0,null,null,0,null,null,0]
[78,null,null,null,null,null,null,null,null,null,null,null,null,null,null,null,null,null,null,null,null,null,null,null,null,0,0,0,null,null,null,0,null,null,null,null,null,null,null,0,0,null,null,0,null,null,0]
[79,null,null,null,null,null,null,null,null,null,null,null,null,null,null,null,null,null,null,null,null,null,null,null,null,0,0,0,null,null,null,0,null,null,null,null,null,null,null,0,0,null,null,0,null,null,0]
[80,null,null,null,null,null,null,null,null,null,null,null,null,null,null,null,null,null,null,null,null,null,null,null,null,0,0,0,null,null,null,0,null,null,null,null,null,null,null,0,0,null,null,0,null,null,0]
[81,null,null,null,null,null,null,null,null,null,null,null,null,null,null,null,null,null,null,null,null,null,null,null,null,0,0,0,null,null,null,0,null,null,null,null,null,null,null,0,0,null,null,0,null,null,0]
[82,null,null,null,null,null,null,null,null,null,null,null,null,null,null,null,null,null,null,null,null,null,null,null,null,0,0,0,null,null,null,0,null,null,null,null,null,null,null,0,0,null,null,0,null,null,0]
[83,null,null,null,null,null,null,null,null,null,null,null,null,null,null,null,null,null,null,null,null,null,null,null,null,0,0,0,null,null,null,0,null,null,null,null,null,null,null,0,0,null,null,0,null,null,0]
[84,null,null,null,null,null,null,null,null,null,null,null,null,null,null,null,null,null,null,null,null,null,null,null,null,0,0,0,null,null,null,0,null,null,null,null,null,null,null,0,0,null,null,0,null,null,0]
[85,null,null,null,null,null,null,null,null,null,null,null,null,null,null,null,null,null,null,null,null,null,null,null,null,0,0,0,null,null,null,0,null,null,null,null,null,null,null,0,0,null,null,0,null,null,0]
[86,null,null,null,null,null,null,null,null,null,null,null,null,null,null,null,null,null,null,null,null,null,null,null,null,0,0,0,null,null,null,0,null,null,null,null,null,null,null,0,0,null,null,0,null,null,0]
[87,null,null,null,null,null,null,null,null,null,null,null,null,null,null,null,null,null,null,null,null,null,null,null,null,0,0,0,null,null,null,0,null,null,null,null,null,null,null,0,0,null,null,0,null,null,0]
[88,null,null,null,null,null,null,null,null,null,null,null,null,null,null,null,null,null,null,null,null,null,null,null,null,0,0,0,null,null,null,0,null,null,null,null,null,null,null,0,0,null,null,0,null,null,0]
[89,null,null,null,null,null,null,null,null,null,null,null,null,null,null,null,null,null,null,null,null,null,null,null,null,0,0,0,null,null,null,0,null,null,null,null,null,null,null,0,0,null,null,0,null,null,0]
[90,null,null,null,null,null,null,null,null,null,null,null,null,null,null,null,null,null,null,null,null,null,null,null,null,0,0,0,null,null,null,0,null,null,null,null,null,null,null,0,0,null,null,0,null,null,0]
[91,null,null,null,null,null,null,null,null,null,null,null,null,null,null,null,null,null,null,null,null,null,null,null,null,0,0,0,null,null,null,0,null,null,null,null,null,null,null,0,0,null,null,0,null,null,0]
[92,null,null,null,null,null,null,null,null,null,null,null,null,null,null,null,null,null,null,null,null,null,null,null,null,0,0,0,null,null,null,0,null,null,null,null,null,null,null,0,0,null,null,0,null,null,0]
[93,null,null,null,null,null,null,null,null,null,null,null,null,null,null,null,null,null,null,null,null,null,null,null,null,0,0,0,null,null,null,0,null,null,null,null,null,null,null,0,0,null,null,0,null,null,0]
[94,null,null,null,null,null,null,null,null,null,null,null,null,null,null,null,null,null,null,null,null,null,null,null,null,0,0,0,null,null,null,0,null,null,null,null,null,null,null,0,0,null,null,0,null,null,0]
[95,null,null,null,null,null,null,null,null,null,null,null,null,null,null,null,null,null,null,null,null,null,null,null,null,0,0,0,null,null,null,0,null,null,null,null,null,null,null,0,0,null,null,0,null,null,0]
[96,null,null,null,null,null,null,null,null,null,null,null,null,null,null,null,null,null,null,null,null,null,null,null,null,0,0,0,null,null,null,0,null,null,null,null,null,null,null,0,0,null,null,0,null,null,0]
[97,null,null,null,null,null,null,null,null,null,null,null,null,null,null,null,null,null,null,null,null,null,null,null,null,0,0,0,null,null,null,0,null,null,null,null,null,null,null,0,0,null,null,0,null,null,0]
[98,null,null,null,null,null,null,null,null,null,null,null,null,null,null,null,null,null,null,null,null,null,null,null,null,0,0,0,null,null,null,0,null,null,null,null,null,null,null,0,0,null,null,0,null,null,0]
[99,null,null,null,null,null,null,null,null,null,null,null,null,null,null,null,null,null,null,null,null,null,null,null,null,0,0,0,null,null,null,0,null,null,null,null,null,null,null,0,0,null,null,0,null,null,0]
[100,null,null,null,null,null,null,null,null,null,null,null,null,null,null,null,null,null,null,null,null,null,null,null,null,0,0,0,null,null,null,0,null,null,null,null,null,null,null,0,0,null,null,0,null,null,0]
[101,null,null,null,null,null,null,null,null,null,null,null,null,null,null,null,null,null,null,null,null,null,null,null,null,0,0,0,null,null,null,0,null,null,null,null,null,null,null,0,0,null,null,0,null,null,0]
[102,null,null,null,null,null,null,null,null,null,null,null,null,null,null,null,null,null,null,null,null,null,null,null,null,0,0,0,null,null,null,0,null,null,null,null,null,null,null,0,0,null,null,0,null,null,0]
[103,null,null,null,null,null,null,null,null,null,null,null,null,null,null,null,null,null,null,null,null,null,null,null,null,0,0,0,null,null,null,0,null,null,null,null,null,null,null,0,0,null,null,0,null,null,0]
[104,null,null,null,null,null,null,null,null,null,null,null,null,null,null,null,null,null,null,null,null,null,null,null,null,0,0,0,null,null,null,0,null,null,null,null,null,null,null,0,0,null,null,0,null,null,0]
[105,null,null,null,null,null,null,null,null,null,null,null,null,null,null,null,null,null,null,null,null,null,null,null,null,0,0,0,null,null,null,0,null,null,null,null,null,null,null,0,0,null,null,0,null,null,0]
[106,null,null,null,null,null,null,null,null,null,null,null,null,null,null,null,null,null,null,null,null,null,null,null,null,0,0,0,null,null,null,0,null,null,null,null,null,null,null,0,0,null,null,0,null,null,0]
[107,null,null,null,null,null,null,null,null,null,null,null,null,null,null,null,null,null,null,null,null,null,null,null,null,0,0,0,null,null,null,0,null,null,null,null,null,null,null,0,0,null,null,0,null,null,0]
[108,null,null,null,null,null,null,null,null,null,null,null,null,null,null,null,null,null,null,null,null,null,null,null,null,0,0,0,null,null,null,0,null,null,null,null,null,null,null,0,0,null,null,0,null,null,0]
[109,null,null,null,null,null,null,null,null,null,null,null,null,null,null,null,null,null,null,null,null,null,null,null,null,0,0,0,null,null,null,0,null,null,null,null,null,null,null,0,0,null,null,0,null,null,0]
[110,"Kruse, Brigitte",null,null,null,null,null,null,null,null,null,null,null,null,null,null,null,null,null,null,null,null,null,null,null,0,0,0,null,null,null,0,null,null,null,null,null,null,null,0,0,null,null,0,null,0,0]
[111,null,null,null,null,null,null,null,null,null,null,null,null,null,null,null,null,null,null,null,null,null,null,null,null,0,0,0,null,null,null,0,null,null,null,null,null,null,null,0,0,null,null,0,null,null,0]
[112,null,null,null,null,null,null,null,null,null,null,null,null,null,null,null,null,null,null,null,null,null,null,null,null,0,0,0,null,null,null,0,null,null,null,null,null,null,null,0,0,null,null,0,null,null,0]
[113,null,null,null,null,null,null,null,null,null,null,null,null,null,null,null,null,null,null,null,null,null,null,null,null,0,0,0,null,null,null,0,null,null,null,null,null,null,null,0,0,null,null,0,null,null,0]
[114,null,null,null,null,null,null,null,null,null,null,null,null,null,null,null,null,null,null,null,null,null,null,null,null,0,0,0,null,null,null,0,null,null,null,null,null,null,null,0,0,null,null,0,null,null,0]
[115,null,null,null,null,null,null,null,null,null,null,null,null,null,null,null,null,null,null,null,null,null,null,null,null,0,0,0,null,null,null,0,null,null,null,null,null,null,null,0,0,null,null,0,null,null,0]
[116,null,null,null,null,null,null,null,null,null,null,null,null,null,null,null,null,null,null,null,null,null,null,null,null,0,0,0,null,null,null,0,null,null,null,null,null,null,null,0,0,null,null,0,null,null,0]
[117,null,null,null,null,null,null,null,null,null,null,null,null,null,null,null,null,null,null,null,null,null,null,null,null,0,0,0,null,null,null,0,null,null,null,null,null,null,null,0,0,null,null,0,null,null,0]
[118,null,null,null,null,null,null,null,null,null,null,null,null,null,null,null,null,null,null,null,null,null,null,null,null,0,0,0,null,null,null,0,null,null,null,null,null,null,null,0,0,null,null,0,null,null,0]
[119,null,null,null,null,null,null,null,null,null,null,null,null,null,null,null,null,null,null,null,null,null,null,null,null,0,0,0,null,null,null,0,null,null,null,null,null,null,null,0,0,null,null,0,null,null,0]
[120,null,null,null,null,null,null,null,null,null,null,null,null,null,null,null,null,null,null,null,null,null,null,null,null,0,0,0,null,null,null,0,null,null,null,null,null,null,null,0,0,null,null,0,null,null,0]
[121,null,null,null,null,null,null,null,null,null,null,null,null,null,null,null,null,null,null,null,null,null,null,null,null,0,0,0,null,null,null,0,null,null,null,null,null,null,null,0,0,null,null,0,null,null,0]
[122,null,null,null,null,null,null,null,null,null,null,null,null,null,null,null,null,null,null,null,null,null,null,null,null,0,0,0,null,null,null,0,null,null,null,null,null,null,null,0,0,null,null,0,null,null,0]
[123,null,null,null,null,null,null,null,null,null,null,null,null,null,null,null,null,null,null,null,null,null,null,null,null,0,0,0,null,null,null,0,null,null,null,null,null,null,null,0,0,null,null,0,null,null,0]
[124,null,null,null,null,null,null,null,null,null,null,null,null,null,null,null,null,null,null,null,null,null,null,null,null,0,0,0,null,null,null,0,null,null,null,null,null,null,null,0,0,null,null,0,null,null,0]
[125,null,null,null,null,null,null,null,null,null,null,null,null,null,null,null,null,null,null,null,null,null,null,null,null,0,0,0,null,null,null,0,null,null,null,null,null,null,null,0,0,null,null,0,null,null,0]
[126,null,null,null,null,null,null,null,null,null,null,null,null,null,null,null,null,null,null,null,null,null,null,null,null,0,0,0,null,null,null,0,null,null,null,null,null,null,null,0,0,null,null,0,null,null,0]
[127,null,null,null,null,null,null,null,null,null,null,null,null,null,null,null,null,null,null,null,null,null,null,null,null,0,0,0,null,null,null,0,null,null,null,null,null,null,null,0,0,null,null,0,null,null,0]
[128,null,null,null,null,null,null,null,null,null,null,null,null,null,null,null,null,null,null,null,null,null,null,null,null,0,0,0,null,null,null,0,null,null,null,null,null,null,null,0,0,null,null,0,null,null,0]
[129,null,null,null,null,null,null,null,null,null,null,null,null,null,null,null,null,null,null,null,null,null,null,null,null,{"$f":"SUM(C130:Y130)","v":0},0,{"$f":"SUM(Z130*2.25)","v":0},null,null,null,0,null,null,null,null,null,null,null,{"$f":"AB130+AF130+AG130+AI130+AJ130+AK130+AL130+AM130+AH130","v":0},0,null,null,{"$f":"AN130+AO130+AP130+AQ130","v":0},null,null,0]
[130,null,null,null,null,null,null,null,null,null,null,null,null,null,null,null,null,null,null,null,null,null,null,null,null,0,0,0,null,null,null,{"$f":"(AC131+AD131+AE131)*2.25","v":0},null,null,null,null,null,null,null,0,0,null,null,0,null,null,0]
[131,null,null,null,null,null,null,null,null,null,null,null,null,null,null,null,null,null,null,null,null,null,null,null,null,0,0,0,null,null,null,0,null,null,null,null,null,null,null,0,{"$f":"Z132*2.75","v":0},null,null,0,null,null,{"$f":"$AU$1*AT132","v":0}]
[132,null,null,null,null,null,null,null,null,null,null,null,null,null,null,null,null,null,null,null,null,null,null,null,null,0,0,0,null,null,null,0,null,null,null,null,null,null,null,0,0,null,null,0,null,null,0]
[133,null,null,null,null,null,null,null,null,null,null,null,null,null,null,null,null,null,null,null,null,null,null,null,null,0,{"$f":"Z134/4","v":0},0,null,null,null,0,null,null,null,null,null,null,null,0,0,null,null,0,null,null,0]
[134,null,null,null,null,null,null,null,null,null,null,null,null,null,null,null,null,null,null,null,null,null,null,null,null,0,0,0,null,null,null,0,null,null,null,null,null,null,null,0,0,null,null,0,null,null,0]
[135,null,null,null,null,null,null,null,null,null,null,null,null,null,null,null,null,null,null,null,null,null,null,null,null,0,0,0,null,null,null,0,null,null,null,null,null,null,null,0,0,null,null,0,null,null,0]
[136,null,null,null,null,null,null,null,null,null,null,null,null,null,null,null,null,null,null,null,null,null,null,null,null,0,0,0,null,null,null,0,null,null,null,null,null,null,null,0,0,null,null,0,null,null,0]
[137,null,null,null,null,null,null,null,null,null,null,null,null,null,null,null,null,null,null,null,null,null,null,null,null,0,0,0,null,null,null,0,null,null,null,null,null,null,null,0,0,null,null,0,null,null,0]
[138,null,null,null,null,null,null,null,null,null,null,null,null,null,null,null,null,null,null,null,null,null,null,null,null,0,0,0,null,null,null,0,null,null,null,null,null,null,null,0,0,null,null,0,null,null,0]
[139,null,null,null,null,null,null,null,null,null,null,null,null,null,null,null,null,null,null,null,null,null,null,null,null,0,0,0,null,null,null,0,null,null,null,null,null,null,null,0,0,null,null,0,null,null,0]
[140,null,null,null,null,null,null,null,null,null,null,null,null,null,null,null,null,null,null,null,null,null,null,null,null,0,0,0,null,null,null,0,null,null,null,null,null,null,null,0,0,null,null,0,null,null,0]
[141,null,null,null,null,null,null,null,null,null,null,null,null,null,null,null,null,null,null,null,null,null,null,null,null,0,0,0,null,null,null,0,null,null,null,null,null,null,null,0,0,null,null,0,null,null,0]
[142,null,null,null,null,null,null,null,null,null,null,null,null,null,null,null,null,null,null,null,null,null,null,null,null,0,0,0,null,null,null,0,null,null,null,null,null,null,null,0,0,null,null,0,null,null,0]
[143,null,null,null,null,null,null,null,null,null,null,null,null,null,null,null,null,null,null,null,null,null,null,null,null,0,0,0,null,null,null,0,null,null,null,null,null,null,null,0,0,null,null,0,null,null,0]
[144,null,null,null,null,null,null,null,null,null,null,null,null,null,null,null,null,null,null,null,null,null,null,null,null,0,0,0,null,null,null,0,null,null,null,null,null,null,null,0,0,null,null,0,null,null,0]
[145,null,null,null,null,null,null,null,null,null,null,null,null,null,null,null,null,null,null,null,null,null,null,null,null,0,0,0,null,null,null,0,null,null,null,null,null,null,null,0,0,null,null,0,null,null,0]
[146,null,null,null,null,null,null,null,null,null,null,null,null,null,null,null,null,null,null,null,null,null,null,null,null,0,0,0,null,null,null,0,null,null,null,null,null,null,null,0,0,null,null,0,null,null,0]
[147,null,null,null,null,null,null,null,null,null,null,null,null,null,null,null,null,null,null,null,null,null,null,null,null,0,0,0,null,null,null,0,null,null,null,null,null,null,null,0,0,null,null,0,null,null,0]
[148,null,null,null,null,null,null,null,null,null,null,null,null,null,null,null,null,null,null,null,null,null,null,null,null,0,0,0,null,null,null,0,null,null,null,null,null,null,null,0,0,null,null,0,null,null,0]
[149,null,null,null,null,null,null,null,null,null,null,null,null,null,null,null,null,null,null,null,null,null,null,null,null,0,0,0,null,null,null,0,null,null,null,null,null,null,null,0,0,null,null,0,null,null,0]
[150,null,null,null,null,null,null,null,null,null,null,null,null,null,null,null,null,null,null,null,null,null,null,null,null,0,0,0,null,null,null,0,null,null,null,null,null,null,null,0,0,null,null,0,null,null,0]
[151,null,null,null,null,null,null,null,null,null,null,null,null,null,null,null,null,null,null,null,null,null,null,null,null,0,0,0,null,null,null,0,null,null,null,null,null,null,null,0,0,null,null,0,null,null,0]
[152,null,null,null,null,null,null,null,null,null,null,null,null,null,null,null,null,null,null,null,null,null,null,null,null,0,0,0,null,null,null,0,null,null,null,null,null,null,null,0,0,null,null,0,null,null,0]
[153,null,null,null,null,null,null,null,null,null,null,null,null,null,null,null,null,null,null,null,null,null,null,null,null,0,0,0,null,null,null,0,null,null,null,null,null,null,null,0,0,null,null,0,null,null,0]
[154,null,null,null,null,null,null,null,null,null,null,null,null,null,null,null,null,null,null,null,null,null,null,null,null,0,0,0,null,null,null,0,null,null,null,null,null,null,null,0,0,null,null,0,null,null,0]
[155,null,null,null,null,null,null,null,null,null,null,null,null,null,null,null,null,null,null,null,null,null,null,null,null,0,0,0,null,null,null,0,null,null,null,null,null,null,null,0,0,null,null,0,null,null,0]
[156,null,null,null,null,null,null,null,null,null,null,null,null,null,null,null,null,null,null,null,null,null,null,null,null,0,0,0,null,null,null,0,null,null,null,null,null,null,null,0,0,null,null,0,null,null,0]
[157,null,null,null,null,null,null,null,null,null,null,null,null,null,null,null,null,null,null,null,null,null,null,null,null,0,0,0,null,null,null,0,null,null,null,null,null,null,null,0,0,null,null,0,null,null,0]
[158,null,null,null,null,null,null,null,null,null,null,null,null,null,null,null,null,null,null,null,null,null,null,null,null,0,0,0,null,null,null,0,null,null,null,null,null,null,null,0,0,null,null,0,null,null,0]
[159,null,null,null,null,null,null,null,null,null,null,null,null,null,null,null,null,null,null,null,null,null,null,null,null,0,0,0,null,null,null,0,null,null,null,null,null,null,null,0,0,null,null,0,null,null,0]
[160,null,null,null,null,null,null,null,null,null,null,null,null,null,null,null,null,null,null,null,null,null,null,null,null,0,0,0,null,null,null,0,null,null,null,null,null,null,null,0,0,null,null,0,null,null,0]
[161,null,null,null,null,null,null,null,null,null,null,null,null,null,null,null,null,null,null,null,null,null,null,null,null,0,0,0,null,null,null,0,null,null,null,null,null,null,null,0,0,null,null,0,null,null,0]
[162,null,null,null,null,null,null,null,null,null,null,null,null,null,null,null,null,null,null,null,null,null,null,null,null,0,0,0,null,null,null,0,null,null,null,null,null,null,null,0,0,null,null,0,null,null,0]
[163,null,null,null,null,null,null,null,null,null,null,null,null,null,null,null,null,null,null,null,null,null,null,null,null,0,0,0,null,null,null,0,null,null,null,null,null,null,null,0,0,null,null,0,null,null,0]
[164,null,null,null,null,null,null,null,null,null,null,null,null,null,null,null,null,null,null,null,null,null,null,null,null,0,0,0,null,null,null,0,null,null,null,null,null,null,null,0,0,null,null,0,null,null,0]
[165,null,null,null,null,null,null,null,null,null,null,null,null,null,null,null,null,null,null,null,null,null,null,null,null,0,0,0,null,null,null,0,null,null,null,null,null,null,null,0,0,null,null,0,null,null,0]
[166,null,null,null,null,null,null,null,null,null,null,null,null,null,null,null,null,null,null,null,null,null,null,null,null,0,0,0,null,null,null,0,null,null,null,null,null,null,null,0,0,null,null,0,null,null,0]
[167,null,null,null,null,null,null,null,null,null,null,null,null,null,null,null,null,null,null,null,null,null,null,null,null,0,0,0,null,null,null,0,null,null,null,null,null,null,null,0,0,null,null,0,null,null,0]
[168,null,null,null,null,null,null,null,null,null,null,null,null,null,null,null,null,null,null,null,null,null,null,null,null,0,0,0,null,null,null,0,null,null,null,null,null,null,null,0,0,null,null,0,null,null,0]
[169,null,null,null,null,null,null,null,null,null,null,null,null,null,null,null,null,null,null,null,null,null,null,null,null,0,0,0,null,null,null,0,null,null,null,null,null,null,null,0,0,null,null,0,null,null,0]
[170,null,null,null,null,null,null,null,null,null,null,null,null,null,null,null,null,null,null,null,null,null,null,null,null,0,0,0,null,null,null,0,null,null,null,null,null,null,null,0,0,null,null,0,null,null,0]
[171,null,null,null,null,null,null,null,null,null,null,null,null,null,null,null,null,null,null,null,null,null,null,null,null,0,0,0,null,null,null,0,null,null,null,null,null,null,null,0,0,null,null,0,null,null,0]
[172,null,null,null,null,null,null,null,null,null,null,null,null,null,null,null,null,null,null,null,null,null,null,null,null,0,0,0,null,null,null,0,null,null,null,null,null,null,null,0,0,null,null,0,null,null,0]
[173,null,null,null,null,null,null,null,null,null,null,null,null,null,null,null,null,null,null,null,null,null,null,null,null,0,0,0,null,null,null,0,null,null,null,null,null,null,null,0,0,null,null,0,null,null,0]
[174,null,null,null,null,null,null,null,null,null,null,null,null,null,null,null,null,null,null,null,null,null,null,null,null,0,0,0,null,null,null,0,null,null,null,null,null,null,null,0,0,null,null,0,null,null,0]
[175,null,null,null,null,null,null,null,null,null,null,null,null,null,null,null,null,null,null,null,null,null,null,null,null,0,0,0,null,null,null,0,null,null,null,null,null,null,null,0,0,null,null,0,null,null,0]
[176,null,null,null,null,null,null,null,null,null,null,null,null,null,null,null,null,null,null,null,null,null,null,null,null,0,0,0,null,null,null,0,null,null,null,null,null,null,null,0,0,null,null,0,null,null,0]
[177,null,null,null,null,null,null,null,null,null,null,null,null,null,null,null,null,null,null,null,null,null,null,null,null,0,0,0,null,null,null,0,null,null,null,null,null,null,null,0,0,null,null,0,null,null,0]
[178,null,null,null,null,null,null,null,null,null,null,null,null,null,null,null,null,null,null,null,null,null,null,null,null,0,0,0,null,null,null,0,null,null,null,null,null,null,null,0,0,null,null,0,null,null,0]
[179,null,null,null,null,null,null,null,null,null,null,null,null,null,null,null,null,null,null,null,null,null,null,null,null,0,0,0,null,null,null,0,null,null,null,null,null,null,null,0,0,null,null,0,null,null,0]
[180,null,null,null,null,null,null,null,null,null,null,null,null,null,null,null,null,null,null,null,null,null,null,null,null,0,0,0,null,null,null,0,null,null,null,null,null,null,null,0,0,null,null,0,null,null,0]
[181,null,null,null,null,null,null,null,null,null,null,null,null,null,null,null,null,null,null,null,null,null,null,null,null,0,0,0,null,null,null,0,null,null,null,null,null,null,null,0,0,null,null,0,null,null,0]
[182,null,null,null,null,null,null,null,null,null,null,null,null,null,null,null,null,null,null,null,null,null,null,null,null,0,0,0,null,null,null,0,null,null,null,null,null,null,null,0,0,null,null,0,null,null,0]
[183,null,null,null,null,null,null,null,null,null,null,null,null,null,null,null,null,null,null,null,null,null,null,null,null,0,0,0,null,null,null,0,null,null,null,null,null,null,null,0,0,null,null,0,null,null,0]
[184,null,null,null,null,null,null,null,null,null,null,null,null,null,null,null,null,null,null,null,null,null,null,null,null,0,0,0,null,null,null,0,null,null,null,null,null,null,null,0,0,null,null,0,null,null,0]
[185,null,null,null,null,null,null,null,null,null,null,null,null,null,null,null,null,null,null,null,null,null,null,null,null,0,0,0,null,null,null,0,null,null,null,null,null,null,null,0,0,null,null,0,null,null,0]
[186,null,null,null,null,null,null,null,null,null,null,null,null,null,null,null,null,null,null,null,null,null,null,null,null,0,0,0,null,null,null,0,null,null,null,null,null,null,null,0,0,null,null,0,null,null,0]
[187,null,null,null,null,null,null,null,null,null,null,null,null,null,null,null,null,null,null,null,null,null,null,null,null,0,0,0,null,null,null,0,null,null,null,null,null,null,null,0,0,null,null,0,null,null,0]
[188,null,null,null,null,null,null,null,null,null,null,null,null,null,null,null,null,null,null,null,null,null,null,null,null,0,0,0,null,null,null,0,null,null,null,null,null,null,null,0,0,null,null,0,null,null,0]
[189,null,null,null,null,null,null,null,null,null,null,null,null,null,null,null,null,null,null,null,null,null,null,null,null,0,0,0,null,null,null,0,null,null,null,null,null,null,null,0,0,null,null,0,null,null,0]
[190,null,null,null,null,null,null,null,null,null,null,null,null,null,null,null,null,null,null,null,null,null,null,null,null,0,0,0,null,null,null,0,null,null,null,null,null,null,null,0,0,null,null,0,null,null,0]
[191,null,null,null,null,null,null,null,null,null,null,null,null,null,null,null,null,null,null,null,null,null,null,null,null,0,0,0,null,null,null,0,null,null,null,null,null,null,null,0,0,null,null,0,null,null,0]
[192,null,null,null,null,null,null,null,null,null,null,null,null,null,null,null,null,null,null,null,null,null,null,null,null,0,0,0,null,null,null,0,null,null,null,null,null,null,null,0,0,null,null,0,null,null,0]
[193,null,null,null,null,null,null,null,null,null,null,null,null,null,null,null,null,null,null,null,null,null,null,null,null,{"$f":"SUM(C194:Y194)","v":0},0,{"$f":"SUM(Z194*2.25)","v":0},null,null,null,0,null,null,null,null,null,null,null,{"$f":"AB194+AF194+AG194+AI194+AJ194+AK194+AL194+AM194+AH194","v":0},0,null,null,{"$f":"AN194+AO194+AP194+AQ194","v":0},null,null,0]
[194,null,null,null,null,null,null,null,null,null,null,null,null,null,null,null,null,null,null,null,null,null,null,null,null,0,0,0,null,null,null,{"$f":"(AC195+AD195+AE195)*2.25","v":0},null,null,null,null,null,null,null,0,0,null,null,0,null,null,0]
[195,null,null,null,null,null,null,null,null,null,null,null,null,null,null,null,null,null,null,null,null,null,null,null,null,0,0,0,null,null,null,0,null,null,null,null,null,null,null,0,{"$f":"Z196*2.75","v":0},null,null,0,null,null,{"$f":"$AU$1*AT196","v":0}]
[196,null,null,null,null,null,null,null,null,null,null,null,null,null,null,null,null,null,null,null,null,null,null,null,null,0,0,0,null,null,null,0,null,null,null,null,null,null,null,0,0,null,null,0,null,null,0]
[197,null,null,null,null,null,null,null,null,null,null,null,null,null,null,null,null,null,null,null,null,null,null,null,null,0,{"$f":"Z198/4","v":0},0,null,null,null,0,null,null,null,null,null,null,null,0,0,null,null,0,null,null,0]
[198,null,null,null,null,null,null,null,null,null,null,null,null,null,null,null,null,null,null,null,null,null,null,null,null,0,0,0,null,null,null,0,null,null,null,null,null,null,null,0,0,null,null,0,null,null,0]
[199,null,null,null,null,null,null,null,null,null,null,null,null,null,null,null,null,null,null,null,null,null,null,null,null,0,0,0,null,null,null,0,null,null,null,null,null,null,null,0,0,null,null,0,null,null,0]
[200,null,null,null,null,null,null,null,null,null,null,null,null,null,null,null,null,null,null,null,null,null,null,null,null,0,0,0,null,null,null,0,null,null,null,null,null,null,null,0,0,null,null,0,null,null,0]
[201,null,null,null,null,null,null,null,null,null,null,null,null,null,null,null,null,null,null,null,null,null,null,null,null,0,0,0,null,null,null,0,null,null,null,null,null,null,null,0,0,null,null,0,null,null,0]
[202,null,null,null,null,null,null,null,null,null,null,null,null,null,null,null,null,null,null,null,null,null,null,null,null,0,0,0,null,null,null,0,null,null,null,null,null,null,null,0,0,null,null,0,null,null,0]
[203,null,null,null,null,null,null,null,null,null,null,null,null,null,null,null,null,null,null,null,null,null,null,null,null,0,0,0,null,null,null,0,null,null,null,null,null,null,null,0,0,null,null,0,null,null,0]
[204,null,null,null,null,null,null,null,null,null,null,null,null,null,null,null,null,null,null,null,null,null,null,null,null,0,0,0,null,null,null,0,null,null,null,null,null,null,null,0,0,null,null,0,null,null,0]
[205,null,null,null,null,null,null,null,null,null,null,null,null,null,null,null,null,null,null,null,null,null,null,null,null,0,0,0,null,null,null,0,null,null,null,null,null,null,null,0,0,null,null,0,null,null,0]
[206,null,null,null,null,null,null,null,null,null,null,null,null,null,null,null,null,null,null,null,null,null,null,null,null,0,0,0,null,null,null,0,null,null,null,null,null,null,null,0,0,null,null,0,null,null,0]
[207,null,null,null,null,null,null,null,null,null,null,null,null,null,null,null,null,null,null,null,null,null,null,null,null,0,0,0,null,null,null,0,null,null,null,null,null,null,null,0,0,null,null,0,null,null,0]
[208,null,null,null,null,null,null,null,null,null,null,null,null,null,null,null,null,null,null,null,null,null,null,null,null,0,0,0,null,null,null,0,null,null,null,null,null,null,null,0,0,null,null,0,null,null,0]
[209,null,null,null,null,null,null,null,null,null,null,null,null,null,null,null,null,null,null,null,null,null,null,null,null,0,0,0,null,null,null,0,null,null,null,null,null,null,null,0,0,null,null,0,null,null,0]
[210,"Hachmeister, Christel",null,null,null,null,null,null,null,null,null,null,null,null,null,null,null,null,null,null,null,null,null,null,null,0,0,0,null,null,null,0,null,null,null,null,null,null,null,0,0,null,null,0,null,10,25.5]
[211," ",null,null,null,null,null,null,null,null,null,null,null,null,null,null,null,null,null,null,null,null,null,null,null,{"$f":"SUM(C212:Y212)","v":0},null,0,null,null,null,0,null,null,null,null,null,null,null,0,0,null,null,0,null,null,0]
[212," ",null,null,null,null,null,null,null,null,null,null,null,null,null,null,null,null,null,null,null,null,null,null,null,0,null,0,null,null,null,0,null,null,null,null,null,null,null,0,0,null,null,0,null,null,0]
[213," ",null,null,null,null,null,null,null,null,null,null,null,null,null,null,null,null,null,null,null,null,null,null,null,0,null,0,null,null,null,0,null,null,null,null,null,null,null,0,0,null,null,0,null,null,0]
[214," ",null,null,null,null,null,null,null,null,null,null,null,null,null,null,null,null,null,null,null,null,null,null,null,0,null,0,null,null,null,0,null,null,null,null,null,null,null,0,0,null,null,0,null,null,0]
[215," ",null,null,null,null,null,null,null,null,null,null,null,null,null,null,null,null,null,null,null,null,null,null,null,0,null,0,null,null,null,0,null,null,null,null,null,null,null,0,0,null,null,0,null,null,0]
[216," ",null,null,null,null,null,null,null,null,null,null,null,null,null,null,null,null,null,null,null,null,null,null,null,0,null,0,null,null,null,0,null,null,null,null,null,null,null,0,0,null,null,0,null,null,0]
[217," ",null,null,null,null,null,null,null,null,null,null,null,null,null,null,null,null,null,null,null,null,null,null,null,0,null,0,null,null,null,0,null,null,null,null,null,null,null,0,0,null,null,0,null,null,0]
[218," ",null,null,null,null,null,null,null,null,null,null,null,null,null,null,null,null,null,null,null,null,null,null,null,0,null,0,null,null,null,0,null,null,null,null,null,null,null,0,0,null,null,0,null,null,0]
[219," ",null,null,null,null,null,null,null,null,null,null,null,null,null,null,null,null,null,null,null,null,null,null,null,0,null,0,null,null,null,0,null,null,null,null,null,null,null,0,0,null,null,0,null,null,0]
[220," ",null,null,null,null,null,null,null,null,null,null,null,null,null,null,null,null,null,null,null,null,null,null,null,0,null,0,null,null,null,0,null,null,null,null,null,null,null,0,0,null,null,0,null,null,0]
[221," ",null,null,null,null,null,null,null,null,null,null,null,null,null,null,null,null,null,null,null,null,null,null,null,0,null,0,null,null,null,0,null,null,null,null,null,null,null,0,0,null,null,0,null,null,0]
[222," ",null,null,null,null,null,null,null,null,null,null,null,null,null,null,null,null,null,null,null,null,null,null,null,0,null,0,null,null,null,0,null,null,null,null,null,null,null,0,0,null,null,0,null,null,0]
[223," ",null,null,null,null,null,null,null,null,null,null,null,null,null,null,null,null,null,null,null,null,null,null,null,0,null,0,null,null,null,0,null,null,null,null,null,null,null,0,0,null,null,0,null,null,0]
[224," ",null,null,null,null,null,null,null,null,null,null,null,null,null,null,null,null,null,null,null,null,null,null,null,0,null,0,null,null,null,0,null,null,null,null,null,null,null,0,0,null,null,0,null,null,0]
[225," ",null,null,null,null,null,null,null,null,null,null,null,null,null,null,null,null,null,null,null,null,null,null,null,0,null,0,null,null,null,0,null,null,null,null,null,null,null,0,0,null,null,0,null,null,0]
[226," ",null,null,null,null,null,null,null,null,null,null,null,null,null,null,null,null,null,null,null,null,null,null,null,0,null,0,null,null,null,0,null,null,null,null,null,null,null,0,0,null,null,0,null,null,0]
[227," ",null,null,null,null,null,null,null,null,null,null,null,null,null,null,null,null,null,null,null,null,null,null,null,0,null,0,null,null,null,0,null,null,null,null,null,null,null,0,0,null,null,0,null,null,0]
[228," ",null,null,null,null,null,null,null,null,null,null,null,null,null,null,null,null,null,null,null,null,null,null,null,0,null,0,null,null,null,0,null,null,null,null,null,null,null,0,0,null,null,0,null,null,0]
[229," ",null,null,null,null,null,null,null,null,null,null,null,null,null,null,null,null,null,null,null,null,null,null,null,0,null,0,null,null,null,0,null,null,null,null,null,null,null,0,0,null,null,0,null,null,0]
[230," ",null,null,null,null,null,null,null,null,null,null,null,null,null,null,null,null,null,null,null,null,null,null,null,0,null,0,null,null,null,0,null,null,null,null,null,null,null,0,0,null,null,0,null,null,0]
[231," ",null,null,null,null,null,null,null,null,null,null,null,null,null,null,null,null,null,null,null,null,null,null,null,0,null,0,null,null,null,0,null,null,null,null,null,null,null,0,0,null,null,0,null,null,0]
[232," ",null,null,null,null,null,null,null,null,null,null,null,null,null,null,null,null,null,null,null,null,null,null,null,0,null,0,null,null,null,0,null,null,null,null,null,null,null,0,0,null,null,0,null,null,0]
[233," ",null,null,null,null,null,null,null,null,null,null,null,null,null,null,null,null,null,null,null,null,null,null,null,0,null,0,null,null,null,0,null,null,null,null,null,null,null,0,0,null,null,0,null,null,0]
[234," ",null,null,null,null,null,null,null,null,null,null,null,null,null,null,null,null,null,null,null,null,null,null,null,0,null,0,null,null,null,0,null,null,null,null,null,null,null,0,0,null,null,0,null,null,0]
[235," ",null,null,null,null,null,null,null,null,null,null,null,null,null,null,null,null,null,null,null,null,null,null,null,0,null,0,null,null,null,0,null,null,null,null,null,null,null,0,0,null,null,0,null,null,0]
[236," ",null,null,null,null,null,null,null,null,null,null,null,null,null,null,null,null,null,null,null,null,null,null,null,0,null,0,null,null,null,0,null,null,null,null,null,null,null,0,0,null,null,0,null,null,0]
[237," ",null,null,null,null,null,null,null,null,null,null,null,null,null,null,null,null,null,null,null,null,null,null,null,0,null,0,null,null,null,0,null,null,null,null,null,null,null,0,0,null,null,0,null,null,0]
[238," ",null,null,null,null,null,null,null,null,null,null,null,null,null,null,null,null,null,null,null,null,null,null,null,0,null,0,null,null,null,0,null,null,null,null,null,null,null,0,0,null,null,0,null,null,0]
[239," ",null,null,null,null,null,null,null,null,null,null,null,null,null,null,null,null,null,null,null,null,null,null,null,0,null,0,null,null,null,0,null,null,null,null,null,null,null,0,0,null,null,0,null,null,0]
[240," ",null,null,null,null,null,null,null,null,null,null,null,null,null,null,null,null,null,null,null,null,null,null,null,0,null,0,null,null,null,0,null,null,null,null,null,null,null,0,0,null,null,0,null,null,0]
[241," ",null,null,null,null,null,null,null,null,null,null,null,null,null,null,null,null,null,null,null,null,null,null,null,0,null,0,null,null,null,0,null,null,null,null,null,null,null,0,0,null,null,0,null,null,0]
[242," ",null,null,null,null,null,null,null,null,null,null,null,null,null,null,null,null,null,null,null,null,null,null,null,0,null,0,null,null,null,0,null,null,null,null,null,null,null,0,0,null,null,0,null,null,0]
[243," ",null,null,null,null,null,null,null,null,null,null,null,null,null,null,null,null,null,null,null,null,null,null,null,0,null,0,null,null,null,0,null,null,null,null,null,null,null,0,0,null,null,0,null,null,0]
[244," ",null,null,null,null,null,null,null,null,null,null,null,null,null,null,null,null,null,null,null,null,null,null,null,0,null,0,null,null,null,0,null,null,null,null,null,null,null,0,0,null,null,0,null,null,0]
[245," ",null,null,null,null,null,null,null,null,null,null,null,null,null,null,null,null,null,null,null,null,null,null,null,0,null,0,null,null,null,0,null,null,null,null,null,null,null,0,0,null,null,0,null,null,0]
[246," ",null,null,null,null,null,null,null,null,null,null,null,null,null,null,null,null,null,null,null,null,null,null,null,0,null,0,null,null,null,0,null,null,null,null,null,null,null,0,0,null,null,0,null,null,0]
[247," ",null,null,null,null,null,null,null,null,null,null,null,null,null,null,null,null,null,null,null,null,null,null,null,0,null,0,null,null,null,0,null,null,null,null,null,null,null,0,0,null,null,0,null,null,0]
[248," ",null,null,null,null,null,null,null,null,null,null,null,null,null,null,null,null,null,null,null,null,null,null,null,0,null,0,null,null,null,0,null,null,null,null,null,null,null,0,0,null,null,0,null,null,0]
[249,"Meier",null,null,null,null,null,null,null,null,null,null,null,null,null,null,null,null,null,null,null,null,null,null,null,0,null,0,null,null,null,0,null,null,null,null,null,null,null,0,0,null,null,0,null,0,0]
[250," ",null,null,null,null,null,null,null,null,null,null,null,null,null,null,null,null,null,null,null,null,null,null,null,0,null,0,null,null,null,0,null,null,null,null,null,null,null,0,{"$f":"Z251*2.55","v":0},null,null,0,null,null,0]
[251," ",null,null,null,null,null,null,null,null,null,null,null,null,null,null,null,null,null,null,null,null,null,null,null,0,null,0,null,null,null,0,null,null,null,null,null,null,null,0,0,null,null,0,null,null,0]
[252," ",null,null,null,null,null,null,null,null,null,null,null,null,null,null,null,null,null,null,null,null,null,null,null,0,null,0,null,null,null,0,null,null,null,null,null,null,null,0,0,null,null,0,null,null,0]
[253," ",null,null,null,null,null,null,null,null,null,null,null,null,null,null,null,null,null,null,null,null,null,null,null,0,null,0,null,null,null,0,null,null,null,null,null,null,null,0,0,null,null,0,null,null,0]
[254," ",null,null,null,null,null,null,null,null,null,null,null,null,null,null,null,null,null,null,null,null,null,null,null,0,null,0,null,null,null,0,null,null,null,null,null,null,null,0,0,null,null,0,null,null,0]
[255," ",null,null,null,null,null,null,null,null,null,null,null,null,null,null,null,null,null,null,null,null,null,null,null,0,null,0,null,null,null,0,null,null,null,null,null,null,null,0,0,null,null,0,null,null,0]
[256," ",null,null,null,null,null,null,null,null,null,null,null,null,null,null,null,null,null,null,null,null,null,null,null,0,null,0,null,null,null,0,null,null,null,null,null,null,null,0,0,null,null,0,null,null,0]
[257," ",null,null,null,null,null,null,null,null,null,null,null,null,null,null,null,null,null,null,null,null,null,null,null,{"$f":"SUM(C258:Y258)","v":0},null,{"$f":"SUM(Z258*2.25)","v":0},null,null,null,0,null,null,null,null,null,null,null,{"$f":"AB258+AF258+AG258+AI258+AJ258+AK258+AL258+AM258+AH258","v":0},0,null,null,{"$f":"AN258+AO258+AP258+AQ258","v":0},null,null,0]
[258," ",null,null,null,null,null,null,null,null,null,null,null,null,null,null,null,null,null,null,null,null,null,null,null,0,null,0,null,null,null,{"$f":"(AC259+AD259+AE259)*2.25","v":0},null,null,null,null,null,null,null,0,0,null,null,0,null,null,0]
[259," ",null,null,null,null,null,null,null,null,null,null,null,null,null,null,null,null,null,null,null,null,null,null,null,0,null,0,null,null,null,0,null,null,null,null,null,null,null,0,{"$f":"Z260*2.55","v":0},null,null,0,null,null,{"$f":"$AU$1*AT260","v":0}]
[260," ",null,null,null,null,null,null,null,null,null,null,null,null,null,null,null,null,null,null,null,null,null,null,null,0,null,0,null,null,null,0,null,null,null,null,null,null,null,0,0,null,null,0,null,null,0]
[261," ",null,null,null,null,null,null,null,null,null,null,null,null,null,null,null,null,null,null,null,null,null,null,null,0,null,0,null,null,null,0,null,null,null,null,null,null,null,0,0,null,null,0,null,null,0]
[262," ",null,null,null,null,null,null,null,null,null,null,null,null,null,null,null,null,null,null,null,null,null,null,null,0,null,0,null,null,null,0,null,null,null,null,null,null,null,0,0,null,null,0,null,null,0]
[263," ",null,null,null,null,null,null,null,null,null,null,null,null,null,null,null,null,null,null,null,null,null,null,null,0,null,0,null,null,null,0,null,null,null,null,null,null,null,0,0,null,null,0,null,null,0]
[264," ",null,null,null,null,null,null,null,null,null,null,null,null,null,null,null,null,null,null,null,null,null,null,null,0,null,0,null,null,null,0,null,null,null,null,null,null,null,0,0,null,null,0,null,null,0]
[265," ",null,null,null,null,null,null,null,null,null,null,null,null,null,null,null,null,null,null,null,null,null,null,null,0,null,0,null,null,null,0,null,null,null,null,null,null,null,0,0,null,null,0,null,null,0]
[266," ",null,null,null,null,null,null,null,null,null,null,null,null,null,null,null,null,null,null,null,null,null,null,null,0,null,0,null,null,null,0,null,null,null,null,null,null,null,0,0,null,null,0,null,null,0]
[267," ",null,null,null,null,null,null,null,null,null,null,null,null,null,null,null,null,null,null,null,null,null,null,null,0,null,0,null,null,null,0,null,null,null,null,null,null,null,0,0,null,null,0,null,null,0]
[268," ",null,null,null,null,null,null,null,null,null,null,null,null,null,null,null,null,null,null,null,null,null,null,null,0,null,0,null,null,null,0,null,null,null,null,null,null,null,0,0,null,null,0,null,null,0]
[269," ",null,null,null,null,null,null,null,null,null,null,null,null,null,null,null,null,null,null,null,null,null,null,null,0,null,0,null,null,null,0,null,null,null,null,null,null,null,0,0,null,null,0,null,null,0]
[270," ",null,null,null,null,null,null,null,null,null,null,null,null,null,null,null,null,null,null,null,null,null,null,null,0,null,0,null,null,null,0,null,null,null,null,null,null,null,0,0,null,null,0,null,null,0]
[271," ",null,null,null,null,null,null,null,null,null,null,null,null,null,null,null,null,null,null,null,null,null,null,null,0,null,0,null,null,null,0,null,null,null,null,null,null,null,0,0,null,null,0,null,null,0]
[272," ",null,null,null,null,null,null,null,null,null,null,null,null,null,null,null,null,null,null,null,null,null,null,null,0,null,0,null,null,null,0,null,null,null,null,null,null,null,0,0,null,null,0,null,null,0]
[273," ",null,null,null,null,null,null,null,null,null,null,null,null,null,null,null,null,null,null,null,null,null,null,null,0,null,0,null,null,null,0,null,null,null,null,null,null,null,0,0,null,null,0,null,null,0]
[274," ",null,null,null,null,null,null,null,null,null,null,null,null,null,null,null,null,null,null,null,null,null,null,null,0,null,0,null,null,null,0,null,null,null,null,null,null,null,0,0,null,null,0,null,null,0]
[275," ",null,null,null,null,null,null,null,null,null,null,null,null,null,null,null,null,null,null,null,null,null,null,null,0,null,0,null,null,null,0,null,null,null,null,null,null,null,0,0,null,null,0,null,null,0]
[276," ",null,null,null,null,null,null,null,null,null,null,null,null,null,null,null,null,null,null,null,null,null,null,null,0,null,0,null,null,null,0,null,null,null,null,null,null,null,0,0,null,null,0,null,null,0]
[277," ",null,null,null,null,null,null,null,null,null,null,null,null,null,null,null,null,null,null,null,null,null,null,null,0,null,0,null,null,null,0,null,null,null,null,null,null,null,0,0,null,null,0,null,null,0]
[278," ",null,null,null,null,null,null,null,null,null,null,null,null,null,null,null,null,null,null,null,null,null,null,null,0,null,0,null,null,null,0,null,null,null,null,null,null,null,0,0,null,null,0,null,null,0]
[279," ",null,null,null,null,null,null,null,null,null,null,null,null,null,null,null,null,null,null,null,null,null,null,null,0,null,0,null,null,null,0,null,null,null,null,null,null,null,0,0,null,null,0,null,null,0]
[280," ",null,null,null,null,null,null,null,null,null,null,null,null,null,null,null,null,null,null,null,null,null,null,null,0,null,0,null,null,null,0,null,null,null,null,null,null,null,0,0,null,null,0,null,null,0]
[281," ",null,null,null,null,null,null,null,null,null,null,null,null,null,null,null,null,null,null,null,null,null,null,null,0,null,0,null,null,null,0,null,null,null,null,null,null,null,0,0,null,null,0,null,null,0]
[282," ",null,null,null,null,null,null,null,null,null,null,null,null,null,null,null,null,null,null,null,null,null,null,null,0,null,0,null,null,null,0,null,null,null,null,null,null,null,0,0,null,null,0,null,null,0]
[283," ",null,null,null,null,null,null,null,null,null,null,null,null,null,null,null,null,null,null,null,null,null,null,null,0,null,0,null,null,null,0,null,null,null,null,null,null,null,0,0,null,null,0,null,null,0]
[284," ",null,null,null,null,null,null,null,null,null,null,null,null,null,null,null,null,null,null,null,null,null,null,null,0,null,0,null,null,null,0,null,null,null,null,null,null,null,0,0,null,null,0,null,null,0]
[285," ",null,null,null,null,null,null,null,null,null,null,null,null,null,null,null,null,null,null,null,null,null,null,null,0,null,0,null,null,null,0,null,null,null,null,null,null,null,0,0,null,null,0,null,null,0]
[286," ",null,null,null,null,null,null,null,null,null,null,null,null,null,null,null,null,null,null,null,null,null,null,null,0,null,0,null,null,null,0,null,null,null,null,null,null,null,0,0,null,null,0,null,null,0]
[287," ",null,null,null,null,null,null,null,null,null,null,null,null,null,null,null,null,null,null,null,null,null,null,null,0,null,0,null,null,null,0,null,null,null,null,null,null,null,0,0,null,null,0,null,null,0]
[288," ",null,null,null,null,null,null,null,null,null,null,null,null,null,null,null,null,null,null,null,null,null,null,null,0,null,0,null,null,null,0,null,null,null,null,null,null,null,0,0,null,null,0,null,null,0]
[289," ",null,null,null,null,null,null,null,null,null,null,null,null,null,null,null,null,null,null,null,null,null,null,null,0,null,0,null,null,null,0,null,null,null,null,null,null,null,0,0,null,null,0,null,null,0]
[290," ",null,null,null,null,null,null,null,null,null,null,null,null,null,null,null,null,null,null,null,null,null,null,null,0,null,0,null,null,null,0,null,null,null,null,null,null,null,0,0,null,null,0,null,null,0]
[291," ",null,null,null,null,null,null,null,null,null,null,null,null,null,null,null,null,null,null,null,null,null,null,null,0,null,0,null,null,null,0,null,null,null,null,null,null,null,0,0,null,null,0,null,null,0]
[292," ",null,null,null,null,null,null,null,null,null,null,null,null,null,null,null,null,null,null,null,null,null,null,null,0,null,0,null,null,null,0,null,null,null,null,null,null,null,0,0,null,null,0,null,null,0]
[293," ",null,null,null,null,null,null,null,null,null,null,null,null,null,null,null,null,null,null,null,null,null,null,null,0,null,0,null,null,null,0,null,null,null,null,null,null,null,0,0,null,null,0,null,null,0]
[294," ",null,null,null,null,null,null,null,null,null,null,null,null,null,null,null,null,null,null,null,null,null,null,null,0,null,0,null,null,null,0,null,null,null,null,null,null,null,0,0,null,null,0,null,null,0]
[295," ",null,null,null,null,null,null,null,null,null,null,null,null,null,null,null,null,null,null,null,null,null,null,null,0,null,0,null,null,null,0,null,null,null,null,null,null,null,0,0,null,null,0,null,null,0]
[296," ",null,null,null,null,null,null,null,null,null,null,null,null,null,null,null,null,null,null,null,null,null,null,null,0,null,0,null,null,null,0,null,null,null,null,null,null,null,0,0,null,null,0,null,null,0]
[297," ",null,null,null,null,null,null,null,null,null,null,null,null,null,null,null,null,null,null,null,null,null,null,null,0,null,0,null,null,null,0,null,null,null,null,null,null,null,0,0,null,null,0,null,null,0]
[298," ",null,null,null,null,null,null,null,null,null,null,null,null,null,null,null,null,null,null,null,null,null,null,null,0,null,0,null,null,null,0,null,null,null,null,null,null,null,0,0,null,null,0,null,null,0]
[299," ",null,null,null,null,null,null,null,null,null,null,null,null,null,null,null,null,null,null,null,null,null,null,null,0,null,0,null,null,null,0,null,null,null,null,null,null,null,0,0,null,null,0,null,null,0]
[300," ",null,null,null,null,null,null,null,null,null,null,null,null,null,null,null,null,null,null,null,null,null,null,null,0,null,{"$f":"SUM(Z301*4.4)","v":0},null,null,null,0,null,null,null,null,null,null,null,0,0,null,null,0,null,null,0]
[999," ",null,null,null,null,null,null,null,null,null,null,null,null,null,null,null,null,null,null,null,null,null,null,null,0,null,{"$f":"SUM(Z302*4.4)","v":0},null,null,null,0,null,null,null,null,null,null,null,0,0,null,null,0,null,0,0]
[null,null,{"$f":"SUM(C2:C302)","v":0},0,0,0,0,0,0,0,0,0,0,0,0,0,0,0,0,0,0,0," ",0,0,{"$f":"SUM(Z2:Z302)","v":0},{"$f":"SUM(AA2:AA302)","v":0},0,0,0,0,0,0,0,0,0,0,0,0,0,0,0,0,0,null,{"$f":"SUM(AT3:AT302)","v":194},{"$f":"SUM(AU3:AU302)","v":494.70000000000005}]
[null,null,"Sonderentgelte für FAHRER; NUR FÜR  KILOMETERGELD- ABRECHNUNG :",null,null,null,null,null,null,null,null,null,null,null,null,null,null,null,null,null,null,null,null,null,null,null,null,null,null,null,null,null,null,null,null,null,null,null,null,null,"KM"]
[null,null,null,null,null,null,null,null,null,null,null,null,null,null,null,null,null,46,"Jaunich",null,null,null,null,null,null,null,null,null,null,null,null,null,null,null,null,null,null,null,null,null,null,{"$f":"AO305*0.52","v":0},null,{"$f":"AP305+AQ305","v":0}]
[null,null,null,null,null,null,null,null,null,null,null,null,null,null,null,null,null,77,"Ridder",null,null,null,null,null,null,null,null,null,null,null,null,null,null,null,null,null,null,null,null,null,null,{"$f":"AO306*0.52","v":0},null,{"$f":"AP306+AQ306","v":0}]
[null,null,null,null,null,null,null,null,null,null,"KEIN EINTRAG",null,null,null,null,null,null,null,null,null,null,null,null,null,null,null,null,null,null,null,null,null,null,null,null,null,null,null,null,null,null,{"$f":"AO307*0.52","v":0},null,{"$f":"AP307+AQ307","v":0}]
[null,null,null,null,null,null,null,null,null,null,null,null,null,null,null,null,null,null,null,null,null,null,null,null,null,null,null,null,null,null,null,null,null,null,null,null,null,null,null,null,null,{"$f":"AO308*0.52","v":0},null,{"$f":"AP308+AQ308","v":0}]
[null,null,null,null,null,null,null,null,null,null,null,null,null,null,null,null,null,null,null,null,null,null,null,null,null,null,null,null,null,null,null,null,null,null,null,null,null,null,null,null,null,{"$f":"AO309*0.52","v":0},null,{"$f":"AP309+AQ309","v":0}]
[null,null,null,null,null,null,null,null,null,null,null,null,null,null,null,null,null,null,null,null,null,null,null,null,null,null,null,"GESAMTSUMME",null,null,null,null,null,null,null,null,null,null,null,null,null,null,null,{"$f":"SUM(AR303:AR309)","v":0}]
[]
[]
[null,"Start"]
[null,"Ende"]

{"sheet":"04-Abrechnung","index":7,"n_rows":65,"n_cols":8,"rows_kept":65,"cut":false,"hidden":false,"merged":[[50,1,50,2],[54,1,54,2],[46,1,46,2],[47,1,47,2],[48,1,48,2],[49,1,49,2],[43,6,44,6],[43,7,44,7],[12,0,12,3],[13,0,13,3],[45,1,45,2],[43,1,43,2]]}
["QuittungNR",211]
[]
[]
[]
[]
[]
[]
["Mitarbeiter Nr.:",null,null,"MONATSABRECHNUNG",null,null,"April 2017"]
[]
[null,null,null,null,null,null,"Abrechnungszeitraum: 21.03 - 20.04"]
[]
[]
[{"$f":"INDEX([1]!Datenbank2,$B$1,2)&\" \"&INDEX([1]!Datenbank2,$B$1,3)","v":"Christel Hachmeister"},"Christel Hachmeister","Christel Hachmeister","Christel Hachmeister"]
[{"$f":"INDEX([1]!Datenbank2,$B$1,4)","v":"Borsteler Bruch 4"},"Borsteler Bruch 4","Borsteler Bruch 4","Borsteler Bruch 4"]
[{"$f":"INDEX([1]!Datenbank2,$B$1,5)&\" \"&INDEX([1]!Datenbank2,$B$1,6)","v":"31749 Auetal"}]
[]
[]
[]
["Allgemeine Tests:"]
[null,null,"TEST NR\n& DATUM","FB","Entgelt \nin EURO €",null,"Erläuterungen zu"]
[null,null,{"$f":"April!$C$1","v":0},{"$f":"INDEX([0]!april,$B$1,3)","v":0},{"$f":"D21*2.25","v":0},null,"Spezialtests:"]
[null,null,{"$f":"April!$D$1","v":0},{"$f":"INDEX([0]!april,$B$1,4)","v":0},{"$f":"D22*2.25","v":0},null,{"$f":"IF(April!$AH$1=0,\"\",April!AH$1)","v":""},{"$f":"INDEX([0]!april,$B$1,34)","v":0}]
[null,null,{"$f":"April!$E$1","v":0},{"$f":"INDEX([0]!april,$B$1,5)","v":0},0,null,{"$f":"IF(April!$AI$1=0,\"\",April!AI$1)","v":""},{"$f":"INDEX([0]!april,$B$1,35)","v":0}]
[null,null,{"$f":"April!$F$1","v":0},{"$f":"INDEX([0]!april,$B$1,6)","v":0},0,null,{"$f":"IF(April!$AJ$1=0,\"\",April!AJ$1)","v":""},{"$f":"INDEX([0]!april,$B$1,36)","v":0}]
[null,null,{"$f":"April!$G$1","v":0},{"$f":"INDEX([0]!april,$B$1,7)","v":0},0,null,{"$f":"IF(April!$AK$1=0,\"\",April!AK$1)","v":""},{"$f":"INDEX([0]!april,$B$1,37)","v":0}]
[null,null,{"$f":"April!$H$1","v":0},{"$f":"INDEX([0]!april,$B$1,8)","v":0},0,null,{"$f":"IF(April!$AL$1=0,\"\",April!AL$1)","v":""},{"$f":"INDEX([0]!april,$B$1,38)","v":0}]
[null,null,{"$f":"April!$I$1","v":0},{"$f":"INDEX([0]!april,$B$1,9)","v":0},0]
[null,null,{"$f":"April!$J$1","v":0},{"$f":"INDEX([0]!april,$B$1,10)","v":0},0,null,"Gesamt",{"$f":"SUM(H22:H27)","v":0}]
[null,null,{"$f":"April!$K$1","v":0},{"$f":"INDEX([0]!april,$B$1,11)","v":0},0]
[null,null,{"$f":"April!$L$1","v":0},{"$f":"INDEX([0]!april,$B$1,12)","v":0},0]
[null,null,{"$f":"April!$M$1","v":0},{"$f":"INDEX([0]!april,$B$1,13)","v":0},0]
[null,null,{"$f":"April!$N$1","v":0},{"$f":"INDEX([0]!april,$B$1,14)","v":0},0]
[null,null,{"$f":"April!$O$1","v":0},{"$f":"INDEX([0]!april,$B$1,15)","v":0},0," "]
[null,null,{"$f":"April!$P$1","v":0},{"$f":"INDEX([0]!april,$B$1,16)","v":0},0]
[null,null,{"$f":"April!$Q$1","v":0},{"$f":"INDEX([0]!april,$B$1,17)","v":0},0]
[null,null,{"$f":"April!$R$1","v":0},{"$f":"INDEX([0]!april,$B$1,18)","v":0},0]
[null,null,{"$f":"April!$S$1","v":0},{"$f":"INDEX([0]!april,$B$1,19)","v":0},0]
[null,null,{"$f":"April!$T$1","v":0},{"$f":"INDEX([0]!april,$B$1,20)","v":0},0]
[null,null,{"$f":"April!$U$1","v":0},{"$f":"INDEX([0]!april,$B$1,21)","v":0},0]
[null,null,{"$f":"April!$V$1","v":0},{"$f":"INDEX([0]!april,$B$1,22)","v":0},{"$f":"D40*2.25","v":0}]
[null,null,{"$f":"April!$W$1","v":0},{"$f":"INDEX([0]!april,$B$1,23)","v":0},0]
[null,null,{"$f":"April!$X$1","v":0},{"$f":"INDEX([0]!april,$B$1,24)","v":0},0]
[null,null,{"$f":"April!$Y$1","v":0},{"$f":"INDEX([0]!april,$B$1,25)","v":0},0]
[null,"SUMME",null,{"$f":"SUM(D21:D43)","v":0},{"$f":"SUM(E21:E43)","v":0},null,"Stunden (nach FB-Anzahl)",{"$f":"INDEX([0]!april,$B$1,27)","v":0}]
[]
["Zusätze:","Bezeichung"]
[null,{"$f":"April!$AF$1","v":"Summe BIM in EURO"},null,null,{"$f":"INDEX([0]!april,$B$1,32)","v":0}]
[null,{"$f":"April!$AG$1","v":"Stammdaten"},null,null,{"$f":"INDEX([0]!april,$B$1,33)","v":0}]
[null,"Summe Spezialtest",null,null,{"$f":"H28","v":0},null,"FB = Anzahl der Fragebogen"]
[null,{"$f":"April!$AM$1","v":"Std. /Entgelt"},null,null,{"$f":"INDEX([0]!april,$B$1,39)","v":0}]
[null,"GESAMT NETTO",null,null,{"$f":"SUM(E44:E50)","v":0}]
[null,null,"Kilometergeld",null,{"$f":"INDEX([0]!april,$B$1,41)","v":0}]
[null,null,"Porto/Telefon/Fax",null,{"$f":"INDEX([0]!april,$B$1,42)","v":0}]
[null,null,"Pauschale 25%",null,{"$f":"INDEX([0]!april,$B$1,43)","v":0}]
[null,"GESAMT in €",null,null,{"$f":"E51+E52+E53+E54","v":0}]
[]
[]
["Der Betrag wird bis zum 10. des folgenden Monats überwiesen."]
[]
[]
[]
[]
[]
[]
["Prorata Marktforschung GmbH • Marienglacis 37 • 32427 Minden • tel  0571.82875.0 fax • 0571.82875.99 •  www.prorata.de • info@prorata.de"]

{"sheet":"Mai","index":8,"n_rows":314,"n_cols":45,"rows_kept":314,"cut":false,"hidden":false,"merged":[]}
[null,"Testnummer / Testerin",null,null,null,null,null,null,null,null,null,null,null,null,null,null,null,null,null,null,null,null,"Anz.","Std.","Summe\nin EURO",null,null,null,"Summe BIM in EURO","Stamm daten",null,null,null,null,null,"Std. /Entgelt","Gesamt\nNETTO*\nin EURO","km x \n XXeurocent","Telef./Porto","Pauschale 25%","Gesamt\nin EURO",null,null,null,2.5499999999999998]
[1," ",null,null,null,null,null,null,null,null,null,null,null,null,null,null,null,null,null,null,null,null,{"$f":"SUM(C2:V2)","v":0},null,{"$f":"SUM(W2*2.25)","v":0},null,null,null,{"$f":"(Z2+AA2+AB2)*2.25","v":0},null,null,null,null,null,null,null,{"$f":"Y2+AC2+AD2+AF2+AG2+AH2+AI2+AJ2+AE2","v":0},null,null,null,{"$f":"AK2+AL2+AM2+AN2","v":0}]
[2,"Gundlach",null,null,null,null,null,null,null,null,null,null,null,null,null,null,null,null,null,null,null,null,0,null,0,null,null,null,{"$f":"(Z3+AA3+AB3)*2.25","v":0},null,null,null,null,null,null,null,0,{"$f":"W3*2.75","v":0},null,null,0,null,null,9,{"$f":"AR3*$AS$1","v":22.95}]
[3,"Heine",null,null,null,null,null,null,null,null,null,null,null,null,null,null,null,null,null,null,null,null,0,null,0,null,null,null,0,null,null,null,null,null,null,null,0,{"$f":"W4*2.75","v":0},null,null,0,null,null,6,{"$f":"AR4*$AS$1","v":15.299999999999999}]
[4,"Korte, Inge",null,null,null,null,null,null,null,null,null,null,null,null,null,null,null,null,null,null,null,null,0,{"$f":"W5/4","v":0},0,null,null,null,0,null,null,null,null,null,null,null,0,0,null,null,0,null,null,9,22.95]
[5,"Tölkemeier, Petra",null,null,null,null,null,null,null,null,null,null,null,null,null,null,null,null,null,null,null,null,0,{"$f":"W6/4","v":0},0,null,null,null,0,null,null,null,null,null,null,null,{"$f":"Y6+AC6+AD6+AF6+AG6+AH6+AI6+AJ211+AE6","v":0},0,null,null,0,null,null,6,15.299999999999999]
[6,"Rohlfing, Anja",null,null,null,null,null,null,null,null,null,null,null,null,null,null,null,null,null,null,null,null,0,0,0,null,null,null,0,null,null,null,null,null,null,null,0,0,null,null,0,null,null,null,0]
[7,"Aumann, Elfriede",null,null,null,null,null,null,null,null,null,null,null,null,null,null,null,null,null,null,null,null,0,0,0,null,null,null,0,null,null,null,null,null,null,null,0,0,null,null,0,null,null,6,15.299999999999999]
[8,null,null,null,null,null,null,null,null,null,null,null,null,null,null,null,null,null,null,null,null,null,0,0,0,null,null,null,0,null,null,null,null,null,null,null,0,0,null,null,0,null,null,null,0]
[9,"Kilzer, Andreas",null,null,null,null,null,null,null,null,null,null,null,null,null,null,null,null,null,null,null,null,0,0,0,null,null,null,0,null,null,null,null,null,null,null,0,0,null,null,0,null,null,20,51]
[10,"Rakowski, Sigrid",null,null,null,null,null,null,null,null,null,null,null,null,null,null,null,null,null,null,null,null,0,0,0,null,null,null,0,null,null,null,null,null,null,null,0,{"$f":"W11*2.75","v":0},null,null,0,null,null,16,40.799999999999997]
[11,null,null,null,null,null,null,null,null,null,null,null,null,null,null,null,null,null,null,null,null,null,0,0,0,null,null,null,0,null,null,null,null,null,null,null,0,0,null,null,0,null,null,null,0]
[12,"Drewes, Andrea",null,null,null,null,null,null,null,null,null,null,null,null,null,null,null,null,null,null,null,null,0,0,0,null,null,null,0,null,null,null,null,null,null,null,0,0,null,null,0,null,null,9,22.95]
[13,null,null,null,null,null,null,null,null,null,null,null,null,null,null,null,null,null,null,null,null,null,0,0,0,null,null,null,0,null,null,null,null,null,null,null,0,0,null,null,0,null,null,6,15.299999999999999]
[14,"Grabbe , Nadja",null,null,null,null,null,null,null,null,null,null,null,null,null,null,null,null,null,null,null,null,0,0,0,null,null,null,0,null,null,null,null,null,null,null,0,0,null,null,0,null,null,13,33.15]
[15,"Sassenberg, Julia",null,null,null,null,null,null,null,null,null,null,null,null,null,null,null,null,null,null,null,null,0,0,0,null,null,null,0,null,null,null,null,null,null,null,0,0,null,null,0,null,null,null,0]
[16,null,null,null,null,null,null,null,null,null,null,null,null,null,null,null,null,null,null,null,null,null,0,0,0,null,null,null,0,null,null,null,null,null,null,null,0,0,null,null,0,null,null,null,0]
[17,null,null,null,null,null,null,null,null,null,null,null,null,null,null,null,null,null,null,null,null,null,0,0,0,null,null,null,0,null,null,null,null,null,null,null,0,0,null,null,0,null,null,null,0]
[18,null,null,null,null,null,null,null,null,null,null,null,null,null,null,null,null,null,null,null,null,null,0,0,0,null,null,null,0,null,null,null,null,null,null,null,0,0,null,null,0,null,null,null,0]
[19,"Blaha, Heinz",null,null,null,null,null,null,null,null,null,null,null,null,null,null,null,null,null,null,null,null,0,0,0,null,null,null,0,null,null,null,null,null,null,null,0,0,null,null,0,null,null,16,40.799999999999997]
[20,null,null,null,null,null,null,null,null,null,null,null,null,null,null,null,null,null,null,null,null,null,0,0,0,null,null,null,0,null,null,null,null,null,null,null,0,0,null,null,0,null,null,null,0]
[21,"Weichenhan, Rainer",null,null,null,null,null,null,null,null,null,null,null,null,null,null,null,null,null,null,null,null,0,0,0,null,null,null,0,null,null,null,null,null,null,null,0,{"$f":"W22*2.75","v":0},null,null,0,null,null,null,0]
[22,"Lill, Ulrich",null,null,null,null,null,null,null,null,null,null,null,null,null,null,null,null,null,null,null,null,0,0,0,null,null,null,0,null,null,null,null,null,null,null,0,0,null,null,0,null,null,6,15.299999999999999]
[23,null,null,null,null,null,null,null,null,null,null,null,null,null,null,null,null,null,null,null,null,null,0,0,0,null,null,null,0,null,null,null,null,null,null,null,0,0,null,null,0,null,null,null,0]
[24,"Hübsch, Karl-Heinz",null,null,null,null,null,null,null,null,null,null,null,null,null,null,null,null,null,null,null,null,0,0,0,null,null,null,0,null,null,null,null,null,null,null,0,0,null,null,0,null,null,10,25.5]
[25,"Feigel-Kipp, Claudia",null,null,null,null,null,null,null,null,null,null,null,null,null,null,null,null,null,null,null,null,0,0,0,null,null,null,0,null,null,null,null,null,null,null,0,0,null,null,0,null,null,11,28.049999999999997]
[26,null,null,null,null,null,null,null,null,null,null,null,null,null,null,null,null,null,null,null,null,null,0,0,0,null,null,null,0,null,null,null,null,null,null,null,0,0,null,null,0,null,null,null,0]
[27,null,null,null,null,null,null,null,null,null,null,null,null,null,null,null,null,null,null,null,null,null,0,0,0,null,null,null,0,null,null,null,null,null,null,null,0,0,null,null,0,null,null,null,0]
[28,null,null,null,null,null,null,null,null,null,null,null,null,null,null,null,null,null,null,null,null,null,0,0,0,null,null,null,0,null,null,null,null,null,null,null,0,0,null,null,0,null,null,null,0]
[29,"Scholz,  Stella",null,null,null,null,null,null,null,null,null,null,null,null,null,null,null,null,null,null,null,null,0,0,0,null,null,null,0,null,null,null,null,null,null,null,0,0,null,null,0,null,null,null,0]
[30,"Hachmeister, Stefan",null,null,null,null,null,null,null,null,null,null,null,null,null,null,null,null,null,null,null,null,0,0,0,null,null,null,0,null,null,null,null,null,null,null,0,0,null,null,0,null,null,9,22.95]
[31,null,null,null,null,null,null,null,null,null,null,null,null,null,null,null,null,null,null,null,null,null,0,0,0,null,null,null,0,null,null,null,null,null,null,null,0,0,null,null,0,null,null,null,0]
[32,null,null,null,null,null,null,null,null,null,null,null,null,null,null,null,null,null,null,null,null,null,0,0,0,null,null,null,0,null,null,null,null,null,null,null,0,0,null,null,0,null,null,null,0]
[33,null,null,null,null,null,null,null,null,null,null,null,null,null,null,null,null,null,null,null,null,null,0,0,0,null,null,null,0,null,null,null,null,null,null,null,0,0,null,null,0,null,null,null,0]
[34,null,null,null,null,null,null,null,null,null,null,null,null,null,null,null,null,null,null,null,null,null,0,0,0,null,null,null,0,null,null,null,null,null,null,null,0,0,null,null,0,null,null,null,0]
[35,null,null,null,null,null,null,null,null,null,null,null,null,null,null,null,null,null,null,null,null,null,0,0,0,null,null,null,0,null,null,null,null,null,null,null,0,0,null,null,0,null,null,null,0]
[36,"Selle, Monika",null,null,null,null,null,null,null,null,null,null,null,null,null,null,null,null,null,null,null,null,0,0,0,null,null,null,0,null,null,null,null,null,null,null,0,0,null,null,0,null,null,9,22.95]
[37,"Sander, Eva-Maria",null,null,null,null,null,null,null,null,null,null,null,null,null,null,null,null,null,null,null,null,0,0,0,null,null,null,0,null,null,null,null,null,null,null,0,0,null,null,0,null,null,19,48.449999999999996]
[38,"Sander, Jessica",null,null,null,null,null,null,null,null,null,null,null,null,null,null,null,null,null,null,null,null,0,0,0,null,null,null,0,null,null,null,null,null,null,null,0,{"$f":"W39*2.75","v":0},null,null,0,null,null,null,0]
[39,null,null,null,null,null,null,null,null,null,null,null,null,null,null,null,null,null,null,null,null,null,0,0,0,null,null,null,0,null,null,null,null,null,null,null,0,0,null,null,0,null,null,null,0]
[40,null,null,null,null,null,null,null,null,null,null,null,null,null,null,null,null,null,null,null,null,null,0,0,0,null,null,null,0,null,null,null,null,null,null,null,0,0,null,null,0,null,null,null,0]
[41,null,null,null,null,null,null,null,null,null,null,null,null,null,null,null,null,null,null,null,null,null,0,0,0,null,null,null,0,null,null,null,null,null,null,null,0,0,null,null,0,null,null,null,0]
[42,null,null,null,null,null,null,null,null,null,null,null,null,null,null,null,null,null,null,null,null,null,0,0,0,null,null,null,0,null,null,null,null,null,null,null,0,0,null,null,0,null,null,null,0]
[43,null,null,null,null,null,null,null,null,null,null,null,null,null,null,null,null,null,null,null,null,null,0,0,0,null,null,null,0,null,null,null,null,null,null,null,0,0,null,null,0,null,null,null,0]
[44,null,null,null,null,null,null,null,null,null,null,null,null,null,null,null,null,null,null,null,null,null,0,0,0,null,null,null,0,null,null,null,null,null,null,null,0,0,null,null,0,null,null,null,0]
[45,null,null,null,null,null,null,null,null,null,null,null,null,null,null,null,null,null,null,null,null,null,0,0,0,null,null,null,0,null,null,null,null,null,null,null,0,0,null,null,0,null,null,null,0]
[46,null,null,null,null,null,null,null,null,null,null,null,null,null,null,null,null,null,null,null,null,null,0,0,0,null,null,null,0,null,null,null,null,null,null,null,0,0,null,null,0,null,null,null,0]
[47,null,null,null,null,null,null,null,null,null,null,null,null,null,null,null,null,null,null,null,null,null,0,0,0,null,null,null,0,null,null,null,null,null,null,null,0,0,null,null,0,null,null,null,0]
[48,null,null,null,null,null,null,null,null,null,null,null,null,null,null,null,null,null,null,null,null,null,0,0,0,null,null,null,0,null,null,null,null,null,null,null,0,0,null,null,0,null,null,null,0]
[49,null,null,null,null,null,null,null,null,null,null,null,null,null,null,null,null,null,null,null,null,null,0,0,0,null,null,null,0,null,null,null,null,null,null,null,0,0,null,null,0,null,null,null,0]
[50,null,null,null,null,null,null,null,null,null,null,null,null,null,null,null,null,null,null,null,null,null,0,0,0,null,null,null,0,null,null,null,null,null,null,null,0,0,null,null,0,null,null,null,0]
[51,null,null,null,null,null,null,null,null,null,null,null,null,null,null,null,null,null,null,null,null,null,0,0,0,null,null,null,0,null,null,null,null,null,null,null,0,0,null,null,0,null,null,null,0]
[52,null,null,null,null,null,null,null,null,null,null,null,null,null,null,null,null,null,null,null,null,null,0,0,0,null,null,null,0,null,null,null,null,null,null,null,0,0,null,null,0,null,null,null,0]
[53,null,null,null,null,null,null,null,null,null,null,null,null,null,null,null,null,null,null,null,null,null,0,0,0,null,null,null,0,null,null,null,null,null,null,null,0,0,null,null,0,null,null,null,0]
[54,null,null,null,null,null,null,null,null,null,null,null,null,null,null,null,null,null,null,null,null,null,0,0,0,null,null,null,0,null,null,null,null,null,null,null,0,0,null,null,0,null,null,null,0]
[55,null,null,null,null,null,null,null,null,null,null,null,null,null,null,null,null,null,null,null,null,null,0,0,0,null,null,null,0,null,null,null,null,null,null,null,0,0,null,null,0,null,null,null,0]
[56,null,null,null,null,null,null,null,null,null,null,null,null,null,null,null,null,null,null,null,null,null,0,0,0,null,null,null,0,null,null,null,null,null,null,null,0,0,null,null,0,null,null,null,0]
[57,null,null,null,null,null,null,null,null,null,null,null,null,null,null,null,null,null,null,null,null,null,0,0,0,null,null,null,0,null,null,null,null,null,null,null,0,0,null,null,0,null,null,null,0]
[58,null,null,null,null,null,null,null,null,null,null,null,null,null,null,null,null,null,null,null,null,null,0,0,0,null,null,null,0,null,null,null,null,null,null,null,0,0,null,null,0,null,null,null,0]
[59,null,null,null,null,null,null,null,null,null,null,null,null,null,null,null,null,null,null,null,null,null,0,0,0,null,null,null,0,null,null,null,null,null,null,null,0,0,null,null,0,null,null,null,0]
[60,null,null,null,null,null,null,null,null,null,null,null,null,null,null,null,null,null,null,null,null,null,0,0,0,null,null,null,0,null,null,null,null,null,null,null,0,0,null,null,0,null,null,null,0]
[61,null,null,null,null,null,null,null,null,null,null,null,null,null,null,null,null,null,null,null,null,null,0,0,0,null,null,null,0,null,null,null,null,null,null,null,0,0,null,null,0,null,null,0,0]
[62,null,null,null,null,null,null,null,null,null,null,null,null,null,null,null,null,null,null,null,null,null,0,0,0,null,null,null,0,null,null,null,null,null,null,null,0,0,null,null,0,null,null,null,0]
[63,null,null,null,null,null,null,null,null,null,null,null,null,null,null,null,null,null,null,null,null,null,0,0,0,null,null,null,0,null,null,null,null,null,null,null,0,0,null,null,0,null,null,null,0]
[64,null,null,null,null,null,null,null,null,null,null,null,null,null,null,null,null,null,null,null,null,null,0,0,0,null,null,null,0,null,null,null,null,null,null,null,0,0,null,null,0,null,null,null,0]
[65,null,null,null,null,null,null,null,null,null,null,null,null,null,null,null,null,null,null,null,null,null,{"$f":"SUM(C66:V66)","v":0},0,{"$f":"SUM(W66*2.25)","v":0},null,null,null,0,null,null,null,null,null,null,null,{"$f":"Y66+AC66+AD66+AF66+AG66+AH66+AI66+AJ66+AE66","v":0},0,null,null,{"$f":"AK66+AL66+AM66+AN66","v":0},null,null,null,0]
[66,null,null,null,null,null,null,null,null,null,null,null,null,null,null,null,null,null,null,null,null,null,0,0,0,null,null,null,{"$f":"(Z67+AA67+AB67)*2.25","v":0},null,null,null,null,null,null,null,0,0,null,null,0,null,null,null,0]
[67,null,null,null,null,null,null,null,null,null,null,null,null,null,null,null,null,null,null,null,null,null,0,0,0,null,null,null,0,null,null,null,null,null,null,null,0,{"$f":"W68*2.75","v":0},null,null,0,null,null,null,{"$f":"AR68*$AS$1","v":0}]
[68,null,null,null,null,null,null,null,null,null,null,null,null,null,null,null,null,null,null,null,null,null,0,0,0,null,null,null,0,null,null,null,null,null,null,null,0,0,null,null,0,null,null,null,0]
[69,null,null,null,null,null,null,null,null,null,null,null,null,null,null,null,null,null,null,null,null,null,0,{"$f":"W70/4","v":0},0,null,null,null,0,null,null,null,null,null,null,null,0,0,null,null,0,null,null,null,0]
[70,null,null,null,null,null,null,null,null,null,null,null,null,null,null,null,null,null,null,null,null,null,0,0,0,null,null,null,0,null,null,null,null,null,null,null,0,0,null,null,0,null,null,null,0]
[71,null,null,null,null,null,null,null,null,null,null,null,null,null,null,null,null,null,null,null,null,null,0,0,0,null,null,null,0,null,null,null,null,null,null,null,0,0,null,null,0,null,null,null,0]
[72,null,null,null,null,null,null,null,null,null,null,null,null,null,null,null,null,null,null,null,null,null,0,0,0,null,null,null,0,null,null,null,null,null,null,null,0,0,null,null,0,null,null,null,0]
[73,null,null,null,null,null,null,null,null,null,null,null,null,null,null,null,null,null,null,null,null,null,0,0,0,null,null,null,0,null,null,null,null,null,null,null,0,0,null,null,0,null,null,null,0]
[74,null,null,null,null,null,null,null,null,null,null,null,null,null,null,null,null,null,null,null,null,null,0,0,0,null,null,null,0,null,null,null,null,null,null,null,0,0,null,null,0,null,null,null,0]
[75,null,null,null,null,null,null,null,null,null,null,null,null,null,null,null,null,null,null,null,null,null,0,0,0,null,null,null,0,null,null,null,null,null,null,null,0,0,null,null,0,null,null,null,0]
[76,null,null,null,null,null,null,null,null,null,null,null,null,null,null,null,null,null,null,null,null,null,0,0,0,null,null,null,0,null,null,null,null,null,null,null,0,0,null,null,0,null,null,null,0]
[77,null,null,null,null,null,null,null,null,null,null,null,null,null,null,null,null,null,null,null,null,null,0,0,0,null,null,null,0,null,null,null,null,null,null,null,0,0,null,null,0,null,null,null,0]
[78,null,null,null,null,null,null,null,null,null,null,null,null,null,null,null,null,null,null,null,null,null,0,0,0,null,null,null,0,null,null,null,null,null,null,null,0,0,null,null,0,null,null,null,0]
[79,null,null,null,null,null,null,null,null,null,null,null,null,null,null,null,null,null,null,null,null,null,0,0,0,null,null,null,0,null,null,null,null,null,null,null,0,0,null,null,0,null,null,null,0]
[80,null,null,null,null,null,null,null,null,null,null,null,null,null,null,null,null,null,null,null,null,null,0,0,0,null,null,null,0,null,null,null,null,null,null,null,0,0,null,null,0,null,null,null,0]
[81,null,null,null,null,null,null,null,null,null,null,null,null,null,null,null,null,null,null,null,null,null,0,0,0,null,null,null,0,null,null,null,null,null,null,null,0,0,null,null,0,null,null,null,0]
[82,null,null,null,null,null,null,null,null,null,null,null,null,null,null,null,null,null,null,null,null,null,0,0,0,null,null,null,0,null,null,null,null,null,null,null,0,0,null,null,0,null,null,null,0]
[83,null,null,null,null,null,null,null,null,null,null,null,null,null,null,null,null,null,null,null,null,null,0,0,0,null,null,null,0,null,null,null,null,null,null,null,0,0,null,null,0,null,null,null,0]
[84,null,null,null,null,null,null,null,null,null,null,null,null,null,null,null,null,null,null,null,null,null,0,0,0,null,null,null,0,null,null,null,null,null,null,null,0,0,null,null,0,null,null,null,0]
[85,null,null,null,null,null,null,null,null,null,null,null,null,null,null,null,null,null,null,null,null,null,0,0,0,null,null,null,0,null,null,null,null,null,null,null,0,0,null,null,0,null,null,null,0]
[86,null,null,null,null,null,null,null,null,null,null,null,null,null,null,null,null,null,null,null,null,null,0,0,0,null,null,null,0,null,null,null,null,null,null,null,0,0,null,null,0,null,null,null,0]
[87,null,null,null,null,null,null,null,null,null,null,null,null,null,null,null,null,null,null,null,null,null,0,0,0,null,null,null,0,null,null,null,null,null,null,null,0,0,null,null,0,null,null,null,0]
[88,null,null,null,null,null,null,null,null,null,null,null,null,null,null,null,null,null,null,null,null,null,0,0,0,null,null,null,0,null,null,null,null,null,null,null,0,0,null,null,0,null,null,null,0]
[89,null,null,null,null,null,null,null,null,null,null,null,null,null,null,null,null,null,null,null,null,null,0,0,0,null,null,null,0,null,null,null,null,null,null,null,0,0,null,null,0,null,null,null,0]
[90,null,null,null,null,null,null,null,null,null,null,null,null,null,null,null,null,null,null,null,null,null,0,0,0,null,null,null,0,null,null,null,null,null,null,null,0,0,null,null,0,null,null,null,0]
[91,null,null,null,null,null,null,null,null,null,null,null,null,null,null,null,null,null,null,null,null,null,0,0,0,null,null,null,0,null,null,null,null,null,null,null,0,0,null,null,0,null,null,null,0]
[92,null,null,null,null,null,null,null,null,null,null,null,null,null,null,null,null,null,null,null,null,null,0,0,0,null,null,null,0,null,null,null,null,null,null,null,0,0,null,null,0,null,null,null,0]
[93,null,null,null,null,null,null,null,null,null,null,null,null,null,null,null,null,null,null,null,null,null,0,0,0,null,null,null,0,null,null,null,null,null,null,null,0,0,null,null,0,null,null,null,0]
[94,null,null,null,null,null,null,null,null,null,null,null,null,null,null,null,null,null,null,null,null,null,0,0,0,null,null,null,0,null,null,null,null,null,null,null,0,0,null,null,0,null,null,null,0]
[95,null,null,null,null,null,null,null,null,null,null,null,null,null,null,null,null,null,null,null,null,null,0,0,0,null,null,null,0,null,null,null,null,null,null,null,0,0,null,null,0,null,null,null,0]
[96,null,null,null,null,null,null,null,null,null,null,null,null,null,null,null,null,null,null,null,null,null,0,0,0,null,null,null,0,null,null,null,null,null,null,null,0,0,null,null,0,null,null,null,0]
[97,null,null,null,null,null,null,null,null,null,null,null,null,null,null,null,null,null,null,null,null,null,0,0,0,null,null,null,0,null,null,null,null,null,null,null,0,0,null,null,0,null,null,null,0]
[98,null,null,null,null,null,null,null,null,null,null,null,null,null,null,null,null,null,null,null,null,null,0,0,0,null,null,null,0,null,null,null,null,null,null,null,0,0,null,null,0,null,null,null,0]
[99,null,null,null,null,null,null,null,null,null,null,null,null,null,null,null,null,null,null,null,null,null,0,0,0,null,null,null,0,null,null,null,null,null,null,null,0,0,null,null,0,null,null,null,0]
[100,null,null,null,null,null,null,null,null,null,null,null,null,null,null,null,null,null,null,null,null,null,0,0,0,null,null,null,0,null,null,null,null,null,null,null,0,0,null,null,0,null,null,null,0]
[101,null,null,null,null,null,null,null,null,null,null,null,null,null,null,null,null,null,null,null,null,null,0,0,0,null,null,null,0,null,null,null,null,null,null,null,0,0,null,null,0,null,null,null,0]
[102,null,null,null,null,null,null,null,null,null,null,null,null,null,null,null,null,null,null,null,null,null,0,0,0,null,null,null,0,null,null,null,null,null,null,null,0,0,null,null,0,null,null,null,0]
[103,null,null,null,null,null,null,null,null,null,null,null,null,null,null,null,null,null,null,null,null,null,0,0,0,null,null,null,0,null,null,null,null,null,null,null,0,0,null,null,0,null,null,null,0]
[104,null,null,null,null,null,null,null,null,null,null,null,null,null,null,null,null,null,null,null,null,null,0,0,0,null,null,null,0,null,null,null,null,null,null,null,0,0,null,null,0,null,null,null,0]
[105,null,null,null,null,null,null,null,null,null,null,null,null,null,null,null,null,null,null,null,null,null,0,0,0,null,null,null,0,null,null,null,null,null,null,null,0,0,null,null,0,null,null,null,0]
[106,null,null,null,null,null,null,null,null,null,null,null,null,null,null,null,null,null,null,null,null,null,0,0,0,null,null,null,0,null,null,null,null,null,null,null,0,0,null,null,0,null,null,null,0]
[107,null,null,null,null,null,null,null,null,null,null,null,null,null,null,null,null,null,null,null,null,null,0,0,0,null,null,null,0,null,null,null,null,null,null,null,0,0,null,null,0,null,null,null,0]
[108,null,null,null,null,null,null,null,null,null,null,null,null,null,null,null,null,null,null,null,null,null,0,0,0,null,null,null,0,null,null,null,null,null,null,null,0,0,null,null,0,null,null,null,0]
[109,null,null,null,null,null,null,null,null,null,null,null,null,null,null,null,null,null,null,null,null,null,0,0,0,null,null,null,0,null,null,null,null,null,null,null,0,0,null,null,0,null,null,null,0]
[110,"Kruse, Brigitte",null,null,null,null,null,null,null,null,null,null,null,null,null,null,null,null,null,null,null,null,0,0,0,null,null,null,0,null,null,null,null,null,null,null,0,0,null,null,0,null,null,13,33.15]
[111,null,null,null,null,null,null,null,null,null,null,null,null,null,null,null,null,null,null,null,null,null,0,0,0,null,null,null,0,null,null,null,null,null,null,null,0,0,null,null,0,null,null,null,0]
[112,null,null,null,null,null,null,null,null,null,null,null,null,null,null,null,null,null,null,null,null,null,0,0,0,null,null,null,0,null,null,null,null,null,null,null,0,0,null,null,0,null,null,null,0]
[113,null,null,null,null,null,null,null,null,null,null,null,null,null,null,null,null,null,null,null,null,null,0,0,0,null,null,null,0,null,null,null,null,null,null,null,0,0,null,null,0,null,null,null,0]
[114,null,null,null,null,null,null,null,null,null,null,null,null,null,null,null,null,null,null,null,null,null,0,0,0,null,null,null,0,null,null,null,null,null,null,null,0,0,null,null,0,null,null,null,0]
[115,null,null,null,null,null,null,null,null,null,null,null,null,null,null,null,null,null,null,null,null,null,0,0,0,null,null,null,0,null,null,null,null,null,null,null,0,0,null,null,0,null,null,null,0]
[116,null,null,null,null,null,null,null,null,null,null,null,null,null,null,null,null,null,null,null,null,null,0,0,0,null,null,null,0,null,null,null,null,null,null,null,0,0,null,null,0,null,null,null,0]
[117,null,null,null,null,null,null,null,null,null,null,null,null,null,null,null,null,null,null,null,null,null,0,0,0,null,null,null,0,null,null,null,null,null,null,null,0,0,null,null,0,null,null,null,0]
[118,null,null,null,null,null,null,null,null,null,null,null,null,null,null,null,null,null,null,null,null,null,0,0,0,null,null,null,0,null,null,null,null,null,null,null,0,0,null,null,0,null,null,null,0]
[119,null,null,null,null,null,null,null,null,null,null,null,null,null,null,null,null,null,null,null,null,null,0,0,0,null,null,null,0,null,null,null,null,null,null,null,0,0,null,null,0,null,null,null,0]
[120,null,null,null,null,null,null,null,null,null,null,null,null,null,null,null,null,null,null,null,null,null,0,0,0,null,null,null,0,null,null,null,null,null,null,null,0,0,null,null,0,null,null,null,0]
[121,null,null,null,null,null,null,null,null,null,null,null,null,null,null,null,null,null,null,null,null,null,0,0,0,null,null,null,0,null,null,null,null,null,null,null,0,0,null,null,0,null,null,null,0]
[122,null,null,null,null,null,null,null,null,null,null,null,null,null,null,null,null,null,null,null,null,null,0,0,0,null,null,null,0,null,null,null,null,null,null,null,0,0,null,null,0,null,null,null,0]
[123,null,null,null,null,null,null,null,null,null,null,null,null,null,null,null,null,null,null,null,null,null,0,0,0,null,null,null,0,null,null,null,null,null,null,null,0,0,null,null,0,null,null,null,0]
[124,null,null,null,null,null,null,null,null,null,null,null,null,null,null,null,null,null,null,null,null,null,0,0,0,null,null,null,0,null,null,null,null,null,null,null,0,0,null,null,0,null,null,null,0]
[125,null,null,null,null,null,null,null,null,null,null,null,null,null,null,null,null,null,null,null,null,null,0,0,0,null,null,null,0,null,null,null,null,null,null,null,0,0,null,null,0,null,null,null,0]
[126,null,null,null,null,null,null,null,null,null,null,null,null,null,null,null,null,null,null,null,null,null,0,0,0,null,null,null,0,null,null,null,null,null,null,null,0,0,null,null,0,null,null,null,0]
[127,null,null,null,null,null,null,null,null,null,null,null,null,null,null,null,null,null,null,null,null,null,0,0,0,null,null,null,0,null,null,null,null,null,null,null,0,0,null,null,0,null,null,null,0]
[128,null,null,null,null,null,null,null,null,null,null,null,null,null,null,null,null,null,null,null,null,null,0,0,0,null,null,null,0,null,null,null,null,null,null,null,0,0,null,null,0,null,null,null,0]
[129,null,null,null,null,null,null,null,null,null,null,null,null,null,null,null,null,null,null,null,null,null,{"$f":"SUM(C130:V130)","v":0},0,{"$f":"SUM(W130*2.25)","v":0},null,null,null,0,null,null,null,null,null,null,null,{"$f":"Y130+AC130+AD130+AF130+AG130+AH130+AI130+AJ130+AE130","v":0},0,null,null,{"$f":"AK130+AL130+AM130+AN130","v":0},null,null,null,0]
[130,null,null,null,null,null,null,null,null,null,null,null,null,null,null,null,null,null,null,null,null,null,0,0,0,null,null,null,{"$f":"(Z131+AA131+AB131)*2.25","v":0},null,null,null,null,null,null,null,0,0,null,null,0,null,null,null,0]
[131,null,null,null,null,null,null,null,null,null,null,null,null,null,null,null,null,null,null,null,null,null,0,0,0,null,null,null,0,null,null,null,null,null,null,null,0,{"$f":"W132*2.75","v":0},null,null,0,null,null,null,{"$f":"AR132*$AS$1","v":0}]
[132,null,null,null,null,null,null,null,null,null,null,null,null,null,null,null,null,null,null,null,null,null,0,0,0,null,null,null,0,null,null,null,null,null,null,null,0,0,null,null,0,null,null,null,0]
[133,null,null,null,null,null,null,null,null,null,null,null,null,null,null,null,null,null,null,null,null,null,0,{"$f":"W134/4","v":0},0,null,null,null,0,null,null,null,null,null,null,null,0,0,null,null,0,null,null,null,0]
[134,null,null,null,null,null,null,null,null,null,null,null,null,null,null,null,null,null,null,null,null,null,0,0,0,null,null,null,0,null,null,null,null,null,null,null,0,0,null,null,0,null,null,null,0]
[135,null,null,null,null,null,null,null,null,null,null,null,null,null,null,null,null,null,null,null,null,null,0,0,0,null,null,null,0,null,null,null,null,null,null,null,0,0,null,null,0,null,null,null,0]
[136,null,null,null,null,null,null,null,null,null,null,null,null,null,null,null,null,null,null,null,null,null,0,0,0,null,null,null,0,null,null,null,null,null,null,null,0,0,null,null,0,null,null,null,0]
[137,null,null,null,null,null,null,null,null,null,null,null,null,null,null,null,null,null,null,null,null,null,0,0,0,null,null,null,0,null,null,null,null,null,null,null,0,0,null,null,0,null,null,null,0]
[138,null,null,null,null,null,null,null,null,null,null,null,null,null,null,null,null,null,null,null,null,null,0,0,0,null,null,null,0,null,null,null,null,null,null,null,0,0,null,null,0,null,null,null,0]
[139,null,null,null,null,null,null,null,null,null,null,null,null,null,null,null,null,null,null,null,null,null,0,0,0,null,null,null,0,null,null,null,null,null,null,null,0,0,null,null,0,null,null,null,0]
[140,null,null,null,null,null,null,null,null,null,null,null,null,null,null,null,null,null,null,null,null,null,0,0,0,null,null,null,0,null,null,null,null,null,null,null,0,0,null,null,0,null,null,null,0]
[141,null,null,null,null,null,null,null,null,null,null,null,null,null,null,null,null,null,null,null,null,null,0,0,0,null,null,null,0,null,null,null,null,null,null,null,0,0,null,null,0,null,null,null,0]
[142,null,null,null,null,null,null,null,null,null,null,null,null,null,null,null,null,null,null,null,null,null,0,0,0,null,null,null,0,null,null,null,null,null,null,null,0,0,null,null,0,null,null,null,0]
[143,null,null,null,null,null,null,null,null,null,null,null,null,null,null,null,null,null,null,null,null,null,0,0,0,null,null,null,0,null,null,null,null,null,null,null,0,0,null,null,0,null,null,null,0]
[144,null,null,null,null,null,null,null,null,null,null,null,null,null,null,null,null,null,null,null,null,null,0,0,0,null,null,null,0,null,null,null,null,null,null,null,0,0,null,null,0,null,null,null,0]
[145,null,null,null,null,null,null,null,null,null,null,null,null,null,null,null,null,null,null,null,null,null,0,0,0,null,null,null,0,null,null,null,null,null,null,null,0,0,null,null,0,null,null,null,0]
[146,null,null,null,null,null,null,null,null,null,null,null,null,null,null,null,null,null,null,null,null,null,0,0,0,null,null,null,0,null,null,null,null,null,null,null,0,0,null,null,0,null,null,null,0]
[147,null,null,null,null,null,null,null,null,null,null,null,null,null,null,null,null,null,null,null,null,null,0,0,0,null,null,null,0,null,null,null,null,null,null,null,0,0,null,null,0,null,null,null,0]
[148,null,null,null,null,null,null,null,null,null,null,null,null,null,null,null,null,null,null,null,null,null,0,0,0,null,null,null,0,null,null,null,null,null,null,null,0,0,null,null,0,null,null,null,0]
[149,null,null,null,null,null,null,null,null,null,null,null,null,null,null,null,null,null,null,null,null,null,0,0,0,null,null,null,0,null,null,null,null,null,null,null,0,0,null,null,0,null,null,null,0]
[150,null,null,null,null,null,null,null,null,null,null,null,null,null,null,null,null,null,null,null,null,null,0,0,0,null,null,null,0,null,null,null,null,null,null,null,0,0,null,null,0,null,null,null,0]
[151,null,null,null,null,null,null,null,null,null,null,null,null,null,null,null,null,null,null,null,null,null,0,0,0,null,null,null,0,null,null,null,null,null,null,null,0,0,null,null,0,null,null,null,0]
[152,null,null,null,null,null,null,null,null,null,null,null,null,null,null,null,null,null,null,null,null,null,0,0,0,null,null,null,0,null,null,null,null,null,null,null,0,0,null,null,0,null,null,null,0]
[153,null,null,null,null,null,null,null,null,null,null,null,null,null,null,null,null,null,null,null,null,null,0,0,0,null,null,null,0,null,null,null,null,null,null,null,0,0,null,null,0,null,null,null,0]
[154,null,null,null,null,null,null,null,null,null,null,null,null,null,null,null,null,null,null,null,null,null,0,0,0,null,null,null,0,null,null,null,null,null,null,null,0,0,null,null,0,null,null,null,0]
[155,null,null,null,null,null,null,null,null,null,null,null,null,null,null,null,null,null,null,null,null,null,0,0,0,null,null,null,0,null,null,null,null,null,null,null,0,0,null,null,0,null,null,null,0]
[156,null,null,null,null,null,null,null,null,null,null,null,null,null,null,null,null,null,null,null,null,null,0,0,0,null,null,null,0,null,null,null,null,null,null,null,0,0,null,null,0,null,null,null,0]
[157,null,null,null,null,null,null,null,null,null,null,null,null,null,null,null,null,null,null,null,null,null,0,0,0,null,null,null,0,null,null,null,null,null,null,null,0,0,null,null,0,null,null,null,0]
[158,null,null,null,null,null,null,null,null,null,null,null,null,null,null,null,null,null,null,null,null,null,0,0,0,null,null,null,0,null,null,null,null,null,null,null,0,0,null,null,0,null,null,null,0]
[159,null,null,null,null,null,null,null,null,null,null,null,null,null,null,null,null,null,null,null,null,null,0,0,0,null,null,null,0,null,null,null,null,null,null,null,0,0,null,null,0,null,null,null,0]
[160,null,null,null,null,null,null,null,null,null,null,null,null,null,null,null,null,null,null,null,null,null,0,0,0,null,null,null,0,null,null,null,null,null,null,null,0,0,null,null,0,null,null,null,0]
[161,null,null,null,null,null,null,null,null,null,null,null,null,null,null,null,null,null,null,null,null,null,0,0,0,null,null,null,0,null,null,null,null,null,null,null,0,0,null,null,0,null,null,null,0]
[162,null,null,null,null,null,null,null,null,null,null,null,null,null,null,null,null,null,null,null,null,null,0,0,0,null,null,null,0,null,null,null,null,null,null,null,0,0,null,null,0,null,null,null,0]
[163,null,null,null,null,null,null,null,null,null,null,null,null,null,null,null,null,null,null,null,null,null,0,0,0,null,null,null,0,null,null,null,null,null,null,null,0,0,null,null,0,null,null,null,0]
[164,null,null,null,null,null,null,null,null,null,null,null,null,null,null,null,null,null,null,null,null,null,0,0,0,null,null,null,0,null,null,null,null,null,null,null,0,0,null,null,0,null,null,null,0]
[165,null,null,null,null,null,null,null,null,null,null,null,null,null,null,null,null,null,null,null,null,null,0,0,0,null,null,null,0,null,null,null,null,null,null,null,0,0,null,null,0,null,null,null,0]
[166,null,null,null,null,null,null,null,null,null,null,null,null,null,null,null,null,null,null,null,null,null,0,0,0,null,null,null,0,null,null,null,null,null,null,null,0,0,null,null,0,null,null,null,0]
[167,null,null,null,null,null,null,null,null,null,null,null,null,null,null,null,null,null,null,null,null,null,0,0,0,null,null,null,0,null,null,null,null,null,null,null,0,0,null,null,0,null,null,null,0]
[168,null,null,null,null,null,null,null,null,null,null,null,null,null,null,null,null,null,null,null,null,null,0,0,0,null,null,null,0,null,null,null,null,null,null,null,0,0,null,null,0,null,null,null,0]
[169,null,null,null,null,null,null,null,null,null,null,null,null,null,null,null,null,null,null,null,null,null,0,0,0,null,null,null,0,null,null,null,null,null,null,null,0,0,null,null,0,null,null,null,0]
[170,null,null,null,null,null,null,null,null,null,null,null,null,null,null,null,null,null,null,null,null,null,0,0,0,null,null,null,0,null,null,null,null,null,null,null,0,0,null,null,0,null,null,null,0]
[171,null,null,null,null,null,null,null,null,null,null,null,null,null,null,null,null,null,null,null,null,null,0,0,0,null,null,null,0,null,null,null,null,null,null,null,0,0,null,null,0,null,null,null,0]
[172,null,null,null,null,null,null,null,null,null,null,null,null,null,null,null,null,null,null,null,null,null,0,0,0,null,null,null,0,null,null,null,null,null,null,null,0,0,null,null,0,null,null,null,0]
[173,null,null,null,null,null,null,null,null,null,null,null,null,null,null,null,null,null,null,null,null,null,0,0,0,null,null,null,0,null,null,null,null,null,null,null,0,0,null,null,0,null,null,null,0]
[174,null,null,null,null,null,null,null,null,null,null,null,null,null,null,null,null,null,null,null,null,null,0,0,0,null,null,null,0,null,null,null,null,null,null,null,0,0,null,null,0,null,null,null,0]
[175,null,null,null,null,null,null,null,null,null,null,null,null,null,null,null,null,null,null,null,null,null,0,0,0,null,null,null,0,null,null,null,null,null,null,null,0,0,null,null,0,null,null,null,0]
[176,null,null,null,null,null,null,null,null,null,null,null,null,null,null,null,null,null,null,null,null,null,0,0,0,null,null,null,0,null,null,null,null,null,null,null,0,0,null,null,0,null,null,null,0]
[177,null,null,null,null,null,null,null,null,null,null,null,null,null,null,null,null,null,null,null,null,null,0,0,0,null,null,null,0,null,null,null,null,null,null,null,0,0,null,null,0,null,null,null,0]
[178,null,null,null,null,null,null,null,null,null,null,null,null,null,null,null,null,null,null,null,null,null,0,0,0,null,null,null,0,null,null,null,null,null,null,null,0,0,null,null,0,null,null,null,0]
[179,null,null,null,null,null,null,null,null,null,null,null,null,null,null,null,null,null,null,null,null,null,0,0,0,null,null,null,0,null,null,null,null,null,null,null,0,0,null,null,0,null,null,null,0]
[180,null,null,null,null,null,null,null,null,null,null,null,null,null,null,null,null,null,null,null,null,null,0,0,0,null,null,null,0,null,null,null,null,null,null,null,0,0,null,null,0,null,null,null,0]
[181,null,null,null,null,null,null,null,null,null,null,null,null,null,null,null,null,null,null,null,null,null,0,0,0,null,null,null,0,null,null,null,null,null,null,null,0,0,null,null,0,null,null,null,0]
[182,null,null,null,null,null,null,null,null,null,null,null,null,null,null,null,null,null,null,null,null,null,0,0,0,null,null,null,0,null,null,null,null,null,null,null,0,0,null,null,0,null,null,null,0]
[183,null,null,null,null,null,null,null,null,null,null,null,null,null,null,null,null,null,null,null,null,null,0,0,0,null,null,null,0,null,null,null,null,null,null,null,0,0,null,null,0,null,null,null,0]
[184,null,null,null,null,null,null,null,null,null,null,null,null,null,null,null,null,null,null,null,null,null,0,0,0,null,null,null,0,null,null,null,null,null,null,null,0,0,null,null,0,null,null,null,0]
[185,null,null,null,null,null,null,null,null,null,null,null,null,null,null,null,null,null,null,null,null,null,0,0,0,null,null,null,0,null,null,null,null,null,null,null,0,0,null,null,0,null,null,null,0]
[186,null,null,null,null,null,null,null,null,null,null,null,null,null,null,null,null,null,null,null,null,null,0,0,0,null,null,null,0,null,null,null,null,null,null,null,0,0,null,null,0,null,null,null,0]
[187,null,null,null,null,null,null,null,null,null,null,null,null,null,null,null,null,null,null,null,null,null,0,0,0,null,null,null,0,null,null,null,null,null,null,null,0,0,null,null,0,null,null,null,0]
[188,null,null,null,null,null,null,null,null,null,null,null,null,null,null,null,null,null,null,null,null,null,0,0,0,null,null,null,0,null,null,null,null,null,null,null,0,0,null,null,0,null,null,null,0]
[189,null,null,null,null,null,null,null,null,null,null,null,null,null,null,null,null,null,null,null,null,null,0,0,0,null,null,null,0,null,null,null,null,null,null,null,0,0,null,null,0,null,null,null,0]
[190,null,null,null,null,null,null,null,null,null,null,null,null,null,null,null,null,null,null,null,null,null,0,0,0,null,null,null,0,null,null,null,null,null,null,null,0,0,null,null,0,null,null,null,0]
[191,null,null,null,null,null,null,null,null,null,null,null,null,null,null,null,null,null,null,null,null,null,0,0,0,null,null,null,0,null,null,null,null,null,null,null,0,0,null,null,0,null,null,null,0]
[192,null,null,null,null,null,null,null,null,null,null,null,null,null,null,null,null,null,null,null,null,null,0,0,0,null,null,null,0,null,null,null,null,null,null,null,0,0,null,null,0,null,null,null,0]
[193,null,null,null,null,null,null,null,null,null,null,null,null,null,null,null,null,null,null,null,null,null,{"$f":"SUM(C194:V194)","v":0},0,{"$f":"SUM(W194*2.25)","v":0},null,null,null,0,null,null,null,null,null,null,null,{"$f":"Y194+AC194+AD194+AF194+AG194+AH194+AI194+AJ194+AE194","v":0},0,null,null,{"$f":"AK194+AL194+AM194+AN194","v":0},null,null,null,0]
[194,null,null,null,null,null,null,null,null,null,null,null,null,null,null,null,null,null,null,null,null,null,0,0,0,null,null,null,{"$f":"(Z195+AA195+AB195)*2.25","v":0},null,null,null,null,null,null,null,0,0,null,null,0,null,null,null,0]
[195,null,null,null,null,null,null,null,null,null,null,null,null,null,null,null,null,null,null,null,null,null,0,0,0,null,null,null,0,null,null,null,null,null,null,null,0,{"$f":"W196*2.75","v":0},null,null,0,null,null,null,{"$f":"AR196*$AS$1","v":0}]
[196,null,null,null,null,null,null,null,null,null,null,null,null,null,null,null,null,null,null,null,null,null,0,0,0,null,null,null,0,null,null,null,null,null,null,null,0,0,null,null,0,null,null,null,0]
[197,null,null,null,null,null,null,null,null,null,null,null,null,null,null,null,null,null,null,null,null,null,0,{"$f":"W198/4","v":0},0,null,null,null,0,null,null,null,null,null,null,null,0,0,null,null,0,null,null,null,0]
[198,null,null,null,null,null,null,null,null,null,null,null,null,null,null,null,null,null,null,null,null,null,0,0,0,null,null,null,0,null,null,null,null,null,null,null,0,0,null,null,0,null,null,null,0]
[199,null,null,null,null,null,null,null,null,null,null,null,null,null,null,null,null,null,null,null,null,null,0,0,0,null,null,null,0,null,null,null,null,null,null,null,0,0,null,null,0,null,null,null,0]
[200,null,null,null,null,null,null,null,null,null,null,null,null,null,null,null,null,null,null,null,null,null,0,0,0,null,null,null,0,null,null,null,null,null,null,null,0,0,null,null,0,null,null,null,0]
[201,null,null,null,null,null,null,null,null,null,null,null,null,null,null,null,null,null,null,null,null,null,0,0,0,null,null,null,0,null,null,null,null,null,null,null,0,0,null,null,0,null,null,null,0]
[202,null,null,null,null,null,null,null,null,null,null,null,null,null,null,null,null,null,null,null,null,null,0,0,0,null,null,null,0,null,null,null,null,null,null,null,0,0,null,null,0,null,null,null,0]
[203,null,null,null,null,null,null,null,null,null,null,null,null,null,null,null,null,null,null,null,null,null,0,0,0,null,null,null,0,null,null,null,null,null,null,null,0,0,null,null,0,null,null,null,0]
[204,null,null,null,null,null,null,null,null,null,null,null,null,null,null,null,null,null,null,null,null,null,0,0,0,null,null,null,0,null,null,null,null,null,null,null,0,0,null,null,0,null,null,null,0]
[205,null,null,null,null,null,null,null,null,null,null,null,null,null,null,null,null,null,null,null,null,null,0,0,0,null,null,null,0,null,null,null,null,null,null,null,0,0,null,null,0,null,null,null,0]
[206,null,null,null,null,null,null,null,null,null,null,null,null,null,null,null,null,null,null,null,null,null,0,0,0,null,null,null,0,null,null,null,null,null,null,null,0,0,null,null,0,null,null,null,0]
[207,null,null,null,null,null,null,null,null,null,null,null,null,null,null,null,null,null,null,null,null,null,0,0,0,null,null,null,0,null,null,null,null,null,null,null,0,0,null,null,0,null,null,null,0]
[208,null,null,null,null,null,null,null,null,null,null,null,null,null,null,null,null,null,null,null,null,null,0,0,0,null,null,null,0,null,null,null,null,null,null,null,0,0,null,null,0,null,null,null,0]
[209,null,null,null,null,null,null,null,null,null,null,null,null,null,null,null,null,null,null,null,null,null,0,0,0,null,null,null,0,null,null,null,null,null,null,null,0,0,null,null,0,null,null,null,0]
[210,"Hachmeister, Christel",null,null,null,null,null,null,null,null,null,null,null,null,null,null,null,null,null,null,null,null,0,0,0,null,null,null,0,null,null,null,null,null,null,null,0,0,null,null,0,null,null,9,22.95]
[211," ",null,null,null,null,null,null,null,null,null,null,null,null,null,null,null,null,null,null,null,null,0,null,0,null,null,null,0,null,null,null,null,null,null,null,{"$f":"Y212+AC212+AD212+AF212+AG212+AH212+AI212+AJ212+AE212","v":0},0,null,null,0]
[212," ",null,null,null,null,null,null,null,null,null,null,null,null,null,null,null,null,null,null,null,null,0,null,0,null,null,null,0,null,null,null,null,null,null,null,0,0,null,null,0]
[213," ",null,null,null,null,null,null,null,null,null,null,null,null,null,null,null,null,null,null,null,null,0,null,0,null,null,null,0,null,null,null,null,null,null,null,0,0,null,null,0]
[214," ",null,null,null,null,null,null,null,null,null,null,null,null,null,null,null,null,null,null,null,null,0,null,0,null,null,null,0,null,null,null,null,null,null,null,0,0,null,null,0]
[215," ",null,null,null,null,null,null,null,null,null,null,null,null,null,null,null,null,null,null,null,null,0,null,0,null,null,null,0,null,null,null,null,null,null,null,0,0,null,null,0]
[216," ",null,null,null,null,null,null,null,null,null,null,null,null,null,null,null,null,null,null,null,null,0,null,0,null,null,null,0,null,null,null,null,null,null,null,0,0,null,null,0]
[217," ",null,null,null,null,null,null,null,null,null,null,null,null,null,null,null,null,null,null,null,null,0,null,0,null,null,null,0,null,null,null,null,null,null,null,0,0,null,null,0]
[218," ",null,null,null,null,null,null,null,null,null,null,null,null,null,null,null,null,null,null,null,null,0,null,0,null,null,null,0,null,null,null,null,null,null,null,0,0,null,null,0]
[219," ",null,null,null,null,null,null,null,null,null,null,null,null,null,null,null,null,null,null,null,null,0,null,0,null,null,null,0,null,null,null,null,null,null,null,0,0,null,null,0]
[220," ",null,null,null,null,null,null,null,null,null,null,null,null,null,null,null,null,null,null,null,null,0,null,0,null,null,null,0,null,null,null,null,null,null,null,0,0,null,null,0]
[221," ",null,null,null,null,null,null,null,null,null,null,null,null,null,null,null,null,null,null,null,null,0,null,0,null,null,null,0,null,null,null,null,null,null,null,0,0,null,null,0]
[222," ",null,null,null,null,null,null,null,null,null,null,null,null,null,null,null,null,null,null,null,null,0,null,0,null,null,null,0,null,null,null,null,null,null,null,0,0,null,null,0]
[223," ",null,null,null,null,null,null,null,null,null,null,null,null,null,null,null,null,null,null,null,null,0,null,0,null,null,null,0,null,null,null,null,null,null,null,0,0,null,null,0]
[224," ",null,null,null,null,null,null,null,null,null,null,null,null,null,null,null,null,null,null,null,null,0,null,0,null,null,null,0,null,null,null,null,null,null,null,0,0,null,null,0]
[225," ",null,null,null,null,null,null,null,null,null,null,null,null,null,null,null,null,null,null,null,null,0,null,0,null,null,null,0,null,null,null,null,null,null,null,0,0,null,null,0]
[226," ",null,null,null,null,null,null,null,null,null,null,null,null,null,null,null,null,null,null,null,null,0,null,0,null,null,null,0,null,null,null,null,null,null,null,0,0,null,null,0]
[227," ",null,null,null,null,null,null,null,null,null,null,null,null,null,null,null,null,null,null,null,null,0,null,0,null,null,null,0,null,null,null,null,null,null,null,0,0,null,null,0]
[228," ",null,null,null,null,null,null,null,null,null,null,null,null,null,null,null,null,null,null,null,null,0,null,0,null,null,null,0,null,null,null,null,null,null,null,0,0,null,null,0]
[229," ",null,null,null,null,null,null,null,null,null,null,null,null,null,null,null,null,null,null,null,null,0,null,0,null,null,null,0,null,null,null,null,null,null,null,0,0,null,null,0]
[230," ",null,null,null,null,null,null,null,null,null,null,null,null,null,null,null,null,null,null,null,null,0,null,0,null,null,null,0,null,null,null,null,null,null,null,0,0,null,null,0]
[231," ",null,null,null,null,null,null,null,null,null,null,null,null,null,null,null,null,null,null,null,null,0,null,0,null,null,null,0,null,null,null,null,null,null,null,0,0,null,null,0]
[232," ",null,null,null,null,null,null,null,null,null,null,null,null,null,null,null,null,null,null,null,null,0,null,0,null,null,null,0,null,null,null,null,null,null,null,0,0,null,null,0]
[233," ",null,null,null,null,null,null,null,null,null,null,null,null,null,null,null,null,null,null,null,null,0,null,0,null,null,null,0,null,null,null,null,null,null,null,0,0,null,null,0]
[234," ",null,null,null,null,null,null,null,null,null,null,null,null,null,null,null,null,null,null,null,null,0,null,0,null,null,null,0,null,null,null,null,null,null,null,0,0,null,null,0]
[235," ",null,null,null,null,null,null,null,null,null,null,null,null,null,null,null,null,null,null,null,null,0,null,0,null,null,null,0,null,null,null,null,null,null,null,0,0,null,null,0]
[236," ",null,null,null,null,null,null,null,null,null,null,null,null,null,null,null,null,null,null,null,null,0,null,0,null,null,null,0,null,null,null,null,null,null,null,0,0,null,null,0]
[237," ",null,null,null,null,null,null,null,null,null,null,null,null,null,null,null,null,null,null,null,null,0,null,0,null,null,null,0,null,null,null,null,null,null,null,0,0,null,null,0]
[238," ",null,null,null,null,null,null,null,null,null,null,null,null,null,null,null,null,null,null,null,null,0,null,0,null,null,null,0,null,null,null,null,null,null,null,0,0,null,null,0]
[239," ",null,null,null,null,null,null,null,null,null,null,null,null,null,null,null,null,null,null,null,null,0,null,0,null,null,null,0,null,null,null,null,null,null,null,0,0,null,null,0]
[240," ",null,null,null,null,null,null,null,null,null,null,null,null,null,null,null,null,null,null,null,null,0,null,0,null,null,null,0,null,null,null,null,null,null,null,0,0,null,null,0]
[241," ",null,null,null,null,null,null,null,null,null,null,null,null,null,null,null,null,null,null,null,null,0,null,0,null,null,null,0,null,null,null,null,null,null,null,0,0,null,null,0]
[242," ",null,null,null,null,null,null,null,null,null,null,null,null,null,null,null,null,null,null,null,null,0,null,0,null,null,null,0,null,null,null,null,null,null,null,0,0,null,null,0]
[243," ",null,null,null,null,null,null,null,null,null,null,null,null,null,null,null,null,null,null,null,null,0,null,0,null,null,null,0,null,null,null,null,null,null,null,0,0,null,null,0]
[244," ",null,null,null,null,null,null,null,null,null,null,null,null,null,null,null,null,null,null,null,null,0,null,0,null,null,null,0,null,null,null,null,null,null,null,0,0,null,null,0]
[245," ",null,null,null,null,null,null,null,null,null,null,null,null,null,null,null,null,null,null,null,null,0,null,0,null,null,null,0,null,null,null,null,null,null,null,0,0,null,null,0]
[246," ",null,null,null,null,null,null,null,null,null,null,null,null,null,null,null,null,null,null,null,null,0,null,0,null,null,null,0,null,null,null,null,null,null,null,0,0,null,null,0]
[247," ",null,null,null,null,null,null,null,null,null,null,null,null,null,null,null,null,null,null,null,null,0,null,0,null,null,null,0,null,null,null,null,null,null,null,0,0,null,null,0]
[248," ",null,null,null,null,null,null,null,null,null,null,null,null,null,null,null,null,null,null,null,null,0,null,0,null,null,null,0,null,null,null,null,null,null,null,0,0,null,null,0]
[249,"Meier",null,null,null,null,null,null,null,null,null,null,null,null,null,null,null,null,null,null,null,null,0,null,0,null,null,null,0,null,null,null,null,null,null,null,0,0,null,null,0]
[250," ",null,null,null,null,null,null,null,null,null,null,null,null,null,null,null,null,null,null,null,null,0,null,0,null,null,null,0,null,null,null,null,null,null,null,0,{"$f":"W251*2.55","v":0},null,null,0]
[251," ",null,null,null,null,null,null,null,null,null,null,null,null,null,null,null,null,null,null,null,null,0,null,0,null,null,null,0,null,null,null,null,null,null,null,0,0,null,null,0]
[252," ",null,null,null,null,null,null,null,null,null,null,null,null,null,null,null,null,null,null,null,null,0,null,0,null,null,null,0,null,null,null,null,null,null,null,0,0,null,null,0]
[253," ",null,null,null,null,null,null,null,null,null,null,null,null,null,null,null,null,null,null,null,null,0,null,0,null,null,null,0,null,null,null,null,null,null,null,0,0,null,null,0]
[254," ",null,null,null,null,null,null,null,null,null,null,null,null,null,null,null,null,null,null,null,null,0,null,0,null,null,null,0,null,null,null,null,null,null,null,0,0,null,null,0]
[255," ",null,null,null,null,null,null,null,null,null,null,null,null,null,null,null,null,null,null,null,null,0,null,0,null,null,null,0,null,null,null,null,null,null,null,0,0,null,null,0]
[256," ",null,null,null,null,null,null,null,null,null,null,null,null,null,null,null,null,null,null,null,null,0,null,0,null,null,null,0,null,null,null,null,null,null,null,0,0,null,null,0]
[257," ",null,null,null,null,null,null,null,null,null,null,null,null,null,null,null,null,null,null,null,null,{"$f":"SUM(C258:V258)","v":0},null,{"$f":"SUM(W258*2.25)","v":0},null,null,null,0,null,null,null,null,null,null,null,{"$f":"Y258+AC258+AD258+AF258+AG258+AH258+AI258+AJ258+AE258","v":0},0,null,null,{"$f":"AK258+AL258+AM258+AN258","v":0}]
[258," ",null,null,null,null,null,null,null,null,null,null,null,null,null,null,null,null,null,null,null,null,0,null,0,null,null,null,{"$f":"(Z259+AA259+AB259)*2.25","v":0},null,null,null,null,null,null,null,0,0,null,null,0]
[259," ",null,null,null,null,null,null,null,null,null,null,null,null,null,null,null,null,null,null,null,null,0,null,0,null,null,null,0,null,null,null,null,null,null,null,0,{"$f":"W260*2.55","v":0},null,null,0]
[260," ",null,null,null,null,null,null,null,null,null,null,null,null,null,null,null,null,null,null,null,null,0,null,0,null,null,null,0,null,null,null,null,null,null,null,0,0,null,null,0]
[261," ",null,null,null,null,null,null,null,null,null,null,null,null,null,null,null,null,null,null,null,null,0,null,0,null,null,null,0,null,null,null,null,null,null,null,0,0,null,null,0]
[262," ",null,null,null,null,null,null,null,null,null,null,null,null,null,null,null,null,null,null,null,null,0,null,0,null,null,null,0,null,null,null,null,null,null,null,0,0,null,null,0]
[263," ",null,null,null,null,null,null,null,null,null,null,null,null,null,null,null,null,null,null,null,null,0,null,0,null,null,null,0,null,null,null,null,null,null,null,0,0,null,null,0]
[264," ",null,null,null,null,null,null,null,null,null,null,null,null,null,null,null,null,null,null,null,null,0,null,0,null,null,null,0,null,null,null,null,null,null,null,0,0,null,null,0]
[265," ",null,null,null,null,null,null,null,null,null,null,null,null,null,null,null,null,null,null,null,null,0,null,0,null,null,null,0,null,null,null,null,null,null,null,0,0,null,null,0]
[266," ",null,null,null,null,null,null,null,null,null,null,null,null,null,null,null,null,null,null,null,null,0,null,0,null,null,null,0,null,null,null,null,null,null,null,0,0,null,null,0]
[267," ",null,null,null,null,null,null,null,null,null,null,null,null,null,null,null,null,null,null,null,null,0,null,0,null,null,null,0,null,null,null,null,null,null,null,0,0,null,null,0]
[268," ",null,null,null,null,null,null,null,null,null,null,null,null,null,null,null,null,null,null,null,null,0,null,0,null,null,null,0,null,null,null,null,null,null,null,0,0,null,null,0]
[269," ",null,null,null,null,null,null,null,null,null,null,null,null,null,null,null,null,null,null,null,null,0,null,0,null,null,null,0,null,null,null,null,null,null,null,0,0,null,null,0]
[270," ",null,null,null,null,null,null,null,null,null,null,null,null,null,null,null,null,null,null,null,null,0,null,0,null,null,null,0,null,null,null,null,null,null,null,0,0,null,null,0]
[271," ",null,null,null,null,null,null,null,null,null,null,null,null,null,null,null,null,null,null,null,null,0,null,0,null,null,null,0,null,null,null,null,null,null,null,0,0,null,null,0]
[272," ",null,null,null,null,null,null,null,null,null,null,null,null,null,null,null,null,null,null,null,null,0,null,0,null,null,null,0,null,null,null,null,null,null,null,0,0,null,null,0]
[273," ",null,null,null,null,null,null,null,null,null,null,null,null,null,null,null,null,null,null,null,null,0,null,0,null,null,null,0,null,null,null,null,null,null,null,0,0,null,null,0]
[274," ",null,null,null,null,null,null,null,null,null,null,null,null,null,null,null,null,null,null,null,null,0,null,0,null,null,null,0,null,null,null,null,null,null,null,0,0,null,null,0]
[275," ",null,null,null,null,null,null,null,null,null,null,null,null,null,null,null,null,null,null,null,null,0,null,0,null,null,null,0,null,null,null,null,null,null,null,0,0,null,null,0]
[276," ",null,null,null,null,null,null,null,null,null,null,null,null,null,null,null,null,null,null,null,null,0,null,0,null,null,null,0,null,null,null,null,null,null,null,0,0,null,null,0]
[277," ",null,null,null,null,null,null,null,null,null,null,null,null,null,null,null,null,null,null,null,null,0,null,0,null,null,null,0,null,null,null,null,null,null,null,0,0,null,null,0]
[278," ",null,null,null,null,null,null,null,null,null,null,null,null,null,null,null,null,null,null,null,null,0,null,0,null,null,null,0,null,null,null,null,null,null,null,0,0,null,null,0]
[279," ",null,null,null,null,null,null,null,null,null,null,null,null,null,null,null,null,null,null,null,null,0,null,0,null,null,null,0,null,null,null,null,null,null,null,0,0,null,null,0]
[280," ",null,null,null,null,null,null,null,null,null,null,null,null,null,null,null,null,null,null,null,null,0,null,0,null,null,null,0,null,null,null,null,null,null,null,0,0,null,null,0]
[281," ",null,null,null,null,null,null,null,null,null,null,null,null,null,null,null,null,null,null,null,null,0,null,0,null,null,null,0,null,null,null,null,null,null,null,0,0,null,null,0]
[282," ",null,null,null,null,null,null,null,null,null,null,null,null,null,null,null,null,null,null,null,null,0,null,0,null,null,null,0,null,null,null,null,null,null,null,0,0,null,null,0]
[283," ",null,null,null,null,null,null,null,null,null,null,null,null,null,null,null,null,null,null,null,null,0,null,0,null,null,null,0,null,null,null,null,null,null,null,0,0,null,null,0]
[284," ",null,null,null,null,null,null,null,null,null,null,null,null,null,null,null,null,null,null,null,null,0,null,0,null,null,null,0,null,null,null,null,null,null,null,0,0,null,null,0]
[285," ",null,null,null,null,null,null,null,null,null,null,null,null,null,null,null,null,null,null,null,null,0,null,0,null,null,null,0,null,null,null,null,null,null,null,0,0,null,null,0]
[286," ",null,null,null,null,null,null,null,null,null,null,null,null,null,null,null,null,null,null,null,null,0,null,0,null,null,null,0,null,null,null,null,null,null,null,0,0,null,null,0]
[287," ",null,null,null,null,null,null,null,null,null,null,null,null,null,null,null,null,null,null,null,null,0,null,0,null,null,null,0,null,null,null,null,null,null,null,0,0,null,null,0]
[288," ",null,null,null,null,null,null,null,null,null,null,null,null,null,null,null,null,null,null,null,null,0,null,0,null,null,null,0,null,null,null,null,null,null,null,0,0,null,null,0]
[289," ",null,null,null,null,null,null,null,null,null,null,null,null,null,null,null,null,null,null,null,null,0,null,0,null,null,null,0,null,null,null,null,null,null,null,0,0,null,null,0]
[290," ",null,null,null,null,null,null,null,null,null,null,null,null,null,null,null,null,null,null,null,null,0,null,0,null,null,null,0,null,null,null,null,null,null,null,0,0,null,null,0]
[291," ",null,null,null,null,null,null,null,null,null,null,null,null,null,null,null,null,null,null,null,null,0,null,0,null,null,null,0,null,null,null,null,null,null,null,0,0,null,null,0]
[292," ",null,null,null,null,null,null,null,null,null,null,null,null,null,null,null,null,null,null,null,null,0,null,0,null,null,null,0,null,null,null,null,null,null,null,0,0,null,null,0]
[293," ",null,null,null,null,null,null,null,null,null,null,null,null,null,null,null,null,null,null,null,null,0,null,0,null,null,null,0,null,null,null,null,null,null,null,0,0,null,null,0]
[294," ",null,null,null,null,null,null,null,null,null,null,null,null,null,null,null,null,null,null,null,null,0,null,0,null,null,null,0,null,null,null,null,null,null,null,0,0,null,null,0]
[295," ",null,null,null,null,null,null,null,null,null,null,null,null,null,null,null,null,null,null,null,null,0,null,0,null,null,null,0,null,null,null,null,null,null,null,0,0,null,null,0]
[296," ",null,null,null,null,null,null,null,null,null,null,null,null,null,null,null,null,null,null,null,null,0,null,0,null,null,null,0,null,null,null,null,null,null,null,0,0,null,null,0]
[297," ",null,null,null,null,null,null,null,null,null,null,null,null,null,null,null,null,null,null,null,null,0,null,0,null,null,null,0,null,null,null,null,null,null,null,0,0,null,null,0]
[298," ",null,null,null,null,null,null,null,null,null,null,null,null,null,null,null,null,null,null,null,null,0,null,0,null,null,null,0,null,null,null,null,null,null,null,0,0,null,null,0]
[299," ",null,null,null,null,null,null,null,null,null,null,null,null,null,null,null,null,null,null,null,null,0,null,0,null,null,null,0,null,null,null,null,null,null,null,0,0,null,null,0]
[300," ",null,null,null,null,null,null,null,null,null,null,null,null,null,null,null,null,null,null,null,null,0,null,{"$f":"SUM(W301*4.4)","v":0},null,null,null,0,null,null,null,null,null,null,null,0,0,null,null,0]
[999," ",null,null,null,null,null,null,null,null,null,null,null,null,null,null,null,null,null,null,null,null,0,null,{"$f":"SUM(W302*4.4)","v":0},null,null,null,0,null,null,null,null,null,null,null,0,0,null,null,0,null,null,null,{"$f":"SUM(AS3:AS301)","v":515.1}]
[null,"SUMME in €",{"$f":"SUM(C2:C302)","v":0},0,0,0,0,0,{"$f":"SUM(I5:I211)","v":0},0,0,0,0,0,0,0,0,0,0,0,0,0,0,0,{"$f":"SUM(Y2:Y302)","v":0},0,0,0,0,0,0,0,0,0,0,0,0,0,0,0,0,null,null,{"$f":"SUM(AR3:AR302)","v":202}]
[null,null,"Sonderentgelte für FAHRER; NUR FÜR  KILOMETERGELD- ABRECHNUNG :",null,null,null,null,null,null,null,null,null,null,null,null,null,null,null,null,null,null,null,null,null,null,null,null,null,null,null,null,null,null,null,null,null,null,"KM"]
[null,null,null,null,null,null,null,null,null,null,null,null,null,null,null,null,null,46,"Jaunich",null,null,null,null,null,null,null,null,null,null,null,null,null,null,null,null,null,null,null,{"$f":"AL305*0.52","v":0},null,{"$f":"AM305+AN305","v":0}]
[null,null,null,null,null,null,null,null,null,null,null,null,null,null,null,null,null,77,"Ridder",null,null,null,null,null,null,null,null,null,null,null,null,null,null,null,null,null,null,null,{"$f":"AL306*0.52","v":0},null,{"$f":"AM306+AN306","v":0}]
[null,null,null,null,null,null,null,null,null,null,"KEIN EINTRAG",null,null,null,null,null,null,null,null,null,null,null,null,null,null,null,null,null,null,null,null,null,null,null,null,null,null,null,{"$f":"AL307*0.52","v":0},null,{"$f":"AM307+AN307","v":0}]
[null,null,null,null,null,null,null,null,null,null,null,null,null,null,null,null,null,null,null,null,null,null,null,null,null,null,null,null,null,null,null,null,null,null,null,null,null,null,{"$f":"AL308*0.52","v":0},null,{"$f":"AM308+AN308","v":0}]
[null,null,null,null,null,null,null,null,null,null,null,null,null,null,null,null,null,null,null,null,null,null,null,null,null,null,null,null,null,null,null,null,null,null,null,null,null,null,{"$f":"AL309*0.52","v":0},null,{"$f":"AM309+AN309","v":0}]
[null,null,null,null,null,null,null,null,null,null,null,null,null,null,null,null,null,null,null,null,null,null,null,null,"GESAMTSUMME",null,null,null,null,null,null,null,null,null,null,null,null,null,null,null,{"$f":"SUM(AO303:AO309)","v":0}]
[]
[]
[null,"Start"]
[null,"Ende"]

{"sheet":"05-Abrechnung","index":9,"n_rows":61,"n_cols":8,"rows_kept":61,"cut":false,"hidden":false,"merged":[[40,6,41,6],[40,7,41,7],[12,0,12,3],[13,0,13,3],[52,1,52,2],[42,1,42,2],[40,1,40,2],[47,1,47,2],[51,1,51,2],[43,1,43,2],[44,1,44,2],[45,1,45,2],[46,1,46,2]]}
["QuittungNR",30]
[]
[]
[]
[]
[]
[]
["Mitarbeiter Nr.:",null,null,"MONATSABRECHNUNG",null,null,"Mai",2017]
[]
[null,null,null,null,null,null,"Abrechnungszeitraum: 21.04 - 20.05"]
[]
[]
[{"$f":"INDEX([1]!Datenbank2,$B$1,2)&\" \"&INDEX([1]!Datenbank2,$B$1,3)","v":"Stella Scholz"},"Christel Hachmeister","Christel Hachmeister","Christel Hachmeister"]
[{"$f":"INDEX([1]!Datenbank2,$B$1,4)","v":"Steinegge 17"},"Borsteler Bruch 4","Borsteler Bruch 4","Borsteler Bruch 4"]
[{"$f":"INDEX([1]!Datenbank2,$B$1,5)&\" \"&INDEX([1]!Datenbank2,$B$1,6)","v":"32689 Kalletal"}]
[]
[]
[]
["Allgemeine Tests:"]
[null,null,"TEST NR\n& DATUM","FB","Entgelt \nin EURO €",null,"Erläuterungen zu"]
[null,null,{"$f":"Mai!$C$1","v":0},{"$f":"INDEX([0]!mai,$B$1,3)","v":0},{"$f":"D21*2.25","v":0},null,"Spezialtests:"]
[null,null,{"$f":"Mai!$D$1","v":0},{"$f":"INDEX([0]!mai,$B$1,4)","v":0},{"$f":"D22*2.25","v":0},null,{"$f":"IF(Mai!$AE$1=0,\"\",Mai!AE$1)","v":""},{"$f":"INDEX([0]!mai,$B$1,31)","v":0}]
[null,null,{"$f":"Mai!$E$1","v":0},{"$f":"INDEX([0]!mai,$B$1,5)","v":0},0,null,{"$f":"IF(Mai!$AF$1=0,\"\",Mai!AF$1)","v":""},{"$f":"INDEX([0]!mai,$B$1,32)","v":0}]
[null,null,{"$f":"Mai!$F$1","v":0},{"$f":"INDEX([0]!mai,$B$1,6)","v":0},0,null,{"$f":"IF(Mai!$AG$1=0,\"\",Mai!AG$1)","v":""},{"$f":"INDEX([0]!mai,$B$1,33)","v":0}]
[null,null,{"$f":"Mai!$G$1","v":0},{"$f":"INDEX([0]!mai,$B$1,7)","v":0},0,null,{"$f":"IF(Mai!$AH$1=0,\"\",Mai!AH$1)","v":""},{"$f":"INDEX([0]!mai,$B$1,34)","v":0}]
[null,null,{"$f":"Mai!$H$1","v":0},{"$f":"INDEX([0]!mai,$B$1,8)","v":0},0,null,{"$f":"IF(Mai!$AI$1=0,\"\",Mai!AI$1)","v":""},{"$f":"INDEX([0]!mai,$B$1,35)","v":0}]
[null,null,{"$f":"Mai!$I$1","v":0},{"$f":"INDEX([0]!mai,$B$1,9)","v":0},0]
[null,null,{"$f":"Mai!$J$1","v":0},{"$f":"INDEX([0]!mai,$B$1,10)","v":0},0,null,"Gesamt",{"$f":"SUM(H22:H27)","v":0}]
[null,null,{"$f":"Mai!$K$1","v":0},{"$f":"INDEX([0]!mai,$B$1,11)","v":0},0]
[null,null,{"$f":"Mai!$L$1","v":0},{"$f":"INDEX([0]!mai,$B$1,12)","v":0},0]
[null,null,{"$f":"Mai!$M$1","v":0},{"$f":"INDEX([0]!mai,$B$1,13)","v":0},0]
[null,null,{"$f":"Mai!$N$1","v":0},{"$f":"INDEX([0]!mai,$B$1,14)","v":0},0]
[null,null,{"$f":"Mai!$O$1","v":0},{"$f":"INDEX([0]!mai,$B$1,15)","v":0},0," "]
[null,null,{"$f":"Mai!$P$1","v":0},{"$f":"INDEX([0]!mai,$B$1,16)","v":0},0]
[null,null,{"$f":"Mai!$Q$1","v":0},{"$f":"INDEX([0]!mai,$B$1,17)","v":0},0]
[null,null,{"$f":"Mai!$R$1","v":0},{"$f":"INDEX([0]!mai,$B$1,18)","v":0},0]
[null,null,{"$f":"Mai!$S$1","v":0},{"$f":"INDEX([0]!mai,$B$1,19)","v":0},0]
[null,null,{"$f":"Mai!$T$1","v":0},{"$f":"INDEX([0]!mai,$B$1,20)","v":0},0]
[null,null,{"$f":"Mai!$U$1","v":0},{"$f":"INDEX([0]!mai,$B$1,21)","v":0},0]
[null,null,{"$f":"Mai!$V$1","v":0},{"$f":"INDEX([0]!mai,$B$1,22)","v":0},0,null,"Bemerkungen:"]
[null,"SUMME 1",null,{"$f":"SUM(D21:D40)","v":0},{"$f":"SUM(E21:E40)","v":0},null,"Stunden (nach FB-Anzahl)",{"$f":"INDEX([0]!mai,$B$1,23)","v":0}]
[]
["Zusätze:","Bezeichung"]
[null,{"$f":"Mai!$AC$1","v":"Summe BIM in EURO"},null,null,{"$f":"INDEX([0]!mai,$B$1,28)","v":0}]
[null,{"$f":"Mai!$AD$1","v":"Stamm daten"},null,null,{"$f":"INDEX([0]!mai,$B$1,29)","v":0},null,"StaDa=","Stammdatenerhebung"]
[null,"Summe Spezialtest",null,null,{"$f":"H28","v":0},null,"FB = Anzahl der Fragebogen"]
[null,{"$f":"IF(Mai!$AJ$1=0,\"\",Mai!AJ$1)","v":"Std. /Entgelt"},null,null,{"$f":"INDEX([0]!mai,$B$1,36)","v":0}]
[null,"GESAMT NETTO",null,null,{"$f":"SUM(E41:E47)","v":0}]
[null,null,"Kilometergeld",null,{"$f":"INDEX([0]!mai,$B$1,38)","v":0}]
[null,null,"Porto/Telefon/Fax",null,{"$f":"INDEX([0]!mai,$B$1,39)","v":0}]
[null,null,"Pauschale 25%",null,{"$f":"INDEX([0]!mai,$B$1,40)","v":0}]
[null,"GESAMT in €",null,null,{"$f":"E48+E49+E50+E51","v":0}]
[]
[]
["Der Betrag wird bis zum 10. des folgenden Monats überwiesen."]
[]
[]
[]
[]
[]
["Prorata Marktforschung GmbH • Marienglacis 37 • 32427 Minden • tel  0571.82875.0 fax • 0571.82875.99 •  www.prorata.de • info@prorata.de"]

{"sheet":"Juni","index":10,"n_rows":316,"n_cols":59,"rows_kept":316,"cut":false,"hidden":false,"merged":[]}
[null,"Testnummer / Testerin",null,null,null,null,null,null,null,null,null,null,null,null,null,null,null,null,null,null,null,null,null,null,null,null,null,null,null,"Anz.","Std.","Summe\nin EURO",null,null,null,"Summe BIM in EURO","Stamm daten",null,null,null,null,null,"Std. /Entgelt","Gesamt\nNETTO*\nin EURO","km x \n XXeurocent","Telef./Porto","Pauschale 25%","Gesamt\nin EURO",null,null,null,null,2.5499999999999998]
[1," ",null,null,null,null,null,null,null,null,null,null,null,null,null,null,null,null,null,null,null,null,null,null,null,null,null,null,null,{"$f":"SUM(C2:W2)","v":0},null,{"$f":"SUM(AD2*2.25)","v":0},null,null,null,{"$f":"(AG2+AH2+AI2)*2.25","v":0},null,null,null,null,null,null,null,{"$f":"AF2+AJ2+AK2+AM2+AN2+AO2+AP2+AQ2+AL2","v":0},null,null,null,{"$f":"AR2+AS2+AT2+AU2","v":0}]
[2,"Gundlach",null,null,null,null,null,null,null,null,null,null,null,null,null,null,null,null,null,null,null,null,null,null,null,null,null,null,null,0,null,0,null,null,null,{"$f":"(AG3+AH3+AI3)*2.25","v":0},null,null,null,null,null,null,null,0,{"$f":"AD3*2.75","v":0},null,null,0,null,null,null,10,{"$f":"AZ3*$BA$1","v":25.5}]
[3,"Heine",null,null,null,null,null,null,null,null,null,null,null,null,null,null,null,null,null,null,null,null,null,null,null,null,null,null,null,0,null,0,null,null,null,0,null,null,null,null,null,null,null,0,{"$f":"AD4*2.75","v":0},null,null,0,null,null,null,18,{"$f":"AZ4*$BA$1","v":45.9}]
[4,"Korte, Inge",null,null,null,null,null,null,null,null,null,null,null,null,null,null,null,null,null,null,null,null,null,null,null,null,null,null,null,{"$f":"SUM(C5:Y5)","v":0},{"$f":"AD5/4","v":0},0,null,null,null,0,null,null,null,null,null,null,null,0,0,null,null,0,null,null,null,0,0,null,null,"Aufpassen: 817/818 Folgetest",null,null,"km-Geld"]
[5,"Tölkemeier, Petra",null,null,null,null,null,null,null,null,null,null,null,null,null,null,null,null,null,null,null,null,null,null,null,null,null,null,null,{"$f":"SUM(C6:Y6)","v":0},{"$f":"AD6/4","v":0},0,null,null,null,0,null,null,null,null,null,null,null,0,0,null,null,0,null,null,null,24,61.199999999999996,null,null,"571/572 Folgetest",null,null,"km Geld"]
[6,"Rohlfing, Anja",null,null,null,null,null,null,null,null,null,null,null,null,null,null,null,null,null,null,null,null,null,null,null,null,null,null,null,0,0,0,null,null,null,0,null,null,null,null,null,null,null,0,0,null,null,0,null,null,null,null,0,null,null,"571/572 Folgetest",null,null,"km Geld"]
[7,"Aumann, Elfriede",null,null,null,null,null,null,null,null,null,null,null,null,null,null,null,null,null,null,null,null,null,null,null,null,null,null,null,0,0,0,null,null,null,0,null,null,null,null,null,null,null,0,0,null,null,0,null,null,null,22,56.099999999999994]
[8,null,null,null,null,null,null,null,null,null,null,null,null,null,null,null,null,null,null,null,null,null,null,null,null,null,null,null,null,0,0,0,null,null,null,0,null,null,null,null,null,null,null,0,0,null,null,0,null,null,null,null,0]
[9,"Kilzer, Andreas",null,null,null,null,null,null,null,null,null,null,null,null,null,null,null,null,null,null,null,null,null,null,null,null,null,null,null,0,0,0,null,null,null,0,null,null,null,null,null,null,null,0,0,null,null,0,null,null,null,38,96.899999999999991]
[10,"Rakowski, Sigrid",null,null,null,null,null,null,null,null,null,null,null,null,null,null,null,null,null,null,null,null,null,null,null,null,null,null,null,0,0,0,null,null,null,0,null,null,null,null,null,null,null,0,{"$f":"AD11*2.75","v":0},null,null,0,null,null,null,26,66.3]
[11,null,null,null,null,null,null,null,null,null,null,null,null,null,null,null,null,null,null,null,null,null,null,null,null,null,null,null,null,0,0,0,null,null,null,0,null,null,null,null,null,null,null,0,0,null,null,0,null,null,null,null,0]
[12,"Drewes, Andrea",null,null,null,null,null,null,null,null,null,null,null,null,null,null,null,null,null,null,null,null,null,null,null,null,null,null,null,0,0,0,null,null,null,0,null,null,null,null,null,null,null,0,0,null,null,0,null,null,null,21,53.55]
[13,null,null,null,null,null,null,null,null,null,null,null,null,null,null,null,null,null,null,null,null,null,null,null,null,null,null,null,null,0,0,0,null,null,null,0,null,null,null,null,null,null,null,0,0,null,null,0,null,null,null,22,56.099999999999994]
[14,"Grabbe , Nadja",null,null,null,null,null,null,null,null,null,null,null,null,null,null,null,null,null,null,null,null,null,null,null,null,null,null,null,0,0,0,null,null,null,0,null,null,null,null,null,null,null,0,0,null,null,0,null,null,null,15,38.25]
[15,"Sassenberg, Julia",null,null,null,null,null,null,null,null,null,null,null,null,null,null,null,null,null,null,null,null,null,null,null,null,null,null,null,0,0,0,null,null,null,0,null,null,null,null,null,null,null,0,0,null,null,0,null,null,null,null,0]
[16,null,null,null,null,null,null,null,null,null,null,null,null,null,null,null,null,null,null,null,null,null,null,null,null,null,null,null,null,0,0,0,null,null,null,0,null,null,null,null,null,null,null,0,0,null,null,0,null,null,null,null,0]
[17,null,null,null,null,null,null,null,null,null,null,null,null,null,null,null,null,null,null,null,null,null,null,null,null,null,null,null,null,0,0,0,null,null,null,0,null,null,null,null,null,null,null,0,0,null,null,0,null,null,null,null,0]
[18,null,null,null,null,null,null,null,null,null,null,null,null,null,null,null,null,null,null,null,null,null,null,null,null,null,null,null,null,0,0,0,null,null,null,0,null,null,null,null,null,null,null,0,0,null,null,0,null,null,null,null,0]
[19,"Blaha, Heinz",null,null,null,null,null,null,null,null,null,null,null,null,null,null,null,null,null,null,null,null,null,null,null,null,null,null,null,0,0,0,null,null,null,0,null,null,null,null,null,null,null,0,0,null,null,0,null,null,null,23,58.65]
[20,null,null,null,null,null,null,null,null,null,null,null,null,null,null,null,null,null,null,null,null,null,null,null,null,null,null,null,null,0,0,0,null,null,null,0,null,null,null,null,null,null,null,0,0,null,null,0,null,null,null,null,0]
[21,"Weichenhan, Rainer",null,null,null,null,null,null,null,null,null,null,null,null,null,null,null,null,null,null,null,null,null,null,null,null,null,null,null,0,0,0,null,null,null,0,null,null,null,null,null,null,null,0,{"$f":"AD22*2.75","v":0},null,null,0,null,null,null,null,0]
[22,"Lill, Ulrich",null,null,null,null,null,null,null,null,null,null,null,null,null,null,null,null,null,null,null,null,null,null,null,null,null,null,null,0,0,0,null,null,null,0,null,null,null,null,null,null,null,0,0,null,null,0,null,null,null,24,61.199999999999996]
[23,null,null,null,null,null,null,null,null,null,null,null,null,null,null,null,null,null,null,null,null,null,null,null,null,null,null,null,null,0,0,0,null,null,null,0,null,null,null,null,null,null,null,0,0,null,null,0,null,null,null,null,0]
[24,"Hübsch, Karl-Heinz",null,null,null,null,null,null,null,null,null,null,null,null,null,null,null,null,null,null,null,null,null,null,null,null,null,null,null,0,0,0,null,null,null,0,null,null,null,null,null,null,null,0,0,null,null,0,null,null,null,33,84.149999999999991]
[25,"Feigel-Kipp, Claudia",null,null,null,null,null,null,null,null,null,null,null,null,null,null,null,null,null,null,null,null,null,null,null,null,null,null,null,0,0,0,null,null,null,0,null,null,null,null,null,null,null,0,0,null,null,0,null,null,null,22,56.099999999999994]
[26,null,null,null,null,null,null,null,null,null,null,null,null,null,null,null,null,null,null,null,null,null,null,null,null,null,null,null,null,0,0,0,null,null,null,0,null,null,null,null,null,null,null,0,0,null,null,0,null,null,null,null,0]
[27,null,null,null,null,null,null,null,null,null,null,null,null,null,null,null,null,null,null,null,null,null,null,null,null,null,null,null,null,0,0,0,null,null,null,0,null,null,null,null,null,null,null,0,0,null,null,0,null,null,null,null,0]
[28,null,null,null,null,null,null,null,null,null,null,null,null,null,null,null,null,null,null,null,null,null,null,null,null,null,null,null,null,0,0,0,null,null,null,0,null,null,null,null,null,null,null,0,0,null,null,0,null,null,null,null,0]
[29,"Scholz,  Stella",null,null,null,null,null,null,null,null,null,null,null,null,null,null,null,null,null,null,null,null,null,null,null,null,null,null,null,0,0,0,null,null,null,0,null,null,null,null,null,null,null,0,0,null,null,0,null,null,null,0,0]
[30,"Hachmeister, Stefan",null,null,null,null,null,null,null,null,null,null,null,null,null,null,null,null,null,null,null,null,null,null,null,null,null,null,null,0,0,0,null,null,null,0,null,null,null,null,null,null,null,0,0,null,null,0,null,null,null,6,15.299999999999999]
[31,null,null,null,null,null,null,null,null,null,null,null,null,null,null,null,null,null,null,null,null,null,null,null,null,null,null,null,null,0,0,0,null,null,null,0,null,null,null,null,null,null,null,0,0,null,null,0,null,null,null,null,0]
[32,null,null,null,null,null,null,null,null,null,null,null,null,null,null,null,null,null,null,null,null,null,null,null,null,null,null,null,null,0,0,0,null,null,null,0,null,null,null,null,null,null,null,0,0,null,null,0,null,null,null,null,0]
[33,null,null,null,null,null,null,null,null,null,null,null,null,null,null,null,null,null,null,null,null,null,null,null,null,null,null,null,null,0,0,0,null,null,null,0,null,null,null,null,null,null,null,0,0,null,null,0,null,null,null,null,0]
[34,null,null,null,null,null,null,null,null,null,null,null,null,null,null,null,null,null,null,null,null,null,null,null,null,null,null,null,null,0,0,0,null,null,null,0,null,null,null,null,null,null,null,0,0,null,null,0,null,null,null,null,0]
[35,null,null,null,null,null,null,null,null,null,null,null,null,null,null,null,null,null,null,null,null,null,null,null,null,null,null,null,null,0,0,0,null,null,null,0,null,null,null,null,null,null,null,0,0,null,null,0,null,null,null,null,0]
[36,"Selle, Monika",null,null,null,null,null,null,null,null,null,null,null,null,null,null,null,null,null,null,null,null,null,null,null,null,null,null,null,0,0,0,null,null,null,0,null,null,null,null,null,null,null,0,0,null,null,0,null,null,null,5,12.75]
[37,"Sander, Eva-Maria",null,null,null,null,null,null,null,null,null,null,null,null,null,null,null,null,null,null,null,null,null,null,null,null,null,null,null,0,0,0,null,null,null,0,null,null,null,null,null,null,null,0,0,null,null,0,null,null,null,33,84.149999999999991]
[38,"Sander, Jessica",null,null,null,null,null,null,null,null,null,null,null,null,null,null,null,null,null,null,null,null,null,null,null,null,null,null,null,0,0,0,null,null,null,0,null,null,null,null,null,null,null,0,{"$f":"AD39*2.75","v":0},null,null,0,null,null,null,null,0]
[39,"Wiese-Schmutzer, Armgard",null,null,null,null,null,null,null,null,null,null,null,null,null,null,null,null,null,null,null,null,null,null,null,null,null,null,null,0,0,0,null,null,null,0,null,null,null,null,null,null,null,0,0,null,null,0,null,null,null,null,0]
[40,null,null,null,null,null,null,null,null,null,null,null,null,null,null,null,null,null,null,null,null,null,null,null,null,null,null,null,null,0,0,0,null,null,null,0,null,null,null,null,null,null,null,0,0,null,null,0,null,null,null,null,0]
[41,null,null,null,null,null,null,null,null,null,null,null,null,null,null,null,null,null,null,null,null,null,null,null,null,null,null,null,null,0,0,0,null,null,null,0,null,null,null,null,null,null,null,0,0,null,null,0,null,null,null,null,0]
[42,null,null,null,null,null,null,null,null,null,null,null,null,null,null,null,null,null,null,null,null,null,null,null,null,null,null,null,null,0,0,0,null,null,null,0,null,null,null,null,null,null,null,0,0,null,null,0,null,null,null,null,0]
[43,null,null,null,null,null,null,null,null,null,null,null,null,null,null,null,null,null,null,null,null,null,null,null,null,null,null,null,null,0,0,0,null,null,null,0,null,null,null,null,null,null,null,0,0,null,null,0,null,null,null,null,0]
[44,null,null,null,null,null,null,null,null,null,null,null,null,null,null,null,null,null,null,null,null,null,null,null,null,null,null,null,null,0,0,0,null,null,null,0,null,null,null,null,null,null,null,0,0,null,null,0,null,null,null,null,0]
[45,null,null,null,null,null,null,null,null,null,null,null,null,null,null,null,null,null,null,null,null,null,null,null,null,null,null,null,null,0,0,0,null,null,null,0,null,null,null,null,null,null,null,0,0,null,null,0,null,null,null,null,0]
[46,null,null,null,null,null,null,null,null,null,null,null,null,null,null,null,null,null,null,null,null,null,null,null,null,null,null,null,null,0,0,0,null,null,null,0,null,null,null,null,null,null,null,0,0,null,null,0,null,null,null,null,0]
[47,null,null,null,null,null,null,null,null,null,null,null,null,null,null,null,null,null,null,null,null,null,null,null,null,null,null,null,null,0,0,0,null,null,null,0,null,null,null,null,null,null,null,0,0,null,null,0,null,null,null,null,0]
[48,null,null,null,null,null,null,null,null,null,null,null,null,null,null,null,null,null,null,null,null,null,null,null,null,null,null,null,null,0,0,0,null,null,null,0,null,null,null,null,null,null,null,0,0,null,null,0,null,null,null,null,0]
[49,null,null,null,null,null,null,null,null,null,null,null,null,null,null,null,null,null,null,null,null,null,null,null,null,null,null,null,null,0,0,0,null,null,null,0,null,null,null,null,null,null,null,0,0,null,null,0,null,null,null,null,0]
[50,null,null,null,null,null,null,null,null,null,null,null,null,null,null,null,null,null,null,null,null,null,null,null,null,null,null,null,null,0,0,0,null,null,null,0,null,null,null,null,null,null,null,0,0,null,null,0,null,null,null,null,0]
[51,null,null,null,null,null,null,null,null,null,null,null,null,null,null,null,null,null,null,null,null,null,null,null,null,null,null,null,null,0,0,0,null,null,null,0,null,null,null,null,null,null,null,0,0,null,null,0,null,null,null,null,0]
[52,null,null,null,null,null,null,null,null,null,null,null,null,null,null,null,null,null,null,null,null,null,null,null,null,null,null,null,null,0,0,0,null,null,null,0,null,null,null,null,null,null,null,0,0,null,null,0,null,null,null,null,0]
[53,null,null,null,null,null,null,null,null,null,null,null,null,null,null,null,null,null,null,null,null,null,null,null,null,null,null,null,null,0,0,0,null,null,null,0,null,null,null,null,null,null,null,0,0,null,null,0,null,null,null,null,0]
[54,null,null,null,null,null,null,null,null,null,null,null,null,null,null,null,null,null,null,null,null,null,null,null,null,null,null,null,null,0,0,0,null,null,null,0,null,null,null,null,null,null,null,0,0,null,null,0,null,null,null,null,0]
[55,null,null,null,null,null,null,null,null,null,null,null,null,null,null,null,null,null,null,null,null,null,null,null,null,null,null,null,null,0,0,0,null,null,null,0,null,null,null,null,null,null,null,0,0,null,null,0,null,null,null,null,0]
[56,null,null,null,null,null,null,null,null,null,null,null,null,null,null,null,null,null,null,null,null,null,null,null,null,null,null,null,null,0,0,0,null,null,null,0,null,null,null,null,null,null,null,0,0,null,null,0,null,null,null,null,0]
[57,null,null,null,null,null,null,null,null,null,null,null,null,null,null,null,null,null,null,null,null,null,null,null,null,null,null,null,null,0,0,0,null,null,null,0,null,null,null,null,null,null,null,0,0,null,null,0,null,null,null,null,0]
[58,null,null,null,null,null,null,null,null,null,null,null,null,null,null,null,null,null,null,null,null,null,null,null,null,null,null,null,null,0,0,0,null,null,null,0,null,null,null,null,null,null,null,0,0,null,null,0,null,null,null,null,0]
[59,null,null,null,null,null,null,null,null,null,null,null,null,null,null,null,null,null,null,null,null,null,null,null,null,null,null,null,null,0,0,0,null,null,null,0,null,null,null,null,null,null,null,0,0,null,null,0,null,null,null,null,0]
[60,null,null,null,null,null,null,null,null,null,null,null,null,null,null,null,null,null,null,null,null,null,null,null,null,null,null,null,null,0,0,0,null,null,null,0,null,null,null,null,null,null,null,0,0,null,null,0,null,null,null,null,0]
[61,null,null,null,null,null,null,null,null,null,null,null,null,null,null,null,null,null,null,null,null,null,null,null,null,null,null,null,null,0,0,0,null,null,null,0,null,null,null,null,null,null,null,0,0,null,null,0,null,null,null,null,0]
[62,null,null,null,null,null,null,null,null,null,null,null,null,null,null,null,null,null,null,null,null,null,null,null,null,null,null,null,null,0,0,0,null,null,null,0,null,null,null,null,null,null,null,0,0,null,null,0,null,null,null,null,0]
[63,null,null,null,null,null,null,null,null,null,null,null,null,null,null,null,null,null,null,null,null,null,null,null,null,null,null,null,null,0,0,0,null,null,null,0,null,null,null,null,null,null,null,0,0,null,null,0,null,null,null,null,0]
[64,null,null,null,null,null,null,null,null,null,null,null,null,null,null,null,null,null,null,null,null,null,null,null,null,null,null,null,null,0,0,0,null,null,null,0,null,null,null,null,null,null,null,0,0,null,null,0,null,null,null,null,0]
[65,null,null,null,null,null,null,null,null,null,null,null,null,null,null,null,null,null,null,null,null,null,null,null,null,null,null,null,null,0,0,{"$f":"SUM(AD66*2.25)","v":0},null,null,null,0,null,null,null,null,null,null,null,{"$f":"AF66+AJ66+AK66+AM66+AN66+AO66+AP66+AQ66+AL66","v":0},0,null,null,{"$f":"AR66+AS66+AT66+AU66","v":0},null,null,null,null,0]
[66,null,null,null,null,null,null,null,null,null,null,null,null,null,null,null,null,null,null,null,null,null,null,null,null,null,null,null,null,0,0,0,null,null,null,{"$f":"(AG67+AH67+AI67)*2.25","v":0},null,null,null,null,null,null,null,0,0,null,null,0,null,null,null,null,0]
[67,null,null,null,null,null,null,null,null,null,null,null,null,null,null,null,null,null,null,null,null,null,null,null,null,null,null,null,null,0,0,0,null,null,null,0,null,null,null,null,null,null,null,0,{"$f":"AD68*2.75","v":0},null,null,0,null,null,null,null,{"$f":"AZ68*$BA$1","v":0}]
[68,null,null,null,null,null,null,null,null,null,null,null,null,null,null,null,null,null,null,null,null,null,null,null,null,null,null,null,null,0,0,0,null,null,null,0,null,null,null,null,null,null,null,0,0,null,null,0,null,null,null,null,0]
[69,null,null,null,null,null,null,null,null,null,null,null,null,null,null,null,null,null,null,null,null,null,null,null,null,null,null,null,null,{"$f":"SUM(C70:Y70)","v":0},{"$f":"AD70/4","v":0},0,null,null,null,0,null,null,null,null,null,null,null,0,0,null,null,0,null,null,null,null,0]
[70,null,null,null,null,null,null,null,null,null,null,null,null,null,null,null,null,null,null,null,null,null,null,null,null,null,null,null,null,0,0,0,null,null,null,0,null,null,null,null,null,null,null,0,0,null,null,0,null,null,null,null,0]
[71,null,null,null,null,null,null,null,null,null,null,null,null,null,null,null,null,null,null,null,null,null,null,null,null,null,null,null,null,0,0,0,null,null,null,0,null,null,null,null,null,null,null,0,0,null,null,0,null,null,null,null,0]
[72,null,null,null,null,null,null,null,null,null,null,null,null,null,null,null,null,null,null,null,null,null,null,null,null,null,null,null,null,0,0,0,null,null,null,0,null,null,null,null,null,null,null,0,0,null,null,0,null,null,null,null,0]
[73,null,null,null,null,null,null,null,null,null,null,null,null,null,null,null,null,null,null,null,null,null,null,null,null,null,null,null,null,0,0,0,null,null,null,0,null,null,null,null,null,null,null,0,0,null,null,0,null,null,null,null,0]
[74,null,null,null,null,null,null,null,null,null,null,null,null,null,null,null,null,null,null,null,null,null,null,null,null,null,null,null,null,0,0,0,null,null,null,0,null,null,null,null,null,null,null,0,0,null,null,0,null,null,null,null,0]
[75,null,null,null,null,null,null,null,null,null,null,null,null,null,null,null,null,null,null,null,null,null,null,null,null,null,null,null,null,0,0,0,null,null,null,0,null,null,null,null,null,null,null,0,0,null,null,0,null,null,null,null,0]
[76,null,null,null,null,null,null,null,null,null,null,null,null,null,null,null,null,null,null,null,null,null,null,null,null,null,null,null,null,0,0,0,null,null,null,0,null,null,null,null,null,null,null,0,0,null,null,0,null,null,null,null,0]
[77,null,null,null,null,null,null,null,null,null,null,null,null,null,null,null,null,null,null,null,null,null,null,null,null,null,null,null,null,0,0,0,null,null,null,0,null,null,null,null,null,null,null,0,0,null,null,0,null,null,null,null,0]
[78,null,null,null,null,null,null,null,null,null,null,null,null,null,null,null,null,null,null,null,null,null,null,null,null,null,null,null,null,0,0,0,null,null,null,0,null,null,null,null,null,null,null,0,0,null,null,0,null,null,null,null,0]
[79,null,null,null,null,null,null,null,null,null,null,null,null,null,null,null,null,null,null,null,null,null,null,null,null,null,null,null,null,0,0,0,null,null,null,0,null,null,null,null,null,null,null,0,0,null,null,0,null,null,null,null,0]
[80,null,null,null,null,null,null,null,null,null,null,null,null,null,null,null,null,null,null,null,null,null,null,null,null,null,null,null,null,0,0,0,null,null,null,0,null,null,null,null,null,null,null,0,0,null,null,0,null,null,null,null,0]
[81,null,null,null,null,null,null,null,null,null,null,null,null,null,null,null,null,null,null,null,null,null,null,null,null,null,null,null,null,0,0,0,null,null,null,0,null,null,null,null,null,null,null,0,0,null,null,0,null,null,null,null,0]
[82,null,null,null,null,null,null,null,null,null,null,null,null,null,null,null,null,null,null,null,null,null,null,null,null,null,null,null,null,0,0,0,null,null,null,0,null,null,null,null,null,null,null,0,0,null,null,0,null,null,null,null,0]
[83,null,null,null,null,null,null,null,null,null,null,null,null,null,null,null,null,null,null,null,null,null,null,null,null,null,null,null,null,0,0,0,null,null,null,0,null,null,null,null,null,null,null,0,0,null,null,0,null,null,null,null,0]
[84,null,null,null,null,null,null,null,null,null,null,null,null,null,null,null,null,null,null,null,null,null,null,null,null,null,null,null,null,0,0,0,null,null,null,0,null,null,null,null,null,null,null,0,0,null,null,0,null,null,null,null,0]
[85,null,null,null,null,null,null,null,null,null,null,null,null,null,null,null,null,null,null,null,null,null,null,null,null,null,null,null,null,0,0,0,null,null,null,0,null,null,null,null,null,null,null,0,0,null,null,0,null,null,null,null,0]
[86,null,null,null,null,null,null,null,null,null,null,null,null,null,null,null,null,null,null,null,null,null,null,null,null,null,null,null,null,0,0,0,null,null,null,0,null,null,null,null,null,null,null,0,0,null,null,0,null,null,null,null,0]
[87,null,null,null,null,null,null,null,null,null,null,null,null,null,null,null,null,null,null,null,null,null,null,null,null,null,null,null,null,0,0,0,null,null,null,0,null,null,null,null,null,null,null,0,0,null,null,0,null,null,null,null,0]
[88,null,null,null,null,null,null,null,null,null,null,null,null,null,null,null,null,null,null,null,null,null,null,null,null,null,null,null,null,0,0,0,null,null,null,0,null,null,null,null,null,null,null,0,0,null,null,0,null,null,null,null,0]
[89,null,null,null,null,null,null,null,null,null,null,null,null,null,null,null,null,null,null,null,null,null,null,null,null,null,null,null,null,0,0,0,null,null,null,0,null,null,null,null,null,null,null,0,0,null,null,0,null,null,null,null,0]
[90,null,null,null,null,null,null,null,null,null,null,null,null,null,null,null,null,null,null,null,null,null,null,null,null,null,null,null,null,0,0,0,null,null,null,0,null,null,null,null,null,null,null,0,0,null,null,0,null,null,null,null,0]
[91,null,null,null,null,null,null,null,null,null,null,null,null,null,null,null,null,null,null,null,null,null,null,null,null,null,null,null,null,0,0,0,null,null,null,0,null,null,null,null,null,null,null,0,0,null,null,0,null,null,null,null,0]
[92,null,null,null,null,null,null,null,null,null,null,null,null,null,null,null,null,null,null,null,null,null,null,null,null,null,null,null,null,0,0,0,null,null,null,0,null,null,null,null,null,null,null,0,0,null,null,0,null,null,null,null,0]
[93,null,null,null,null,null,null,null,null,null,null,null,null,null,null,null,null,null,null,null,null,null,null,null,null,null,null,null,null,0,0,0,null,null,null,0,null,null,null,null,null,null,null,0,0,null,null,0,null,null,null,null,0]
[94,null,null,null,null,null,null,null,null,null,null,null,null,null,null,null,null,null,null,null,null,null,null,null,null,null,null,null,null,0,0,0,null,null,null,0,null,null,null,null,null,null,null,0,0,null,null,0,null,null,null,null,0]
[95,null,null,null,null,null,null,null,null,null,null,null,null,null,null,null,null,null,null,null,null,null,null,null,null,null,null,null,null,0,0,0,null,null,null,0,null,null,null,null,null,null,null,0,0,null,null,0,null,null,null,null,0]
[96,null,null,null,null,null,null,null,null,null,null,null,null,null,null,null,null,null,null,null,null,null,null,null,null,null,null,null,null,0,0,0,null,null,null,0,null,null,null,null,null,null,null,0,0,null,null,0,null,null,null,null,0]
[97,null,null,null,null,null,null,null,null,null,null,null,null,null,null,null,null,null,null,null,null,null,null,null,null,null,null,null,null,0,0,0,null,null,null,0,null,null,null,null,null,null,null,0,0,null,null,0,null,null,null,null,0]
[98,null,null,null,null,null,null,null,null,null,null,null,null,null,null,null,null,null,null,null,null,null,null,null,null,null,null,null,null,0,0,0,null,null,null,0,null,null,null,null,null,null,null,0,0,null,null,0,null,null,null,null,0]
[99,null,null,null,null,null,null,null,null,null,null,null,null,null,null,null,null,null,null,null,null,null,null,null,null,null,null,null,null,0,0,0,null,null,null,0,null,null,null,null,null,null,null,0,0,null,null,0,null,null,null,null,0]
[100,null,null,null,null,null,null,null,null,null,null,null,null,null,null,null,null,null,null,null,null,null,null,null,null,null,null,null,null,0,0,0,null,null,null,0,null,null,null,null,null,null,null,0,0,null,null,0,null,null,null,null,0]
[101,null,null,null,null,null,null,null,null,null,null,null,null,null,null,null,null,null,null,null,null,null,null,null,null,null,null,null,null,0,0,0,null,null,null,0,null,null,null,null,null,null,null,0,0,null,null,0,null,null,null,null,0]
[102,null,null,null,null,null,null,null,null,null,null,null,null,null,null,null,null,null,null,null,null,null,null,null,null,null,null,null,null,0,0,0,null,null,null,0,null,null,null,null,null,null,null,0,0,null,null,0,null,null,null,null,0]
[103,null,null,null,null,null,null,null,null,null,null,null,null,null,null,null,null,null,null,null,null,null,null,null,null,null,null,null,null,0,0,0,null,null,null,0,null,null,null,null,null,null,null,0,0,null,null,0,null,null,null,null,0]
[104,null,null,null,null,null,null,null,null,null,null,null,null,null,null,null,null,null,null,null,null,null,null,null,null,null,null,null,null,0,0,0,null,null,null,0,null,null,null,null,null,null,null,0,0,null,null,0,null,null,null,null,0]
[105,null,null,null,null,null,null,null,null,null,null,null,null,null,null,null,null,null,null,null,null,null,null,null,null,null,null,null,null,0,0,0,null,null,null,0,null,null,null,null,null,null,null,0,0,null,null,0,null,null,null,null,0]
[106,null,null,null,null,null,null,null,null,null,null,null,null,null,null,null,null,null,null,null,null,null,null,null,null,null,null,null,null,0,0,0,null,null,null,0,null,null,null,null,null,null,null,0,0,null,null,0,null,null,null,null,0]
[107,null,null,null,null,null,null,null,null,null,null,null,null,null,null,null,null,null,null,null,null,null,null,null,null,null,null,null,null,0,0,0,null,null,null,0,null,null,null,null,null,null,null,0,0,null,null,0,null,null,null,null,0]
[108,null,null,null,null,null,null,null,null,null,null,null,null,null,null,null,null,null,null,null,null,null,null,null,null,null,null,null,null,0,0,0,null,null,null,0,null,null,null,null,null,null,null,0,0,null,null,0,null,null,null,null,0]
[109,null,null,null,null,null,null,null,null,null,null,null,null,null,null,null,null,null,null,null,null,null,null,null,null,null,null,null,null,0,0,0,null,null,null,0,null,null,null,null,null,null,null,0,0,null,null,0,null,null,null,null,0]
[110,"Kruse, Brigitte",null,null,null,null,null,null,null,null,null,null,null,null,null,null,null,null,null,null,null,null,null,null,null,null,null,null,null,0,0,0,null,null,null,0,null,null,null,null,null,null,null,0,0,null,null,0,null,null,null,10,25.5]
[111,null,null,null,null,null,null,null,null,null,null,null,null,null,null,null,null,null,null,null,null,null,null,null,null,null,null,null,null,0,0,0,null,null,null,0,null,null,null,null,null,null,null,0,0,null,null,0,null,null,null,null,0]
[112,null,null,null,null,null,null,null,null,null,null,null,null,null,null,null,null,null,null,null,null,null,null,null,null,null,null,null,null,0,0,0,null,null,null,0,null,null,null,null,null,null,null,0,0,null,null,0,null,null,null,null,0]
[113,null,null,null,null,null,null,null,null,null,null,null,null,null,null,null,null,null,null,null,null,null,null,null,null,null,null,null,null,0,0,0,null,null,null,0,null,null,null,null,null,null,null,0,0,null,null,0,null,null,null,null,0]
[114,null,null,null,null,null,null,null,null,null,null,null,null,null,null,null,null,null,null,null,null,null,null,null,null,null,null,null,null,0,0,0,null,null,null,0,null,null,null,null,null,null,null,0,0,null,null,0,null,null,null,null,0]
[115,null,null,null,null,null,null,null,null,null,null,null,null,null,null,null,null,null,null,null,null,null,null,null,null,null,null,null,null,0,0,0,null,null,null,0,null,null,null,null,null,null,null,0,0,null,null,0,null,null,null,null,0]
[116,null,null,null,null,null,null,null,null,null,null,null,null,null,null,null,null,null,null,null,null,null,null,null,null,null,null,null,null,0,0,0,null,null,null,0,null,null,null,null,null,null,null,0,0,null,null,0,null,null,null,null,0]
[117,null,null,null,null,null,null,null,null,null,null,null,null,null,null,null,null,null,null,null,null,null,null,null,null,null,null,null,null,0,0,0,null,null,null,0,null,null,null,null,null,null,null,0,0,null,null,0,null,null,null,null,0]
[118,null,null,null,null,null,null,null,null,null,null,null,null,null,null,null,null,null,null,null,null,null,null,null,null,null,null,null,null,0,0,0,null,null,null,0,null,null,null,null,null,null,null,0,0,null,null,0,null,null,null,null,0]
[119,null,null,null,null,null,null,null,null,null,null,null,null,null,null,null,null,null,null,null,null,null,null,null,null,null,null,null,null,0,0,0,null,null,null,0,null,null,null,null,null,null,null,0,0,null,null,0,null,null,null,null,0]
[120,null,null,null,null,null,null,null,null,null,null,null,null,null,null,null,null,null,null,null,null,null,null,null,null,null,null,null,null,0,0,0,null,null,null,0,null,null,null,null,null,null,null,0,0,null,null,0,null,null,null,null,0]
[121,null,null,null,null,null,null,null,null,null,null,null,null,null,null,null,null,null,null,null,null,null,null,null,null,null,null,null,null,0,0,0,null,null,null,0,null,null,null,null,null,null,null,0,0,null,null,0,null,null,null,null,0]
[122,null,null,null,null,null,null,null,null,null,null,null,null,null,null,null,null,null,null,null,null,null,null,null,null,null,null,null,null,0,0,0,null,null,null,0,null,null,null,null,null,null,null,0,0,null,null,0,null,null,null,null,0]
[123,null,null,null,null,null,null,null,null,null,null,null,null,null,null,null,null,null,null,null,null,null,null,null,null,null,null,null,null,0,0,0,null,null,null,0,null,null,null,null,null,null,null,0,0,null,null,0,null,null,null,null,0]
[124,null,null,null,null,null,null,null,null,null,null,null,null,null,null,null,null,null,null,null,null,null,null,null,null,null,null,null,null,0,0,0,null,null,null,0,null,null,null,null,null,null,null,0,0,null,null,0,null,null,null,null,0]
[125,null,null,null,null,null,null,null,null,null,null,null,null,null,null,null,null,null,null,null,null,null,null,null,null,null,null,null,null,0,0,0,null,null,null,0,null,null,null,null,null,null,null,0,0,null,null,0,null,null,null,null,0]
[126,null,null,null,null,null,null,null,null,null,null,null,null,null,null,null,null,null,null,null,null,null,null,null,null,null,null,null,null,0,0,0,null,null,null,0,null,null,null,null,null,null,null,0,0,null,null,0,null,null,null,null,0]
[127,null,null,null,null,null,null,null,null,null,null,null,null,null,null,null,null,null,null,null,null,null,null,null,null,null,null,null,null,0,0,0,null,null,null,0,null,null,null,null,null,null,null,0,0,null,null,0,null,null,null,null,0]
[128,null,null,null,null,null,null,null,null,null,null,null,null,null,null,null,null,null,null,null,null,null,null,null,null,null,null,null,null,0,0,0,null,null,null,0,null,null,null,null,null,null,null,0,0,null,null,0,null,null,null,null,0]
[129,null,null,null,null,null,null,null,null,null,null,null,null,null,null,null,null,null,null,null,null,null,null,null,null,null,null,null,null,0,0,{"$f":"SUM(AD130*2.25)","v":0},null,null,null,0,null,null,null,null,null,null,null,{"$f":"AF130+AJ130+AK130+AM130+AN130+AO130+AP130+AQ130+AL130","v":0},0,null,null,{"$f":"AR130+AS130+AT130+AU130","v":0},null,null,null,null,0]
[130,null,null,null,null,null,null,null,null,null,null,null,null,null,null,null,null,null,null,null,null,null,null,null,null,null,null,null,null,0,0,0,null,null,null,{"$f":"(AG131+AH131+AI131)*2.25","v":0},null,null,null,null,null,null,null,0,0,null,null,0,null,null,null,null,0]
[131,null,null,null,null,null,null,null,null,null,null,null,null,null,null,null,null,null,null,null,null,null,null,null,null,null,null,null,null,0,0,0,null,null,null,0,null,null,null,null,null,null,null,0,{"$f":"AD132*2.75","v":0},null,null,0,null,null,null,null,{"$f":"AZ132*$BA$1","v":0}]
[132,null,null,null,null,null,null,null,null,null,null,null,null,null,null,null,null,null,null,null,null,null,null,null,null,null,null,null,null,0,0,0,null,null,null,0,null,null,null,null,null,null,null,0,0,null,null,0,null,null,null,null,0]
[133,null,null,null,null,null,null,null,null,null,null,null,null,null,null,null,null,null,null,null,null,null,null,null,null,null,null,null,null,{"$f":"SUM(C134:Y134)","v":0},{"$f":"AD134/4","v":0},0,null,null,null,0,null,null,null,null,null,null,null,0,0,null,null,0,null,null,null,null,0]
[134,null,null,null,null,null,null,null,null,null,null,null,null,null,null,null,null,null,null,null,null,null,null,null,null,null,null,null,null,0,0,0,null,null,null,0,null,null,null,null,null,null,null,0,0,null,null,0,null,null,null,null,0]
[135,null,null,null,null,null,null,null,null,null,null,null,null,null,null,null,null,null,null,null,null,null,null,null,null,null,null,null,null,0,0,0,null,null,null,0,null,null,null,null,null,null,null,0,0,null,null,0,null,null,null,null,0]
[136,null,null,null,null,null,null,null,null,null,null,null,null,null,null,null,null,null,null,null,null,null,null,null,null,null,null,null,null,0,0,0,null,null,null,0,null,null,null,null,null,null,null,0,0,null,null,0,null,null,null,null,0]
[137,null,null,null,null,null,null,null,null,null,null,null,null,null,null,null,null,null,null,null,null,null,null,null,null,null,null,null,null,0,0,0,null,null,null,0,null,null,null,null,null,null,null,0,0,null,null,0,null,null,null,null,0]
[138,null,null,null,null,null,null,null,null,null,null,null,null,null,null,null,null,null,null,null,null,null,null,null,null,null,null,null,null,0,0,0,null,null,null,0,null,null,null,null,null,null,null,0,0,null,null,0,null,null,null,null,0]
[139,null,null,null,null,null,null,null,null,null,null,null,null,null,null,null,null,null,null,null,null,null,null,null,null,null,null,null,null,0,0,0,null,null,null,0,null,null,null,null,null,null,null,0,0,null,null,0,null,null,null,null,0]
[140,null,null,null,null,null,null,null,null,null,null,null,null,null,null,null,null,null,null,null,null,null,null,null,null,null,null,null,null,0,0,0,null,null,null,0,null,null,null,null,null,null,null,0,0,null,null,0,null,null,null,null,0]
[141,null,null,null,null,null,null,null,null,null,null,null,null,null,null,null,null,null,null,null,null,null,null,null,null,null,null,null,null,0,0,0,null,null,null,0,null,null,null,null,null,null,null,0,0,null,null,0,null,null,null,null,0]
[142,null,null,null,null,null,null,null,null,null,null,null,null,null,null,null,null,null,null,null,null,null,null,null,null,null,null,null,null,0,0,0,null,null,null,0,null,null,null,null,null,null,null,0,0,null,null,0,null,null,null,null,0]
[143,null,null,null,null,null,null,null,null,null,null,null,null,null,null,null,null,null,null,null,null,null,null,null,null,null,null,null,null,0,0,0,null,null,null,0,null,null,null,null,null,null,null,0,0,null,null,0,null,null,null,null,0]
[144,null,null,null,null,null,null,null,null,null,null,null,null,null,null,null,null,null,null,null,null,null,null,null,null,null,null,null,null,0,0,0,null,null,null,0,null,null,null,null,null,null,null,0,0,null,null,0,null,null,null,null,0]
[145,null,null,null,null,null,null,null,null,null,null,null,null,null,null,null,null,null,null,null,null,null,null,null,null,null,null,null,null,0,0,0,null,null,null,0,null,null,null,null,null,null,null,0,0,null,null,0,null,null,null,null,0]
[146,null,null,null,null,null,null,null,null,null,null,null,null,null,null,null,null,null,null,null,null,null,null,null,null,null,null,null,null,0,0,0,null,null,null,0,null,null,null,null,null,null,null,0,0,null,null,0,null,null,null,null,0]
[147,null,null,null,null,null,null,null,null,null,null,null,null,null,null,null,null,null,null,null,null,null,null,null,null,null,null,null,null,0,0,0,null,null,null,0,null,null,null,null,null,null,null,0,0,null,null,0,null,null,null,null,0]
[148,null,null,null,null,null,null,null,null,null,null,null,null,null,null,null,null,null,null,null,null,null,null,null,null,null,null,null,null,0,0,0,null,null,null,0,null,null,null,null,null,null,null,0,0,null,null,0,null,null,null,null,0]
[149,null,null,null,null,null,null,null,null,null,null,null,null,null,null,null,null,null,null,null,null,null,null,null,null,null,null,null,null,0,0,0,null,null,null,0,null,null,null,null,null,null,null,0,0,null,null,0,null,null,null,null,0]
[150,null,null,null,null,null,null,null,null,null,null,null,null,null,null,null,null,null,null,null,null,null,null,null,null,null,null,null,null,0,0,0,null,null,null,0,null,null,null,null,null,null,null,0,0,null,null,0,null,null,null,null,0]
[151,null,null,null,null,null,null,null,null,null,null,null,null,null,null,null,null,null,null,null,null,null,null,null,null,null,null,null,null,0,0,0,null,null,null,0,null,null,null,null,null,null,null,0,0,null,null,0,null,null,null,null,0]
[152,null,null,null,null,null,null,null,null,null,null,null,null,null,null,null,null,null,null,null,null,null,null,null,null,null,null,null,null,0,0,0,null,null,null,0,null,null,null,null,null,null,null,0,0,null,null,0,null,null,null,null,0]
[153,null,null,null,null,null,null,null,null,null,null,null,null,null,null,null,null,null,null,null,null,null,null,null,null,null,null,null,null,0,0,0,null,null,null,0,null,null,null,null,null,null,null,0,0,null,null,0,null,null,null,null,0]
[154,null,null,null,null,null,null,null,null,null,null,null,null,null,null,null,null,null,null,null,null,null,null,null,null,null,null,null,null,0,0,0,null,null,null,0,null,null,null,null,null,null,null,0,0,null,null,0,null,null,null,null,0]
[155,null,null,null,null,null,null,null,null,null,null,null,null,null,null,null,null,null,null,null,null,null,null,null,null,null,null,null,null,0,0,0,null,null,null,0,null,null,null,null,null,null,null,0,0,null,null,0,null,null,null,null,0]
[156,null,null,null,null,null,null,null,null,null,null,null,null,null,null,null,null,null,null,null,null,null,null,null,null,null,null,null,null,0,0,0,null,null,null,0,null,null,null,null,null,null,null,0,0,null,null,0,null,null,null,null,0]
[157,null,null,null,null,null,null,null,null,null,null,null,null,null,null,null,null,null,null,null,null,null,null,null,null,null,null,null,null,0,0,0,null,null,null,0,null,null,null,null,null,null,null,0,0,null,null,0,null,null,null,null,0]
[158,null,null,null,null,null,null,null,null,null,null,null,null,null,null,null,null,null,null,null,null,null,null,null,null,null,null,null,null,0,0,0,null,null,null,0,null,null,null,null,null,null,null,0,0,null,null,0,null,null,null,null,0]
[159,null,null,null,null,null,null,null,null,null,null,null,null,null,null,null,null,null,null,null,null,null,null,null,null,null,null,null,null,0,0,0,null,null,null,0,null,null,null,null,null,null,null,0,0,null,null,0,null,null,null,null,0]
[160,null,null,null,null,null,null,null,null,null,null,null,null,null,null,null,null,null,null,null,null,null,null,null,null,null,null,null,null,0,0,0,null,null,null,0,null,null,null,null,null,null,null,0,0,null,null,0,null,null,null,null,0]
[161,null,null,null,null,null,null,null,null,null,null,null,null,null,null,null,null,null,null,null,null,null,null,null,null,null,null,null,null,0,0,0,null,null,null,0,null,null,null,null,null,null,null,0,0,null,null,0,null,null,null,null,0]
[162,null,null,null,null,null,null,null,null,null,null,null,null,null,null,null,null,null,null,null,null,null,null,null,null,null,null,null,null,0,0,0,null,null,null,0,null,null,null,null,null,null,null,0,0,null,null,0,null,null,null,null,0]
[163,null,null,null,null,null,null,null,null,null,null,null,null,null,null,null,null,null,null,null,null,null,null,null,null,null,null,null,null,0,0,0,null,null,null,0,null,null,null,null,null,null,null,0,0,null,null,0,null,null,null,null,0]
[164,null,null,null,null,null,null,null,null,null,null,null,null,null,null,null,null,null,null,null,null,null,null,null,null,null,null,null,null,0,0,0,null,null,null,0,null,null,null,null,null,null,null,0,0,null,null,0,null,null,null,null,0]
[165,null,null,null,null,null,null,null,null,null,null,null,null,null,null,null,null,null,null,null,null,null,null,null,null,null,null,null,null,0,0,0,null,null,null,0,null,null,null,null,null,null,null,0,0,null,null,0,null,null,null,null,0]
[166,null,null,null,null,null,null,null,null,null,null,null,null,null,null,null,null,null,null,null,null,null,null,null,null,null,null,null,null,0,0,0,null,null,null,0,null,null,null,null,null,null,null,0,0,null,null,0,null,null,null,null,0]
[167,null,null,null,null,null,null,null,null,null,null,null,null,null,null,null,null,null,null,null,null,null,null,null,null,null,null,null,null,0,0,0,null,null,null,0,null,null,null,null,null,null,null,0,0,null,null,0,null,null,null,null,0]
[168,null,null,null,null,null,null,null,null,null,null,null,null,null,null,null,null,null,null,null,null,null,null,null,null,null,null,null,null,0,0,0,null,null,null,0,null,null,null,null,null,null,null,0,0,null,null,0,null,null,null,null,0]
[169,null,null,null,null,null,null,null,null,null,null,null,null,null,null,null,null,null,null,null,null,null,null,null,null,null,null,null,null,0,0,0,null,null,null,0,null,null,null,null,null,null,null,0,0,null,null,0,null,null,null,null,0]
[170,null,null,null,null,null,null,null,null,null,null,null,null,null,null,null,null,null,null,null,null,null,null,null,null,null,null,null,null,0,0,0,null,null,null,0,null,null,null,null,null,null,null,0,0,null,null,0,null,null,null,null,0]
[171,null,null,null,null,null,null,null,null,null,null,null,null,null,null,null,null,null,null,null,null,null,null,null,null,null,null,null,null,0,0,0,null,null,null,0,null,null,null,null,null,null,null,0,0,null,null,0,null,null,null,null,0]
[172,null,null,null,null,null,null,null,null,null,null,null,null,null,null,null,null,null,null,null,null,null,null,null,null,null,null,null,null,0,0,0,null,null,null,0,null,null,null,null,null,null,null,0,0,null,null,0,null,null,null,null,0]
[173,null,null,null,null,null,null,null,null,null,null,null,null,null,null,null,null,null,null,null,null,null,null,null,null,null,null,null,null,0,0,0,null,null,null,0,null,null,null,null,null,null,null,0,0,null,null,0,null,null,null,null,0]
[174,null,null,null,null,null,null,null,null,null,null,null,null,null,null,null,null,null,null,null,null,null,null,null,null,null,null,null,null,0,0,0,null,null,null,0,null,null,null,null,null,null,null,0,0,null,null,0,null,null,null,null,0]
[175,null,null,null,null,null,null,null,null,null,null,null,null,null,null,null,null,null,null,null,null,null,null,null,null,null,null,null,null,0,0,0,null,null,null,0,null,null,null,null,null,null,null,0,0,null,null,0,null,null,null,null,0]
[176,null,null,null,null,null,null,null,null,null,null,null,null,null,null,null,null,null,null,null,null,null,null,null,null,null,null,null,null,0,0,0,null,null,null,0,null,null,null,null,null,null,null,0,0,null,null,0,null,null,null,null,0]
[177,null,null,null,null,null,null,null,null,null,null,null,null,null,null,null,null,null,null,null,null,null,null,null,null,null,null,null,null,0,0,0,null,null,null,0,null,null,null,null,null,null,null,0,0,null,null,0,null,null,null,null,0]
[178,null,null,null,null,null,null,null,null,null,null,null,null,null,null,null,null,null,null,null,null,null,null,null,null,null,null,null,null,0,0,0,null,null,null,0,null,null,null,null,null,null,null,0,0,null,null,0,null,null,null,null,0]
[179,null,null,null,null,null,null,null,null,null,null,null,null,null,null,null,null,null,null,null,null,null,null,null,null,null,null,null,null,0,0,0,null,null,null,0,null,null,null,null,null,null,null,0,0,null,null,0,null,null,null,null,0]
[180,null,null,null,null,null,null,null,null,null,null,null,null,null,null,null,null,null,null,null,null,null,null,null,null,null,null,null,null,0,0,0,null,null,null,0,null,null,null,null,null,null,null,0,0,null,null,0,null,null,null,null,0]
[181,null,null,null,null,null,null,null,null,null,null,null,null,null,null,null,null,null,null,null,null,null,null,null,null,null,null,null,null,0,0,0,null,null,null,0,null,null,null,null,null,null,null,0,0,null,null,0,null,null,null,null,0]
[182,null,null,null,null,null,null,null,null,null,null,null,null,null,null,null,null,null,null,null,null,null,null,null,null,null,null,null,null,0,0,0,null,null,null,0,null,null,null,null,null,null,null,0,0,null,null,0,null,null,null,null,0]
[183,null,null,null,null,null,null,null,null,null,null,null,null,null,null,null,null,null,null,null,null,null,null,null,null,null,null,null,null,0,0,0,null,null,null,0,null,null,null,null,null,null,null,0,0,null,null,0,null,null,null,null,0]
[184,null,null,null,null,null,null,null,null,null,null,null,null,null,null,null,null,null,null,null,null,null,null,null,null,null,null,null,null,0,0,0,null,null,null,0,null,null,null,null,null,null,null,0,0,null,null,0,null,null,null,null,0]
[185,null,null,null,null,null,null,null,null,null,null,null,null,null,null,null,null,null,null,null,null,null,null,null,null,null,null,null,null,0,0,0,null,null,null,0,null,null,null,null,null,null,null,0,0,null,null,0,null,null,null,null,0]
[186,null,null,null,null,null,null,null,null,null,null,null,null,null,null,null,null,null,null,null,null,null,null,null,null,null,null,null,null,0,0,0,null,null,null,0,null,null,null,null,null,null,null,0,0,null,null,0,null,null,null,null,0]
[187,null,null,null,null,null,null,null,null,null,null,null,null,null,null,null,null,null,null,null,null,null,null,null,null,null,null,null,null,0,0,0,null,null,null,0,null,null,null,null,null,null,null,0,0,null,null,0,null,null,null,null,0]
[188,null,null,null,null,null,null,null,null,null,null,null,null,null,null,null,null,null,null,null,null,null,null,null,null,null,null,null,null,0,0,0,null,null,null,0,null,null,null,null,null,null,null,0,0,null,null,0,null,null,null,null,0]
[189,null,null,null,null,null,null,null,null,null,null,null,null,null,null,null,null,null,null,null,null,null,null,null,null,null,null,null,null,0,0,0,null,null,null,0,null,null,null,null,null,null,null,0,0,null,null,0,null,null,null,null,0]
[190,null,null,null,null,null,null,null,null,null,null,null,null,null,null,null,null,null,null,null,null,null,null,null,null,null,null,null,null,0,0,0,null,null,null,0,null,null,null,null,null,null,null,0,0,null,null,0,null,null,null,null,0]
[191,null,null,null,null,null,null,null,null,null,null,null,null,null,null,null,null,null,null,null,null,null,null,null,null,null,null,null,null,0,0,0,null,null,null,0,null,null,null,null,null,null,null,0,0,null,null,0,null,null,null,null,0]
[192,null,null,null,null,null,null,null,null,null,null,null,null,null,null,null,null,null,null,null,null,null,null,null,null,null,null,null,null,0,0,0,null,null,null,0,null,null,null,null,null,null,null,0,0,null,null,0,null,null,null,null,0]
[193,null,null,null,null,null,null,null,null,null,null,null,null,null,null,null,null,null,null,null,null,null,null,null,null,null,null,null,null,0,0,{"$f":"SUM(AD194*2.25)","v":0},null,null,null,0,null,null,null,null,null,null,null,{"$f":"AF194+AJ194+AK194+AM194+AN194+AO194+AP194+AQ194+AL194","v":0},0,null,null,{"$f":"AR194+AS194+AT194+AU194","v":0},null,null,null,null,0]
[194,null,null,null,null,null,null,null,null,null,null,null,null,null,null,null,null,null,null,null,null,null,null,null,null,null,null,null,null,0,0,0,null,null,null,{"$f":"(AG195+AH195+AI195)*2.25","v":0},null,null,null,null,null,null,null,0,0,null,null,0,null,null,null,null,0]
[195,null,null,null,null,null,null,null,null,null,null,null,null,null,null,null,null,null,null,null,null,null,null,null,null,null,null,null,null,0,0,0,null,null,null,0,null,null,null,null,null,null,null,0,{"$f":"AD196*2.75","v":0},null,null,0,null,null,null,null,{"$f":"AZ196*$BA$1","v":0}]
[196,null,null,null,null,null,null,null,null,null,null,null,null,null,null,null,null,null,null,null,null,null,null,null,null,null,null,null,null,0,0,0,null,null,null,0,null,null,null,null,null,null,null,0,0,null,null,0,null,null,null,null,0]
[197,null,null,null,null,null,null,null,null,null,null,null,null,null,null,null,null,null,null,null,null,null,null,null,null,null,null,null,null,{"$f":"SUM(C198:Y198)","v":0},{"$f":"AD198/4","v":0},0,null,null,null,0,null,null,null,null,null,null,null,0,0,null,null,0,null,null,null,null,0]
[198,null,null,null,null,null,null,null,null,null,null,null,null,null,null,null,null,null,null,null,null,null,null,null,null,null,null,null,null,0,0,0,null,null,null,0,null,null,null,null,null,null,null,0,0,null,null,0,null,null,null,null,0]
[199,null,null,null,null,null,null,null,null,null,null,null,null,null,null,null,null,null,null,null,null,null,null,null,null,null,null,null,null,0,0,0,null,null,null,0,null,null,null,null,null,null,null,0,0,null,null,0,null,null,null,null,0]
[200,null,null,null,null,null,null,null,null,null,null,null,null,null,null,null,null,null,null,null,null,null,null,null,null,null,null,null,null,0,0,0,null,null,null,0,null,null,null,null,null,null,null,0,0,null,null,0,null,null,null,null,0]
[201,null,null,null,null,null,null,null,null,null,null,null,null,null,null,null,null,null,null,null,null,null,null,null,null,null,null,null,null,0,0,0,null,null,null,0,null,null,null,null,null,null,null,0,0,null,null,0,null,null,null,null,0]
[202,null,null,null,null,null,null,null,null,null,null,null,null,null,null,null,null,null,null,null,null,null,null,null,null,null,null,null,null,0,0,0,null,null,null,0,null,null,null,null,null,null,null,0,0,null,null,0,null,null,null,null,0]
[203,null,null,null,null,null,null,null,null,null,null,null,null,null,null,null,null,null,null,null,null,null,null,null,null,null,null,null,null,0,0,0,null,null,null,0,null,null,null,null,null,null,null,0,0,null,null,0,null,null,null,null,0]
[204,null,null,null,null,null,null,null,null,null,null,null,null,null,null,null,null,null,null,null,null,null,null,null,null,null,null,null,null,0,0,0,null,null,null,0,null,null,null,null,null,null,null,0,0,null,null,0,null,null,null,null,0]
[205,null,null,null,null,null,null,null,null,null,null,null,null,null,null,null,null,null,null,null,null,null,null,null,null,null,null,null,null,0,0,0,null,null,null,0,null,null,null,null,null,null,null,0,0,null,null,0,null,null,null,null,0]
[206,null,null,null,null,null,null,null,null,null,null,null,null,null,null,null,null,null,null,null,null,null,null,null,null,null,null,null,null,0,0,0,null,null,null,0,null,null,null,null,null,null,null,0,0,null,null,0,null,null,null,null,0]
[207,null,null,null,null,null,null,null,null,null,null,null,null,null,null,null,null,null,null,null,null,null,null,null,null,null,null,null,null,0,0,0,null,null,null,0,null,null,null,null,null,null,null,0,0,null,null,0,null,null,null,null,0]
[208,null,null,null,null,null,null,null,null,null,null,null,null,null,null,null,null,null,null,null,null,null,null,null,null,null,null,null,null,0,0,0,null,null,null,0,null,null,null,null,null,null,null,0,0,null,null,0,null,null,null,null,0]
[209,null,null,null,null,null,null,null,null,null,null,null,null,null,null,null,null,null,null,null,null,null,null,null,null,null,null,null,null,0,0,0,null,null,null,0,null,null,null,null,null,null,null,0,0,null,null,0,null,null,null,null,0]
[210,"Hachmeister, Christel",null,null,null,null,null,null,null,null,null,null,null,null,null,null,null,null,null,null,null,null,null,null,null,null,null,null,null,0,0,0,null,null,null,0,null,null,null,null,null,null,null,0,{"$f":"AD211*2.75","v":0},null,null,0,null,null,null,6,15.299999999999999]
[211," ",null,null,null,null,null,null,null,null,null,null,null,null,null,null,null,null,null,null,null,null,null,null,null,null,null,null,null,{"$f":"SUM(C212:W212)","v":0},null,0,null,null,null,0,null,null,null,null,null,null,null,0,0,null,null,0,null,null,null,null,0]
[212," ",null,null,null,null,null,null,null,null,null,null,null,null,null,null,null,null,null,null,null,null,null,null,null,null,null,null,null,0,null,0,null,null,null,0,null,null,null,null,null,null,null,0,0,null,null,0,null,null,null,null,0]
[213," ",null,null,null,null,null,null,null,null,null,null,null,null,null,null,null,null,null,null,null,null,null,null,null,null,null,null,null,0,null,0,null,null,null,0,null,null,null,null,null,null,null,0,0,null,null,0,null,null,null,null,0]
[214," ",null,null,null,null,null,null,null,null,null,null,null,null,null,null,null,null,null,null,null,null,null,null,null,null,null,null,null,0,null,0,null,null,null,0,null,null,null,null,null,null,null,0,0,null,null,0,null,null,null,null,0]
[215," ",null,null,null,null,null,null,null,null,null,null,null,null,null,null,null,null,null,null,null,null,null,null,null,null,null,null,null,0,null,0,null,null,null,0,null,null,null,null,null,null,null,0,0,null,null,0,null,null,null,null,0]
[216," ",null,null,null,null,null,null,null,null,null,null,null,null,null,null,null,null,null,null,null,null,null,null,null,null,null,null,null,0,null,0,null,null,null,0,null,null,null,null,null,null,null,0,0,null,null,0,null,null,null,null,0]
[217," ",null,null,null,null,null,null,null,null,null,null,null,null,null,null,null,null,null,null,null,null,null,null,null,null,null,null,null,0,null,0,null,null,null,0,null,null,null,null,null,null,null,0,0,null,null,0,null,null,null,null,0]
[218," ",null,null,null,null,null,null,null,null,null,null,null,null,null,null,null,null,null,null,null,null,null,null,null,null,null,null,null,0,null,0,null,null,null,0,null,null,null,null,null,null,null,0,0,null,null,0,null,null,null,null,0]
[219," ",null,null,null,null,null,null,null,null,null,null,null,null,null,null,null,null,null,null,null,null,null,null,null,null,null,null,null,0,null,0,null,null,null,0,null,null,null,null,null,null,null,0,0,null,null,0,null,null,null,null,0]
[220," ",null,null,null,null,null,null,null,null,null,null,null,null,null,null,null,null,null,null,null,null,null,null,null,null,null,null,null,0,null,0,null,null,null,0,null,null,null,null,null,null,null,0,0,null,null,0,null,null,null,null,0]
[221," ",null,null,null,null,null,null,null,null,null,null,null,null,null,null,null,null,null,null,null,null,null,null,null,null,null,null,null,0,null,0,null,null,null,0,null,null,null,null,null,null,null,0,0,null,null,0,null,null,null,null,0]
[222," ",null,null,null,null,null,null,null,null,null,null,null,null,null,null,null,null,null,null,null,null,null,null,null,null,null,null,null,0,null,0,null,null,null,0,null,null,null,null,null,null,null,0,0,null,null,0,null,null,null,null,0]
[223," ",null,null,null,null,null,null,null,null,null,null,null,null,null,null,null,null,null,null,null,null,null,null,null,null,null,null,null,0,null,0,null,null,null,0,null,null,null,null,null,null,null,0,0,null,null,0,null,null,null,null,0]
[224," ",null,null,null,null,null,null,null,null,null,null,null,null,null,null,null,null,null,null,null,null,null,null,null,null,null,null,null,0,null,0,null,null,null,0,null,null,null,null,null,null,null,0,0,null,null,0,null,null,null,null,0]
[225," ",null,null,null,null,null,null,null,null,null,null,null,null,null,null,null,null,null,null,null,null,null,null,null,null,null,null,null,0,null,0,null,null,null,0,null,null,null,null,null,null,null,0,0,null,null,0,null,null,null,null,0]
[226," ",null,null,null,null,null,null,null,null,null,null,null,null,null,null,null,null,null,null,null,null,null,null,null,null,null,null,null,0,null,0,null,null,null,0,null,null,null,null,null,null,null,0,0,null,null,0,null,null,null,null,0]
[227," ",null,null,null,null,null,null,null,null,null,null,null,null,null,null,null,null,null,null,null,null,null,null,null,null,null,null,null,0,null,0,null,null,null,0,null,null,null,null,null,null,null,0,0,null,null,0,null,null,null,null,0]
[228," ",null,null,null,null,null,null,null,null,null,null,null,null,null,null,null,null,null,null,null,null,null,null,null,null,null,null,null,0,null,0,null,null,null,0,null,null,null,null,null,null,null,0,0,null,null,0,null,null,null,null,0]
[229," ",null,null,null,null,null,null,null,null,null,null,null,null,null,null,null,null,null,null,null,null,null,null,null,null,null,null,null,0,null,0,null,null,null,0,null,null,null,null,null,null,null,0,0,null,null,0,null,null,null,null,0]
[230," ",null,null,null,null,null,null,null,null,null,null,null,null,null,null,null,null,null,null,null,null,null,null,null,null,null,null,null,0,null,0,null,null,null,0,null,null,null,null,null,null,null,0,0,null,null,0,null,null,null,null,0]
[231," ",null,null,null,null,null,null,null,null,null,null,null,null,null,null,null,null,null,null,null,null,null,null,null,null,null,null,null,0,null,0,null,null,null,0,null,null,null,null,null,null,null,0,0,null,null,0,null,null,null,null,0]
[232," ",null,null,null,null,null,null,null,null,null,null,null,null,null,null,null,null,null,null,null,null,null,null,null,null,null,null,null,0,null,0,null,null,null,0,null,null,null,null,null,null,null,0,0,null,null,0,null,null,null,null,0]
[233," ",null,null,null,null,null,null,null,null,null,null,null,null,null,null,null,null,null,null,null,null,null,null,null,null,null,null,null,0,null,0,null,null,null,0,null,null,null,null,null,null,null,0,0,null,null,0,null,null,null,null,0]
[234," ",null,null,null,null,null,null,null,null,null,null,null,null,null,null,null,null,null,null,null,null,null,null,null,null,null,null,null,0,null,0,null,null,null,0,null,null,null,null,null,null,null,0,0,null,null,0,null,null,null,null,0]
[235," ",null,null,null,null,null,null,null,null,null,null,null,null,null,null,null,null,null,null,null,null,null,null,null,null,null,null,null,0,null,0,null,null,null,0,null,null,null,null,null,null,null,0,0,null,null,0,null,null,null,null,0]
[236," ",null,null,null,null,null,null,null,null,null,null,null,null,null,null,null,null,null,null,null,null,null,null,null,null,null,null,null,0,null,0,null,null,null,0,null,null,null,null,null,null,null,0,0,null,null,0,null,null,null,null,0]
[237," ",null,null,null,null,null,null,null,null,null,null,null,null,null,null,null,null,null,null,null,null,null,null,null,null,null,null,null,0,null,0,null,null,null,0,null,null,null,null,null,null,null,0,0,null,null,0,null,null,null,null,0]
[238," ",null,null,null,null,null,null,null,null,null,null,null,null,null,null,null,null,null,null,null,null,null,null,null,null,null,null,null,0,null,0,null,null,null,0,null,null,null,null,null,null,null,0,0,null,null,0,null,null,null,null,0]
[239," ",null,null,null,null,null,null,null,null,null,null,null,null,null,null,null,null,null,null,null,null,null,null,null,null,null,null,null,0,null,0,null,null,null,0,null,null,null,null,null,null,null,0,0,null,null,0,null,null,null,null,0]
[240," ",null,null,null,null,null,null,null,null,null,null,null,null,null,null,null,null,null,null,null,null,null,null,null,null,null,null,null,0,null,0,null,null,null,0,null,null,null,null,null,null,null,0,0,null,null,0,null,null,null,null,0]
[241," ",null,null,null,null,null,null,null,null,null,null,null,null,null,null,null,null,null,null,null,null,null,null,null,null,null,null,null,0,null,0,null,null,null,0,null,null,null,null,null,null,null,0,0,null,null,0,null,null,null,null,0]
[242," ",null,null,null,null,null,null,null,null,null,null,null,null,null,null,null,null,null,null,null,null,null,null,null,null,null,null,null,0,null,0,null,null,null,0,null,null,null,null,null,null,null,0,0,null,null,0,null,null,null,null,0]
[243," ",null,null,null,null,null,null,null,null,null,null,null,null,null,null,null,null,null,null,null,null,null,null,null,null,null,null,null,0,null,0,null,null,null,0,null,null,null,null,null,null,null,0,0,null,null,0,null,null,null,null,0]
[244," ",null,null,null,null,null,null,null,null,null,null,null,null,null,null,null,null,null,null,null,null,null,null,null,null,null,null,null,0,null,0,null,null,null,0,null,null,null,null,null,null,null,0,0,null,null,0,null,null,null,null,0]
[245," ",null,null,null,null,null,null,null,null,null,null,null,null,null,null,null,null,null,null,null,null,null,null,null,null,null,null,null,0,null,0,null,null,null,0,null,null,null,null,null,null,null,0,0,null,null,0,null,null,null,null,0]
[246," ",null,null,null,null,null,null,null,null,null,null,null,null,null,null,null,null,null,null,null,null,null,null,null,null,null,null,null,0,null,0,null,null,null,0,null,null,null,null,null,null,null,0,0,null,null,0,null,null,null,null,0]
[247," ",null,null,null,null,null,null,null,null,null,null,null,null,null,null,null,null,null,null,null,null,null,null,null,null,null,null,null,0,null,0,null,null,null,0,null,null,null,null,null,null,null,0,0,null,null,0,null,null,null,null,0]
[248," ",null,null,null,null,null,null,null,null,null,null,null,null,null,null,null,null,null,null,null,null,null,null,null,null,null,null,null,0,null,0,null,null,null,0,null,null,null,null,null,null,null,0,0,null,null,0,null,null,null,null,0]
[249,"Meier",null,null,null,null,null,null,null,null,null,null,null,null,null,null,null,null,null,null,null,null,null,null,null,null,null,null,null,0,null,0,null,null,null,0,null,null,null,null,null,null,null,0,0,null,null,0,null,null,null,0,0]
[250," ",null,null,null,null,null,null,null,null,null,null,null,null,null,null,null,null,null,null,null,null,null,null,null,null,null,null,null,0,null,0,null,null,null,0,null,null,null,null,null,null,null,0,{"$f":"AD251*2.55","v":0},null,null,0,null,null,null,null,0]
[251," ",null,null,null,null,null,null,null,null,null,null,null,null,null,null,null,null,null,null,null,null,null,null,null,null,null,null,null,0,null,0,null,null,null,0,null,null,null,null,null,null,null,0,0,null,null,0,null,null,null,null,0]
[252," ",null,null,null,null,null,null,null,null,null,null,null,null,null,null,null,null,null,null,null,null,null,null,null,null,null,null,null,0,null,0,null,null,null,0,null,null,null,null,null,null,null,0,0,null,null,0,null,null,null,null,0]
[253," ",null,null,null,null,null,null,null,null,null,null,null,null,null,null,null,null,null,null,null,null,null,null,null,null,null,null,null,0,null,0,null,null,null,0,null,null,null,null,null,null,null,0,0,null,null,0,null,null,null,null,0]
[254," ",null,null,null,null,null,null,null,null,null,null,null,null,null,null,null,null,null,null,null,null,null,null,null,null,null,null,null,0,null,0,null,null,null,0,null,null,null,null,null,null,null,0,0,null,null,0,null,null,null,null,0]
[255," ",null,null,null,null,null,null,null,null,null,null,null,null,null,null,null,null,null,null,null,null,null,null,null,null,null,null,null,0,null,0,null,null,null,0,null,null,null,null,null,null,null,0,0,null,null,0,null,null,null,null,0]
[256," ",null,null,null,null,null,null,null,null,null,null,null,null,null,null,null,null,null,null,null,null,null,null,null,null,null,null,null,0,null,0,null,null,null,0,null,null,null,null,null,null,null,0,0,null,null,0,null,null,null,null,0]
[257," ",null,null,null,null,null,null,null,null,null,null,null,null,null,null,null,null,null,null,null,null,null,null,null,null,null,null,null,{"$f":"SUM(C258:W258)","v":0},null,{"$f":"SUM(AD258*2.25)","v":0},null,null,null,0,null,null,null,null,null,null,null,{"$f":"AF258+AJ258+AK258+AM258+AN258+AO258+AP258+AQ258+AL258","v":0},0,null,null,{"$f":"AR258+AS258+AT258+AU258","v":0},null,null,null,null,0]
[258," ",null,null,null,null,null,null,null,null,null,null,null,null,null,null,null,null,null,null,null,null,null,null,null,null,null,null,null,0,null,0,null,null,null,{"$f":"(AG259+AH259+AI259)*2.25","v":0},null,null,null,null,null,null,null,0,0,null,null,0,null,null,null,null,0]
[259," ",null,null,null,null,null,null,null,null,null,null,null,null,null,null,null,null,null,null,null,null,null,null,null,null,null,null,null,0,null,0,null,null,null,0,null,null,null,null,null,null,null,0,{"$f":"AD260*2.55","v":0},null,null,0,null,null,null,null,{"$f":"AZ260*$BA$1","v":0}]
[260," ",null,null,null,null,null,null,null,null,null,null,null,null,null,null,null,null,null,null,null,null,null,null,null,null,null,null,null,0,null,0,null,null,null,0,null,null,null,null,null,null,null,0,0,null,null,0,null,null,null,null,0]
[261," ",null,null,null,null,null,null,null,null,null,null,null,null,null,null,null,null,null,null,null,null,null,null,null,null,null,null,null,0,null,0,null,null,null,0,null,null,null,null,null,null,null,0,0,null,null,0,null,null,null,null,0]
[262," ",null,null,null,null,null,null,null,null,null,null,null,null,null,null,null,null,null,null,null,null,null,null,null,null,null,null,null,0,null,0,null,null,null,0,null,null,null,null,null,null,null,0,0,null,null,0,null,null,null,null,0]
[263," ",null,null,null,null,null,null,null,null,null,null,null,null,null,null,null,null,null,null,null,null,null,null,null,null,null,null,null,0,null,0,null,null,null,0,null,null,null,null,null,null,null,0,0,null,null,0,null,null,null,null,0]
[264," ",null,null,null,null,null,null,null,null,null,null,null,null,null,null,null,null,null,null,null,null,null,null,null,null,null,null,null,0,null,0,null,null,null,0,null,null,null,null,null,null,null,0,0,null,null,0,null,null,null,null,0]
[265," ",null,null,null,null,null,null,null,null,null,null,null,null,null,null,null,null,null,null,null,null,null,null,null,null,null,null,null,0,null,0,null,null,null,0,null,null,null,null,null,null,null,0,0,null,null,0,null,null,null,null,0]
[266," ",null,null,null,null,null,null,null,null,null,null,null,null,null,null,null,null,null,null,null,null,null,null,null,null,null,null,null,0,null,0,null,null,null,0,null,null,null,null,null,null,null,0,0,null,null,0,null,null,null,null,0]
[267," ",null,null,null,null,null,null,null,null,null,null,null,null,null,null,null,null,null,null,null,null,null,null,null,null,null,null,null,0,null,0,null,null,null,0,null,null,null,null,null,null,null,0,0,null,null,0,null,null,null,null,0]
[268," ",null,null,null,null,null,null,null,null,null,null,null,null,null,null,null,null,null,null,null,null,null,null,null,null,null,null,null,0,null,0,null,null,null,0,null,null,null,null,null,null,null,0,0,null,null,0,null,null,null,null,0]
[269," ",null,null,null,null,null,null,null,null,null,null,null,null,null,null,null,null,null,null,null,null,null,null,null,null,null,null,null,0,null,0,null,null,null,0,null,null,null,null,null,null,null,0,0,null,null,0,null,null,null,null,0]
[270," ",null,null,null,null,null,null,null,null,null,null,null,null,null,null,null,null,null,null,null,null,null,null,null,null,null,null,null,0,null,0,null,null,null,0,null,null,null,null,null,null,null,0,0,null,null,0,null,null,null,null,0]
[271," ",null,null,null,null,null,null,null,null,null,null,null,null,null,null,null,null,null,null,null,null,null,null,null,null,null,null,null,0,null,0,null,null,null,0,null,null,null,null,null,null,null,0,0,null,null,0,null,null,null,null,0]
[272," ",null,null,null,null,null,null,null,null,null,null,null,null,null,null,null,null,null,null,null,null,null,null,null,null,null,null,null,0,null,0,null,null,null,0,null,null,null,null,null,null,null,0,0,null,null,0,null,null,null,null,0]
[273," ",null,null,null,null,null,null,null,null,null,null,null,null,null,null,null,null,null,null,null,null,null,null,null,null,null,null,null,0,null,0,null,null,null,0,null,null,null,null,null,null,null,0,0,null,null,0,null,null,null,null,0]
[274," ",null,null,null,null,null,null,null,null,null,null,null,null,null,null,null,null,null,null,null,null,null,null,null,null,null,null,null,0,null,0,null,null,null,0,null,null,null,null,null,null,null,0,0,null,null,0,null,null,null,null,0]
[275," ",null,null,null,null,null,null,null,null,null,null,null,null,null,null,null,null,null,null,null,null,null,null,null,null,null,null,null,0,null,0,null,null,null,0,null,null,null,null,null,null,null,0,0,null,null,0,null,null,null,null,0]
[276," ",null,null,null,null,null,null,null,null,null,null,null,null,null,null,null,null,null,null,null,null,null,null,null,null,null,null,null,0,null,0,null,null,null,0,null,null,null,null,null,null,null,0,0,null,null,0,null,null,null,null,0]
[277," ",null,null,null,null,null,null,null,null,null,null,null,null,null,null,null,null,null,null,null,null,null,null,null,null,null,null,null,0,null,0,null,null,null,0,null,null,null,null,null,null,null,0,0,null,null,0,null,null,null,null,0]
[278," ",null,null,null,null,null,null,null,null,null,null,null,null,null,null,null,null,null,null,null,null,null,null,null,null,null,null,null,0,null,0,null,null,null,0,null,null,null,null,null,null,null,0,0,null,null,0,null,null,null,null,0]
[279," ",null,null,null,null,null,null,null,null,null,null,null,null,null,null,null,null,null,null,null,null,null,null,null,null,null,null,null,0,null,0,null,null,null,0,null,null,null,null,null,null,null,0,0,null,null,0,null,null,null,null,0]
[280," ",null,null,null,null,null,null,null,null,null,null,null,null,null,null,null,null,null,null,null,null,null,null,null,null,null,null,null,0,null,0,null,null,null,0,null,null,null,null,null,null,null,0,0,null,null,0,null,null,null,null,0]
[281," ",null,null,null,null,null,null,null,null,null,null,null,null,null,null,null,null,null,null,null,null,null,null,null,null,null,null,null,0,null,0,null,null,null,0,null,null,null,null,null,null,null,0,0,null,null,0,null,null,null,null,0]
[282," ",null,null,null,null,null,null,null,null,null,null,null,null,null,null,null,null,null,null,null,null,null,null,null,null,null,null,null,0,null,0,null,null,null,0,null,null,null,null,null,null,null,0,0,null,null,0,null,null,null,null,0]
[283," ",null,null,null,null,null,null,null,null,null,null,null,null,null,null,null,null,null,null,null,null,null,null,null,null,null,null,null,0,null,0,null,null,null,0,null,null,null,null,null,null,null,0,0,null,null,0,null,null,null,null,0]
[284," ",null,null,null,null,null,null,null,null,null,null,null,null,null,null,null,null,null,null,null,null,null,null,null,null,null,null,null,0,null,0,null,null,null,0,null,null,null,null,null,null,null,0,0,null,null,0,null,null,null,null,0]
[285," ",null,null,null,null,null,null,null,null,null,null,null,null,null,null,null,null,null,null,null,null,null,null,null,null,null,null,null,0,null,0,null,null,null,0,null,null,null,null,null,null,null,0,0,null,null,0,null,null,null,null,0]
[286," ",null,null,null,null,null,null,null,null,null,null,null,null,null,null,null,null,null,null,null,null,null,null,null,null,null,null,null,0,null,0,null,null,null,0,null,null,null,null,null,null,null,0,0,null,null,0,null,null,null,null,0]
[287," ",null,null,null,null,null,null,null,null,null,null,null,null,null,null,null,null,null,null,null,null,null,null,null,null,null,null,null,0,null,0,null,null,null,0,null,null,null,null,null,null,null,0,0,null,null,0,null,null,null,null,0]
[288," ",null,null,null,null,null,null,null,null,null,null,null,null,null,null,null,null,null,null,null,null,null,null,null,null,null,null,null,0,null,0,null,null,null,0,null,null,null,null,null,null,null,0,0,null,null,0,null,null,null,null,0]
[289," ",null,null,null,null,null,null,null,null,null,null,null,null,null,null,null,null,null,null,null,null,null,null,null,null,null,null,null,0,null,0,null,null,null,0,null,null,null,null,null,null,null,0,0,null,null,0,null,null,null,null,0]
[290," ",null,null,null,null,null,null,null,null,null,null,null,null,null,null,null,null,null,null,null,null,null,null,null,null,null,null,null,0,null,0,null,null,null,0,null,null,null,null,null,null,null,0,0,null,null,0,null,null,null,null,0]
[291," ",null,null,null,null,null,null,null,null,null,null,null,null,null,null,null,null,null,null,null,null,null,null,null,null,null,null,null,0,null,0,null,null,null,0,null,null,null,null,null,null,null,0,0,null,null,0,null,null,null,null,0]
[292," ",null,null,null,null,null,null,null,null,null,null,null,null,null,null,null,null,null,null,null,null,null,null,null,null,null,null,null,0,null,0,null,null,null,0,null,null,null,null,null,null,null,0,0,null,null,0,null,null,null,null,0]
[293," ",null,null,null,null,null,null,null,null,null,null,null,null,null,null,null,null,null,null,null,null,null,null,null,null,null,null,null,0,null,0,null,null,null,0,null,null,null,null,null,null,null,0,0,null,null,0,null,null,null,null,0]
[294," ",null,null,null,null,null,null,null,null,null,null,null,null,null,null,null,null,null,null,null,null,null,null,null,null,null,null,null,0,null,0,null,null,null,0,null,null,null,null,null,null,null,0,0,null,null,0,null,null,null,null,0]
[295," ",null,null,null,null,null,null,null,null,null,null,null,null,null,null,null,null,null,null,null,null,null,null,null,null,null,null,null,0,null,0,null,null,null,0,null,null,null,null,null,null,null,0,0,null,null,0,null,null,null,null,0]
[296," ",null,null,null,null,null,null,null,null,null,null,null,null,null,null,null,null,null,null,null,null,null,null,null,null,null,null,null,0,null,0,null,null,null,0,null,null,null,null,null,null,null,0,0,null,null,0,null,null,null,null,0]
[297," ",null,null,null,null,null,null,null,null,null,null,null,null,null,null,null,null,null,null,null,null,null,null,null,null,null,null,null,0,null,0,null,null,null,0,null,null,null,null,null,null,null,0,0,null,null,0,null,null,null,null,0]
[298," ",null,null,null,null,null,null,null,null,null,null,null,null,null,null,null,null,null,null,null,null,null,null,null,null,null,null,null,0,null,0,null,null,null,0,null,null,null,null,null,null,null,0,0,null,null,0,null,null,null,null,0]
[299," ",null,null,null,null,null,null,null,null,null,null,null,null,null,null,null,null,null,null,null,null,null,null,null,null,null,null,null,0,null,0,null,null,null,0,null,null,null,null,null,null,null,0,0,null,null,0,null,null,null,null,0]
[300," ",null,null,null,null,null,null,null,null,null,null,null,null,null,null,null,null,null,null,null,null,null,null,null,null,null,null,null,0,null,{"$f":"SUM(AD301*4.4)","v":0},null,null,null,0,null,null,null,null,null,null,null,0,0,null,null,0,null,null,null,null,0]
[999," ",null,null,null,null,null,null,null,null,null,null,null,null,null,null,null,null,null,null,null,null,null,null,null,null,null,null,null,0,null,{"$f":"SUM(AD302*4.4)","v":0},null,null,null,0,null,null,null,null,null,null,null,0,0,null,null,0,null,null,null,0,0]
[null,"SUMME in €",{"$f":"SUM(C2:C302)","v":0},0,0,0,0,0,0,0,0,0,0,0,0,null,null,null,null,null,0,0,0,0,0,0,0,0,0,0,{"$f":"SUM(AE2:AE302)","v":0},{"$f":"SUM(AF2:AF302)","v":0},0,0,0,0,0,0,0,0,0,0,0,0,0,0,0,0,null,null,null,{"$f":"SUM(AZ3:AZ302)","v":358},912.9]
[null,null,"Sonderentgelte für FAHRER; NUR FÜR  KILOMETERGELD- ABRECHNUNG :",null,null,null,null,null,null,null,null,null,null,null,null,null,null,null,null,null,null,null,null,null,null,null,null,null,null,null,null,null,null,null,null,null,null,null,null,null,null,null,null,null,"KM"]
[null,null,null,null,null,null,null,null,null,null,null,null,null,null,null,null,null,null,null,null,null,null,null,null,null,null,null,null,null,null,null,null,null,null,null,null,null,null,null,null,null,null,null,null,null,{"$f":"AS305*0.52","v":0},null,{"$f":"AT305+AU305","v":0}]
[null,null,null,null,null,null,null,null,null,null,null,null,null,null,null,null,null,null,null,null,null,null,null,null,null,null,null,null,null,null,null,null,null,null,null,null,null,null,null,null,null,null,null,null,null,{"$f":"AS306*0.52","v":0},null,{"$f":"AT306+AU306","v":0}]
[null,null,null,null,null,null,null,null,null,null,"KEIN EINTRAG",null,null,null,null,null,null,null,null,null,null,null,null,null,null,null,null,null,null,null,null,null,null,null,null,null,null,null,null,null,null,null,null,null,null,{"$f":"AS307*0.52","v":0},null,{"$f":"AT307+AU307","v":0}]
[null,null,null,null,null,null,null,null,null,null,null,null,null,null,null,null,null,null,null,null,null,null,null,null,null,null,null,null,null,null,null,null,null,null,null,null,null,null,null,null,null,null,null,null,null,{"$f":"AS308*0.52","v":0},null,{"$f":"AT308+AU308","v":0}]
[null,null,null,null,null,null,null,null,null,null,null,null,null,null,null,null,null,null,null,null,null,null,null,null,null,null,null,null,null,null,null,null,null,null,null,null,null,null,null,null,null,null,null,null,null,{"$f":"AS309*0.52","v":0},null,{"$f":"AT309+AU309","v":0}]
[null,null,null,null,null,null,null,null,null,null,null,null,null,null,null,null,null,null,null,null,null,null,null,null,null,null,null,null,null,null,null,"GESAMTSUMME",null,null,null,null,null,null,null,null,null,null,null,null,null,null,null,{"$f":"SUM(AV303:AV309)","v":0}]
[]
[]
[null,"Start"]
[null,"Ende"]
[]
[null,"Urlaub:","ab","bis"]

{"sheet":"06-Abrechnung","index":11,"n_rows":67,"n_cols":8,"rows_kept":67,"cut":false,"hidden":false,"merged":[[47,6,48,6],[47,7,48,7],[12,0,12,3],[13,0,13,3],[59,1,59,2],[60,1,60,4],[49,1,49,2],[47,1,47,2],[54,1,54,2],[58,1,58,2],[50,1,50,2],[51,1,51,2],[52,1,52,2]]}
["QuittungNR",211]
[]
[]
[]
[]
[]
[]
["Mitarbeiter Nr.:",null,null,"MONATSABRECHNUNG",null,null,"Juni",2017]
[]
[null,null,null,null,null,null,"Abrechnungszeitraum: 21.05 - 20.06"]
[]
[]
[{"$f":"INDEX([1]!Datenbank2,$B$1,2)&\" \"&INDEX([1]!Datenbank2,$B$1,3)","v":"Christel Hachmeister"},"Anja Rohlfing","Anja Rohlfing","Anja Rohlfing"]
[{"$f":"INDEX([1]!Datenbank2,$B$1,4)","v":"Borsteler Bruch 4"},"Elbeweg 7","Elbeweg 7","Elbeweg 7"]
[{"$f":"INDEX([1]!Datenbank2,$B$1,5)&\" \"&INDEX([1]!Datenbank2,$B$1,6)","v":"31749 Auetal"}]
[]
[]
[]
["Allgemeine Tests:"]
[null,null,"TEST NR\n& DATUM","FB","Entgelt \nin EURO €",null,"Erläuterungen zu"]
[null,null,{"$f":"Juni!$C$1","v":0},{"$f":"INDEX([0]!juni,$B$1,3)","v":0},{"$f":"D21*2.25","v":0},null,"Spezialtests:"]
[null,null,{"$f":"Juni!$D$1","v":0},{"$f":"INDEX([0]!juni,$B$1,4)","v":0},{"$f":"D22*2.25","v":0},null,{"$f":"IF(Juni!$AL$1=0,\"\",Juni!AL$1)","v":""},{"$f":"INDEX([0]!juni,$B$1,38)","v":0}]
[null,null,{"$f":"Juni!$E$1","v":0},{"$f":"INDEX([0]!juni,$B$1,5)","v":0},0,null,{"$f":"IF(Juni!$AM$1=0,\"\",Juni!AM$1)","v":""},{"$f":"INDEX([0]!juni,$B$1,39)","v":0}]
[null,null,{"$f":"Juni!$F$1","v":0},{"$f":"INDEX([0]!juni,$B$1,6)","v":0},0,null,{"$f":"IF(Juni!$AN$1=0,\"\",Juni!AN$1)","v":""},{"$f":"INDEX([0]!juni,$B$1,40)","v":0}]
[null,null,{"$f":"Juni!$G$1","v":0},{"$f":"INDEX([0]!juni,$B$1,7)","v":0},0,null,{"$f":"IF(Juni!$AO$1=0,\"\",Juni!AO$1)","v":""},{"$f":"INDEX([0]!juni,$B$1,41)","v":0}]
[null,null,{"$f":"Juni!$H$1","v":0},{"$f":"INDEX([0]!juni,$B$1,8)","v":0},0,null,{"$f":"IF(Juni!$AP$1=0,\"\",Juni!AP$1)","v":""},{"$f":"INDEX([0]!juni,$B$1,42)","v":0}]
[null,null,{"$f":"Juni!$I$1","v":0},{"$f":"INDEX([0]!juni,$B$1,9)","v":0},0]
[null,null,{"$f":"Juni!$J$1","v":0},{"$f":"INDEX([0]!juni,$B$1,10)","v":0},0,null,"Gesamt",{"$f":"SUM(H22:H27)","v":0}]
[null,null,{"$f":"Juni!$K$1","v":0},{"$f":"INDEX([0]!juni,$B$1,11)","v":0},0]
[null,null,{"$f":"Juni!$L$1","v":0},{"$f":"INDEX([0]!juni,$B$1,12)","v":0},0]
[null,null,{"$f":"Juni!$M$1","v":0},{"$f":"INDEX([0]!juni,$B$1,13)","v":0},0]
[null,null,{"$f":"Juni!$N$1","v":0},{"$f":"INDEX([0]!juni,$B$1,14)","v":0},0]
[null,null,{"$f":"Juni!$O$1","v":0},{"$f":"INDEX([0]!juni,$B$1,15)","v":0},0," "]
[null,null,{"$f":"Juni!$P$1","v":0},{"$f":"INDEX([0]!juni,$B$1,16)","v":0},0]
[null,null,{"$f":"Juni!$Q$1","v":0},{"$f":"INDEX([0]!juni,$B$1,17)","v":0},0]
[null,null,{"$f":"Juni!$R$1","v":0},{"$f":"INDEX([0]!juni,$B$1,18)","v":0},0]
[null,null,{"$f":"Juni!$S$1","v":0},{"$f":"INDEX([0]!juni,$B$1,19)","v":0},0]
[null,null,{"$f":"Juni!$T$1","v":0},{"$f":"INDEX([0]!juni,$B$1,20)","v":0},0]
[null,null,{"$f":"Juni!$U$1","v":0},{"$f":"INDEX([0]!juni,$B$1,21)","v":0},0]
[null,null,{"$f":"Juni!$V$1","v":0},{"$f":"INDEX([0]!juni,$B$1,22)","v":0},{"$f":"D40*2.25","v":0}]
[null,null,{"$f":"Juni!$W$1","v":0},{"$f":"INDEX([0]!juni,$B$1,23)","v":0},0]
[null,null,{"$f":"Juni!$X$1","v":0},{"$f":"INDEX([0]!juni,$B$1,24)","v":0},0]
[null,null,{"$f":"Juni!$Y$1","v":0},{"$f":"INDEX([0]!juni,$B$1,25)","v":0},0]
[null,null,{"$f":"Juni!$Z$1","v":0},{"$f":"INDEX([0]!juni,$B$1,26)","v":0},0]
[null,null,{"$f":"Juni!$AA$1","v":0},{"$f":"INDEX([0]!juni,$B$1,27)","v":0},0]
[null,null,{"$f":"Juni!$AB$1","v":0},{"$f":"INDEX([0]!juni,$B$1,28)","v":0},0]
[null,null,{"$f":"Juni!$AC$1","v":0},{"$f":"INDEX([0]!juni,$B$1,29)","v":0},0]
[null,"SUMME 1",null,{"$f":"SUM(D21:D47)","v":0},{"$f":"SUM(E21:E47)","v":0},null,"Stunden (nach FB-Anzahl)",{"$f":"INDEX([0]!juni,$B$1,31)","v":0}]
[]
["Zusätze:","Bezeichung",null,null,null,null,"FB = Anzahl der Fragebogen"]
[null,{"$f":"Juni!$AJ$1","v":"Summe BIM in EURO"},null,null,{"$f":"INDEX([0]!juni,$B$1,28)","v":0}]
[null,{"$f":"Juni!$AK$1","v":"Stamm daten"},null,null,{"$f":"INDEX([0]!juni,$B$1,29)","v":0}]
[null,"Summe Spezialtest",null,null,{"$f":"H28","v":0}]
[null,null,{"$f":"IF(Juni!$AQ$1=0,\"\",Juni!AQ$1)","v":"Std. /Entgelt"},null,{"$f":"INDEX([0]!juni,$B$1,43)","v":0}]
[null,"GESAMT NETTO",null,null,{"$f":"SUM(E48:E54)","v":0}]
[null,null,"Kilometergeld",null,{"$f":"INDEX([0]!juni,$B$1,45)","v":0}]
[null,null,"Porto/Telefon/Fax",null,{"$f":"INDEX([0]!juni,$B$1,46)","v":0}]
[null,null,"Pauschale 25%",null,{"$f":"INDEX([0]!juni,$B$1,47)","v":0}]
[null,"GESAMT in €",null,null,{"$f":"E55+E56+E57+E58","v":0}]
[]
[]
["Der Betrag wird bis zum 10. des folgenden Monats überwiesen."]
[]
[]
[]
[]
["Prorata Marktforschung GmbH • Marienglacis 37 • 32427 Minden • tel  0571.82875.0 fax • 0571.82875.99 •  www.prorata.de • info@prorata.de"]